Workbook

Sheet SeedingPlan_STD
A1: Landowner:
A2: TRACT #: | I2: NRCS STD.
A3: Field(s): | F3: Mix Type: | I3: 0 | J3: =IF(I3=1,327,IF(I3=2,342,IF(I3=3,512,"327"))) -> 327 | L3: 0 | M3: Intro/Native
L4: 0
A5: Plan by: | I5: Mix # | L5: 1 | M5: Pollinator
A6: County: | K6: VISIBLE
A7: Date: | I7: =COUNT(I13:I32)+1 -> 1
A8: Total Acres: | I8: =COUNT(J37:J76)+1 -> 1
A11: GRASSES
A12: Common Name | B12: Scientific Name | D12: Intro/ Native | E12: PLS (lbs / Acre) | F12: PLS Total Lbs.
A13: =IF(STD_MIX_DESIGN!T3<>"",STD_MIX_DESIGN!T3,"") ->  | B13: =IF(A13<>"",STD_MIX_DESIGN!U3,"") ->  | D13: =IF(O13="","",IF(O13="I","Intro","Native")) ->  | E13: =IF(A13<>"",STD_MIX_DESIGN!V3,"") ->  | F13: =IF(OR(E13="",$B$8=""),"",E13*$B$8) ->  | I13: =IF(LEN(B13)>1,VALUE("1"),"") ->  | O13: =IF($A13<>"",STD_MIX_DESIGN!$W3,"") ->  | P13: =IF(O13="I",1,"") ->  | Q13: =IF(O13="N",1,"") -> 
A14: =IF(STD_MIX_DESIGN!T4<>"",STD_MIX_DESIGN!T4,"") ->  | B14: =IF(A14<>"",STD_MIX_DESIGN!U4,"") ->  | D14: =IF(O14="","",IF(O14="I","Intro","Native")) ->  | E14: =IF(A14<>"",STD_MIX_DESIGN!V4,"") ->  | O14: =IF($A14<>"",STD_MIX_DESIGN!$W4,"") ->  | P14: =IF(O14="I",1,"") ->  | Q14: =IF(O14="N",1,"") -> 
A15: =IF(STD_MIX_DESIGN!T5<>"",STD_MIX_DESIGN!T5,"") ->  | B15: =IF(A15<>"",STD_MIX_DESIGN!U5,"") ->  | D15: =IF(O15="","",IF(O15="I","Intro","Native")) ->  | E15: =IF(A15<>"",STD_MIX_DESIGN!V5,"") ->  | O15: =IF($A15<>"",STD_MIX_DESIGN!$W5,"") -> 
A16: =IF(STD_MIX_DESIGN!T6<>"",STD_MIX_DESIGN!T6,"") ->  | B16: =IF(A16<>"",STD_MIX_DESIGN!U6,"") ->  | E16: =IF(A16<>"",STD_MIX_DESIGN!V6,"") ->  | O16: =IF($A16<>"",STD_MIX_DESIGN!$W6,"") -> 
A17: =IF(STD_MIX_DESIGN!T7<>"",STD_MIX_DESIGN!T7,"") ->  | B17: =IF(A17<>"",STD_MIX_DESIGN!U7,"") ->  | E17: =IF(A17<>"",STD_MIX_DESIGN!V7,"") ->  | O17: =IF($A17<>"",STD_MIX_DESIGN!$W7,"") -> 
A18: =IF(STD_MIX_DESIGN!T8<>"",STD_MIX_DESIGN!T8,"") ->  | B18: =IF(A18<>"",STD_MIX_DESIGN!U8,"") ->  | E18: =IF(A18<>"",STD_MIX_DESIGN!V8,"") ->  | O18: =IF($A18<>"",STD_MIX_DESIGN!$W8,"") -> 
A19: =IF(STD_MIX_DESIGN!T9<>"",STD_MIX_DESIGN!T9,"") ->  | B19: =IF(A19<>"",STD_MIX_DESIGN!U9,"") ->  | E19: =IF(A19<>"",STD_MIX_DESIGN!V9,"") ->  | O19: =IF($A19<>"",STD_MIX_DESIGN!$W9,"") -> 
A20: =IF(STD_MIX_DESIGN!T10<>"",STD_MIX_DESIGN!T10,"") ->  | B20: =IF(A20<>"",STD_MIX_DESIGN!U10,"") ->  | E20: =IF(A20<>"",STD_MIX_DESIGN!V10,"") ->  | O20: =IF($A20<>"",STD_MIX_DESIGN!$W10,"") -> 
A21: =IF(STD_MIX_DESIGN!T11<>"",STD_MIX_DESIGN!T11,"") ->  | B21: =IF(A21<>"",STD_MIX_DESIGN!U11,"") ->  | E21: =IF(A21<>"",STD_MIX_DESIGN!V11,"") ->  | O21: =IF($A21<>"",STD_MIX_DESIGN!$W11,"") -> 
A22: =IF(STD_MIX_DESIGN!T12<>"",STD_MIX_DESIGN!T12,"") ->  | B22: =IF(A22<>"",STD_MIX_DESIGN!U12,"") ->  | E22: =IF(A22<>"",STD_MIX_DESIGN!V12,"") ->  | O22: =IF($A22<>"",STD_MIX_DESIGN!$W12,"") -> 
A23: =IF(STD_MIX_DESIGN!T13<>"",STD_MIX_DESIGN!T13,"") ->  | B23: =IF(A23<>"",STD_MIX_DESIGN!U13,"") ->  | E23: =IF(A23<>"",STD_MIX_DESIGN!V13,"") ->  | O23: =IF($A23<>"",STD_MIX_DESIGN!$W13,"") -> 
A24: =IF(STD_MIX_DESIGN!T14<>"",STD_MIX_DESIGN!T14,"") ->  | B24: =IF(A24<>"",STD_MIX_DESIGN!U14,"") ->  | E24: =IF(A24<>"",STD_MIX_DESIGN!V14,"") ->  | O24: =IF($A24<>"",STD_MIX_DESIGN!$W14,"") -> 
A25: =IF(STD_MIX_DESIGN!T15<>"",STD_MIX_DESIGN!T15,"") ->  | B25: =IF(A25<>"",STD_MIX_DESIGN!U15,"") ->  | E25: =IF(A25<>"",STD_MIX_DESIGN!V15,"") ->  | O25: =IF($A25<>"",STD_MIX_DESIGN!$W15,"") -> 
A26: =IF(STD_MIX_DESIGN!T16<>"",STD_MIX_DESIGN!T16,"") ->  | B26: =IF(A26<>"",STD_MIX_DESIGN!U16,"") ->  | E26: =IF(A26<>"",STD_MIX_DESIGN!V16,"") ->  | O26: =IF($A26<>"",STD_MIX_DESIGN!$W16,"") -> 
A27: =IF(STD_MIX_DESIGN!T17<>"",STD_MIX_DESIGN!T17,"") ->  | B27: =IF(A27<>"",STD_MIX_DESIGN!U17,"") ->  | E27: =IF(A27<>"",STD_MIX_DESIGN!V17,"") ->  | O27: =IF($A27<>"",STD_MIX_DESIGN!$W17,"") -> 
A28: =IF(STD_MIX_DESIGN!T18<>"",STD_MIX_DESIGN!T18,"") ->  | B28: =IF(A28<>"",STD_MIX_DESIGN!U18,"") ->  | E28: =IF(A28<>"",STD_MIX_DESIGN!V18,"") ->  | O28: =IF($A28<>"",STD_MIX_DESIGN!$W18,"") -> 
A29: =IF(STD_MIX_DESIGN!T19<>"",STD_MIX_DESIGN!T19,"") ->  | B29: =IF(A29<>"",STD_MIX_DESIGN!U19,"") ->  | E29: =IF(A29<>"",STD_MIX_DESIGN!V19,"") ->  | O29: =IF($A29<>"",STD_MIX_DESIGN!$W19,"") -> 
A30: =IF(STD_MIX_DESIGN!T20<>"",STD_MIX_DESIGN!T20,"") ->  | B30: =IF(A30<>"",STD_MIX_DESIGN!U20,"") ->  | E30: =IF(A30<>"",STD_MIX_DESIGN!V20,"") ->  | O30: =IF($A30<>"",STD_MIX_DESIGN!$W20,"") -> 
A31: =IF(STD_MIX_DESIGN!T21<>"",STD_MIX_DESIGN!T21,"") ->  | B31: =IF(A31<>"",STD_MIX_DESIGN!U21,"") ->  | E31: =IF(A31<>"",STD_MIX_DESIGN!V21,"") ->  | O31: =IF($A31<>"",STD_MIX_DESIGN!$W21,"") -> 
A32: =IF(STD_MIX_DESIGN!T22<>"",STD_MIX_DESIGN!T22,"") ->  | B32: =IF(A32<>"",STD_MIX_DESIGN!U22,"") ->  | E32: =IF(A32<>"",STD_MIX_DESIGN!V22,"") ->  | O32: =IF($A32<>"",STD_MIX_DESIGN!$W22,"") -> 
A34: TOTAL GRASSES: | E34: =SUM(E13:E32) -> 0 | F34: =SUM(F13:F32) -> 0
A35: FORBS/LEGUMES
A36: Common Name | B36: Scientific Name | D36: Intro/ Native | E36: PLS (lbs / Acre) | F36: PLS Total Lbs. | G36: PLS (oz./Acre) | H36: PLS Total Oz.
A37: =IF(STD_MIX_DESIGN!X3<>"",STD_MIX_DESIGN!X3,"") ->  | B37: =IF(STD_MIX_DESIGN!Y3<>"",STD_MIX_DESIGN!Y3,"") ->  | D37: =IF(O37="","",IF(O37="I","Intro","Native")) ->  | E37: =IF(OR(A37="",D37="NATIVE"),"",STD_MIX_DESIGN!Z3) ->  | F37: =IF(OR(E37="",$B$8=""),"",E37*$B$8) ->  | G37: =IF(OR(A37="",D37="INTRO"),"",STD_MIX_DESIGN!AA3) ->  | H37: =IF(OR(G37="",$B$8=""),"",G37*$B$8) ->  | J37: =IF(LEN(B37)>1,VALUE("1"),"") ->  | O37: =IF($A37<>"",STD_MIX_DESIGN!$AB3,"") ->  | P37: =IF(O37="I",1,"") ->  | Q37: =IF(O37="N",1,"") -> 
A38: =IF(STD_MIX_DESIGN!X4<>"",STD_MIX_DESIGN!X4,"") ->  | B38: =IF(STD_MIX_DESIGN!Y4<>"",STD_MIX_DESIGN!Y4,"") ->  | D38: =IF(O38="","",IF(O38="I","Intro","Native")) ->  | E38: =IF(OR(A38="",D38="NATIVE"),"",STD_MIX_DESIGN!Z4) ->  | G38: =IF(OR(A38="",D38="INTRO"),"",STD_MIX_DESIGN!AA4) ->  | J38: =IF(LEN(B38)>1,VALUE("1"),"") ->  | O38: =IF($A38<>"",STD_MIX_DESIGN!$AB4,"") -> 
A39: =IF(STD_MIX_DESIGN!X5<>"",STD_MIX_DESIGN!X5,"") ->  | B39: =IF(STD_MIX_DESIGN!Y5<>"",STD_MIX_DESIGN!Y5,"") ->  | E39: =IF(OR(A39="",D39="NATIVE"),"",STD_MIX_DESIGN!Z5) ->  | G39: =IF(OR(A39="",D39="INTRO"),"",STD_MIX_DESIGN!AA5) ->  | O39: =IF($A39<>"",STD_MIX_DESIGN!$AB5,"") -> 
A40: =IF(STD_MIX_DESIGN!X6<>"",STD_MIX_DESIGN!X6,"") ->  | B40: =IF(STD_MIX_DESIGN!Y6<>"",STD_MIX_DESIGN!Y6,"") ->  | E40: =IF(OR(A40="",D40="NATIVE"),"",STD_MIX_DESIGN!Z6) ->  | G40: =IF(OR(A40="",D40="INTRO"),"",STD_MIX_DESIGN!AA6) ->  | O40: =IF($A40<>"",STD_MIX_DESIGN!$AB6,"") -> 
A41: =IF(STD_MIX_DESIGN!X7<>"",STD_MIX_DESIGN!X7,"") ->  | B41: =IF(STD_MIX_DESIGN!Y7<>"",STD_MIX_DESIGN!Y7,"") ->  | E41: =IF(OR(A41="",D41="NATIVE"),"",STD_MIX_DESIGN!Z7) ->  | G41: =IF(OR(A41="",D41="INTRO"),"",STD_MIX_DESIGN!AA7) ->  | O41: =IF($A41<>"",STD_MIX_DESIGN!$AB7,"") -> 
A42: =IF(STD_MIX_DESIGN!X8<>"",STD_MIX_DESIGN!X8,"") ->  | B42: =IF(STD_MIX_DESIGN!Y8<>"",STD_MIX_DESIGN!Y8,"") ->  | E42: =IF(OR(A42="",D42="NATIVE"),"",STD_MIX_DESIGN!Z8) ->  | G42: =IF(OR(A42="",D42="INTRO"),"",STD_MIX_DESIGN!AA8) ->  | O42: =IF($A42<>"",STD_MIX_DESIGN!$AB8,"") -> 
A43: =IF(STD_MIX_DESIGN!X9<>"",STD_MIX_DESIGN!X9,"") ->  | B43: =IF(STD_MIX_DESIGN!Y9<>"",STD_MIX_DESIGN!Y9,"") ->  | E43: =IF(OR(A43="",D43="NATIVE"),"",STD_MIX_DESIGN!Z9) ->  | G43: =IF(OR(A43="",D43="INTRO"),"",STD_MIX_DESIGN!AA9) ->  | O43: =IF($A43<>"",STD_MIX_DESIGN!$AB9,"") -> 
A44: =IF(STD_MIX_DESIGN!X10<>"",STD_MIX_DESIGN!X10,"") ->  | B44: =IF(STD_MIX_DESIGN!Y10<>"",STD_MIX_DESIGN!Y10,"") ->  | E44: =IF(OR(A44="",D44="NATIVE"),"",STD_MIX_DESIGN!Z10) ->  | G44: =IF(OR(A44="",D44="INTRO"),"",STD_MIX_DESIGN!AA10) ->  | O44: =IF($A44<>"",STD_MIX_DESIGN!$AB10,"") -> 
A45: =IF(STD_MIX_DESIGN!X11<>"",STD_MIX_DESIGN!X11,"") ->  | B45: =IF(STD_MIX_DESIGN!Y11<>"",STD_MIX_DESIGN!Y11,"") ->  | E45: =IF(OR(A45="",D45="NATIVE"),"",STD_MIX_DESIGN!Z11) ->  | G45: =IF(OR(A45="",D45="INTRO"),"",STD_MIX_DESIGN!AA11) ->  | O45: =IF($A45<>"",STD_MIX_DESIGN!$AB11,"") -> 
A46: =IF(STD_MIX_DESIGN!X12<>"",STD_MIX_DESIGN!X12,"") ->  | B46: =IF(STD_MIX_DESIGN!Y12<>"",STD_MIX_DESIGN!Y12,"") ->  | E46: =IF(OR(A46="",D46="NATIVE"),"",STD_MIX_DESIGN!Z12) ->  | G46: =IF(OR(A46="",D46="INTRO"),"",STD_MIX_DESIGN!AA12) ->  | O46: =IF($A46<>"",STD_MIX_DESIGN!$AB12,"") -> 
A47: =IF(STD_MIX_DESIGN!X13<>"",STD_MIX_DESIGN!X13,"") ->  | B47: =IF(STD_MIX_DESIGN!Y13<>"",STD_MIX_DESIGN!Y13,"") ->  | E47: =IF(OR(A47="",D47="NATIVE"),"",STD_MIX_DESIGN!Z13) ->  | G47: =IF(OR(A47="",D47="INTRO"),"",STD_MIX_DESIGN!AA13) ->  | O47: =IF($A47<>"",STD_MIX_DESIGN!$AB13,"") -> 
A48: =IF(STD_MIX_DESIGN!X14<>"",STD_MIX_DESIGN!X14,"") ->  | B48: =IF(STD_MIX_DESIGN!Y14<>"",STD_MIX_DESIGN!Y14,"") ->  | E48: =IF(OR(A48="",D48="NATIVE"),"",STD_MIX_DESIGN!Z14) ->  | G48: =IF(OR(A48="",D48="INTRO"),"",STD_MIX_DESIGN!AA14) ->  | O48: =IF($A48<>"",STD_MIX_DESIGN!$AB14,"") -> 
A49: =IF(STD_MIX_DESIGN!X15<>"",STD_MIX_DESIGN!X15,"") ->  | B49: =IF(STD_MIX_DESIGN!Y15<>"",STD_MIX_DESIGN!Y15,"") ->  | E49: =IF(OR(A49="",D49="NATIVE"),"",STD_MIX_DESIGN!Z15) ->  | G49: =IF(OR(A49="",D49="INTRO"),"",STD_MIX_DESIGN!AA15) ->  | O49: =IF($A49<>"",STD_MIX_DESIGN!$AB15,"") -> 
A50: =IF(STD_MIX_DESIGN!X16<>"",STD_MIX_DESIGN!X16,"") ->  | B50: =IF(STD_MIX_DESIGN!Y16<>"",STD_MIX_DESIGN!Y16,"") ->  | E50: =IF(OR(A50="",D50="NATIVE"),"",STD_MIX_DESIGN!Z16) ->  | G50: =IF(OR(A50="",D50="INTRO"),"",STD_MIX_DESIGN!AA16) ->  | O50: =IF($A50<>"",STD_MIX_DESIGN!$AB16,"") -> 
A51: =IF(STD_MIX_DESIGN!X17<>"",STD_MIX_DESIGN!X17,"") ->  | B51: =IF(STD_MIX_DESIGN!Y17<>"",STD_MIX_DESIGN!Y17,"") ->  | E51: =IF(OR(A51="",D51="NATIVE"),"",STD_MIX_DESIGN!Z17) ->  | G51: =IF(OR(A51="",D51="INTRO"),"",STD_MIX_DESIGN!AA17) ->  | O51: =IF($A51<>"",STD_MIX_DESIGN!$AB17,"") -> 
A52: =IF(STD_MIX_DESIGN!X18<>"",STD_MIX_DESIGN!X18,"") ->  | B52: =IF(STD_MIX_DESIGN!Y18<>"",STD_MIX_DESIGN!Y18,"") ->  | E52: =IF(OR(A52="",D52="NATIVE"),"",STD_MIX_DESIGN!Z18) ->  | G52: =IF(OR(A52="",D52="INTRO"),"",STD_MIX_DESIGN!AA18) ->  | O52: =IF($A52<>"",STD_MIX_DESIGN!$AB18,"") -> 
A53: =IF(STD_MIX_DESIGN!X19<>"",STD_MIX_DESIGN!X19,"") ->  | B53: =IF(STD_MIX_DESIGN!Y19<>"",STD_MIX_DESIGN!Y19,"") ->  | E53: =IF(OR(A53="",D53="NATIVE"),"",STD_MIX_DESIGN!Z19) ->  | G53: =IF(OR(A53="",D53="INTRO"),"",STD_MIX_DESIGN!AA19) ->  | O53: =IF($A53<>"",STD_MIX_DESIGN!$AB19,"") -> 
A54: =IF(STD_MIX_DESIGN!X20<>"",STD_MIX_DESIGN!X20,"") ->  | B54: =IF(STD_MIX_DESIGN!Y20<>"",STD_MIX_DESIGN!Y20,"") ->  | E54: =IF(OR(A54="",D54="NATIVE"),"",STD_MIX_DESIGN!Z20) ->  | G54: =IF(OR(A54="",D54="INTRO"),"",STD_MIX_DESIGN!AA20) ->  | O54: =IF($A54<>"",STD_MIX_DESIGN!$AB20,"") -> 
A55: =IF(STD_MIX_DESIGN!X21<>"",STD_MIX_DESIGN!X21,"") ->  | B55: =IF(STD_MIX_DESIGN!Y21<>"",STD_MIX_DESIGN!Y21,"") ->  | E55: =IF(OR(A55="",D55="NATIVE"),"",STD_MIX_DESIGN!Z21) ->  | G55: =IF(OR(A55="",D55="INTRO"),"",STD_MIX_DESIGN!AA21) ->  | O55: =IF($A55<>"",STD_MIX_DESIGN!$AB21,"") -> 
A56: =IF(STD_MIX_DESIGN!X22<>"",STD_MIX_DESIGN!X22,"") ->  | B56: =IF(STD_MIX_DESIGN!Y22<>"",STD_MIX_DESIGN!Y22,"") ->  | E56: =IF(OR(A56="",D56="NATIVE"),"",STD_MIX_DESIGN!Z22) ->  | G56: =IF(OR(A56="",D56="INTRO"),"",STD_MIX_DESIGN!AA22) ->  | O56: =IF($A56<>"",STD_MIX_DESIGN!$AB22,"") -> 
A57: =IF(STD_MIX_DESIGN!X23<>"",STD_MIX_DESIGN!X23,"") ->  | B57: =IF(STD_MIX_DESIGN!Y23<>"",STD_MIX_DESIGN!Y23,"") ->  | E57: =IF(OR(A57="",D57="NATIVE"),"",STD_MIX_DESIGN!Z23) ->  | G57: =IF(OR(A57="",D57="INTRO"),"",STD_MIX_DESIGN!AA23) ->  | O57: =IF($A57<>"",STD_MIX_DESIGN!$AB23,"") -> 
A58: =IF(STD_MIX_DESIGN!X24<>"",STD_MIX_DESIGN!X24,"") ->  | B58: =IF(STD_MIX_DESIGN!Y24<>"",STD_MIX_DESIGN!Y24,"") ->  | E58: =IF(OR(A58="",D58="NATIVE"),"",STD_MIX_DESIGN!Z24) ->  | G58: =IF(OR(A58="",D58="INTRO"),"",STD_MIX_DESIGN!AA24) ->  | O58: =IF($A58<>"",STD_MIX_DESIGN!$AB24,"") -> 
A59: =IF(STD_MIX_DESIGN!X25<>"",STD_MIX_DESIGN!X25,"") ->  | B59: =IF(STD_MIX_DESIGN!Y25<>"",STD_MIX_DESIGN!Y25,"") ->  | E59: =IF(OR(A59="",D59="NATIVE"),"",STD_MIX_DESIGN!Z25) ->  | G59: =IF(OR(A59="",D59="INTRO"),"",STD_MIX_DESIGN!AA25) ->  | O59: =IF($A59<>"",STD_MIX_DESIGN!$AB25,"") -> 
A60: =IF(STD_MIX_DESIGN!X26<>"",STD_MIX_DESIGN!X26,"") ->  | B60: =IF(STD_MIX_DESIGN!Y26<>"",STD_MIX_DESIGN!Y26,"") ->  | E60: =IF(OR(A60="",D60="NATIVE"),"",STD_MIX_DESIGN!Z26) ->  | G60: =IF(OR(A60="",D60="INTRO"),"",STD_MIX_DESIGN!AA26) ->  | O60: =IF($A60<>"",STD_MIX_DESIGN!$AB26,"") -> 
A61: =IF(STD_MIX_DESIGN!X27<>"",STD_MIX_DESIGN!X27,"") ->  | B61: =IF(STD_MIX_DESIGN!Y27<>"",STD_MIX_DESIGN!Y27,"") ->  | E61: =IF(OR(A61="",D61="NATIVE"),"",STD_MIX_DESIGN!Z27) ->  | G61: =IF(OR(A61="",D61="INTRO"),"",STD_MIX_DESIGN!AA27) ->  | O61: =IF($A61<>"",STD_MIX_DESIGN!$AB27,"") -> 
A62: =IF(STD_MIX_DESIGN!X28<>"",STD_MIX_DESIGN!X28,"") ->  | B62: =IF(STD_MIX_DESIGN!Y28<>"",STD_MIX_DESIGN!Y28,"") ->  | E62: =IF(OR(A62="",D62="NATIVE"),"",STD_MIX_DESIGN!Z28) ->  | G62: =IF(OR(A62="",D62="INTRO"),"",STD_MIX_DESIGN!AA28) ->  | O62: =IF($A62<>"",STD_MIX_DESIGN!$AB28,"") -> 
A63: =IF(STD_MIX_DESIGN!X29<>"",STD_MIX_DESIGN!X29,"") ->  | B63: =IF(STD_MIX_DESIGN!Y29<>"",STD_MIX_DESIGN!Y29,"") ->  | E63: =IF(OR(A63="",D63="NATIVE"),"",STD_MIX_DESIGN!Z29) ->  | G63: =IF(OR(A63="",D63="INTRO"),"",STD_MIX_DESIGN!AA29) ->  | O63: =IF($A63<>"",STD_MIX_DESIGN!$AB29,"") -> 
A64: =IF(STD_MIX_DESIGN!X30<>"",STD_MIX_DESIGN!X30,"") ->  | B64: =IF(STD_MIX_DESIGN!Y30<>"",STD_MIX_DESIGN!Y30,"") ->  | E64: =IF(OR(A64="",D64="NATIVE"),"",STD_MIX_DESIGN!Z30) ->  | G64: =IF(OR(A64="",D64="INTRO"),"",STD_MIX_DESIGN!AA30) ->  | O64: =IF($A64<>"",STD_MIX_DESIGN!$AB30,"") -> 
A65: =IF(STD_MIX_DESIGN!X31<>"",STD_MIX_DESIGN!X31,"") ->  | B65: =IF(STD_MIX_DESIGN!Y31<>"",STD_MIX_DESIGN!Y31,"") ->  | E65: =IF(OR(A65="",D65="NATIVE"),"",STD_MIX_DESIGN!Z31) ->  | G65: =IF(OR(A65="",D65="INTRO"),"",STD_MIX_DESIGN!AA31) ->  | O65: =IF($A65<>"",STD_MIX_DESIGN!$AB31,"") -> 
A66: =IF(STD_MIX_DESIGN!X32<>"",STD_MIX_DESIGN!X32,"") ->  | B66: =IF(STD_MIX_DESIGN!Y32<>"",STD_MIX_DESIGN!Y32,"") ->  | E66: =IF(OR(A66="",D66="NATIVE"),"",STD_MIX_DESIGN!Z32) ->  | G66: =IF(OR(A66="",D66="INTRO"),"",STD_MIX_DESIGN!AA32) ->  | O66: =IF($A66<>"",STD_MIX_DESIGN!$AB32,"") -> 
A67: =IF(STD_MIX_DESIGN!X33<>"",STD_MIX_DESIGN!X33,"") ->  | B67: =IF(STD_MIX_DESIGN!Y33<>"",STD_MIX_DESIGN!Y33,"") ->  | E67: =IF(OR(A67="",D67="NATIVE"),"",STD_MIX_DESIGN!Z33) ->  | G67: =IF(OR(A67="",D67="INTRO"),"",STD_MIX_DESIGN!AA33) ->  | O67: =IF($A67<>"",STD_MIX_DESIGN!$AB33,"") -> 
A68: =IF(STD_MIX_DESIGN!X34<>"",STD_MIX_DESIGN!X34,"") ->  | B68: =IF(STD_MIX_DESIGN!Y34<>"",STD_MIX_DESIGN!Y34,"") ->  | E68: =IF(OR(A68="",D68="NATIVE"),"",STD_MIX_DESIGN!Z34) ->  | G68: =IF(OR(A68="",D68="INTRO"),"",STD_MIX_DESIGN!AA34) ->  | O68: =IF($A68<>"",STD_MIX_DESIGN!$AB34,"") -> 
A69: =IF(STD_MIX_DESIGN!X35<>"",STD_MIX_DESIGN!X35,"") ->  | B69: =IF(STD_MIX_DESIGN!Y35<>"",STD_MIX_DESIGN!Y35,"") ->  | E69: =IF(OR(A69="",D69="NATIVE"),"",STD_MIX_DESIGN!Z35) ->  | G69: =IF(OR(A69="",D69="INTRO"),"",STD_MIX_DESIGN!AA35) ->  | O69: =IF($A69<>"",STD_MIX_DESIGN!$AB35,"") -> 
A70: =IF(STD_MIX_DESIGN!X36<>"",STD_MIX_DESIGN!X36,"") ->  | B70: =IF(STD_MIX_DESIGN!Y36<>"",STD_MIX_DESIGN!Y36,"") ->  | E70: =IF(OR(A70="",D70="NATIVE"),"",STD_MIX_DESIGN!Z36) ->  | G70: =IF(OR(A70="",D70="INTRO"),"",STD_MIX_DESIGN!AA36) ->  | O70: =IF($A70<>"",STD_MIX_DESIGN!$AB36,"") -> 
A71: =IF(STD_MIX_DESIGN!X37<>"",STD_MIX_DESIGN!X37,"") ->  | B71: =IF(STD_MIX_DESIGN!Y37<>"",STD_MIX_DESIGN!Y37,"") ->  | E71: =IF(OR(A71="",D71="NATIVE"),"",STD_MIX_DESIGN!Z37) ->  | G71: =IF(OR(A71="",D71="INTRO"),"",STD_MIX_DESIGN!AA37) ->  | O71: =IF($A71<>"",STD_MIX_DESIGN!$AB37,"") -> 
A72: =IF(STD_MIX_DESIGN!X38<>"",STD_MIX_DESIGN!X38,"") ->  | B72: =IF(STD_MIX_DESIGN!Y38<>"",STD_MIX_DESIGN!Y38,"") ->  | E72: =IF(OR(A72="",D72="NATIVE"),"",STD_MIX_DESIGN!Z38) ->  | G72: =IF(OR(A72="",D72="INTRO"),"",STD_MIX_DESIGN!AA38) ->  | O72: =IF($A72<>"",STD_MIX_DESIGN!$AB38,"") -> 
A73: =IF(STD_MIX_DESIGN!X39<>"",STD_MIX_DESIGN!X39,"") ->  | B73: =IF(STD_MIX_DESIGN!Y39<>"",STD_MIX_DESIGN!Y39,"") ->  | E73: =IF(OR(A73="",D73="NATIVE"),"",STD_MIX_DESIGN!Z39) ->  | G73: =IF(OR(A73="",D73="INTRO"),"",STD_MIX_DESIGN!AA39) ->  | O73: =IF($A73<>"",STD_MIX_DESIGN!$AB39,"") -> 
A74: =IF(STD_MIX_DESIGN!X40<>"",STD_MIX_DESIGN!X40,"") ->  | B74: =IF(STD_MIX_DESIGN!Y40<>"",STD_MIX_DESIGN!Y40,"") ->  | E74: =IF(OR(A74="",D74="NATIVE"),"",STD_MIX_DESIGN!Z40) ->  | G74: =IF(OR(A74="",D74="INTRO"),"",STD_MIX_DESIGN!AA40) ->  | O74: =IF($A74<>"",STD_MIX_DESIGN!$AB40,"") -> 
A75: =IF(STD_MIX_DESIGN!X41<>"",STD_MIX_DESIGN!X41,"") ->  | B75: =IF(STD_MIX_DESIGN!Y41<>"",STD_MIX_DESIGN!Y41,"") ->  | E75: =IF(OR(A75="",D75="NATIVE"),"",STD_MIX_DESIGN!Z41) ->  | G75: =IF(OR(A75="",D75="INTRO"),"",STD_MIX_DESIGN!AA41) ->  | O75: =IF($A75<>"",STD_MIX_DESIGN!$AB41,"") -> 
A76: =IF(STD_MIX_DESIGN!X42<>"",STD_MIX_DESIGN!X42,"") ->  | B76: =IF(STD_MIX_DESIGN!Y42<>"",STD_MIX_DESIGN!Y42,"") ->  | E76: =IF(OR(A76="",D76="NATIVE"),"",STD_MIX_DESIGN!Z42) ->  | G76: =IF(OR(A76="",D76="INTRO"),"",STD_MIX_DESIGN!AA42) ->  | O76: =IF($A76<>"",STD_MIX_DESIGN!$AB42,"") -> 
A78: TOTAL FORBS/LEGUMES: | E78: =IF(SUM(E37:E76)=0,"",SUM(E37:E76)) ->  | F78: =IF(SUM(F37:F76)=0,"",SUM(F37:F76)) ->  | G78: =IF(SUM(G37:G76)=0,"",SUM(G37:G76)) ->  | H78: =IF(SUM(H37:H76)=0,"",SUM(H37:H76)) ->  | P78: =SUM(P13:P76) -> 0 | Q78: =SUM(Q13:Q76) -> 0
A80: SEEDING DATES | D80: Spring Seeding | E80: Late Summer | F80: Fall Dormant Seeding | H80: Frost Seeding Allowed?
A81: =IF(OR(K91=0,B6=""),"",IF(OR(K91=1,K91=3),VLOOKUP(Counties!$P$24,Counties!$R$2:$W$10,3),"")) ->  | D81: =IF(A81="","",VLOOKUP(Counties!$P$24,Counties!$R$2:$W$10,4)) ->  | E81: =IF(A81="","",VLOOKUP(Counties!$P$24,Counties!$R$2:$W$10,5)) ->  | F81: =IF(A81="","",VLOOKUP(Counties!$P$24,Counties!$R$2:$W$10,6)) ->  | H81: =IF(A81="","",VLOOKUP(Counties!$P$24,Counties!$R$2:$X$10,7)) -> 
A82: =IF(OR(K91=0,B6=""),"",IF(OR(K91=2,K91=3),VLOOKUP(Counties!$P$24,Counties!$R$10:$W$19,3),"")) ->  | D82: =IF(A82="","",VLOOKUP(Counties!$P$24,Counties!$R$10:$W$19,4)) ->  | E82: =IF(A82="","",VLOOKUP(Counties!$P$24,Counties!$R$10:$W$19,5)) ->  | F82: =IF(A82="","",VLOOKUP(Counties!$P$24,Counties!$R$10:$W$19,6)) ->  | H82: =IF(A82="","",VLOOKUP(Counties!$P$24,Counties!$R$10:$X$19,7)) -> 
D83: lbs/acre | E83: Total lbs. | F83: OR | G83: Bu./Acre | H83: Total Bu.
A84: Temporary Cover Crop: | D84: =IF(OR(B84="",B84="none"),"",VLOOKUP(B84,comp_temp!P7:Q13,2)) ->  | E84: =IF(OR(B8="",D84=""),"",D84*B$8) ->  | F84: =IF(ISNUMBER(D84),"OR","") ->  | G84: =IF(OR(B84="",B84="none"),"",VLOOKUP(B84,comp_temp!P7:R13,3)) ->  | H84: =IF(OR(B8="",G84=""),"",G84*B$8) -> 
A85: Companion Crop: | D85: =IF(OR(B85="",B85="none"),"",VLOOKUP(B85,comp_temp!P33:R44,2)) ->  | E85: =IF(OR(B8="",D85=""),"",D85*B$8) ->  | F85: =IF(ISNUMBER(D85),"OR","") ->  | G85: =IF(OR(B85="",B85="none"),"",VLOOKUP(B85,comp_temp!P33:R44,3)) ->  | H85: =IF(OR(B8="",D85=""),"",G85*B$8) -> 
A86: You must pick Yes or No
A88: Fertilizer & Lime | D88: Lbs./Acre | E88: Total Needed | H88: General
E89: (lbs) | H89: Soil Test
A90: 80-89 Lime | E90: =IF(ISNUMBER(D90),D90*$B$8,"") ->  | H90: Fert./Lime Not Needed | K90: 0 | L90: yes/no box status
A91: Nitrogen | E91: =IF(ISNUMBER(D91),D91*$B$8,"") ->  | K91: =IF(AND(P78=0,Q78=0),0,IF(P78>0,1,IF(AND(P78=0,Q78>0),2))) -> 0 | L91: determines intro(1),native(2), or both(3) in mix | O91: =IF(K91=2,"N/R",IF(I3=3,"ST","")) -> 
A92: Phosphate (P205) | E92: =IF(ISNUMBER(D92),D92*$B$8,"") ->  | H92: =IF(O$91=2,"N/R","") -> 
A93: Potash (K20) | E93: =IF(ISNUMBER(D93),D93*$B$8,"") -> 
D94: =IF(D90="N/R","N/R=Not Recommended for Pure Native Mixes",IF(D90="ST","ST=Soil Test Required","")) -> 
C95: 2000
A96: Seeding was completed on: | D96: according to the above requirements.
B97: (Date)
L804: 1 | M804: Intro/Native
L805: 0
L806: 1 | M806: Pollinator
P879: 0
L891: yes/no box status
L892: determines intro(1),native(2), or both(3) in mix
L1604: 1 | M1604: Intro/Native
L1605: 0
L1606: 1 | M1606: Pollinator
L1691: yes/no box status
L1692: determines intro(1),native(2), or both(3) in mix

Sheet STD_MIX_DESIGN (hidden)
A1: GRASSES | E1: FORBS/LEGUMES | T1: GRASSES | X1: FORBS/LEGUMES | AD1: Intro / Native | AE1: Poll. (Y/N) | AF1: MIX Descrip
A2: SPECIES COMMON NAME | B2: Scientific Name | C2: PLS (lbs./A) | D2: I/N | E2: SPECIES COMMON NAME | F2: Scientific Name | G2: PLS (lbs./A) | H2: PLS (oz./A) | I2: I/N | J2: Common Name | K2: Scientific Name | L2: PLS (oz./A) | M2: PLS (lbs./A) | N2: Seeds/Square Foot | O2: Plant Type | P2: I/N | R2: (DM-M)-1-SB-Crfesc-KB-Alf-RC | T2: SPECIES COMMON NAME | U2: Scientific Name | V2: PLS (lbs./A) | W2: I/N | X2: SPECIES COMMON NAME | Y2: Scientific Name | Z2: PLS (lbs./A) | AA2: PLS (oz./A) | AB2: I/N
A3: =IF(OR($O3="Grass",$O3="Sedge",$O3="rush"),$J3,"") ->  | B3: =IF(A3="","",VLOOKUP($A3,$J$3:$L$50,2)) ->  | C3: =IF(A3="","",VLOOKUP($A3,$J$3:$P$50,4)) ->  | D3: =IF(A3="","",VLOOKUP($A3,$J$3:$P$50,7)) ->  | E3: =IF(OR($O3="Forb",$O3="Legume"),$J3,"") ->  | F3: =IF($E3="","",VLOOKUP($E3,$J$3:$P$50,2)) ->  | G3: =IF($E3="","",VLOOKUP($E3,$J$3:$P$50,4)) ->  | H3: =IF($E3="","",VLOOKUP($E3,$J$3:$P$50,3)) ->  | I3: =IF($E3="","",VLOOKUP($E3,$J$3:$P$50,7)) ->  | Q3: N | R3: (DM-M)-2-SB-Tim-Alf
A4: =IF(OR($O4="Grass",$O4="Sedge",$O4="rush"),$J4,"") ->  | E4: =IF(OR($O4="Forb",$O4="Legume"),$J4,"") ->  | Q4: N | R4: (DM-M)-3-SB-Prye-Tfesc-Tim-KB
Q5: Y | R5: (DM-M)-4-SB-Crfesc-Alf-RC
Q6: Y | R6: (DM-M)-5-SB-Alf
Q7: N | R7: (DM-WM)-6-SB-Prye-Tim-Crfesc-KB-RC
Q8: N | R8: (M)-10-SB-Prye-Tim-RC
Q9: N | R9: (M)-11-SB-Crfesc
Q10: N | R10: (M)-12-KB-Crfesc
Q11: N | R11: (M)-13-SB-Tim-RC
Q12: N | R12: (M)-14-SB-Tim-Aclover
Q13: N | R13: (M)-15-SB-Tim-Btrefoil
Q14: N | R14: (M)-7-SB-KB-Crfesc-Btrefoil
Q15: N | R15: (M)-8-SB-Crfesc-KB
Q16: N | R16: (M)-9-Prye-Crfesc-KB
Q17: Y | R17: (W )-20-KB-Rtop-Aclover
Q18: N | R18: (W)-21-Rtop-Aclover
Q19: N | R19: (WM)-16-SB-Tfesc-Prye-Tim-KB-RC
Q20: N | R20: (WM)-17-Rtop-Tim-RC
Q21: N | R21: (WM)-18-SB-Tim-Prye-KB-RC
Q22: N | R22: (WM)-19-KB-Rtop-Tim-RC
Q23: Y
Q24: N
Q25: N
Q26: N
Q27: N
Q28: Y
Q29: N
Q30: N
Q31: Y
Q32: Y
Q33: Y
Q34: N
Q35: Y
Q36: Y
Q37: N
Q38: Y
Q39: N
Q40: N
Q41: N
Q42: N
Q43: N
Q44: Y
Q45: N
Q46: N
Q47: N
Q48: N
Q49: N
Q50: N
Q51: Y
Q52: Y
Q53: N
Q54: N
Q55: N
Q56: Y
Q57: Y
Q58: N
Q59: N
Q60: N
Q61: N
Q62: N
Q63: Y
Q64: N
Q65: Y
Q66: N
Q67: N
Q68: Y
Q69: Y
Q70: Y
Q71: N
Q72: Y
Q73: N
Q74: N
Q75: N
Q76: N
Q77: N
Q78: N
Q79: Y
Q80: Y
Q81: Y
Q82: Y
Q83: Y
Q84: N
Q85: N
Q86: N
Q87: N
Q88: N
Q89: Y
Q90: N
Q91: N
Q92: N
Q93: N
Q94: N
Q95: Y
Q96: N
Q97: Y
Q98: Y
Q99: N
Q100: N
Q101: Y
Q102: Y
Q103: N
Q104: N
Q105: N
Q106: N
Q107: Y
Q108: Y
Q109: Y
Q110: N
Q111: Y
Q112: Y
Q113: N
Q114: N
Q115: N
Q116: N
Q117: N
Q118: N
Q119: N
Q120: N
Q121: Y
Q122: N
Q123: N
Q124: N
Q125: N
Q126: N
Q127: N
Q128: N
Q129: N
Q130: Y
Q131: N
Q132: N
Q133: N
Q134: N
Q135: Y
Q136: N
Q137: N
Q138: N
Q139: N
Q140: N
Q141: N
Q142: N
Q143: Y
Q144: Y
Q145: Y
B299: =+SeedingPlan_STD!G5 -> 0
A800: =IF(OR($O800="Grass",$O800="Sedge",$O800="rush"),$J800,"") ->  | B800: =IF(A800="","",VLOOKUP($A800,$J$3:$L$50,2)) ->  | C800: =IF(A800="","",VLOOKUP($A800,$J$3:$P$50,4)) ->  | D800: =IF(A800="","",VLOOKUP($A800,$J$3:$P$50,7)) ->  | E800: =IF(OR($O800="Forb",$O800="Legume"),$J800,"") ->  | F800: =IF($E800="","",VLOOKUP($E800,$J$3:$P$50,2)) ->  | G800: =IF($E800="","",VLOOKUP($E800,$J$3:$P$50,4)) ->  | H800: =IF($E800="","",VLOOKUP($E800,$J$3:$P$50,3)) ->  | I800: =IF($E800="","",VLOOKUP($E800,$J$3:$P$50,7)) -> 
A804: =IF(OR($O804="Grass",$O804="Sedge",$O804="rush"),$J804,"") ->  | B804: =IF(A804="","",VLOOKUP($A804,$J$3:$L$50,2)) ->  | C804: =IF(A804="","",VLOOKUP($A804,$J$3:$P$50,4)) ->  | D804: =IF(A804="","",VLOOKUP($A804,$J$3:$P$50,7)) ->  | E804: =IF(OR($O804="Forb",$O804="Legume"),$J804,"") ->  | F804: =IF($E804="","",VLOOKUP($E804,$J$3:$P$50,2)) ->  | G804: =IF($E804="","",VLOOKUP($E804,$J$3:$P$50,4)) ->  | H804: =IF($E804="","",VLOOKUP($E804,$J$3:$P$50,3)) ->  | I804: =IF($E804="","",VLOOKUP($E804,$J$3:$P$50,7)) -> 
A805: =IF(OR($O805="Grass",$O805="Sedge",$O805="rush"),$J805,"") ->  | E805: =IF(OR($O805="Forb",$O805="Legume"),$J805,"") -> 
B1100: =+SeedingPlan_STD!G806 -> 0

Sheet 327Mixes
A1: STANDARD 327 MIXES | F1: REVISION DATE: | G1: 2012-12-14 | AA1: Type | AB1: Intro/Native | AC1: MR | AD1: Poll
A2: criteria: | B2: =+SeedingPlan_STD!F5 -> 0
A3: STD | B3: Mix # | C3: std-mix | D3: Common Name | E3: Scientific Name | F3: PLS (oz./A) | G3: PLS (lbs./A) | H3: Seeds/Square Foot | I3: Type | J3: Intro / Native | K3: Poll. (Y/N) | M3: Mix No. | N3: MR | O3: Mix Components | AA3: Forb | AB3: I | AC3: D | AD3: Y
A4: =IF(D4="","",327) -> 327 | B4: =IF(O4="","",CONCATENATE("(",N4,")-",M4,"-",O4)) -> (D)-1-Sgrod-Ycone-PPclover-BB-LB-Indian-Sgrama | C4: =IF(D4="","",CONCATENATE(A4,"-",B4)) -> 327-(D)-1-Sgrod-Ycone-PPclover-BB-LB-Indian-Sgrama | D4: Stiff Goldenrod | E4: Oligoneuron rigidum | F4: 1 | G4: =IF(F4>0,ROUND(F4/16,2),"") -> 0.06 | H4: 1 | I4: Forb | J4: N | K4: N | M4: 1 | N4: D | O4: =IF(M4=M5,O5,Q4) -> Sgrod-Ycone-PPclover-BB-LB-Indian-Sgrama | P4: =IF(D4="","",VLOOKUP(D4,species_data!$A$4:$G$148,7)) -> Sgrod | Q4: =IF(D4="","",IF(M4=M3,CONCATENATE(Q3,"-",P4),P4)) -> Sgrod | S4: =IF(D4="","",VLOOKUP(D4,species_data!$A$4:$F$148,4)) -> 16.84113866 | AA4: Grass | AB4: N | AC4: DM | AD4: N
A5: 327 | B5: (D)-1-Sgrod-Ycone-PPclover-BB-LB-Indian-Sgrama | C5: 327-(D)-1-Sgrod-Ycone-PPclover-BB-LB-Indian-Sgrama | D5: Yellow Coneflower | E5: Ratibida pinnata | F5: 1 | G5: 0.06 | H5: 0.6 | I5: Forb | J5: N | K5: N | M5: 1 | N5: D | O5: =IF(M5=M6,O6,Q5) -> Sgrod-Ycone-PPclover-BB-LB-Indian-Sgrama | P5: =IF(D5="","",VLOOKUP(D5,species_data!$A$4:$G$148,7)) -> Ycone | Q5: =IF(D5="","",IF(M5=M4,CONCATENATE(Q4,"-",P5),P5)) -> Sgrod-Ycone | S5: =IF(D5="","",VLOOKUP(D5,species_data!$A$4:$F$148,4)) -> 9.888 | AA5: Legume | AC5: M
A6: 327 | B6: (D)-1-Sgrod-Ycone-PPclover-BB-LB-Indian-Sgrama | C6: 327-(D)-1-Sgrod-Ycone-PPclover-BB-LB-Indian-Sgrama | D6: Purple Prairie Clover | E6: Dalea purpurea | F6: 2 | G6: 0.13 | H6: 0.9 | I6: Legume | J6: N | K6: N | M6: 1 | N6: D | O6: Sgrod-Ycone-PPclover-BB-LB-Indian-Sgrama | P6: =IF(D6="","",VLOOKUP(D6,species_data!$A$4:$G$148,7)) -> PPclover | Q6: Sgrod-Ycone-PPclover | S6: =IF(D6="","",VLOOKUP(D6,species_data!$A$4:$F$148,4)) -> 7.327823691 | AA6: Sedge | AC6: WM
A7: 327 | B7: (D)-1-Sgrod-Ycone-PPclover-BB-LB-Indian-Sgrama | C7: 327-(D)-1-Sgrod-Ycone-PPclover-BB-LB-Indian-Sgrama | D7: Big Bluestem | E7: Andropogon gerardii | F7: 16 | G7: 1 | H7: 3.8 | I7: Grass | J7: N | K7: N | M7: 1 | N7: D | O7: Sgrod-Ycone-PPclover-BB-LB-Indian-Sgrama | P7: =IF(D7="","",VLOOKUP(D7,species_data!$A$4:$G$148,7)) -> BB | Q7: Sgrod-Ycone-PPclover-BB | S7: =IF(D7="","",VLOOKUP(D7,species_data!$A$4:$F$148,4)) -> 3.79 | AC7: W
A8: 327 | B8: (D)-1-Sgrod-Ycone-PPclover-BB-LB-Indian-Sgrama | C8: 327-(D)-1-Sgrod-Ycone-PPclover-BB-LB-Indian-Sgrama | D8: Little Bluestem | E8: Schizachyrium scoparium | F8: 28 | G8: 1.75 | H8: 9.6 | I8: Grass | J8: N | K8: N | M8: 1 | N8: D | O8: Sgrod-Ycone-PPclover-BB-LB-Indian-Sgrama | P8: =IF(D8="","",VLOOKUP(D8,species_data!$A$4:$G$148,7)) -> LB | Q8: Sgrod-Ycone-PPclover-BB-LB | S8: =IF(D8="","",VLOOKUP(D8,species_data!$A$4:$F$148,4)) -> 5.509641873
A9: 327 | B9: (D)-1-Sgrod-Ycone-PPclover-BB-LB-Indian-Sgrama | C9: 327-(D)-1-Sgrod-Ycone-PPclover-BB-LB-Indian-Sgrama | D9: Indiangrass | E9: Sorghastrum nutans | F9: 16 | G9: 1 | H9: 4.4 | I9: Grass | J9: N | K9: N | M9: 1 | N9: D | O9: Sgrod-Ycone-PPclover-BB-LB-Indian-Sgrama | P9: =IF(D9="","",VLOOKUP(D9,species_data!$A$4:$G$148,7)) -> Indian | Q9: Sgrod-Ycone-PPclover-BB-LB-Indian | S9: =IF(D9="","",VLOOKUP(D9,species_data!$A$4:$F$148,4)) -> 4.407713499
A10: 327 | B10: (D)-1-Sgrod-Ycone-PPclover-BB-LB-Indian-Sgrama | C10: 327-(D)-1-Sgrod-Ycone-PPclover-BB-LB-Indian-Sgrama | D10: Sideoats Grama | E10: Bouteloua curtipendula | F10: 28 | G10: 1.75 | H10: 5.1 | I10: Grass | J10: N | K10: N | M10: 1 | N10: D | O10: Sgrod-Ycone-PPclover-BB-LB-Indian-Sgrama | P10: =IF(D10="","",VLOOKUP(D10,species_data!$A$4:$G$148,7)) -> Sgrama | Q10: Sgrod-Ycone-PPclover-BB-LB-Indian-Sgrama | S10: =IF(D10="","",VLOOKUP(D10,species_data!$A$4:$F$148,4)) -> 2.92
A11: 327 | B11: (DM)-2-LB-Indian-Sgrama-BB-Switch-PPclover-Berg-Ycone | C11: 327-(DM)-2-LB-Indian-Sgrama-BB-Switch-PPclover-Berg-Ycone | D11: Little Bluestem | E11: Schizachyrium scoparium | F11: 24 | G11: 1.5 | H11: 8.2 | I11: Grass | J11: N | K11: N | M11: 2 | N11: DM | O11: LB-Indian-Sgrama-BB-Switch-PPclover-Berg-Ycone | P11: =IF(D11="","",VLOOKUP(D11,species_data!$A$4:$G$148,7)) -> LB | Q11: LB | S11: =IF(D11="","",VLOOKUP(D11,species_data!$A$4:$F$148,4)) -> 5.509641873
A12: 327 | B12: (DM)-2-LB-Indian-Sgrama-BB-Switch-PPclover-Berg-Ycone | C12: 327-(DM)-2-LB-Indian-Sgrama-BB-Switch-PPclover-Berg-Ycone | D12: Indiangrass | E12: Sorghastrum nutans | F12: 16 | G12: 1 | H12: 4 | I12: Grass | J12: N | K12: N | M12: 2 | N12: DM | O12: LB-Indian-Sgrama-BB-Switch-PPclover-Berg-Ycone | P12: =IF(D12="","",VLOOKUP(D12,species_data!$A$4:$G$148,7)) -> Indian | Q12: LB-Indian | S12: =IF(D12="","",VLOOKUP(D12,species_data!$A$4:$F$148,4)) -> 4.407713499
A13: 327 | B13: (DM)-2-LB-Indian-Sgrama-BB-Switch-PPclover-Berg-Ycone | C13: 327-(DM)-2-LB-Indian-Sgrama-BB-Switch-PPclover-Berg-Ycone | D13: Sideoats Grama | E13: Bouteloua curtipendula | F13: 16 | G13: 1 | H13: 2.9 | I13: Grass | J13: N | K13: N | M13: 2 | N13: DM | O13: LB-Indian-Sgrama-BB-Switch-PPclover-Berg-Ycone | P13: =IF(D13="","",VLOOKUP(D13,species_data!$A$4:$G$148,7)) -> Sgrama | Q13: LB-Indian-Sgrama | S13: =IF(D13="","",VLOOKUP(D13,species_data!$A$4:$F$148,4)) -> 2.92
A14: 327 | B14: (DM)-2-LB-Indian-Sgrama-BB-Switch-PPclover-Berg-Ycone | C14: 327-(DM)-2-LB-Indian-Sgrama-BB-Switch-PPclover-Berg-Ycone | D14: Big Bluestem | E14: Andropogon gerardii | F14: 8 | G14: 0.5 | H14: 1.5 | I14: Grass | J14: N | K14: N | M14: 2 | N14: DM | O14: LB-Indian-Sgrama-BB-Switch-PPclover-Berg-Ycone | P14: =IF(D14="","",VLOOKUP(D14,species_data!$A$4:$G$148,7)) -> BB | Q14: LB-Indian-Sgrama-BB | S14: =IF(D14="","",VLOOKUP(D14,species_data!$A$4:$F$148,4)) -> 3.79
A15: 327 | B15: (DM)-2-LB-Indian-Sgrama-BB-Switch-PPclover-Berg-Ycone | C15: 327-(DM)-2-LB-Indian-Sgrama-BB-Switch-PPclover-Berg-Ycone | D15: Switchgrass | E15: Panicum virgatum | F15: 8 | G15: 0.5 | H15: 4.5 | I15: Grass | J15: N | K15: N | M15: 2 | N15: DM | O15: LB-Indian-Sgrama-BB-Switch-PPclover-Berg-Ycone | P15: =IF(D15="","",VLOOKUP(D15,species_data!$A$4:$G$148,7)) -> Switch | Q15: LB-Indian-Sgrama-BB-Switch | S15: =IF(D15="","",VLOOKUP(D15,species_data!$A$4:$F$148,4)) -> 8.93
A16: 327 | B16: (DM)-2-LB-Indian-Sgrama-BB-Switch-PPclover-Berg-Ycone | C16: 327-(DM)-2-LB-Indian-Sgrama-BB-Switch-PPclover-Berg-Ycone | D16: Purple Prairie Clover | E16: Dalea purpurea | F16: 2 | G16: 0.13 | H16: 0.9 | I16: Legume | J16: N | K16: N | M16: 2 | N16: DM | O16: LB-Indian-Sgrama-BB-Switch-PPclover-Berg-Ycone | P16: =IF(D16="","",VLOOKUP(D16,species_data!$A$4:$G$148,7)) -> PPclover | Q16: LB-Indian-Sgrama-BB-Switch-PPclover | S16: =IF(D16="","",VLOOKUP(D16,species_data!$A$4:$F$148,4)) -> 7.327823691
A17: 327 | B17: (DM)-2-LB-Indian-Sgrama-BB-Switch-PPclover-Berg-Ycone | C17: 327-(DM)-2-LB-Indian-Sgrama-BB-Switch-PPclover-Berg-Ycone | D17: Bergamot | E17: Monarda fistulosa | F17: 1 | G17: 0.06 | H17: 1.8 | I17: Forb | J17: N | K17: N | M17: 2 | N17: DM | O17: LB-Indian-Sgrama-BB-Switch-PPclover-Berg-Ycone | P17: =IF(D17="","",VLOOKUP(D17,species_data!$A$4:$G$148,7)) -> Berg | Q17: LB-Indian-Sgrama-BB-Switch-PPclover-Berg | S17: =IF(D17="","",VLOOKUP(D17,species_data!$A$4:$F$148,4)) -> 28.57667585
A18: 327 | B18: (DM)-2-LB-Indian-Sgrama-BB-Switch-PPclover-Berg-Ycone | C18: 327-(DM)-2-LB-Indian-Sgrama-BB-Switch-PPclover-Berg-Ycone | D18: Yellow Coneflower | E18: Ratibida pinnata | F18: 1 | G18: 0.06 | H18: 0.6 | I18: Forb | J18: N | K18: N | M18: 2 | N18: DM | O18: LB-Indian-Sgrama-BB-Switch-PPclover-Berg-Ycone | P18: =IF(D18="","",VLOOKUP(D18,species_data!$A$4:$G$148,7)) -> Ycone | Q18: LB-Indian-Sgrama-BB-Switch-PPclover-Berg-Ycone | S18: =IF(D18="","",VLOOKUP(D18,species_data!$A$4:$F$148,4)) -> 9.888
A19: 327 | B19: (M)-3-LB-BB-Cwrye-Indian-Switch-Berg-Besus-Ycone | C19: 327-(M)-3-LB-BB-Cwrye-Indian-Switch-Berg-Besus-Ycone | D19: Little Bluestem | E19: Schizachyrium scoparium | F19: 20 | G19: 1.25 | H19: 6.8 | I19: Grass | J19: N | K19: N | M19: 3 | N19: M | O19: LB-BB-Cwrye-Indian-Switch-Berg-Besus-Ycone | P19: =IF(D19="","",VLOOKUP(D19,species_data!$A$4:$G$148,7)) -> LB | Q19: LB | S19: =IF(D19="","",VLOOKUP(D19,species_data!$A$4:$F$148,4)) -> 5.509641873
A20: 327 | B20: (M)-3-LB-BB-Cwrye-Indian-Switch-Berg-Besus-Ycone | C20: 327-(M)-3-LB-BB-Cwrye-Indian-Switch-Berg-Besus-Ycone | D20: Big Bluestem | E20: Andropogon gerardii | F20: 16 | G20: 1 | H20: 3.8 | I20: Grass | J20: N | K20: N | M20: 3 | N20: M | O20: LB-BB-Cwrye-Indian-Switch-Berg-Besus-Ycone | P20: =IF(D20="","",VLOOKUP(D20,species_data!$A$4:$G$148,7)) -> BB | Q20: LB-BB | S20: =IF(D20="","",VLOOKUP(D20,species_data!$A$4:$F$148,4)) -> 3.79
A21: 327 | B21: (M)-3-LB-BB-Cwrye-Indian-Switch-Berg-Besus-Ycone | C21: 327-(M)-3-LB-BB-Cwrye-Indian-Switch-Berg-Besus-Ycone | D21: Canada Wildrye | E21: Elymus canadensis | F21: 16 | G21: 1 | H21: 2.5 | I21: Grass | J21: N | K21: N | M21: 3 | N21: M | O21: LB-BB-Cwrye-Indian-Switch-Berg-Besus-Ycone | P21: =IF(D21="","",VLOOKUP(D21,species_data!$A$4:$G$148,7)) -> Cwrye | Q21: LB-BB-Cwrye | S21: =IF(D21="","",VLOOKUP(D21,species_data!$A$4:$F$148,4)) -> 1.910009183
A22: 327 | B22: (M)-3-LB-BB-Cwrye-Indian-Switch-Berg-Besus-Ycone | C22: 327-(M)-3-LB-BB-Cwrye-Indian-Switch-Berg-Besus-Ycone | D22: Indiangrass | E22: Sorghastrum nutans | F22: 16 | G22: 1 | H22: 4 | I22: Grass | J22: N | K22: N | M22: 3 | N22: M | O22: LB-BB-Cwrye-Indian-Switch-Berg-Besus-Ycone | P22: =IF(D22="","",VLOOKUP(D22,species_data!$A$4:$G$148,7)) -> Indian | Q22: LB-BB-Cwrye-Indian | S22: =IF(D22="","",VLOOKUP(D22,species_data!$A$4:$F$148,4)) -> 4.407713499
A23: 327 | B23: (M)-3-LB-BB-Cwrye-Indian-Switch-Berg-Besus-Ycone | C23: 327-(M)-3-LB-BB-Cwrye-Indian-Switch-Berg-Besus-Ycone | D23: Switchgrass | E23: Panicum virgatum | F23: 8 | G23: 0.5 | H23: 4.5 | I23: Grass | J23: N | K23: N | M23: 3 | N23: M | O23: LB-BB-Cwrye-Indian-Switch-Berg-Besus-Ycone | P23: =IF(D23="","",VLOOKUP(D23,species_data!$A$4:$G$148,7)) -> Switch | Q23: LB-BB-Cwrye-Indian-Switch | S23: =IF(D23="","",VLOOKUP(D23,species_data!$A$4:$F$148,4)) -> 8.93
A24: 327 | B24: (M)-3-LB-BB-Cwrye-Indian-Switch-Berg-Besus-Ycone | C24: 327-(M)-3-LB-BB-Cwrye-Indian-Switch-Berg-Besus-Ycone | D24: Bergamot | E24: Monarda fistulosa | F24: 1 | G24: 0.06 | H24: 1.8 | I24: Forb | J24: N | K24: N | M24: 3 | N24: M | O24: LB-BB-Cwrye-Indian-Switch-Berg-Besus-Ycone | P24: =IF(D24="","",VLOOKUP(D24,species_data!$A$4:$G$148,7)) -> Berg | Q24: LB-BB-Cwrye-Indian-Switch-Berg | S24: =IF(D24="","",VLOOKUP(D24,species_data!$A$4:$F$148,4)) -> 28.57667585
A25: 327 | B25: (M)-3-LB-BB-Cwrye-Indian-Switch-Berg-Besus-Ycone | C25: 327-(M)-3-LB-BB-Cwrye-Indian-Switch-Berg-Besus-Ycone | D25: Black-Eyed Susan | E25: Rudbeckia hirta | F25: 1 | G25: 0.06 | H25: 2.2 | I25: Forb | J25: N | K25: N | M25: 3 | N25: M | O25: LB-BB-Cwrye-Indian-Switch-Berg-Besus-Ycone | P25: =IF(D25="","",VLOOKUP(D25,species_data!$A$4:$G$148,7)) -> Besus | Q25: LB-BB-Cwrye-Indian-Switch-Berg-Besus | S25: =IF(D25="","",VLOOKUP(D25,species_data!$A$4:$F$148,4)) -> 36.58402204
A26: 327 | B26: (M)-3-LB-BB-Cwrye-Indian-Switch-Berg-Besus-Ycone | C26: 327-(M)-3-LB-BB-Cwrye-Indian-Switch-Berg-Besus-Ycone | D26: Yellow Coneflower | E26: Ratibida pinnata | F26: 1 | G26: 0.06 | H26: 0.6 | I26: Forb | J26: N | K26: N | M26: 3 | N26: M | O26: LB-BB-Cwrye-Indian-Switch-Berg-Besus-Ycone | P26: =IF(D26="","",VLOOKUP(D26,species_data!$A$4:$G$148,7)) -> Ycone | Q26: LB-BB-Cwrye-Indian-Switch-Berg-Besus-Ycone | S26: =IF(D26="","",VLOOKUP(D26,species_data!$A$4:$F$148,4)) -> 9.888
A27: 327 | B27: (WM)-4-BB-Indian-Switch-Vwrye-Pcord-Berg-NEaster-Ycone | C27: 327-(WM)-4-BB-Indian-Switch-Vwrye-Pcord-Berg-NEaster-Ycone | D27: Big Bluestem | E27: Andropogon gerardii | F27: 24 | G27: 1.5 | H27: 5.7 | I27: Grass | J27: N | K27: N | M27: 4 | N27: WM | O27: BB-Indian-Switch-Vwrye-Pcord-Berg-NEaster-Ycone | P27: =IF(D27="","",VLOOKUP(D27,species_data!$A$4:$G$148,7)) -> BB | Q27: BB | S27: =IF(D27="","",VLOOKUP(D27,species_data!$A$4:$F$148,4)) -> 3.79
A28: 327 | B28: (WM)-4-BB-Indian-Switch-Vwrye-Pcord-Berg-NEaster-Ycone | C28: 327-(WM)-4-BB-Indian-Switch-Vwrye-Pcord-Berg-NEaster-Ycone | D28: Indiangrass | E28: Sorghastrum nutans | F28: 16 | G28: 1 | H28: 4 | I28: Grass | J28: N | K28: N | M28: 4 | N28: WM | O28: BB-Indian-Switch-Vwrye-Pcord-Berg-NEaster-Ycone | P28: =IF(D28="","",VLOOKUP(D28,species_data!$A$4:$G$148,7)) -> Indian | Q28: BB-Indian | S28: =IF(D28="","",VLOOKUP(D28,species_data!$A$4:$F$148,4)) -> 4.407713499
A29: 327 | B29: (WM)-4-BB-Indian-Switch-Vwrye-Pcord-Berg-NEaster-Ycone | C29: 327-(WM)-4-BB-Indian-Switch-Vwrye-Pcord-Berg-NEaster-Ycone | D29: Switchgrass | E29: Panicum virgatum | F29: 16 | G29: 1 | H29: 9 | I29: Grass | J29: N | K29: N | M29: 4 | N29: WM | O29: BB-Indian-Switch-Vwrye-Pcord-Berg-NEaster-Ycone | P29: =IF(D29="","",VLOOKUP(D29,species_data!$A$4:$G$148,7)) -> Switch | Q29: BB-Indian-Switch | S29: =IF(D29="","",VLOOKUP(D29,species_data!$A$4:$F$148,4)) -> 8.93
A30: 327 | B30: (WM)-4-BB-Indian-Switch-Vwrye-Pcord-Berg-NEaster-Ycone | C30: 327-(WM)-4-BB-Indian-Switch-Vwrye-Pcord-Berg-NEaster-Ycone | D30: Virginia Wildrye | E30: Elymus virginicus | F30: 16 | G30: 1 | H30: 1.5 | I30: Grass | J30: N | K30: N | M30: 4 | N30: WM | O30: BB-Indian-Switch-Vwrye-Pcord-Berg-NEaster-Ycone | P30: =IF(D30="","",VLOOKUP(D30,species_data!$A$4:$G$148,7)) -> Vwrye | Q30: BB-Indian-Switch-Vwrye | S30: =IF(D30="","",VLOOKUP(D30,species_data!$A$4:$F$148,4)) -> 1.542699725
A31: 327 | B31: (WM)-4-BB-Indian-Switch-Vwrye-Pcord-Berg-NEaster-Ycone | C31: 327-(WM)-4-BB-Indian-Switch-Vwrye-Pcord-Berg-NEaster-Ycone | D31: Prairie Cordgrass | E31: Spartina pectinata | F31: 8 | G31: 0.5 | H31: 0.6 | I31: Grass | J31: N | K31: N | M31: 4 | N31: WM | O31: BB-Indian-Switch-Vwrye-Pcord-Berg-NEaster-Ycone | P31: =IF(D31="","",VLOOKUP(D31,species_data!$A$4:$G$148,7)) -> Pcord | Q31: BB-Indian-Switch-Vwrye-Pcord | S31: =IF(D31="","",VLOOKUP(D31,species_data!$A$4:$F$148,4)) -> 2.424242424
A32: 327 | B32: (WM)-4-BB-Indian-Switch-Vwrye-Pcord-Berg-NEaster-Ycone | C32: 327-(WM)-4-BB-Indian-Switch-Vwrye-Pcord-Berg-NEaster-Ycone | D32: Bergamot | E32: Monarda fistulosa | F32: 1 | G32: 0.06 | H32: 1.8 | I32: Forb | J32: N | K32: N | M32: 4 | N32: WM | O32: BB-Indian-Switch-Vwrye-Pcord-Berg-NEaster-Ycone | P32: =IF(D32="","",VLOOKUP(D32,species_data!$A$4:$G$148,7)) -> Berg | Q32: BB-Indian-Switch-Vwrye-Pcord-Berg | S32: =IF(D32="","",VLOOKUP(D32,species_data!$A$4:$F$148,4)) -> 28.57667585
A33: 327 | B33: (WM)-4-BB-Indian-Switch-Vwrye-Pcord-Berg-NEaster-Ycone | C33: 327-(WM)-4-BB-Indian-Switch-Vwrye-Pcord-Berg-NEaster-Ycone | D33: New England Aster | E33: Symphyotrichum novae-angliae | F33: 1 | G33: 0.06 | H33: 1.6 | I33: Forb | J33: N | K33: N | M33: 4 | N33: WM | O33: BB-Indian-Switch-Vwrye-Pcord-Berg-NEaster-Ycone | P33: =IF(D33="","",VLOOKUP(D33,species_data!$A$4:$G$148,7)) -> NEaster | Q33: BB-Indian-Switch-Vwrye-Pcord-Berg-NEaster | S33: =IF(D33="","",VLOOKUP(D33,species_data!$A$4:$F$148,4)) -> 25.67493113
A34: 327 | B34: (WM)-4-BB-Indian-Switch-Vwrye-Pcord-Berg-NEaster-Ycone | C34: 327-(WM)-4-BB-Indian-Switch-Vwrye-Pcord-Berg-NEaster-Ycone | D34: Yellow Coneflower | E34: Ratibida pinnata | F34: 1 | G34: 0.06 | H34: 0.6 | I34: Forb | J34: N | K34: N | M34: 4 | N34: WM | O34: BB-Indian-Switch-Vwrye-Pcord-Berg-NEaster-Ycone | P34: =IF(D34="","",VLOOKUP(D34,species_data!$A$4:$G$148,7)) -> Ycone | Q34: BB-Indian-Switch-Vwrye-Pcord-Berg-NEaster-Ycone | S34: =IF(D34="","",VLOOKUP(D34,species_data!$A$4:$F$148,4)) -> 9.888
A35: 327 | B35: (W)-5-Ciron-Cup-Bvervain-Switch-Pcord-BB-Indian-Vwrye | C35: 327-(W)-5-Ciron-Cup-Bvervain-Switch-Pcord-BB-Indian-Vwrye | D35: Common Ironweed | E35: Vernonia fasciculata | F35: 1 | G35: 0.06 | H35: 0.5 | I35: Forb | J35: N | K35: N | M35: 5 | N35: W | O35: Ciron-Cup-Bvervain-Switch-Pcord-BB-Indian-Vwrye | P35: =IF(D35="","",VLOOKUP(D35,species_data!$A$4:$G$148,7)) -> Ciron | Q35: Ciron | S35: =IF(D35="","",VLOOKUP(D35,species_data!$A$4:$F$148,4)) -> 7.346189164
A36: 327 | B36: (W)-5-Ciron-Cup-Bvervain-Switch-Pcord-BB-Indian-Vwrye | C36: 327-(W)-5-Ciron-Cup-Bvervain-Switch-Pcord-BB-Indian-Vwrye | D36: Cupplant | E36: Silphium perfoliatum | F36: 2 | G36: 0.13 | H36: 0.1 | I36: Forb | J36: N | K36: N | M36: 5 | N36: W | O36: Ciron-Cup-Bvervain-Switch-Pcord-BB-Indian-Vwrye | P36: =IF(D36="","",VLOOKUP(D36,species_data!$A$4:$G$148,7)) -> Cup | Q36: Ciron-Cup | S36: =IF(D36="","",VLOOKUP(D36,species_data!$A$4:$F$148,4)) -> 0.5142332415
A37: 327 | B37: (W)-5-Ciron-Cup-Bvervain-Switch-Pcord-BB-Indian-Vwrye | C37: 327-(W)-5-Ciron-Cup-Bvervain-Switch-Pcord-BB-Indian-Vwrye | D37: Blue Vervain | E37: Verbena hastata | F37: 1 | G37: 0.06 | H37: 2.1 | I37: Forb | J37: N | K37: N | M37: 5 | N37: W | O37: Ciron-Cup-Bvervain-Switch-Pcord-BB-Indian-Vwrye | P37: =IF(D37="","",VLOOKUP(D37,species_data!$A$4:$G$148,7)) -> Bvervain | Q37: Ciron-Cup-Bvervain | S37: =IF(D37="","",VLOOKUP(D37,species_data!$A$4:$F$148,4)) -> 34.15977961
A38: 327 | B38: (W)-5-Ciron-Cup-Bvervain-Switch-Pcord-BB-Indian-Vwrye | C38: 327-(W)-5-Ciron-Cup-Bvervain-Switch-Pcord-BB-Indian-Vwrye | D38: Switchgrass | E38: Panicum virgatum | F38: 16 | G38: 1 | H38: 8.9 | I38: Grass | J38: N | K38: N | M38: 5 | N38: W | O38: Ciron-Cup-Bvervain-Switch-Pcord-BB-Indian-Vwrye | P38: =IF(D38="","",VLOOKUP(D38,species_data!$A$4:$G$148,7)) -> Switch | Q38: Ciron-Cup-Bvervain-Switch | S38: =IF(D38="","",VLOOKUP(D38,species_data!$A$4:$F$148,4)) -> 8.93
A39: 327 | B39: (W)-5-Ciron-Cup-Bvervain-Switch-Pcord-BB-Indian-Vwrye | C39: 327-(W)-5-Ciron-Cup-Bvervain-Switch-Pcord-BB-Indian-Vwrye | D39: Prairie Cordgrass | E39: Spartina pectinata | F39: 8 | G39: 0.5 | H39: 1.2 | I39: Grass | J39: N | K39: N | M39: 5 | N39: W | O39: Ciron-Cup-Bvervain-Switch-Pcord-BB-Indian-Vwrye | P39: =IF(D39="","",VLOOKUP(D39,species_data!$A$4:$G$148,7)) -> Pcord | Q39: Ciron-Cup-Bvervain-Switch-Pcord | S39: =IF(D39="","",VLOOKUP(D39,species_data!$A$4:$F$148,4)) -> 2.424242424
A40: 327 | B40: (W)-5-Ciron-Cup-Bvervain-Switch-Pcord-BB-Indian-Vwrye | C40: 327-(W)-5-Ciron-Cup-Bvervain-Switch-Pcord-BB-Indian-Vwrye | D40: Big Bluestem | E40: Andropogon gerardii | F40: 16 | G40: 1 | H40: 3.8 | I40: Grass | J40: N | K40: N | M40: 5 | N40: W | O40: Ciron-Cup-Bvervain-Switch-Pcord-BB-Indian-Vwrye | P40: =IF(D40="","",VLOOKUP(D40,species_data!$A$4:$G$148,7)) -> BB | Q40: Ciron-Cup-Bvervain-Switch-Pcord-BB | S40: =IF(D40="","",VLOOKUP(D40,species_data!$A$4:$F$148,4)) -> 3.79
A41: 327 | B41: (W)-5-Ciron-Cup-Bvervain-Switch-Pcord-BB-Indian-Vwrye | C41: 327-(W)-5-Ciron-Cup-Bvervain-Switch-Pcord-BB-Indian-Vwrye | D41: Indiangrass | E41: Sorghastrum nutans | F41: 16 | G41: 1 | H41: 4.4 | I41: Grass | J41: N | K41: N | M41: 5 | N41: W | O41: Ciron-Cup-Bvervain-Switch-Pcord-BB-Indian-Vwrye | P41: =IF(D41="","",VLOOKUP(D41,species_data!$A$4:$G$148,7)) -> Indian | Q41: Ciron-Cup-Bvervain-Switch-Pcord-BB-Indian | S41: =IF(D41="","",VLOOKUP(D41,species_data!$A$4:$F$148,4)) -> 4.407713499
A42: 327 | B42: (W)-5-Ciron-Cup-Bvervain-Switch-Pcord-BB-Indian-Vwrye | C42: 327-(W)-5-Ciron-Cup-Bvervain-Switch-Pcord-BB-Indian-Vwrye | D42: Virginia Wildrye | E42: Elymus virginicus | F42: 20 | G42: 1.25 | H42: 1.9 | I42: Grass | J42: N | K42: N | M42: 5 | N42: W | O42: Ciron-Cup-Bvervain-Switch-Pcord-BB-Indian-Vwrye | P42: =IF(D42="","",VLOOKUP(D42,species_data!$A$4:$G$148,7)) -> Vwrye | Q42: Ciron-Cup-Bvervain-Switch-Pcord-BB-Indian-Vwrye | S42: =IF(D42="","",VLOOKUP(D42,species_data!$A$4:$F$148,4)) -> 1.542699725
A43: 327 | B43: (D)-6-Pcinque-SilkAster-Lplant-Smint-Ptick-Sgrod-Hvervain-Ycone-Swort-PPclover-BB-Sgrama-LB-Indian-Pjune-Sdrop | C43: 327-(D)-6-Pcinque-SilkAster-Lplant-Smint-Ptick-Sgrod-Hvervain-Ycone-Swort-PPclover-BB-Sgrama-LB-Indian-Pjune-Sdrop | D43: Prairie Cinquefoil | E43: Potentilla arguta | F43: 0.5 | G43: 0.03 | H43: 2.3 | I43: Forb | J43: N | K43: N | M43: 6 | N43: D | O43: Pcinque-SilkAster-Lplant-Smint-Ptick-Sgrod-Hvervain-Ycone-Swort-PPclover-BB-Sgrama-LB-Indian-Pjune-Sdrop | P43: =IF(D43="","",VLOOKUP(D43,species_data!$A$4:$G$148,7)) -> Pcinque | Q43: Pcinque | S43: =IF(D43="","",VLOOKUP(D43,species_data!$A$4:$F$148,4)) -> 73.46189164
A44: 327 | B44: (D)-6-Pcinque-SilkAster-Lplant-Smint-Ptick-Sgrod-Hvervain-Ycone-Swort-PPclover-BB-Sgrama-LB-Indian-Pjune-Sdrop | C44: 327-(D)-6-Pcinque-SilkAster-Lplant-Smint-Ptick-Sgrod-Hvervain-Ycone-Swort-PPclover-BB-Sgrama-LB-Indian-Pjune-Sdrop | D44: Silky Aster | E44: Symphyotrichum sericeum | F44: 1 | G44: 0.06 | H44: 1.3 | I44: Forb | J44: N | K44: N | M44: 6 | N44: D | O44: Pcinque-SilkAster-Lplant-Smint-Ptick-Sgrod-Hvervain-Ycone-Swort-PPclover-BB-Sgrama-LB-Indian-Pjune-Sdrop | P44: =IF(D44="","",VLOOKUP(D44,species_data!$A$4:$G$148,7)) -> SilkAster | Q44: Pcinque-SilkAster | S44: =IF(D44="","",VLOOKUP(D44,species_data!$A$4:$F$148,4)) -> 20.568
A45: 327 | B45: (D)-6-Pcinque-SilkAster-Lplant-Smint-Ptick-Sgrod-Hvervain-Ycone-Swort-PPclover-BB-Sgrama-LB-Indian-Pjune-Sdrop | C45: 327-(D)-6-Pcinque-SilkAster-Lplant-Smint-Ptick-Sgrod-Hvervain-Ycone-Swort-PPclover-BB-Sgrama-LB-Indian-Pjune-Sdrop | D45: Leadplant | E45: Amorpha canescens | F45: 1 | G45: 0.06 | H45: 0.4 | I45: Legume | J45: N | K45: N | M45: 6 | N45: D | O45: Pcinque-SilkAster-Lplant-Smint-Ptick-Sgrod-Hvervain-Ycone-Swort-PPclover-BB-Sgrama-LB-Indian-Pjune-Sdrop | P45: =IF(D45="","",VLOOKUP(D45,species_data!$A$4:$G$148,7)) -> Lplant | Q45: Pcinque-SilkAster-Lplant | S45: =IF(D45="","",VLOOKUP(D45,species_data!$A$4:$F$148,4)) -> 6.225895317
A46: 327 | B46: (D)-6-Pcinque-SilkAster-Lplant-Smint-Ptick-Sgrod-Hvervain-Ycone-Swort-PPclover-BB-Sgrama-LB-Indian-Pjune-Sdrop | C46: 327-(D)-6-Pcinque-SilkAster-Lplant-Smint-Ptick-Sgrod-Hvervain-Ycone-Swort-PPclover-BB-Sgrama-LB-Indian-Pjune-Sdrop | D46: Spotted Mint | E46: Monarda punctata | F46: 0.5 | G46: 0.03 | H46: 1.1 | I46: Forb | J46: N | K46: N | M46: 6 | N46: D | O46: Pcinque-SilkAster-Lplant-Smint-Ptick-Sgrod-Hvervain-Ycone-Swort-PPclover-BB-Sgrama-LB-Indian-Pjune-Sdrop | P46: =IF(D46="","",VLOOKUP(D46,species_data!$A$4:$G$148,7)) -> Smint | Q46: Pcinque-SilkAster-Lplant-Smint | S46: =IF(D46="","",VLOOKUP(D46,species_data!$A$4:$F$148,4)) -> 34.41689624
A47: 327 | B47: (D)-6-Pcinque-SilkAster-Lplant-Smint-Ptick-Sgrod-Hvervain-Ycone-Swort-PPclover-BB-Sgrama-LB-Indian-Pjune-Sdrop | C47: 327-(D)-6-Pcinque-SilkAster-Lplant-Smint-Ptick-Sgrod-Hvervain-Ycone-Swort-PPclover-BB-Sgrama-LB-Indian-Pjune-Sdrop | D47: Prairie Tickseed | E47: Coreopsis palmata | F47: 1 | G47: 0.06 | H47: 0.3 | I47: Forb | J47: N | K47: N | M47: 6 | N47: D | O47: Pcinque-SilkAster-Lplant-Smint-Ptick-Sgrod-Hvervain-Ycone-Swort-PPclover-BB-Sgrama-LB-Indian-Pjune-Sdrop | P47: =IF(D47="","",VLOOKUP(D47,species_data!$A$4:$G$148,7)) -> Ptick | Q47: Pcinque-SilkAster-Lplant-Smint-Ptick | S47: =IF(D47="","",VLOOKUP(D47,species_data!$A$4:$F$148,4)) -> 4.396694215
A48: 327 | B48: (D)-6-Pcinque-SilkAster-Lplant-Smint-Ptick-Sgrod-Hvervain-Ycone-Swort-PPclover-BB-Sgrama-LB-Indian-Pjune-Sdrop | C48: 327-(D)-6-Pcinque-SilkAster-Lplant-Smint-Ptick-Sgrod-Hvervain-Ycone-Swort-PPclover-BB-Sgrama-LB-Indian-Pjune-Sdrop | D48: Stiff Goldenrod | E48: Oligoneuron rigidum | F48: 1 | G48: 0.06 | H48: 1 | I48: Forb | J48: N | K48: N | M48: 6 | N48: D | O48: Pcinque-SilkAster-Lplant-Smint-Ptick-Sgrod-Hvervain-Ycone-Swort-PPclover-BB-Sgrama-LB-Indian-Pjune-Sdrop | P48: =IF(D48="","",VLOOKUP(D48,species_data!$A$4:$G$148,7)) -> Sgrod | Q48: Pcinque-SilkAster-Lplant-Smint-Ptick-Sgrod | S48: =IF(D48="","",VLOOKUP(D48,species_data!$A$4:$F$148,4)) -> 16.84113866
A49: 327 | B49: (D)-6-Pcinque-SilkAster-Lplant-Smint-Ptick-Sgrod-Hvervain-Ycone-Swort-PPclover-BB-Sgrama-LB-Indian-Pjune-Sdrop | C49: 327-(D)-6-Pcinque-SilkAster-Lplant-Smint-Ptick-Sgrod-Hvervain-Ycone-Swort-PPclover-BB-Sgrama-LB-Indian-Pjune-Sdrop | D49: Hoary Vervain | E49: Verbena stricta | F49: 1 | G49: 0.06 | H49: 0.7 | I49: Forb | J49: N | K49: N | M49: 6 | N49: D | O49: Pcinque-SilkAster-Lplant-Smint-Ptick-Sgrod-Hvervain-Ycone-Swort-PPclover-BB-Sgrama-LB-Indian-Pjune-Sdrop | P49: =IF(D49="","",VLOOKUP(D49,species_data!$A$4:$G$148,7)) -> Hvervain | Q49: Pcinque-SilkAster-Lplant-Smint-Ptick-Sgrod-Hvervain | S49: =IF(D49="","",VLOOKUP(D49,species_data!$A$4:$F$148,4)) -> 11.7536
A50: 327 | B50: (D)-6-Pcinque-SilkAster-Lplant-Smint-Ptick-Sgrod-Hvervain-Ycone-Swort-PPclover-BB-Sgrama-LB-Indian-Pjune-Sdrop | C50: 327-(D)-6-Pcinque-SilkAster-Lplant-Smint-Ptick-Sgrod-Hvervain-Ycone-Swort-PPclover-BB-Sgrama-LB-Indian-Pjune-Sdrop | D50: Yellow Coneflower | E50: Ratibida pinnata | F50: 1 | G50: 0.06 | H50: 0.6 | I50: Forb | J50: N | K50: N | M50: 6 | N50: D | O50: Pcinque-SilkAster-Lplant-Smint-Ptick-Sgrod-Hvervain-Ycone-Swort-PPclover-BB-Sgrama-LB-Indian-Pjune-Sdrop | P50: =IF(D50="","",VLOOKUP(D50,species_data!$A$4:$G$148,7)) -> Ycone | Q50: Pcinque-SilkAster-Lplant-Smint-Ptick-Sgrod-Hvervain-Ycone | S50: =IF(D50="","",VLOOKUP(D50,species_data!$A$4:$F$148,4)) -> 9.888
A51: 327 | B51: (D)-6-Pcinque-SilkAster-Lplant-Smint-Ptick-Sgrod-Hvervain-Ycone-Swort-PPclover-BB-Sgrama-LB-Indian-Pjune-Sdrop | C51: 327-(D)-6-Pcinque-SilkAster-Lplant-Smint-Ptick-Sgrod-Hvervain-Ycone-Swort-PPclover-BB-Sgrama-LB-Indian-Pjune-Sdrop | D51: Spiderwort | E51: Tradescantia ohiensis | F51: 2 | G51: 0.13 | H51: 0.4 | I51: Forb | J51: N | K51: N | M51: 6 | N51: D | O51: Pcinque-SilkAster-Lplant-Smint-Ptick-Sgrod-Hvervain-Ycone-Swort-PPclover-BB-Sgrama-LB-Indian-Pjune-Sdrop | P51: =IF(D51="","",VLOOKUP(D51,species_data!$A$4:$G$148,7)) -> Swort | Q51: Pcinque-SilkAster-Lplant-Smint-Ptick-Sgrod-Hvervain-Ycone-Swort | S51: =IF(D51="","",VLOOKUP(D51,species_data!$A$4:$F$148,4)) -> 2.931129477
A52: 327 | B52: (D)-6-Pcinque-SilkAster-Lplant-Smint-Ptick-Sgrod-Hvervain-Ycone-Swort-PPclover-BB-Sgrama-LB-Indian-Pjune-Sdrop | C52: 327-(D)-6-Pcinque-SilkAster-Lplant-Smint-Ptick-Sgrod-Hvervain-Ycone-Swort-PPclover-BB-Sgrama-LB-Indian-Pjune-Sdrop | D52: Purple Prairie Clover | E52: Dalea purpurea | F52: 4 | G52: 0.25 | H52: 1.8 | I52: Legume | J52: N | K52: N | M52: 6 | N52: D | O52: Pcinque-SilkAster-Lplant-Smint-Ptick-Sgrod-Hvervain-Ycone-Swort-PPclover-BB-Sgrama-LB-Indian-Pjune-Sdrop | P52: =IF(D52="","",VLOOKUP(D52,species_data!$A$4:$G$148,7)) -> PPclover | Q52: Pcinque-SilkAster-Lplant-Smint-Ptick-Sgrod-Hvervain-Ycone-Swort-PPclover | S52: =IF(D52="","",VLOOKUP(D52,species_data!$A$4:$F$148,4)) -> 7.327823691
A53: 327 | B53: (D)-6-Pcinque-SilkAster-Lplant-Smint-Ptick-Sgrod-Hvervain-Ycone-Swort-PPclover-BB-Sgrama-LB-Indian-Pjune-Sdrop | C53: 327-(D)-6-Pcinque-SilkAster-Lplant-Smint-Ptick-Sgrod-Hvervain-Ycone-Swort-PPclover-BB-Sgrama-LB-Indian-Pjune-Sdrop | D53: Big Bluestem | E53: Andropogon gerardii | F53: 4 | G53: 0.25 | H53: 1 | I53: Grass | J53: N | K53: N | M53: 6 | N53: D | O53: Pcinque-SilkAster-Lplant-Smint-Ptick-Sgrod-Hvervain-Ycone-Swort-PPclover-BB-Sgrama-LB-Indian-Pjune-Sdrop | P53: =IF(D53="","",VLOOKUP(D53,species_data!$A$4:$G$148,7)) -> BB | Q53: Pcinque-SilkAster-Lplant-Smint-Ptick-Sgrod-Hvervain-Ycone-Swort-PPclover-BB | S53: =IF(D53="","",VLOOKUP(D53,species_data!$A$4:$F$148,4)) -> 3.79
A54: 327 | B54: (D)-6-Pcinque-SilkAster-Lplant-Smint-Ptick-Sgrod-Hvervain-Ycone-Swort-PPclover-BB-Sgrama-LB-Indian-Pjune-Sdrop | C54: 327-(D)-6-Pcinque-SilkAster-Lplant-Smint-Ptick-Sgrod-Hvervain-Ycone-Swort-PPclover-BB-Sgrama-LB-Indian-Pjune-Sdrop | D54: Sideoats Grama | E54: Bouteloua curtipendula | F54: 24 | G54: 1.5 | H54: 4.4 | I54: Grass | J54: N | K54: N | M54: 6 | N54: D | O54: Pcinque-SilkAster-Lplant-Smint-Ptick-Sgrod-Hvervain-Ycone-Swort-PPclover-BB-Sgrama-LB-Indian-Pjune-Sdrop | P54: =IF(D54="","",VLOOKUP(D54,species_data!$A$4:$G$148,7)) -> Sgrama | Q54: Pcinque-SilkAster-Lplant-Smint-Ptick-Sgrod-Hvervain-Ycone-Swort-PPclover-BB-Sgrama | S54: =IF(D54="","",VLOOKUP(D54,species_data!$A$4:$F$148,4)) -> 2.92
A55: 327 | B55: (D)-6-Pcinque-SilkAster-Lplant-Smint-Ptick-Sgrod-Hvervain-Ycone-Swort-PPclover-BB-Sgrama-LB-Indian-Pjune-Sdrop | C55: 327-(D)-6-Pcinque-SilkAster-Lplant-Smint-Ptick-Sgrod-Hvervain-Ycone-Swort-PPclover-BB-Sgrama-LB-Indian-Pjune-Sdrop | D55: Little Bluestem | E55: Schizachyrium scoparium | F55: 24 | G55: 1.5 | H55: 8.3 | I55: Grass | J55: N | K55: N | M55: 6 | N55: D | O55: Pcinque-SilkAster-Lplant-Smint-Ptick-Sgrod-Hvervain-Ycone-Swort-PPclover-BB-Sgrama-LB-Indian-Pjune-Sdrop | P55: =IF(D55="","",VLOOKUP(D55,species_data!$A$4:$G$148,7)) -> LB | Q55: Pcinque-SilkAster-Lplant-Smint-Ptick-Sgrod-Hvervain-Ycone-Swort-PPclover-BB-Sgrama-LB | S55: =IF(D55="","",VLOOKUP(D55,species_data!$A$4:$F$148,4)) -> 5.509641873
A56: 327 | B56: (D)-6-Pcinque-SilkAster-Lplant-Smint-Ptick-Sgrod-Hvervain-Ycone-Swort-PPclover-BB-Sgrama-LB-Indian-Pjune-Sdrop | C56: 327-(D)-6-Pcinque-SilkAster-Lplant-Smint-Ptick-Sgrod-Hvervain-Ycone-Swort-PPclover-BB-Sgrama-LB-Indian-Pjune-Sdrop | D56: Indiangrass | E56: Sorghastrum nutans | F56: 8 | G56: 0.5 | H56: 2.2 | I56: Grass | J56: N | K56: N | M56: 6 | N56: D | O56: Pcinque-SilkAster-Lplant-Smint-Ptick-Sgrod-Hvervain-Ycone-Swort-PPclover-BB-Sgrama-LB-Indian-Pjune-Sdrop | P56: =IF(D56="","",VLOOKUP(D56,species_data!$A$4:$G$148,7)) -> Indian | Q56: Pcinque-SilkAster-Lplant-Smint-Ptick-Sgrod-Hvervain-Ycone-Swort-PPclover-BB-Sgrama-LB-Indian | S56: =IF(D56="","",VLOOKUP(D56,species_data!$A$4:$F$148,4)) -> 4.407713499
A57: 327 | B57: (D)-6-Pcinque-SilkAster-Lplant-Smint-Ptick-Sgrod-Hvervain-Ycone-Swort-PPclover-BB-Sgrama-LB-Indian-Pjune-Sdrop | C57: 327-(D)-6-Pcinque-SilkAster-Lplant-Smint-Ptick-Sgrod-Hvervain-Ycone-Swort-PPclover-BB-Sgrama-LB-Indian-Pjune-Sdrop | D57: Prairie Junegrass | E57: Koeleria macrantha | F57: 2 | G57: 0.13 | H57: 6.6 | I57: Grass | J57: N | K57: N | M57: 6 | N57: D | O57: Pcinque-SilkAster-Lplant-Smint-Ptick-Sgrod-Hvervain-Ycone-Swort-PPclover-BB-Sgrama-LB-Indian-Pjune-Sdrop | P57: =IF(D57="","",VLOOKUP(D57,species_data!$A$4:$G$148,7)) -> Pjune | Q57: Pcinque-SilkAster-Lplant-Smint-Ptick-Sgrod-Hvervain-Ycone-Swort-PPclover-BB-Sgrama-LB-Indian-Pjune | S57: =IF(D57="","",VLOOKUP(D57,species_data!$A$4:$F$148,4)) -> 52.99981635
A58: 327 | B58: (D)-6-Pcinque-SilkAster-Lplant-Smint-Ptick-Sgrod-Hvervain-Ycone-Swort-PPclover-BB-Sgrama-LB-Indian-Pjune-Sdrop | C58: 327-(D)-6-Pcinque-SilkAster-Lplant-Smint-Ptick-Sgrod-Hvervain-Ycone-Swort-PPclover-BB-Sgrama-LB-Indian-Pjune-Sdrop | D58: Sand Dropseed | E58: Sporobolus cryptandrus | F58: 2 | G58: 0.13 | H58: 15.3 | I58: Grass | J58: N | K58: N | M58: 6 | N58: D | O58: Pcinque-SilkAster-Lplant-Smint-Ptick-Sgrod-Hvervain-Ycone-Swort-PPclover-BB-Sgrama-LB-Indian-Pjune-Sdrop | P58: =IF(D58="","",VLOOKUP(D58,species_data!$A$4:$G$148,7)) -> Sdrop | Q58: Pcinque-SilkAster-Lplant-Smint-Ptick-Sgrod-Hvervain-Ycone-Swort-PPclover-BB-Sgrama-LB-Indian-Pjune-Sdrop | S58: =IF(D58="","",VLOOKUP(D58,species_data!$A$4:$F$148,4)) -> 122
A59: 327 | B59: (DM)-7-LB-Sgrama-Indian-Switch-PPclover-RHbushclover-Pjune-Pdrop-Berg-Lplant-SilkAster-Swort-Sgrod-Ycone-Rblzstar-Pcinque | C59: 327-(DM)-7-LB-Sgrama-Indian-Switch-PPclover-RHbushclover-Pjune-Pdrop-Berg-Lplant-SilkAster-Swort-Sgrod-Ycone-Rblzstar-Pcinque | D59: Little Bluestem | E59: Schizachyrium scoparium | F59: 24 | G59: 1.5 | H59: 8.2 | I59: Grass | J59: N | K59: N | M59: 7 | N59: DM | O59: LB-Sgrama-Indian-Switch-PPclover-RHbushclover-Pjune-Pdrop-Berg-Lplant-SilkAster-Swort-Sgrod-Ycone-Rblzstar-Pcinque | P59: =IF(D59="","",VLOOKUP(D59,species_data!$A$4:$G$148,7)) -> LB | Q59: LB | S59: =IF(D59="","",VLOOKUP(D59,species_data!$A$4:$F$148,4)) -> 5.509641873
A60: 327 | B60: (DM)-7-LB-Sgrama-Indian-Switch-PPclover-RHbushclover-Pjune-Pdrop-Berg-Lplant-SilkAster-Swort-Sgrod-Ycone-Rblzstar-Pcinque | C60: 327-(DM)-7-LB-Sgrama-Indian-Switch-PPclover-RHbushclover-Pjune-Pdrop-Berg-Lplant-SilkAster-Swort-Sgrod-Ycone-Rblzstar-Pcinque | D60: Sideoats Grama | E60: Bouteloua curtipendula | F60: 24 | G60: 1.5 | H60: 4.4 | I60: Grass | J60: N | K60: N | M60: 7 | N60: DM | O60: LB-Sgrama-Indian-Switch-PPclover-RHbushclover-Pjune-Pdrop-Berg-Lplant-SilkAster-Swort-Sgrod-Ycone-Rblzstar-Pcinque | P60: =IF(D60="","",VLOOKUP(D60,species_data!$A$4:$G$148,7)) -> Sgrama | Q60: LB-Sgrama | S60: =IF(D60="","",VLOOKUP(D60,species_data!$A$4:$F$148,4)) -> 2.92
A61: 327 | B61: (DM)-7-LB-Sgrama-Indian-Switch-PPclover-RHbushclover-Pjune-Pdrop-Berg-Lplant-SilkAster-Swort-Sgrod-Ycone-Rblzstar-Pcinque | C61: 327-(DM)-7-LB-Sgrama-Indian-Switch-PPclover-RHbushclover-Pjune-Pdrop-Berg-Lplant-SilkAster-Swort-Sgrod-Ycone-Rblzstar-Pcinque | D61: Indiangrass | E61: Sorghastrum nutans | F61: 8 | G61: 0.5 | H61: 2 | I61: Grass | J61: N | K61: N | M61: 7 | N61: DM | O61: LB-Sgrama-Indian-Switch-PPclover-RHbushclover-Pjune-Pdrop-Berg-Lplant-SilkAster-Swort-Sgrod-Ycone-Rblzstar-Pcinque | P61: =IF(D61="","",VLOOKUP(D61,species_data!$A$4:$G$148,7)) -> Indian | Q61: LB-Sgrama-Indian | S61: =IF(D61="","",VLOOKUP(D61,species_data!$A$4:$F$148,4)) -> 4.407713499
A62: 327 | B62: (DM)-7-LB-Sgrama-Indian-Switch-PPclover-RHbushclover-Pjune-Pdrop-Berg-Lplant-SilkAster-Swort-Sgrod-Ycone-Rblzstar-Pcinque | C62: 327-(DM)-7-LB-Sgrama-Indian-Switch-PPclover-RHbushclover-Pjune-Pdrop-Berg-Lplant-SilkAster-Swort-Sgrod-Ycone-Rblzstar-Pcinque | D62: Switchgrass | E62: Panicum virgatum | F62: 4 | G62: 0.25 | H62: 2.2 | I62: Grass | J62: N | K62: N | M62: 7 | N62: DM | O62: LB-Sgrama-Indian-Switch-PPclover-RHbushclover-Pjune-Pdrop-Berg-Lplant-SilkAster-Swort-Sgrod-Ycone-Rblzstar-Pcinque | P62: =IF(D62="","",VLOOKUP(D62,species_data!$A$4:$G$148,7)) -> Switch | Q62: LB-Sgrama-Indian-Switch | S62: =IF(D62="","",VLOOKUP(D62,species_data!$A$4:$F$148,4)) -> 8.93
A63: 327 | B63: (DM)-7-LB-Sgrama-Indian-Switch-PPclover-RHbushclover-Pjune-Pdrop-Berg-Lplant-SilkAster-Swort-Sgrod-Ycone-Rblzstar-Pcinque | C63: 327-(DM)-7-LB-Sgrama-Indian-Switch-PPclover-RHbushclover-Pjune-Pdrop-Berg-Lplant-SilkAster-Swort-Sgrod-Ycone-Rblzstar-Pcinque | D63: Purple Prairie Clover | E63: Dalea purpurea | F63: 3 | G63: 0.19 | H63: 1.4 | I63: Legume | J63: N | K63: N | M63: 7 | N63: DM | O63: LB-Sgrama-Indian-Switch-PPclover-RHbushclover-Pjune-Pdrop-Berg-Lplant-SilkAster-Swort-Sgrod-Ycone-Rblzstar-Pcinque | P63: =IF(D63="","",VLOOKUP(D63,species_data!$A$4:$G$148,7)) -> PPclover | Q63: LB-Sgrama-Indian-Switch-PPclover | S63: =IF(D63="","",VLOOKUP(D63,species_data!$A$4:$F$148,4)) -> 7.327823691
A64: 327 | B64: (DM)-7-LB-Sgrama-Indian-Switch-PPclover-RHbushclover-Pjune-Pdrop-Berg-Lplant-SilkAster-Swort-Sgrod-Ycone-Rblzstar-Pcinque | C64: 327-(DM)-7-LB-Sgrama-Indian-Switch-PPclover-RHbushclover-Pjune-Pdrop-Berg-Lplant-SilkAster-Swort-Sgrod-Ycone-Rblzstar-Pcinque | D64: Round-Headed Bushclover | E64: Lespedeza capitata | F64: 3 | G64: 0.19 | H64: 0.8 | I64: Legume | J64: N | K64: N | M64: 7 | N64: DM | O64: LB-Sgrama-Indian-Switch-PPclover-RHbushclover-Pjune-Pdrop-Berg-Lplant-SilkAster-Swort-Sgrod-Ycone-Rblzstar-Pcinque | P64: =IF(D64="","",VLOOKUP(D64,species_data!$A$4:$G$148,7)) -> RHbushclover | Q64: LB-Sgrama-Indian-Switch-PPclover-RHbushclover | S64: =IF(D64="","",VLOOKUP(D64,species_data!$A$4:$F$148,4)) -> 3.658402204
A65: 327 | B65: (DM)-7-LB-Sgrama-Indian-Switch-PPclover-RHbushclover-Pjune-Pdrop-Berg-Lplant-SilkAster-Swort-Sgrod-Ycone-Rblzstar-Pcinque | C65: 327-(DM)-7-LB-Sgrama-Indian-Switch-PPclover-RHbushclover-Pjune-Pdrop-Berg-Lplant-SilkAster-Swort-Sgrod-Ycone-Rblzstar-Pcinque | D65: Prairie Junegrass | E65: Koeleria macrantha | F65: 2 | G65: 0.13 | H65: 6.6 | I65: Grass | J65: N | K65: N | M65: 7 | N65: DM | O65: LB-Sgrama-Indian-Switch-PPclover-RHbushclover-Pjune-Pdrop-Berg-Lplant-SilkAster-Swort-Sgrod-Ycone-Rblzstar-Pcinque | P65: =IF(D65="","",VLOOKUP(D65,species_data!$A$4:$G$148,7)) -> Pjune | Q65: LB-Sgrama-Indian-Switch-PPclover-RHbushclover-Pjune | S65: =IF(D65="","",VLOOKUP(D65,species_data!$A$4:$F$148,4)) -> 52.99981635
A66: 327 | B66: (DM)-7-LB-Sgrama-Indian-Switch-PPclover-RHbushclover-Pjune-Pdrop-Berg-Lplant-SilkAster-Swort-Sgrod-Ycone-Rblzstar-Pcinque | C66: 327-(DM)-7-LB-Sgrama-Indian-Switch-PPclover-RHbushclover-Pjune-Pdrop-Berg-Lplant-SilkAster-Swort-Sgrod-Ycone-Rblzstar-Pcinque | D66: Prairie Dropseed | E66: Sporobolus heterolepis | F66: 2 | G66: 0.13 | H66: 0.6 | I66: Grass | J66: N | K66: N | M66: 7 | N66: DM | O66: LB-Sgrama-Indian-Switch-PPclover-RHbushclover-Pjune-Pdrop-Berg-Lplant-SilkAster-Swort-Sgrod-Ycone-Rblzstar-Pcinque | P66: =IF(D66="","",VLOOKUP(D66,species_data!$A$4:$G$148,7)) -> Pdrop | Q66: LB-Sgrama-Indian-Switch-PPclover-RHbushclover-Pjune-Pdrop | S66: =IF(D66="","",VLOOKUP(D66,species_data!$A$4:$F$148,4)) -> 5.876951331
A67: 327 | B67: (DM)-7-LB-Sgrama-Indian-Switch-PPclover-RHbushclover-Pjune-Pdrop-Berg-Lplant-SilkAster-Swort-Sgrod-Ycone-Rblzstar-Pcinque | C67: 327-(DM)-7-LB-Sgrama-Indian-Switch-PPclover-RHbushclover-Pjune-Pdrop-Berg-Lplant-SilkAster-Swort-Sgrod-Ycone-Rblzstar-Pcinque | D67: Bergamot | E67: Monarda fistulosa | F67: 1 | G67: 0.06 | H67: 1.8 | I67: Forb | J67: N | K67: N | M67: 7 | N67: DM | O67: LB-Sgrama-Indian-Switch-PPclover-RHbushclover-Pjune-Pdrop-Berg-Lplant-SilkAster-Swort-Sgrod-Ycone-Rblzstar-Pcinque | P67: =IF(D67="","",VLOOKUP(D67,species_data!$A$4:$G$148,7)) -> Berg | Q67: LB-Sgrama-Indian-Switch-PPclover-RHbushclover-Pjune-Pdrop-Berg | S67: =IF(D67="","",VLOOKUP(D67,species_data!$A$4:$F$148,4)) -> 28.57667585
A68: =IF(D68="","",327) -> 327 | B68: =IF(O68="","",CONCATENATE("(",N68,")-",M68,"-",O68)) -> (DM)-7-LB-Sgrama-Indian-Switch-PPclover-RHbushclover-Pjune-Pdrop-Berg-Lplant-SilkAster-Swort-Sgrod-Ycone-Rblzstar-Pcinque | C68: =IF(D68="","",CONCATENATE(A68,"-",B68)) -> 327-(DM)-7-LB-Sgrama-Indian-Switch-PPclover-RHbushclover-Pjune-Pdrop-Berg-Lplant-SilkAster-Swort-Sgrod-Ycone-Rblzstar-Pcinque | D68: Leadplant | E68: Amorpha canescens | F68: 1 | G68: =IF(F68>0,ROUND(F68/16,2),"") -> 0.06 | H68: 0.4 | I68: Legume | J68: N | K68: N | M68: 7 | N68: DM | O68: LB-Sgrama-Indian-Switch-PPclover-RHbushclover-Pjune-Pdrop-Berg-Lplant-SilkAster-Swort-Sgrod-Ycone-Rblzstar-Pcinque | P68: =IF(D68="","",VLOOKUP(D68,species_data!$A$4:$G$148,7)) -> Lplant | Q68: LB-Sgrama-Indian-Switch-PPclover-RHbushclover-Pjune-Pdrop-Berg-Lplant | S68: =IF(D68="","",VLOOKUP(D68,species_data!$A$4:$F$148,4)) -> 6.225895317
A69: 327 | B69: (DM)-7-LB-Sgrama-Indian-Switch-PPclover-RHbushclover-Pjune-Pdrop-Berg-Lplant-SilkAster-Swort-Sgrod-Ycone-Rblzstar-Pcinque | C69: 327-(DM)-7-LB-Sgrama-Indian-Switch-PPclover-RHbushclover-Pjune-Pdrop-Berg-Lplant-SilkAster-Swort-Sgrod-Ycone-Rblzstar-Pcinque | D69: Silky Aster | E69: Symphyotrichum sericeum | F69: 1 | G69: 0.06 | H69: 0.6 | I69: Forb | J69: N | K69: N | M69: 7 | N69: DM | O69: =IF(M69=M70,O70,Q69) -> LB-Sgrama-Indian-Switch-PPclover-RHbushclover-Pjune-Pdrop-Berg-Lplant-SilkAster-Swort-Sgrod-Ycone-Rblzstar-Pcinque | P69: =IF(D69="","",VLOOKUP(D69,species_data!$A$4:$G$148,7)) -> SilkAster | Q69: =IF(D69="","",IF(M69=M68,CONCATENATE(Q68,"-",P69),P69)) -> LB-Sgrama-Indian-Switch-PPclover-RHbushclover-Pjune-Pdrop-Berg-Lplant-SilkAster | S69: =IF(D69="","",VLOOKUP(D69,species_data!$A$4:$F$148,4)) -> 20.568
A70: 327 | B70: (DM)-7-LB-Sgrama-Indian-Switch-PPclover-RHbushclover-Pjune-Pdrop-Berg-Lplant-SilkAster-Swort-Sgrod-Ycone-Rblzstar-Pcinque | C70: 327-(DM)-7-LB-Sgrama-Indian-Switch-PPclover-RHbushclover-Pjune-Pdrop-Berg-Lplant-SilkAster-Swort-Sgrod-Ycone-Rblzstar-Pcinque | D70: Spiderwort | E70: Tradescantia ohiensis | F70: 1 | G70: 0.06 | H70: 0.2 | I70: Forb | J70: N | K70: N | M70: 7 | N70: DM | O70: LB-Sgrama-Indian-Switch-PPclover-RHbushclover-Pjune-Pdrop-Berg-Lplant-SilkAster-Swort-Sgrod-Ycone-Rblzstar-Pcinque | P70: =IF(D70="","",VLOOKUP(D70,species_data!$A$4:$G$148,7)) -> Swort | Q70: LB-Sgrama-Indian-Switch-PPclover-RHbushclover-Pjune-Pdrop-Berg-Lplant-SilkAster-Swort | S70: =IF(D70="","",VLOOKUP(D70,species_data!$A$4:$F$148,4)) -> 2.931129477
A71: 327 | B71: (DM)-7-LB-Sgrama-Indian-Switch-PPclover-RHbushclover-Pjune-Pdrop-Berg-Lplant-SilkAster-Swort-Sgrod-Ycone-Rblzstar-Pcinque | C71: 327-(DM)-7-LB-Sgrama-Indian-Switch-PPclover-RHbushclover-Pjune-Pdrop-Berg-Lplant-SilkAster-Swort-Sgrod-Ycone-Rblzstar-Pcinque | D71: Stiff Goldenrod | E71: Oligoneuron rigidum | F71: 1 | G71: 0.06 | H71: 1 | I71: Forb | J71: N | K71: N | M71: 7 | N71: DM | O71: LB-Sgrama-Indian-Switch-PPclover-RHbushclover-Pjune-Pdrop-Berg-Lplant-SilkAster-Swort-Sgrod-Ycone-Rblzstar-Pcinque | P71: =IF(D71="","",VLOOKUP(D71,species_data!$A$4:$G$148,7)) -> Sgrod | Q71: LB-Sgrama-Indian-Switch-PPclover-RHbushclover-Pjune-Pdrop-Berg-Lplant-SilkAster-Swort-Sgrod | S71: =IF(D71="","",VLOOKUP(D71,species_data!$A$4:$F$148,4)) -> 16.84113866
A72: 327 | B72: (DM)-7-LB-Sgrama-Indian-Switch-PPclover-RHbushclover-Pjune-Pdrop-Berg-Lplant-SilkAster-Swort-Sgrod-Ycone-Rblzstar-Pcinque | C72: 327-(DM)-7-LB-Sgrama-Indian-Switch-PPclover-RHbushclover-Pjune-Pdrop-Berg-Lplant-SilkAster-Swort-Sgrod-Ycone-Rblzstar-Pcinque | D72: Yellow Coneflower | E72: Ratibida pinnata | F72: 1 | G72: 0.06 | H72: 0.6 | I72: Forb | J72: N | K72: N | M72: 7 | N72: DM | O72: LB-Sgrama-Indian-Switch-PPclover-RHbushclover-Pjune-Pdrop-Berg-Lplant-SilkAster-Swort-Sgrod-Ycone-Rblzstar-Pcinque | P72: =IF(D72="","",VLOOKUP(D72,species_data!$A$4:$G$148,7)) -> Ycone | Q72: LB-Sgrama-Indian-Switch-PPclover-RHbushclover-Pjune-Pdrop-Berg-Lplant-SilkAster-Swort-Sgrod-Ycone | S72: =IF(D72="","",VLOOKUP(D72,species_data!$A$4:$F$148,4)) -> 9.888
A73: 327 | B73: (DM)-7-LB-Sgrama-Indian-Switch-PPclover-RHbushclover-Pjune-Pdrop-Berg-Lplant-SilkAster-Swort-Sgrod-Ycone-Rblzstar-Pcinque | C73: 327-(DM)-7-LB-Sgrama-Indian-Switch-PPclover-RHbushclover-Pjune-Pdrop-Berg-Lplant-SilkAster-Swort-Sgrod-Ycone-Rblzstar-Pcinque | D73: Rough Blazing Star | E73: Liatris aspera | F73: 0.5 | G73: 0.03 | H73: 0.2 | I73: Forb | J73: N | K73: N | M73: 7 | N73: DM | O73: LB-Sgrama-Indian-Switch-PPclover-RHbushclover-Pjune-Pdrop-Berg-Lplant-SilkAster-Swort-Sgrod-Ycone-Rblzstar-Pcinque | P73: =IF(D73="","",VLOOKUP(D73,species_data!$A$4:$G$148,7)) -> Rblzstar | Q73: LB-Sgrama-Indian-Switch-PPclover-RHbushclover-Pjune-Pdrop-Berg-Lplant-SilkAster-Swort-Sgrod-Ycone-Rblzstar | S73: =IF(D73="","",VLOOKUP(D73,species_data!$A$4:$F$148,4)) -> 4.947658402
A74: 327 | B74: (DM)-7-LB-Sgrama-Indian-Switch-PPclover-RHbushclover-Pjune-Pdrop-Berg-Lplant-SilkAster-Swort-Sgrod-Ycone-Rblzstar-Pcinque | C74: 327-(DM)-7-LB-Sgrama-Indian-Switch-PPclover-RHbushclover-Pjune-Pdrop-Berg-Lplant-SilkAster-Swort-Sgrod-Ycone-Rblzstar-Pcinque | D74: Prairie Cinquefoil | E74: Potentilla arguta | F74: 0.25 | G74: 0.02 | H74: 1.1 | I74: Forb | J74: N | K74: N | M74: 7 | N74: DM | O74: LB-Sgrama-Indian-Switch-PPclover-RHbushclover-Pjune-Pdrop-Berg-Lplant-SilkAster-Swort-Sgrod-Ycone-Rblzstar-Pcinque | P74: =IF(D74="","",VLOOKUP(D74,species_data!$A$4:$G$148,7)) -> Pcinque | Q74: LB-Sgrama-Indian-Switch-PPclover-RHbushclover-Pjune-Pdrop-Berg-Lplant-SilkAster-Swort-Sgrod-Ycone-Rblzstar-Pcinque | S74: =IF(D74="","",VLOOKUP(D74,species_data!$A$4:$F$148,4)) -> 73.46189164
A75: 327 | B75: (M)-8-LB-BB-Indian-Cwrye-Switch-Oxeyesun-Pblzstar-PPclover-Rweed-Berg-Besus-NEaster-SkyAster-Ycone-Croot | C75: 327-(M)-8-LB-BB-Indian-Cwrye-Switch-Oxeyesun-Pblzstar-PPclover-Rweed-Berg-Besus-NEaster-SkyAster-Ycone-Croot | D75: Little Bluestem | E75: Schizachyrium scoparium | F75: 24 | G75: 1.5 | H75: 8.2 | I75: Grass | J75: N | K75: N | M75: 8 | N75: M | O75: LB-BB-Indian-Cwrye-Switch-Oxeyesun-Pblzstar-PPclover-Rweed-Berg-Besus-NEaster-SkyAster-Ycone-Croot | P75: =IF(D75="","",VLOOKUP(D75,species_data!$A$4:$G$148,7)) -> LB | Q75: LB | S75: =IF(D75="","",VLOOKUP(D75,species_data!$A$4:$F$148,4)) -> 5.509641873
A76: 327 | B76: (M)-8-LB-BB-Indian-Cwrye-Switch-Oxeyesun-Pblzstar-PPclover-Rweed-Berg-Besus-NEaster-SkyAster-Ycone-Croot | C76: 327-(M)-8-LB-BB-Indian-Cwrye-Switch-Oxeyesun-Pblzstar-PPclover-Rweed-Berg-Besus-NEaster-SkyAster-Ycone-Croot | D76: Big Bluestem | E76: Andropogon gerardii | F76: 16 | G76: 1 | H76: 3.8 | I76: Grass | J76: N | K76: N | M76: 8 | N76: M | O76: LB-BB-Indian-Cwrye-Switch-Oxeyesun-Pblzstar-PPclover-Rweed-Berg-Besus-NEaster-SkyAster-Ycone-Croot | P76: =IF(D76="","",VLOOKUP(D76,species_data!$A$4:$G$148,7)) -> BB | Q76: LB-BB | S76: =IF(D76="","",VLOOKUP(D76,species_data!$A$4:$F$148,4)) -> 3.79
A77: 327 | B77: (M)-8-LB-BB-Indian-Cwrye-Switch-Oxeyesun-Pblzstar-PPclover-Rweed-Berg-Besus-NEaster-SkyAster-Ycone-Croot | C77: 327-(M)-8-LB-BB-Indian-Cwrye-Switch-Oxeyesun-Pblzstar-PPclover-Rweed-Berg-Besus-NEaster-SkyAster-Ycone-Croot | D77: Indiangrass | E77: Sorghastrum nutans | F77: 16 | G77: 1 | H77: 4 | I77: Grass | J77: N | K77: N | M77: 8 | N77: M | O77: LB-BB-Indian-Cwrye-Switch-Oxeyesun-Pblzstar-PPclover-Rweed-Berg-Besus-NEaster-SkyAster-Ycone-Croot | P77: =IF(D77="","",VLOOKUP(D77,species_data!$A$4:$G$148,7)) -> Indian | Q77: LB-BB-Indian | S77: =IF(D77="","",VLOOKUP(D77,species_data!$A$4:$F$148,4)) -> 4.407713499
A78: 327 | B78: (M)-8-LB-BB-Indian-Cwrye-Switch-Oxeyesun-Pblzstar-PPclover-Rweed-Berg-Besus-NEaster-SkyAster-Ycone-Croot | C78: 327-(M)-8-LB-BB-Indian-Cwrye-Switch-Oxeyesun-Pblzstar-PPclover-Rweed-Berg-Besus-NEaster-SkyAster-Ycone-Croot | D78: Canada Wildrye | E78: Elymus canadensis | F78: 8 | G78: 0.5 | H78: 1.3 | I78: Grass | J78: N | K78: N | M78: 8 | N78: M | O78: LB-BB-Indian-Cwrye-Switch-Oxeyesun-Pblzstar-PPclover-Rweed-Berg-Besus-NEaster-SkyAster-Ycone-Croot | P78: =IF(D78="","",VLOOKUP(D78,species_data!$A$4:$G$148,7)) -> Cwrye | Q78: LB-BB-Indian-Cwrye | S78: =IF(D78="","",VLOOKUP(D78,species_data!$A$4:$F$148,4)) -> 1.910009183
A79: 327 | B79: (M)-8-LB-BB-Indian-Cwrye-Switch-Oxeyesun-Pblzstar-PPclover-Rweed-Berg-Besus-NEaster-SkyAster-Ycone-Croot | C79: 327-(M)-8-LB-BB-Indian-Cwrye-Switch-Oxeyesun-Pblzstar-PPclover-Rweed-Berg-Besus-NEaster-SkyAster-Ycone-Croot | D79: Switchgrass | E79: Panicum virgatum | F79: 8 | G79: 0.5 | H79: 4.5 | I79: Grass | J79: N | K79: N | M79: 8 | N79: M | O79: LB-BB-Indian-Cwrye-Switch-Oxeyesun-Pblzstar-PPclover-Rweed-Berg-Besus-NEaster-SkyAster-Ycone-Croot | P79: =IF(D79="","",VLOOKUP(D79,species_data!$A$4:$G$148,7)) -> Switch | Q79: LB-BB-Indian-Cwrye-Switch | S79: =IF(D79="","",VLOOKUP(D79,species_data!$A$4:$F$148,4)) -> 8.93
A80: 327 | B80: (M)-8-LB-BB-Indian-Cwrye-Switch-Oxeyesun-Pblzstar-PPclover-Rweed-Berg-Besus-NEaster-SkyAster-Ycone-Croot | C80: 327-(M)-8-LB-BB-Indian-Cwrye-Switch-Oxeyesun-Pblzstar-PPclover-Rweed-Berg-Besus-NEaster-SkyAster-Ycone-Croot | D80: Ox-eye Sunflower | E80: Heliopsis helianthoides | F80: 1 | G80: 0.06 | H80: 0.1 | I80: Forb | J80: N | K80: N | M80: 8 | N80: M | O80: LB-BB-Indian-Cwrye-Switch-Oxeyesun-Pblzstar-PPclover-Rweed-Berg-Besus-NEaster-SkyAster-Ycone-Croot | P80: =IF(D80="","",VLOOKUP(D80,species_data!$A$4:$G$148,7)) -> Oxeyesun | Q80: LB-BB-Indian-Cwrye-Switch-Oxeyesun | S80: =IF(D80="","",VLOOKUP(D80,species_data!$A$4:$F$148,4)) -> 2.380165289
A81: 327 | B81: (M)-8-LB-BB-Indian-Cwrye-Switch-Oxeyesun-Pblzstar-PPclover-Rweed-Berg-Besus-NEaster-SkyAster-Ycone-Croot | C81: 327-(M)-8-LB-BB-Indian-Cwrye-Switch-Oxeyesun-Pblzstar-PPclover-Rweed-Berg-Besus-NEaster-SkyAster-Ycone-Croot | D81: Prairie Blazing Star | E81: Liatris pycnostachya | F81: 1 | G81: 0.06 | H81: 0.3 | I81: Forb | J81: N | K81: N | M81: 8 | N81: M | O81: LB-BB-Indian-Cwrye-Switch-Oxeyesun-Pblzstar-PPclover-Rweed-Berg-Besus-NEaster-SkyAster-Ycone-Croot | P81: =IF(D81="","",VLOOKUP(D81,species_data!$A$4:$G$148,7)) -> Pblzstar | Q81: LB-BB-Indian-Cwrye-Switch-Oxeyesun-Pblzstar | S81: =IF(D81="","",VLOOKUP(D81,species_data!$A$4:$F$148,4)) -> 4.396694215
A82: 327 | B82: (M)-8-LB-BB-Indian-Cwrye-Switch-Oxeyesun-Pblzstar-PPclover-Rweed-Berg-Besus-NEaster-SkyAster-Ycone-Croot | C82: 327-(M)-8-LB-BB-Indian-Cwrye-Switch-Oxeyesun-Pblzstar-PPclover-Rweed-Berg-Besus-NEaster-SkyAster-Ycone-Croot | D82: Purple Prairie Clover | E82: Dalea purpurea | F82: 1 | G82: 0.06 | H82: 0.5 | I82: Legume | J82: N | K82: N | M82: 8 | N82: M | O82: LB-BB-Indian-Cwrye-Switch-Oxeyesun-Pblzstar-PPclover-Rweed-Berg-Besus-NEaster-SkyAster-Ycone-Croot | P82: =IF(D82="","",VLOOKUP(D82,species_data!$A$4:$G$148,7)) -> PPclover | Q82: LB-BB-Indian-Cwrye-Switch-Oxeyesun-Pblzstar-PPclover | S82: =IF(D82="","",VLOOKUP(D82,species_data!$A$4:$F$148,4)) -> 7.327823691
A83: 327 | B83: (M)-8-LB-BB-Indian-Cwrye-Switch-Oxeyesun-Pblzstar-PPclover-Rweed-Berg-Besus-NEaster-SkyAster-Ycone-Croot | C83: 327-(M)-8-LB-BB-Indian-Cwrye-Switch-Oxeyesun-Pblzstar-PPclover-Rweed-Berg-Besus-NEaster-SkyAster-Ycone-Croot | D83: Rosinweed | E83: Silphium integrifolium | F83: 1 | G83: 0.06 | H83: 0.1 | I83: Forb | J83: N | K83: N | M83: 8 | N83: M | O83: LB-BB-Indian-Cwrye-Switch-Oxeyesun-Pblzstar-PPclover-Rweed-Berg-Besus-NEaster-SkyAster-Ycone-Croot | P83: =IF(D83="","",VLOOKUP(D83,species_data!$A$4:$G$148,7)) -> Rweed | Q83: LB-BB-Indian-Cwrye-Switch-Oxeyesun-Pblzstar-PPclover-Rweed | S83: =IF(D83="","",VLOOKUP(D83,species_data!$A$4:$F$148,4)) -> 1.465564738
A84: 327 | B84: (M)-8-LB-BB-Indian-Cwrye-Switch-Oxeyesun-Pblzstar-PPclover-Rweed-Berg-Besus-NEaster-SkyAster-Ycone-Croot | C84: 327-(M)-8-LB-BB-Indian-Cwrye-Switch-Oxeyesun-Pblzstar-PPclover-Rweed-Berg-Besus-NEaster-SkyAster-Ycone-Croot | D84: Bergamot | E84: Monarda fistulosa | F84: 0.5 | G84: 0.03 | H84: 0.9 | I84: Forb | J84: N | K84: N | M84: 8 | N84: M | O84: LB-BB-Indian-Cwrye-Switch-Oxeyesun-Pblzstar-PPclover-Rweed-Berg-Besus-NEaster-SkyAster-Ycone-Croot | P84: =IF(D84="","",VLOOKUP(D84,species_data!$A$4:$G$148,7)) -> Berg | Q84: LB-BB-Indian-Cwrye-Switch-Oxeyesun-Pblzstar-PPclover-Rweed-Berg | S84: =IF(D84="","",VLOOKUP(D84,species_data!$A$4:$F$148,4)) -> 28.57667585
A85: 327 | B85: (M)-8-LB-BB-Indian-Cwrye-Switch-Oxeyesun-Pblzstar-PPclover-Rweed-Berg-Besus-NEaster-SkyAster-Ycone-Croot | C85: 327-(M)-8-LB-BB-Indian-Cwrye-Switch-Oxeyesun-Pblzstar-PPclover-Rweed-Berg-Besus-NEaster-SkyAster-Ycone-Croot | D85: Black-Eyed Susan | E85: Rudbeckia hirta | F85: 0.5 | G85: 0.03 | H85: 1.1 | I85: Forb | J85: N | K85: N | M85: 8 | N85: M | O85: LB-BB-Indian-Cwrye-Switch-Oxeyesun-Pblzstar-PPclover-Rweed-Berg-Besus-NEaster-SkyAster-Ycone-Croot | P85: =IF(D85="","",VLOOKUP(D85,species_data!$A$4:$G$148,7)) -> Besus | Q85: LB-BB-Indian-Cwrye-Switch-Oxeyesun-Pblzstar-PPclover-Rweed-Berg-Besus | S85: =IF(D85="","",VLOOKUP(D85,species_data!$A$4:$F$148,4)) -> 36.58402204
A86: 327 | B86: (M)-8-LB-BB-Indian-Cwrye-Switch-Oxeyesun-Pblzstar-PPclover-Rweed-Berg-Besus-NEaster-SkyAster-Ycone-Croot | C86: 327-(M)-8-LB-BB-Indian-Cwrye-Switch-Oxeyesun-Pblzstar-PPclover-Rweed-Berg-Besus-NEaster-SkyAster-Ycone-Croot | D86: New England Aster | E86: Symphyotrichum novae-angliae | F86: 0.5 | G86: 0.03 | H86: 0.8 | I86: Forb | J86: N | K86: N | M86: 8 | N86: M | O86: LB-BB-Indian-Cwrye-Switch-Oxeyesun-Pblzstar-PPclover-Rweed-Berg-Besus-NEaster-SkyAster-Ycone-Croot | P86: =IF(D86="","",VLOOKUP(D86,species_data!$A$4:$G$148,7)) -> NEaster | Q86: LB-BB-Indian-Cwrye-Switch-Oxeyesun-Pblzstar-PPclover-Rweed-Berg-Besus-NEaster | S86: =IF(D86="","",VLOOKUP(D86,species_data!$A$4:$F$148,4)) -> 25.67493113
A87: 327 | B87: (M)-8-LB-BB-Indian-Cwrye-Switch-Oxeyesun-Pblzstar-PPclover-Rweed-Berg-Besus-NEaster-SkyAster-Ycone-Croot | C87: 327-(M)-8-LB-BB-Indian-Cwrye-Switch-Oxeyesun-Pblzstar-PPclover-Rweed-Berg-Besus-NEaster-SkyAster-Ycone-Croot | D87: Sky-Blue Aster | E87: Symphyotrichum oolentangiense | F87: 0.5 | G87: 0.03 | H87: 0.9 | I87: Forb | J87: N | K87: N | M87: 8 | N87: M | O87: LB-BB-Indian-Cwrye-Switch-Oxeyesun-Pblzstar-PPclover-Rweed-Berg-Besus-NEaster-SkyAster-Ycone-Croot | P87: =IF(D87="","",VLOOKUP(D87,species_data!$A$4:$G$148,7)) -> SkyAster | Q87: LB-BB-Indian-Cwrye-Switch-Oxeyesun-Pblzstar-PPclover-Rweed-Berg-Besus-NEaster-SkyAster | S87: =IF(D87="","",VLOOKUP(D87,species_data!$A$4:$F$148,4)) -> 30.11937557
A88: 327 | B88: (M)-8-LB-BB-Indian-Cwrye-Switch-Oxeyesun-Pblzstar-PPclover-Rweed-Berg-Besus-NEaster-SkyAster-Ycone-Croot | C88: 327-(M)-8-LB-BB-Indian-Cwrye-Switch-Oxeyesun-Pblzstar-PPclover-Rweed-Berg-Besus-NEaster-SkyAster-Ycone-Croot | D88: Yellow Coneflower | E88: Ratibida pinnata | F88: 0.5 | G88: 0.03 | H88: 0.3 | I88: Forb | J88: N | K88: N | M88: 8 | N88: M | O88: LB-BB-Indian-Cwrye-Switch-Oxeyesun-Pblzstar-PPclover-Rweed-Berg-Besus-NEaster-SkyAster-Ycone-Croot | P88: =IF(D88="","",VLOOKUP(D88,species_data!$A$4:$G$148,7)) -> Ycone | Q88: LB-BB-Indian-Cwrye-Switch-Oxeyesun-Pblzstar-PPclover-Rweed-Berg-Besus-NEaster-SkyAster-Ycone | S88: =IF(D88="","",VLOOKUP(D88,species_data!$A$4:$F$148,4)) -> 9.888
A89: 327 | B89: (M)-8-LB-BB-Indian-Cwrye-Switch-Oxeyesun-Pblzstar-PPclover-Rweed-Berg-Besus-NEaster-SkyAster-Ycone-Croot | C89: 327-(M)-8-LB-BB-Indian-Cwrye-Switch-Oxeyesun-Pblzstar-PPclover-Rweed-Berg-Besus-NEaster-SkyAster-Ycone-Croot | D89: Culver's Root | E89: Veronicastrum virginicum | F89: 0.25 | G89: 0.02 | H89: 4.3 | I89: Forb | J89: N | K89: N | M89: 8 | N89: M | O89: LB-BB-Indian-Cwrye-Switch-Oxeyesun-Pblzstar-PPclover-Rweed-Berg-Besus-NEaster-SkyAster-Ycone-Croot | P89: =IF(D89="","",VLOOKUP(D89,species_data!$A$4:$G$148,7)) -> Croot | Q89: LB-BB-Indian-Cwrye-Switch-Oxeyesun-Pblzstar-PPclover-Rweed-Berg-Besus-NEaster-SkyAster-Ycone-Croot | S89: =IF(D89="","",VLOOKUP(D89,species_data!$A$4:$F$148,4)) -> 275.4820937
A90: 327 | B90: (WM)-9-BB-Cwrye-Switch-Indian-Cup-Pcord-WWIndigo-Berg-Besus-Ciron-Galex-NEaster-Pblzstar-Ycone-GSJwort | C90: 327-(WM)-9-BB-Cwrye-Switch-Indian-Cup-Pcord-WWIndigo-Berg-Besus-Ciron-Galex-NEaster-Pblzstar-Ycone-GSJwort | D90: Big Bluestem | E90: Andropogon gerardii | F90: 20 | G90: 1.25 | H90: 4.8 | I90: Grass | J90: N | K90: N | M90: 9 | N90: WM | O90: BB-Cwrye-Switch-Indian-Cup-Pcord-WWIndigo-Berg-Besus-Ciron-Galex-NEaster-Pblzstar-Ycone-GSJwort | P90: =IF(D90="","",VLOOKUP(D90,species_data!$A$4:$G$148,7)) -> BB | Q90: BB | S90: =IF(D90="","",VLOOKUP(D90,species_data!$A$4:$F$148,4)) -> 3.79
A91: 327 | B91: (WM)-9-BB-Cwrye-Switch-Indian-Cup-Pcord-WWIndigo-Berg-Besus-Ciron-Galex-NEaster-Pblzstar-Ycone-GSJwort | C91: 327-(WM)-9-BB-Cwrye-Switch-Indian-Cup-Pcord-WWIndigo-Berg-Besus-Ciron-Galex-NEaster-Pblzstar-Ycone-GSJwort | D91: Canada Wildrye | E91: Elymus canadensis | F91: 16 | G91: 1 | H91: 2.5 | I91: Grass | J91: N | K91: N | M91: 9 | N91: WM | O91: BB-Cwrye-Switch-Indian-Cup-Pcord-WWIndigo-Berg-Besus-Ciron-Galex-NEaster-Pblzstar-Ycone-GSJwort | P91: =IF(D91="","",VLOOKUP(D91,species_data!$A$4:$G$148,7)) -> Cwrye | Q91: BB-Cwrye | S91: =IF(D91="","",VLOOKUP(D91,species_data!$A$4:$F$148,4)) -> 1.910009183
A92: 327 | B92: (WM)-9-BB-Cwrye-Switch-Indian-Cup-Pcord-WWIndigo-Berg-Besus-Ciron-Galex-NEaster-Pblzstar-Ycone-GSJwort | C92: 327-(WM)-9-BB-Cwrye-Switch-Indian-Cup-Pcord-WWIndigo-Berg-Besus-Ciron-Galex-NEaster-Pblzstar-Ycone-GSJwort | D92: Switchgrass | E92: Panicum virgatum | F92: 16 | G92: 1 | H92: 9 | I92: Grass | J92: N | K92: N | M92: 9 | N92: WM | O92: BB-Cwrye-Switch-Indian-Cup-Pcord-WWIndigo-Berg-Besus-Ciron-Galex-NEaster-Pblzstar-Ycone-GSJwort | P92: =IF(D92="","",VLOOKUP(D92,species_data!$A$4:$G$148,7)) -> Switch | Q92: BB-Cwrye-Switch | S92: =IF(D92="","",VLOOKUP(D92,species_data!$A$4:$F$148,4)) -> 8.93
A93: 327 | B93: (WM)-9-BB-Cwrye-Switch-Indian-Cup-Pcord-WWIndigo-Berg-Besus-Ciron-Galex-NEaster-Pblzstar-Ycone-GSJwort | C93: 327-(WM)-9-BB-Cwrye-Switch-Indian-Cup-Pcord-WWIndigo-Berg-Besus-Ciron-Galex-NEaster-Pblzstar-Ycone-GSJwort | D93: Indiangrass | E93: Sorghastrum nutans | F93: 12 | G93: 0.75 | H93: 3 | I93: Grass | J93: N | K93: N | M93: 9 | N93: WM | O93: BB-Cwrye-Switch-Indian-Cup-Pcord-WWIndigo-Berg-Besus-Ciron-Galex-NEaster-Pblzstar-Ycone-GSJwort | P93: =IF(D93="","",VLOOKUP(D93,species_data!$A$4:$G$148,7)) -> Indian | Q93: BB-Cwrye-Switch-Indian | S93: =IF(D93="","",VLOOKUP(D93,species_data!$A$4:$F$148,4)) -> 4.407713499
A94: 327 | B94: (WM)-9-BB-Cwrye-Switch-Indian-Cup-Pcord-WWIndigo-Berg-Besus-Ciron-Galex-NEaster-Pblzstar-Ycone-GSJwort | C94: 327-(WM)-9-BB-Cwrye-Switch-Indian-Cup-Pcord-WWIndigo-Berg-Besus-Ciron-Galex-NEaster-Pblzstar-Ycone-GSJwort | D94: Cupplant | E94: Silphium perfoliatum | F94: 4 | G94: 0.25 | H94: 0.1 | I94: Forb | J94: N | K94: N | M94: 9 | N94: WM | O94: BB-Cwrye-Switch-Indian-Cup-Pcord-WWIndigo-Berg-Besus-Ciron-Galex-NEaster-Pblzstar-Ycone-GSJwort | P94: =IF(D94="","",VLOOKUP(D94,species_data!$A$4:$G$148,7)) -> Cup | Q94: BB-Cwrye-Switch-Indian-Cup | S94: =IF(D94="","",VLOOKUP(D94,species_data!$A$4:$F$148,4)) -> 0.5142332415
A95: 327 | B95: (WM)-9-BB-Cwrye-Switch-Indian-Cup-Pcord-WWIndigo-Berg-Besus-Ciron-Galex-NEaster-Pblzstar-Ycone-GSJwort | C95: 327-(WM)-9-BB-Cwrye-Switch-Indian-Cup-Pcord-WWIndigo-Berg-Besus-Ciron-Galex-NEaster-Pblzstar-Ycone-GSJwort | D95: Prairie Cordgrass | E95: Spartina pectinata | F95: 4 | G95: 0.25 | H95: 0.6 | I95: Grass | J95: N | K95: N | M95: 9 | N95: WM | O95: BB-Cwrye-Switch-Indian-Cup-Pcord-WWIndigo-Berg-Besus-Ciron-Galex-NEaster-Pblzstar-Ycone-GSJwort | P95: =IF(D95="","",VLOOKUP(D95,species_data!$A$4:$G$148,7)) -> Pcord | Q95: BB-Cwrye-Switch-Indian-Cup-Pcord | S95: =IF(D95="","",VLOOKUP(D95,species_data!$A$4:$F$148,4)) -> 2.424242424
A96: 327 | B96: (WM)-9-BB-Cwrye-Switch-Indian-Cup-Pcord-WWIndigo-Berg-Besus-Ciron-Galex-NEaster-Pblzstar-Ycone-GSJwort | C96: 327-(WM)-9-BB-Cwrye-Switch-Indian-Cup-Pcord-WWIndigo-Berg-Besus-Ciron-Galex-NEaster-Pblzstar-Ycone-GSJwort | D96: White Wild Indigo | E96: Baptisia alba | F96: 1.5 | G96: 0.09 | H96: 0.1 | I96: Legume | J96: N | K96: N | M96: 9 | N96: WM | O96: BB-Cwrye-Switch-Indian-Cup-Pcord-WWIndigo-Berg-Besus-Ciron-Galex-NEaster-Pblzstar-Ycone-GSJwort | P96: =IF(D96="","",VLOOKUP(D96,species_data!$A$4:$G$148,7)) -> WWIndigo | Q96: BB-Cwrye-Switch-Indian-Cup-Pcord-WWIndigo | S96: =IF(D96="","",VLOOKUP(D96,species_data!$A$4:$F$148,4)) -> 0.5821854913
A97: 327 | B97: (WM)-9-BB-Cwrye-Switch-Indian-Cup-Pcord-WWIndigo-Berg-Besus-Ciron-Galex-NEaster-Pblzstar-Ycone-GSJwort | C97: 327-(WM)-9-BB-Cwrye-Switch-Indian-Cup-Pcord-WWIndigo-Berg-Besus-Ciron-Galex-NEaster-Pblzstar-Ycone-GSJwort | D97: Bergamot | E97: Monarda fistulosa | F97: 1 | G97: 0.06 | H97: 1.8 | I97: Forb | J97: N | K97: N | M97: 9 | N97: WM | O97: BB-Cwrye-Switch-Indian-Cup-Pcord-WWIndigo-Berg-Besus-Ciron-Galex-NEaster-Pblzstar-Ycone-GSJwort | P97: =IF(D97="","",VLOOKUP(D97,species_data!$A$4:$G$148,7)) -> Berg | Q97: BB-Cwrye-Switch-Indian-Cup-Pcord-WWIndigo-Berg | S97: =IF(D97="","",VLOOKUP(D97,species_data!$A$4:$F$148,4)) -> 28.57667585
A98: 327 | B98: (WM)-9-BB-Cwrye-Switch-Indian-Cup-Pcord-WWIndigo-Berg-Besus-Ciron-Galex-NEaster-Pblzstar-Ycone-GSJwort | C98: 327-(WM)-9-BB-Cwrye-Switch-Indian-Cup-Pcord-WWIndigo-Berg-Besus-Ciron-Galex-NEaster-Pblzstar-Ycone-GSJwort | D98: Black-Eyed Susan | E98: Rudbeckia hirta | F98: 1 | G98: 0.06 | H98: 2.2 | I98: Forb | J98: N | K98: N | M98: 9 | N98: WM | O98: BB-Cwrye-Switch-Indian-Cup-Pcord-WWIndigo-Berg-Besus-Ciron-Galex-NEaster-Pblzstar-Ycone-GSJwort | P98: =IF(D98="","",VLOOKUP(D98,species_data!$A$4:$G$148,7)) -> Besus | Q98: BB-Cwrye-Switch-Indian-Cup-Pcord-WWIndigo-Berg-Besus | S98: =IF(D98="","",VLOOKUP(D98,species_data!$A$4:$F$148,4)) -> 36.58402204
A99: 327 | B99: (WM)-9-BB-Cwrye-Switch-Indian-Cup-Pcord-WWIndigo-Berg-Besus-Ciron-Galex-NEaster-Pblzstar-Ycone-GSJwort | C99: 327-(WM)-9-BB-Cwrye-Switch-Indian-Cup-Pcord-WWIndigo-Berg-Besus-Ciron-Galex-NEaster-Pblzstar-Ycone-GSJwort | D99: Common Ironweed | E99: Vernonia fasciculata | F99: 1 | G99: 0.06 | H99: 0.4 | I99: Forb | J99: N | K99: N | M99: 9 | N99: WM | O99: BB-Cwrye-Switch-Indian-Cup-Pcord-WWIndigo-Berg-Besus-Ciron-Galex-NEaster-Pblzstar-Ycone-GSJwort | P99: =IF(D99="","",VLOOKUP(D99,species_data!$A$4:$G$148,7)) -> Ciron | Q99: BB-Cwrye-Switch-Indian-Cup-Pcord-WWIndigo-Berg-Besus-Ciron | S99: =IF(D99="","",VLOOKUP(D99,species_data!$A$4:$F$148,4)) -> 7.346189164
A100: 327 | B100: (WM)-9-BB-Cwrye-Switch-Indian-Cup-Pcord-WWIndigo-Berg-Besus-Ciron-Galex-NEaster-Pblzstar-Ycone-GSJwort | C100: 327-(WM)-9-BB-Cwrye-Switch-Indian-Cup-Pcord-WWIndigo-Berg-Besus-Ciron-Galex-NEaster-Pblzstar-Ycone-GSJwort | D100: Golden Alexanders | E100: Zizia aurea | F100: 1 | G100: 0.06 | H100: 0.2 | I100: Forb | J100: N | K100: N | M100: 9 | N100: WM | O100: BB-Cwrye-Switch-Indian-Cup-Pcord-WWIndigo-Berg-Besus-Ciron-Galex-NEaster-Pblzstar-Ycone-GSJwort | P100: =IF(D100="","",VLOOKUP(D100,species_data!$A$4:$G$148,7)) -> Galex | Q100: BB-Cwrye-Switch-Indian-Cup-Pcord-WWIndigo-Berg-Besus-Ciron-Galex | S100: =IF(D100="","",VLOOKUP(D100,species_data!$A$4:$F$148,4)) -> 4.04
A101: 327 | B101: (WM)-9-BB-Cwrye-Switch-Indian-Cup-Pcord-WWIndigo-Berg-Besus-Ciron-Galex-NEaster-Pblzstar-Ycone-GSJwort | C101: 327-(WM)-9-BB-Cwrye-Switch-Indian-Cup-Pcord-WWIndigo-Berg-Besus-Ciron-Galex-NEaster-Pblzstar-Ycone-GSJwort | D101: New England Aster | E101: Symphyotrichum novae-angliae | F101: 1 | G101: 0.06 | H101: 1.6 | I101: Forb | J101: N | K101: N | M101: 9 | N101: WM | O101: BB-Cwrye-Switch-Indian-Cup-Pcord-WWIndigo-Berg-Besus-Ciron-Galex-NEaster-Pblzstar-Ycone-GSJwort | P101: =IF(D101="","",VLOOKUP(D101,species_data!$A$4:$G$148,7)) -> NEaster | Q101: BB-Cwrye-Switch-Indian-Cup-Pcord-WWIndigo-Berg-Besus-Ciron-Galex-NEaster | S101: =IF(D101="","",VLOOKUP(D101,species_data!$A$4:$F$148,4)) -> 25.67493113
A102: 327 | B102: (WM)-9-BB-Cwrye-Switch-Indian-Cup-Pcord-WWIndigo-Berg-Besus-Ciron-Galex-NEaster-Pblzstar-Ycone-GSJwort | C102: 327-(WM)-9-BB-Cwrye-Switch-Indian-Cup-Pcord-WWIndigo-Berg-Besus-Ciron-Galex-NEaster-Pblzstar-Ycone-GSJwort | D102: Prairie Blazing Star | E102: Liatris pycnostachya | F102: 1 | G102: 0.06 | H102: 0.4 | I102: Forb | J102: N | K102: N | M102: 9 | N102: WM | O102: BB-Cwrye-Switch-Indian-Cup-Pcord-WWIndigo-Berg-Besus-Ciron-Galex-NEaster-Pblzstar-Ycone-GSJwort | P102: =IF(D102="","",VLOOKUP(D102,species_data!$A$4:$G$148,7)) -> Pblzstar | Q102: BB-Cwrye-Switch-Indian-Cup-Pcord-WWIndigo-Berg-Besus-Ciron-Galex-NEaster-Pblzstar | S102: =IF(D102="","",VLOOKUP(D102,species_data!$A$4:$F$148,4)) -> 4.396694215
A103: 327 | B103: (WM)-9-BB-Cwrye-Switch-Indian-Cup-Pcord-WWIndigo-Berg-Besus-Ciron-Galex-NEaster-Pblzstar-Ycone-GSJwort | C103: 327-(WM)-9-BB-Cwrye-Switch-Indian-Cup-Pcord-WWIndigo-Berg-Besus-Ciron-Galex-NEaster-Pblzstar-Ycone-GSJwort | D103: Yellow Coneflower | E103: Ratibida pinnata | F103: 1 | G103: 0.06 | H103: 0.6 | I103: Forb | J103: N | K103: N | M103: 9 | N103: WM | O103: BB-Cwrye-Switch-Indian-Cup-Pcord-WWIndigo-Berg-Besus-Ciron-Galex-NEaster-Pblzstar-Ycone-GSJwort | P103: =IF(D103="","",VLOOKUP(D103,species_data!$A$4:$G$148,7)) -> Ycone | Q103: BB-Cwrye-Switch-Indian-Cup-Pcord-WWIndigo-Berg-Besus-Ciron-Galex-NEaster-Pblzstar-Ycone | S103: =IF(D103="","",VLOOKUP(D103,species_data!$A$4:$F$148,4)) -> 9.888
A104: 327 | B104: (WM)-9-BB-Cwrye-Switch-Indian-Cup-Pcord-WWIndigo-Berg-Besus-Ciron-Galex-NEaster-Pblzstar-Ycone-GSJwort | C104: 327-(WM)-9-BB-Cwrye-Switch-Indian-Cup-Pcord-WWIndigo-Berg-Besus-Ciron-Galex-NEaster-Pblzstar-Ycone-GSJwort | D104: Great St. John's Wort | E104: Hypericum ascyron | F104: 0.25 | G104: 0.02 | H104: 1.1 | I104: Forb | J104: N | K104: N | M104: 9 | N104: WM | O104: BB-Cwrye-Switch-Indian-Cup-Pcord-WWIndigo-Berg-Besus-Ciron-Galex-NEaster-Pblzstar-Ycone-GSJwort | P104: =IF(D104="","",VLOOKUP(D104,species_data!$A$4:$G$148,7)) -> GSJwort | Q104: BB-Cwrye-Switch-Indian-Cup-Pcord-WWIndigo-Berg-Besus-Ciron-Galex-NEaster-Pblzstar-Ycone-GSJwort | S104: =IF(D104="","",VLOOKUP(D104,species_data!$A$4:$F$148,4)) -> 73.456
A105: 327 | B105: (W)-10-Croot-Ciron-Cup-MM-Jpye-Bvervain-Shwgrod-Bon-Galex-Switch-Pcord-BB-Cwrye-Indian-Fmgrass-Fsedge | C105: 327-(W)-10-Croot-Ciron-Cup-MM-Jpye-Bvervain-Shwgrod-Bon-Galex-Switch-Pcord-BB-Cwrye-Indian-Fmgrass-Fsedge | D105: Culver's Root | E105: Veronicastrum virginicum | F105: 0.25 | G105: 0.02 | H105: 4.3 | I105: Forb | J105: N | K105: N | M105: 10 | N105: W | O105: Croot-Ciron-Cup-MM-Jpye-Bvervain-Shwgrod-Bon-Galex-Switch-Pcord-BB-Cwrye-Indian-Fmgrass-Fsedge | P105: =IF(D105="","",VLOOKUP(D105,species_data!$A$4:$G$148,7)) -> Croot | Q105: Croot | S105: =IF(D105="","",VLOOKUP(D105,species_data!$A$4:$F$148,4)) -> 275.4820937
A106: 327 | B106: (W)-10-Croot-Ciron-Cup-MM-Jpye-Bvervain-Shwgrod-Bon-Galex-Switch-Pcord-BB-Cwrye-Indian-Fmgrass-Fsedge | C106: 327-(W)-10-Croot-Ciron-Cup-MM-Jpye-Bvervain-Shwgrod-Bon-Galex-Switch-Pcord-BB-Cwrye-Indian-Fmgrass-Fsedge | D106: Common Ironweed | E106: Vernonia fasciculata | F106: 0.5 | G106: 0.03 | H106: 0.2 | I106: Forb | J106: N | K106: N | M106: 10 | N106: W | O106: Croot-Ciron-Cup-MM-Jpye-Bvervain-Shwgrod-Bon-Galex-Switch-Pcord-BB-Cwrye-Indian-Fmgrass-Fsedge | P106: =IF(D106="","",VLOOKUP(D106,species_data!$A$4:$G$148,7)) -> Ciron | Q106: Croot-Ciron | S106: =IF(D106="","",VLOOKUP(D106,species_data!$A$4:$F$148,4)) -> 7.346189164
A107: 327 | B107: (W)-10-Croot-Ciron-Cup-MM-Jpye-Bvervain-Shwgrod-Bon-Galex-Switch-Pcord-BB-Cwrye-Indian-Fmgrass-Fsedge | C107: 327-(W)-10-Croot-Ciron-Cup-MM-Jpye-Bvervain-Shwgrod-Bon-Galex-Switch-Pcord-BB-Cwrye-Indian-Fmgrass-Fsedge | D107: Cupplant | E107: Silphium perfoliatum | F107: 2 | G107: 0.13 | H107: 0.1 | I107: Forb | J107: N | K107: N | M107: 10 | N107: W | O107: Croot-Ciron-Cup-MM-Jpye-Bvervain-Shwgrod-Bon-Galex-Switch-Pcord-BB-Cwrye-Indian-Fmgrass-Fsedge | P107: =IF(D107="","",VLOOKUP(D107,species_data!$A$4:$G$148,7)) -> Cup | Q107: Croot-Ciron-Cup | S107: =IF(D107="","",VLOOKUP(D107,species_data!$A$4:$F$148,4)) -> 0.5142332415
A108: 327 | B108: (W)-10-Croot-Ciron-Cup-MM-Jpye-Bvervain-Shwgrod-Bon-Galex-Switch-Pcord-BB-Cwrye-Indian-Fmgrass-Fsedge | C108: 327-(W)-10-Croot-Ciron-Cup-MM-Jpye-Bvervain-Shwgrod-Bon-Galex-Switch-Pcord-BB-Cwrye-Indian-Fmgrass-Fsedge | D108: Marsh Milkweed | E108: Asclepias incarnata | F108: 2 | G108: 0.13 | H108: 0.2 | I108: Forb | J108: N | K108: N | M108: 10 | N108: W | O108: Croot-Ciron-Cup-MM-Jpye-Bvervain-Shwgrod-Bon-Galex-Switch-Pcord-BB-Cwrye-Indian-Fmgrass-Fsedge | P108: =IF(D108="","",VLOOKUP(D108,species_data!$A$4:$G$148,7)) -> MM | Q108: Croot-Ciron-Cup-MM | S108: =IF(D108="","",VLOOKUP(D108,species_data!$A$4:$F$148,4)) -> 1.763085399
A109: 327 | B109: (W)-10-Croot-Ciron-Cup-MM-Jpye-Bvervain-Shwgrod-Bon-Galex-Switch-Pcord-BB-Cwrye-Indian-Fmgrass-Fsedge | C109: 327-(W)-10-Croot-Ciron-Cup-MM-Jpye-Bvervain-Shwgrod-Bon-Galex-Switch-Pcord-BB-Cwrye-Indian-Fmgrass-Fsedge | D109: Joe-Pye Weed | E109: Eutrochium maculatum | F109: 1 | G109: 0.06 | H109: 2.2 | I109: Forb | J109: N | K109: N | M109: 10 | N109: W | O109: Croot-Ciron-Cup-MM-Jpye-Bvervain-Shwgrod-Bon-Galex-Switch-Pcord-BB-Cwrye-Indian-Fmgrass-Fsedge | P109: =IF(D109="","",VLOOKUP(D109,species_data!$A$4:$G$148,7)) -> Jpye | Q109: Croot-Ciron-Cup-MM-Jpye | S109: =IF(D109="","",VLOOKUP(D109,species_data!$A$4:$F$148,4)) -> 34.89439853
A110: 327 | B110: (W)-10-Croot-Ciron-Cup-MM-Jpye-Bvervain-Shwgrod-Bon-Galex-Switch-Pcord-BB-Cwrye-Indian-Fmgrass-Fsedge | C110: 327-(W)-10-Croot-Ciron-Cup-MM-Jpye-Bvervain-Shwgrod-Bon-Galex-Switch-Pcord-BB-Cwrye-Indian-Fmgrass-Fsedge | D110: Blue Vervain | E110: Verbena hastata | F110: 2 | G110: 0.13 | H110: 4.3 | I110: Forb | J110: N | K110: N | M110: 10 | N110: W | O110: Croot-Ciron-Cup-MM-Jpye-Bvervain-Shwgrod-Bon-Galex-Switch-Pcord-BB-Cwrye-Indian-Fmgrass-Fsedge | P110: =IF(D110="","",VLOOKUP(D110,species_data!$A$4:$G$148,7)) -> Bvervain | Q110: Croot-Ciron-Cup-MM-Jpye-Bvervain | S110: =IF(D110="","",VLOOKUP(D110,species_data!$A$4:$F$148,4)) -> 34.15977961
A111: 327 | B111: (W)-10-Croot-Ciron-Cup-MM-Jpye-Bvervain-Shwgrod-Bon-Galex-Switch-Pcord-BB-Cwrye-Indian-Fmgrass-Fsedge | C111: 327-(W)-10-Croot-Ciron-Cup-MM-Jpye-Bvervain-Shwgrod-Bon-Galex-Switch-Pcord-BB-Cwrye-Indian-Fmgrass-Fsedge | D111: Showy Tick Trefoil | E111: Desmodium canadense | F111: 3 | G111: 0.19 | H111: 0.3 | I111: Forb | J111: N | K111: N | M111: 10 | N111: W | O111: Croot-Ciron-Cup-MM-Jpye-Bvervain-Shwgrod-Bon-Galex-Switch-Pcord-BB-Cwrye-Indian-Fmgrass-Fsedge | P111: =IF(D111="","",VLOOKUP(D111,species_data!$A$4:$G$148,7)) -> Shwgrod | Q111: Croot-Ciron-Cup-MM-Jpye-Bvervain-Shwgrod | S111: =IF(D111="","",VLOOKUP(D111,species_data!$A$4:$F$148,4)) -> 34.896
A112: 327 | B112: (W)-10-Croot-Ciron-Cup-MM-Jpye-Bvervain-Shwgrod-Bon-Galex-Switch-Pcord-BB-Cwrye-Indian-Fmgrass-Fsedge | C112: 327-(W)-10-Croot-Ciron-Cup-MM-Jpye-Bvervain-Shwgrod-Bon-Galex-Switch-Pcord-BB-Cwrye-Indian-Fmgrass-Fsedge | D112: Boneset | E112: Eupatorium perfoliatum | F112: 0.5 | G112: 0.03 | H112: 1.8 | I112: Forb | J112: N | K112: N | M112: 10 | N112: W | O112: Croot-Ciron-Cup-MM-Jpye-Bvervain-Shwgrod-Bon-Galex-Switch-Pcord-BB-Cwrye-Indian-Fmgrass-Fsedge | P112: =IF(D112="","",VLOOKUP(D112,species_data!$A$4:$G$148,7)) -> Bon | Q112: Croot-Ciron-Cup-MM-Jpye-Bvervain-Shwgrod-Bon | S112: =IF(D112="","",VLOOKUP(D112,species_data!$A$4:$F$148,4)) -> 58.76951331
A113: 327 | B113: (W)-10-Croot-Ciron-Cup-MM-Jpye-Bvervain-Shwgrod-Bon-Galex-Switch-Pcord-BB-Cwrye-Indian-Fmgrass-Fsedge | C113: 327-(W)-10-Croot-Ciron-Cup-MM-Jpye-Bvervain-Shwgrod-Bon-Galex-Switch-Pcord-BB-Cwrye-Indian-Fmgrass-Fsedge | D113: Golden Alexanders | E113: Zizia aurea | F113: 2 | G113: 0.13 | H113: 0.5 | I113: Forb | J113: N | K113: N | M113: 10 | N113: W | O113: Croot-Ciron-Cup-MM-Jpye-Bvervain-Shwgrod-Bon-Galex-Switch-Pcord-BB-Cwrye-Indian-Fmgrass-Fsedge | P113: =IF(D113="","",VLOOKUP(D113,species_data!$A$4:$G$148,7)) -> Galex | Q113: Croot-Ciron-Cup-MM-Jpye-Bvervain-Shwgrod-Bon-Galex | S113: =IF(D113="","",VLOOKUP(D113,species_data!$A$4:$F$148,4)) -> 4.04
A114: 327 | B114: (W)-10-Croot-Ciron-Cup-MM-Jpye-Bvervain-Shwgrod-Bon-Galex-Switch-Pcord-BB-Cwrye-Indian-Fmgrass-Fsedge | C114: 327-(W)-10-Croot-Ciron-Cup-MM-Jpye-Bvervain-Shwgrod-Bon-Galex-Switch-Pcord-BB-Cwrye-Indian-Fmgrass-Fsedge | D114: Switchgrass | E114: Panicum virgatum | F114: 8 | G114: 0.5 | H114: 4.5 | I114: Grass | J114: N | K114: N | M114: 10 | N114: W | O114: Croot-Ciron-Cup-MM-Jpye-Bvervain-Shwgrod-Bon-Galex-Switch-Pcord-BB-Cwrye-Indian-Fmgrass-Fsedge | P114: =IF(D114="","",VLOOKUP(D114,species_data!$A$4:$G$148,7)) -> Switch | Q114: Croot-Ciron-Cup-MM-Jpye-Bvervain-Shwgrod-Bon-Galex-Switch | S114: =IF(D114="","",VLOOKUP(D114,species_data!$A$4:$F$148,4)) -> 8.93
A115: 327 | B115: (W)-10-Croot-Ciron-Cup-MM-Jpye-Bvervain-Shwgrod-Bon-Galex-Switch-Pcord-BB-Cwrye-Indian-Fmgrass-Fsedge | C115: 327-(W)-10-Croot-Ciron-Cup-MM-Jpye-Bvervain-Shwgrod-Bon-Galex-Switch-Pcord-BB-Cwrye-Indian-Fmgrass-Fsedge | D115: Prairie Cordgrass | E115: Spartina pectinata | F115: 4 | G115: 0.25 | H115: 0.6 | I115: Grass | J115: N | K115: N | M115: 10 | N115: W | O115: Croot-Ciron-Cup-MM-Jpye-Bvervain-Shwgrod-Bon-Galex-Switch-Pcord-BB-Cwrye-Indian-Fmgrass-Fsedge | P115: =IF(D115="","",VLOOKUP(D115,species_data!$A$4:$G$148,7)) -> Pcord | Q115: Croot-Ciron-Cup-MM-Jpye-Bvervain-Shwgrod-Bon-Galex-Switch-Pcord | S115: =IF(D115="","",VLOOKUP(D115,species_data!$A$4:$F$148,4)) -> 2.424242424
A116: 327 | B116: (W)-10-Croot-Ciron-Cup-MM-Jpye-Bvervain-Shwgrod-Bon-Galex-Switch-Pcord-BB-Cwrye-Indian-Fmgrass-Fsedge | C116: 327-(W)-10-Croot-Ciron-Cup-MM-Jpye-Bvervain-Shwgrod-Bon-Galex-Switch-Pcord-BB-Cwrye-Indian-Fmgrass-Fsedge | D116: Big Bluestem | E116: Andropogon gerardii | F116: 4 | G116: 0.25 | H116: 1 | I116: Grass | J116: N | K116: N | M116: 10 | N116: W | O116: Croot-Ciron-Cup-MM-Jpye-Bvervain-Shwgrod-Bon-Galex-Switch-Pcord-BB-Cwrye-Indian-Fmgrass-Fsedge | P116: =IF(D116="","",VLOOKUP(D116,species_data!$A$4:$G$148,7)) -> BB | Q116: Croot-Ciron-Cup-MM-Jpye-Bvervain-Shwgrod-Bon-Galex-Switch-Pcord-BB | S116: =IF(D116="","",VLOOKUP(D116,species_data!$A$4:$F$148,4)) -> 3.79
A117: 327 | B117: (W)-10-Croot-Ciron-Cup-MM-Jpye-Bvervain-Shwgrod-Bon-Galex-Switch-Pcord-BB-Cwrye-Indian-Fmgrass-Fsedge | C117: 327-(W)-10-Croot-Ciron-Cup-MM-Jpye-Bvervain-Shwgrod-Bon-Galex-Switch-Pcord-BB-Cwrye-Indian-Fmgrass-Fsedge | D117: Canada Wildrye | E117: Elymus canadensis | F117: 8 | G117: 0.5 | H117: 1 | I117: Grass | J117: N | K117: N | M117: 10 | N117: W | O117: Croot-Ciron-Cup-MM-Jpye-Bvervain-Shwgrod-Bon-Galex-Switch-Pcord-BB-Cwrye-Indian-Fmgrass-Fsedge | P117: =IF(D117="","",VLOOKUP(D117,species_data!$A$4:$G$148,7)) -> Cwrye | Q117: Croot-Ciron-Cup-MM-Jpye-Bvervain-Shwgrod-Bon-Galex-Switch-Pcord-BB-Cwrye | S117: =IF(D117="","",VLOOKUP(D117,species_data!$A$4:$F$148,4)) -> 1.910009183
A118: 327 | B118: (W)-10-Croot-Ciron-Cup-MM-Jpye-Bvervain-Shwgrod-Bon-Galex-Switch-Pcord-BB-Cwrye-Indian-Fmgrass-Fsedge | C118: 327-(W)-10-Croot-Ciron-Cup-MM-Jpye-Bvervain-Shwgrod-Bon-Galex-Switch-Pcord-BB-Cwrye-Indian-Fmgrass-Fsedge | D118: Indiangrass | E118: Sorghastrum nutans | F118: 4 | G118: 0.25 | H118: 1.1 | I118: Grass | J118: N | K118: N | M118: 10 | N118: W | O118: Croot-Ciron-Cup-MM-Jpye-Bvervain-Shwgrod-Bon-Galex-Switch-Pcord-BB-Cwrye-Indian-Fmgrass-Fsedge | P118: =IF(D118="","",VLOOKUP(D118,species_data!$A$4:$G$148,7)) -> Indian | Q118: Croot-Ciron-Cup-MM-Jpye-Bvervain-Shwgrod-Bon-Galex-Switch-Pcord-BB-Cwrye-Indian | S118: =IF(D118="","",VLOOKUP(D118,species_data!$A$4:$F$148,4)) -> 4.407713499
A119: 327 | B119: (W)-10-Croot-Ciron-Cup-MM-Jpye-Bvervain-Shwgrod-Bon-Galex-Switch-Pcord-BB-Cwrye-Indian-Fmgrass-Fsedge | C119: 327-(W)-10-Croot-Ciron-Cup-MM-Jpye-Bvervain-Shwgrod-Bon-Galex-Switch-Pcord-BB-Cwrye-Indian-Fmgrass-Fsedge | D119: Fowl Mannagrass | E119: Glyceria striata | F119: 4 | G119: 0.25 | H119: 14.7 | I119: Grass | J119: N | K119: N | M119: 10 | N119: W | O119: Croot-Ciron-Cup-MM-Jpye-Bvervain-Shwgrod-Bon-Galex-Switch-Pcord-BB-Cwrye-Indian-Fmgrass-Fsedge | P119: =IF(D119="","",VLOOKUP(D119,species_data!$A$4:$G$148,7)) -> Fmgrass | Q119: Croot-Ciron-Cup-MM-Jpye-Bvervain-Shwgrod-Bon-Galex-Switch-Pcord-BB-Cwrye-Indian-Fmgrass | S119: =IF(D119="","",VLOOKUP(D119,species_data!$A$4:$F$148,4)) -> 58.76951331
A120: 327 | B120: (W)-10-Croot-Ciron-Cup-MM-Jpye-Bvervain-Shwgrod-Bon-Galex-Switch-Pcord-BB-Cwrye-Indian-Fmgrass-Fsedge | C120: 327-(W)-10-Croot-Ciron-Cup-MM-Jpye-Bvervain-Shwgrod-Bon-Galex-Switch-Pcord-BB-Cwrye-Indian-Fmgrass-Fsedge | D120: Fox Sedge | E120: Carex vulpinoidea | F120: 4 | G120: 0.25 | H120: 9.2 | I120: Sedge | J120: N | K120: N | M120: 10 | N120: W | O120: Croot-Ciron-Cup-MM-Jpye-Bvervain-Shwgrod-Bon-Galex-Switch-Pcord-BB-Cwrye-Indian-Fmgrass-Fsedge | P120: =IF(D120="","",VLOOKUP(D120,species_data!$A$4:$G$148,7)) -> Fsedge | Q120: Croot-Ciron-Cup-MM-Jpye-Bvervain-Shwgrod-Bon-Galex-Switch-Pcord-BB-Cwrye-Indian-Fmgrass-Fsedge | S120: =IF(D120="","",VLOOKUP(D120,species_data!$A$4:$F$148,4)) -> 36.73094582
A121: 327 | B121: (DM)-11-Pcinque-Lplant-SilkAster-PPclover-Rblzstar-Wlup-Berg-Ycone-Sgrod-PPCone-Sgrama-LB-Indian-Pjune-Pdrop-Switch | C121: 327-(DM)-11-Pcinque-Lplant-SilkAster-PPclover-Rblzstar-Wlup-Berg-Ycone-Sgrod-PPCone-Sgrama-LB-Indian-Pjune-Pdrop-Switch | D121: Prairie Cinquefoil | E121: Potentilla arguta | F121: 0.5 | G121: 0.03 | H121: 2.2 | I121: Forb | J121: N | K121: N | M121: 11 | N121: DM | O121: Pcinque-Lplant-SilkAster-PPclover-Rblzstar-Wlup-Berg-Ycone-Sgrod-PPCone-Sgrama-LB-Indian-Pjune-Pdrop-Switch | P121: =IF(D121="","",VLOOKUP(D121,species_data!$A$4:$G$148,7)) -> Pcinque | Q121: Pcinque | S121: =IF(D121="","",VLOOKUP(D121,species_data!$A$4:$F$148,4)) -> 73.46189164
A122: 327 | B122: (DM)-11-Pcinque-Lplant-SilkAster-PPclover-Rblzstar-Wlup-Berg-Ycone-Sgrod-PPCone-Sgrama-LB-Indian-Pjune-Pdrop-Switch | C122: 327-(DM)-11-Pcinque-Lplant-SilkAster-PPclover-Rblzstar-Wlup-Berg-Ycone-Sgrod-PPCone-Sgrama-LB-Indian-Pjune-Pdrop-Switch | D122: Leadplant | E122: Amorpha canescens | F122: 1 | G122: 0.06 | H122: 0.4 | I122: Legume | J122: N | K122: N | M122: 11 | N122: DM | O122: Pcinque-Lplant-SilkAster-PPclover-Rblzstar-Wlup-Berg-Ycone-Sgrod-PPCone-Sgrama-LB-Indian-Pjune-Pdrop-Switch | P122: =IF(D122="","",VLOOKUP(D122,species_data!$A$4:$G$148,7)) -> Lplant | Q122: Pcinque-Lplant | S122: =IF(D122="","",VLOOKUP(D122,species_data!$A$4:$F$148,4)) -> 6.225895317
A123: 327 | B123: (DM)-11-Pcinque-Lplant-SilkAster-PPclover-Rblzstar-Wlup-Berg-Ycone-Sgrod-PPCone-Sgrama-LB-Indian-Pjune-Pdrop-Switch | C123: 327-(DM)-11-Pcinque-Lplant-SilkAster-PPclover-Rblzstar-Wlup-Berg-Ycone-Sgrod-PPCone-Sgrama-LB-Indian-Pjune-Pdrop-Switch | D123: Silky Aster | E123: Symphyotrichum sericeum | F123: 1 | G123: 0.06 | H123: 1.3 | I123: Forb | J123: N | K123: N | M123: 11 | N123: DM | O123: Pcinque-Lplant-SilkAster-PPclover-Rblzstar-Wlup-Berg-Ycone-Sgrod-PPCone-Sgrama-LB-Indian-Pjune-Pdrop-Switch | P123: =IF(D123="","",VLOOKUP(D123,species_data!$A$4:$G$148,7)) -> SilkAster | Q123: Pcinque-Lplant-SilkAster | S123: =IF(D123="","",VLOOKUP(D123,species_data!$A$4:$F$148,4)) -> 20.568
A124: 327 | B124: (DM)-11-Pcinque-Lplant-SilkAster-PPclover-Rblzstar-Wlup-Berg-Ycone-Sgrod-PPCone-Sgrama-LB-Indian-Pjune-Pdrop-Switch | C124: 327-(DM)-11-Pcinque-Lplant-SilkAster-PPclover-Rblzstar-Wlup-Berg-Ycone-Sgrod-PPCone-Sgrama-LB-Indian-Pjune-Pdrop-Switch | D124: Purple Prairie Clover | E124: Dalea purpurea | F124: 4 | G124: 0.25 | H124: 1.8 | I124: Legume | J124: N | K124: N | M124: 11 | N124: DM | O124: Pcinque-Lplant-SilkAster-PPclover-Rblzstar-Wlup-Berg-Ycone-Sgrod-PPCone-Sgrama-LB-Indian-Pjune-Pdrop-Switch | P124: =IF(D124="","",VLOOKUP(D124,species_data!$A$4:$G$148,7)) -> PPclover | Q124: Pcinque-Lplant-SilkAster-PPclover | S124: =IF(D124="","",VLOOKUP(D124,species_data!$A$4:$F$148,4)) -> 7.327823691
A125: 327 | B125: (DM)-11-Pcinque-Lplant-SilkAster-PPclover-Rblzstar-Wlup-Berg-Ycone-Sgrod-PPCone-Sgrama-LB-Indian-Pjune-Pdrop-Switch | C125: 327-(DM)-11-Pcinque-Lplant-SilkAster-PPclover-Rblzstar-Wlup-Berg-Ycone-Sgrod-PPCone-Sgrama-LB-Indian-Pjune-Pdrop-Switch | D125: Rough Blazing Star | E125: Liatris aspera | F125: 1 | G125: 0.06 | H125: 0.3 | I125: Forb | J125: N | K125: N | M125: 11 | N125: DM | O125: Pcinque-Lplant-SilkAster-PPclover-Rblzstar-Wlup-Berg-Ycone-Sgrod-PPCone-Sgrama-LB-Indian-Pjune-Pdrop-Switch | P125: =IF(D125="","",VLOOKUP(D125,species_data!$A$4:$G$148,7)) -> Rblzstar | Q125: Pcinque-Lplant-SilkAster-PPclover-Rblzstar | S125: =IF(D125="","",VLOOKUP(D125,species_data!$A$4:$F$148,4)) -> 4.947658402
A126: 327 | B126: (DM)-11-Pcinque-Lplant-SilkAster-PPclover-Rblzstar-Wlup-Berg-Ycone-Sgrod-PPCone-Sgrama-LB-Indian-Pjune-Pdrop-Switch | C126: 327-(DM)-11-Pcinque-Lplant-SilkAster-PPclover-Rblzstar-Wlup-Berg-Ycone-Sgrod-PPCone-Sgrama-LB-Indian-Pjune-Pdrop-Switch | D126: Wild Lupine | E126: Lupinus perennis | F126: 6 | G126: 0.38 | H126: 0.1 | I126: Legume | J126: N | K126: N | M126: 11 | N126: DM | O126: Pcinque-Lplant-SilkAster-PPclover-Rblzstar-Wlup-Berg-Ycone-Sgrod-PPCone-Sgrama-LB-Indian-Pjune-Pdrop-Switch | P126: =IF(D126="","",VLOOKUP(D126,species_data!$A$4:$G$148,7)) -> Wlup | Q126: Pcinque-Lplant-SilkAster-PPclover-Rblzstar-Wlup | S126: =IF(D126="","",VLOOKUP(D126,species_data!$A$4:$F$148,4)) -> 0.3636363636
A127: 327 | B127: (DM)-11-Pcinque-Lplant-SilkAster-PPclover-Rblzstar-Wlup-Berg-Ycone-Sgrod-PPCone-Sgrama-LB-Indian-Pjune-Pdrop-Switch | C127: 327-(DM)-11-Pcinque-Lplant-SilkAster-PPclover-Rblzstar-Wlup-Berg-Ycone-Sgrod-PPCone-Sgrama-LB-Indian-Pjune-Pdrop-Switch | D127: Bergamot | E127: Monarda fistulosa | F127: 0.5 | G127: 0.03 | H127: 0.9 | I127: Forb | J127: N | K127: N | M127: 11 | N127: DM | O127: Pcinque-Lplant-SilkAster-PPclover-Rblzstar-Wlup-Berg-Ycone-Sgrod-PPCone-Sgrama-LB-Indian-Pjune-Pdrop-Switch | P127: =IF(D127="","",VLOOKUP(D127,species_data!$A$4:$G$148,7)) -> Berg | Q127: Pcinque-Lplant-SilkAster-PPclover-Rblzstar-Wlup-Berg | S127: =IF(D127="","",VLOOKUP(D127,species_data!$A$4:$F$148,4)) -> 28.57667585
A128: 327 | B128: (DM)-11-Pcinque-Lplant-SilkAster-PPclover-Rblzstar-Wlup-Berg-Ycone-Sgrod-PPCone-Sgrama-LB-Indian-Pjune-Pdrop-Switch | C128: 327-(DM)-11-Pcinque-Lplant-SilkAster-PPclover-Rblzstar-Wlup-Berg-Ycone-Sgrod-PPCone-Sgrama-LB-Indian-Pjune-Pdrop-Switch | D128: Yellow Coneflower | E128: Ratibida pinnata | F128: 1 | G128: 0.06 | H128: 0.6 | I128: Forb | J128: N | K128: N | M128: 11 | N128: DM | O128: Pcinque-Lplant-SilkAster-PPclover-Rblzstar-Wlup-Berg-Ycone-Sgrod-PPCone-Sgrama-LB-Indian-Pjune-Pdrop-Switch | P128: =IF(D128="","",VLOOKUP(D128,species_data!$A$4:$G$148,7)) -> Ycone | Q128: Pcinque-Lplant-SilkAster-PPclover-Rblzstar-Wlup-Berg-Ycone | S128: =IF(D128="","",VLOOKUP(D128,species_data!$A$4:$F$148,4)) -> 9.888
A129: 327 | B129: (DM)-11-Pcinque-Lplant-SilkAster-PPclover-Rblzstar-Wlup-Berg-Ycone-Sgrod-PPCone-Sgrama-LB-Indian-Pjune-Pdrop-Switch | C129: 327-(DM)-11-Pcinque-Lplant-SilkAster-PPclover-Rblzstar-Wlup-Berg-Ycone-Sgrod-PPCone-Sgrama-LB-Indian-Pjune-Pdrop-Switch | D129: Stiff Goldenrod | E129: Oligoneuron rigidum | F129: 1 | G129: 0.06 | H129: 1.1 | I129: Forb | J129: N | K129: N | M129: 11 | N129: DM | O129: Pcinque-Lplant-SilkAster-PPclover-Rblzstar-Wlup-Berg-Ycone-Sgrod-PPCone-Sgrama-LB-Indian-Pjune-Pdrop-Switch | P129: =IF(D129="","",VLOOKUP(D129,species_data!$A$4:$G$148,7)) -> Sgrod | Q129: Pcinque-Lplant-SilkAster-PPclover-Rblzstar-Wlup-Berg-Ycone-Sgrod | S129: =IF(D129="","",VLOOKUP(D129,species_data!$A$4:$F$148,4)) -> 16.84113866
A130: 327 | B130: (DM)-11-Pcinque-Lplant-SilkAster-PPclover-Rblzstar-Wlup-Berg-Ycone-Sgrod-PPCone-Sgrama-LB-Indian-Pjune-Pdrop-Switch | C130: 327-(DM)-11-Pcinque-Lplant-SilkAster-PPclover-Rblzstar-Wlup-Berg-Ycone-Sgrod-PPCone-Sgrama-LB-Indian-Pjune-Pdrop-Switch | D130: Pale Purple Coneflower | E130: Echinacea pallida | F130: 2 | G130: 0.13 | H130: 0.2 | I130: Forb | J130: N | K130: N | M130: 11 | N130: DM | O130: Pcinque-Lplant-SilkAster-PPclover-Rblzstar-Wlup-Berg-Ycone-Sgrod-PPCone-Sgrama-LB-Indian-Pjune-Pdrop-Switch | P130: =IF(D130="","",VLOOKUP(D130,species_data!$A$4:$G$148,7)) -> PPCone | Q130: Pcinque-Lplant-SilkAster-PPclover-Rblzstar-Wlup-Berg-Ycone-Sgrod-PPCone | S130: =IF(D130="","",VLOOKUP(D130,species_data!$A$4:$F$148,4)) -> 1.68
A131: 327 | B131: (DM)-11-Pcinque-Lplant-SilkAster-PPclover-Rblzstar-Wlup-Berg-Ycone-Sgrod-PPCone-Sgrama-LB-Indian-Pjune-Pdrop-Switch | C131: 327-(DM)-11-Pcinque-Lplant-SilkAster-PPclover-Rblzstar-Wlup-Berg-Ycone-Sgrod-PPCone-Sgrama-LB-Indian-Pjune-Pdrop-Switch | D131: Sideoats Grama | E131: Bouteloua curtipendula | F131: 20 | G131: 1.25 | H131: 3.7 | I131: Grass | J131: N | K131: N | M131: 11 | N131: DM | O131: Pcinque-Lplant-SilkAster-PPclover-Rblzstar-Wlup-Berg-Ycone-Sgrod-PPCone-Sgrama-LB-Indian-Pjune-Pdrop-Switch | P131: =IF(D131="","",VLOOKUP(D131,species_data!$A$4:$G$148,7)) -> Sgrama | Q131: Pcinque-Lplant-SilkAster-PPclover-Rblzstar-Wlup-Berg-Ycone-Sgrod-PPCone-Sgrama | S131: =IF(D131="","",VLOOKUP(D131,species_data!$A$4:$F$148,4)) -> 2.92
A132: =IF(D132="","",327) -> 327 | B132: =IF(O132="","",CONCATENATE("(",N132,")-",M132,"-",O132)) -> (DM)-11-Pcinque-Lplant-SilkAster-PPclover-Rblzstar-Wlup-Berg-Ycone-Sgrod-PPCone-Sgrama-LB-Indian-Pjune-Pdrop-Switch | C132: =IF(D132="","",CONCATENATE(A132,"-",B132)) -> 327-(DM)-11-Pcinque-Lplant-SilkAster-PPclover-Rblzstar-Wlup-Berg-Ycone-Sgrod-PPCone-Sgrama-LB-Indian-Pjune-Pdrop-Switch | D132: Little Bluestem | E132: Schizachyrium scoparium | F132: 24 | G132: =IF(F132>0,ROUND(F132/16,2),"") -> 1.5 | H132: 8.3 | I132: Grass | J132: N | K132: N | M132: 11 | N132: DM | O132: Pcinque-Lplant-SilkAster-PPclover-Rblzstar-Wlup-Berg-Ycone-Sgrod-PPCone-Sgrama-LB-Indian-Pjune-Pdrop-Switch | P132: =IF(D132="","",VLOOKUP(D132,species_data!$A$4:$G$148,7)) -> LB | Q132: Pcinque-Lplant-SilkAster-PPclover-Rblzstar-Wlup-Berg-Ycone-Sgrod-PPCone-Sgrama-LB | S132: =IF(D132="","",VLOOKUP(D132,species_data!$A$4:$F$148,4)) -> 5.509641873
A133: 327 | B133: (DM)-11-Pcinque-Lplant-SilkAster-PPclover-Rblzstar-Wlup-Berg-Ycone-Sgrod-PPCone-Sgrama-LB-Indian-Pjune-Pdrop-Switch | C133: 327-(DM)-11-Pcinque-Lplant-SilkAster-PPclover-Rblzstar-Wlup-Berg-Ycone-Sgrod-PPCone-Sgrama-LB-Indian-Pjune-Pdrop-Switch | D133: Indiangrass | E133: Sorghastrum nutans | F133: 8 | G133: 0.5 | H133: 2.2 | I133: Grass | J133: N | K133: N | M133: 11 | N133: DM | O133: =IF(M133=M134,O134,Q133) -> Pcinque-Lplant-SilkAster-PPclover-Rblzstar-Wlup-Berg-Ycone-Sgrod-PPCone-Sgrama-LB-Indian-Pjune-Pdrop-Switch | P133: =IF(D133="","",VLOOKUP(D133,species_data!$A$4:$G$148,7)) -> Indian | Q133: =IF(D133="","",IF(M133=M132,CONCATENATE(Q132,"-",P133),P133)) -> Pcinque-Lplant-SilkAster-PPclover-Rblzstar-Wlup-Berg-Ycone-Sgrod-PPCone-Sgrama-LB-Indian | S133: =IF(D133="","",VLOOKUP(D133,species_data!$A$4:$F$148,4)) -> 4.407713499
A134: 327 | B134: (DM)-11-Pcinque-Lplant-SilkAster-PPclover-Rblzstar-Wlup-Berg-Ycone-Sgrod-PPCone-Sgrama-LB-Indian-Pjune-Pdrop-Switch | C134: 327-(DM)-11-Pcinque-Lplant-SilkAster-PPclover-Rblzstar-Wlup-Berg-Ycone-Sgrod-PPCone-Sgrama-LB-Indian-Pjune-Pdrop-Switch | D134: Prairie Junegrass | E134: Koeleria macrantha | F134: 1 | G134: 0.06 | H134: 3.3 | I134: Grass | J134: N | K134: N | M134: 11 | N134: DM | O134: Pcinque-Lplant-SilkAster-PPclover-Rblzstar-Wlup-Berg-Ycone-Sgrod-PPCone-Sgrama-LB-Indian-Pjune-Pdrop-Switch | P134: =IF(D134="","",VLOOKUP(D134,species_data!$A$4:$G$148,7)) -> Pjune | Q134: Pcinque-Lplant-SilkAster-PPclover-Rblzstar-Wlup-Berg-Ycone-Sgrod-PPCone-Sgrama-LB-Indian-Pjune | S134: =IF(D134="","",VLOOKUP(D134,species_data!$A$4:$F$148,4)) -> 52.99981635
A135: 327 | B135: (DM)-11-Pcinque-Lplant-SilkAster-PPclover-Rblzstar-Wlup-Berg-Ycone-Sgrod-PPCone-Sgrama-LB-Indian-Pjune-Pdrop-Switch | C135: 327-(DM)-11-Pcinque-Lplant-SilkAster-PPclover-Rblzstar-Wlup-Berg-Ycone-Sgrod-PPCone-Sgrama-LB-Indian-Pjune-Pdrop-Switch | D135: Prairie Dropseed | E135: Sporobolus heterolepis | F135: 2 | G135: 0.13 | H135: 0.7 | I135: Grass | J135: N | K135: N | M135: 11 | N135: DM | O135: Pcinque-Lplant-SilkAster-PPclover-Rblzstar-Wlup-Berg-Ycone-Sgrod-PPCone-Sgrama-LB-Indian-Pjune-Pdrop-Switch | P135: =IF(D135="","",VLOOKUP(D135,species_data!$A$4:$G$148,7)) -> Pdrop | Q135: Pcinque-Lplant-SilkAster-PPclover-Rblzstar-Wlup-Berg-Ycone-Sgrod-PPCone-Sgrama-LB-Indian-Pjune-Pdrop | S135: =IF(D135="","",VLOOKUP(D135,species_data!$A$4:$F$148,4)) -> 5.876951331
A136: 327 | B136: (DM)-11-Pcinque-Lplant-SilkAster-PPclover-Rblzstar-Wlup-Berg-Ycone-Sgrod-PPCone-Sgrama-LB-Indian-Pjune-Pdrop-Switch | C136: 327-(DM)-11-Pcinque-Lplant-SilkAster-PPclover-Rblzstar-Wlup-Berg-Ycone-Sgrod-PPCone-Sgrama-LB-Indian-Pjune-Pdrop-Switch | D136: Switchgrass | E136: Panicum virgatum | F136: 4 | G136: 0.25 | H136: 2.2 | I136: Grass | J136: N | K136: N | M136: 11 | N136: DM | O136: Pcinque-Lplant-SilkAster-PPclover-Rblzstar-Wlup-Berg-Ycone-Sgrod-PPCone-Sgrama-LB-Indian-Pjune-Pdrop-Switch | P136: =IF(D136="","",VLOOKUP(D136,species_data!$A$4:$G$148,7)) -> Switch | Q136: Pcinque-Lplant-SilkAster-PPclover-Rblzstar-Wlup-Berg-Ycone-Sgrod-PPCone-Sgrama-LB-Indian-Pjune-Pdrop-Switch | S136: =IF(D136="","",VLOOKUP(D136,species_data!$A$4:$F$148,4)) -> 8.93
A137: 327 | B137: (DM)-12-LB-Sgrama-0-Swort-PPclover-Ycone-Pblzstar-Rtlsnkmaster-Shwgrod-Sgrod-SBAster-Pcinque | C137: 327-(DM)-12-LB-Sgrama-0-Swort-PPclover-Ycone-Pblzstar-Rtlsnkmaster-Shwgrod-Sgrod-SBAster-Pcinque | D137: Little Bluestem | E137: Schizachyrium scoparium | F137: 16 | G137: 1 | H137: 5.5 | I137: Grass | J137: N | K137: Y | M137: 12 | N137: DM | O137: LB-Sgrama-0-Swort-PPclover-Ycone-Pblzstar-Rtlsnkmaster-Shwgrod-Sgrod-SBAster-Pcinque | P137: =IF(D137="","",VLOOKUP(D137,species_data!$A$4:$G$148,7)) -> LB | Q137: LB | S137: =IF(D137="","",VLOOKUP(D137,species_data!$A$4:$F$148,4)) -> 5.509641873
A138: 327 | B138: (DM)-12-LB-Sgrama-0-Swort-PPclover-Ycone-Pblzstar-Rtlsnkmaster-Shwgrod-Sgrod-SBAster-Pcinque | C138: 327-(DM)-12-LB-Sgrama-0-Swort-PPclover-Ycone-Pblzstar-Rtlsnkmaster-Shwgrod-Sgrod-SBAster-Pcinque | D138: Sideoats Grama | E138: Bouteloua curtipendula | F138: 16 | G138: 1 | H138: 2.2 | I138: Grass | J138: N | K138: Y | M138: 12 | N138: DM | O138: LB-Sgrama-0-Swort-PPclover-Ycone-Pblzstar-Rtlsnkmaster-Shwgrod-Sgrod-SBAster-Pcinque | P138: =IF(D138="","",VLOOKUP(D138,species_data!$A$4:$G$148,7)) -> Sgrama | Q138: LB-Sgrama | S138: =IF(D138="","",VLOOKUP(D138,species_data!$A$4:$F$148,4)) -> 2.92
A139: 327 | B139: (DM)-12-LB-Sgrama-0-Swort-PPclover-Ycone-Pblzstar-Rtlsnkmaster-Shwgrod-Sgrod-SBAster-Pcinque | C139: 327-(DM)-12-LB-Sgrama-0-Swort-PPclover-Ycone-Pblzstar-Rtlsnkmaster-Shwgrod-Sgrod-SBAster-Pcinque | D139: Illinois Tick Trefoil | E139: Desmodium illinoense | F139: 5 | G139: 0.31 | H139: 0.5 | I139: Legume | J139: N | K139: Y | M139: 12 | N139: DM | O139: LB-Sgrama-0-Swort-PPclover-Ycone-Pblzstar-Rtlsnkmaster-Shwgrod-Sgrod-SBAster-Pcinque | P139: =IF(D139="","",VLOOKUP(D139,species_data!$A$4:$G$148,7)) -> 0 | Q139: LB-Sgrama-0 | S139: =IF(D139="","",VLOOKUP(D139,species_data!$A$4:$F$148,4)) -> 1.652892562
A140: 327 | B140: (DM)-12-LB-Sgrama-0-Swort-PPclover-Ycone-Pblzstar-Rtlsnkmaster-Shwgrod-Sgrod-SBAster-Pcinque | C140: 327-(DM)-12-LB-Sgrama-0-Swort-PPclover-Ycone-Pblzstar-Rtlsnkmaster-Shwgrod-Sgrod-SBAster-Pcinque | D140: Spiderwort | E140: Tradescantia ohiensis | F140: 5 | G140: 0.31 | H140: 0.9 | I140: Forb | J140: N | K140: Y | M140: 12 | N140: DM | O140: LB-Sgrama-0-Swort-PPclover-Ycone-Pblzstar-Rtlsnkmaster-Shwgrod-Sgrod-SBAster-Pcinque | P140: =IF(D140="","",VLOOKUP(D140,species_data!$A$4:$G$148,7)) -> Swort | Q140: LB-Sgrama-0-Swort | S140: =IF(D140="","",VLOOKUP(D140,species_data!$A$4:$F$148,4)) -> 2.931129477
A141: 327 | B141: (DM)-12-LB-Sgrama-0-Swort-PPclover-Ycone-Pblzstar-Rtlsnkmaster-Shwgrod-Sgrod-SBAster-Pcinque | C141: 327-(DM)-12-LB-Sgrama-0-Swort-PPclover-Ycone-Pblzstar-Rtlsnkmaster-Shwgrod-Sgrod-SBAster-Pcinque | D141: Purple Prairie Clover | E141: Dalea purpurea | F141: 6 | G141: 0.38 | H141: 2.7 | I141: Legume | J141: N | K141: Y | M141: 12 | N141: DM | O141: LB-Sgrama-0-Swort-PPclover-Ycone-Pblzstar-Rtlsnkmaster-Shwgrod-Sgrod-SBAster-Pcinque | P141: =IF(D141="","",VLOOKUP(D141,species_data!$A$4:$G$148,7)) -> PPclover | Q141: LB-Sgrama-0-Swort-PPclover | S141: =IF(D141="","",VLOOKUP(D141,species_data!$A$4:$F$148,4)) -> 7.327823691
A142: 327 | B142: (DM)-12-LB-Sgrama-0-Swort-PPclover-Ycone-Pblzstar-Rtlsnkmaster-Shwgrod-Sgrod-SBAster-Pcinque | C142: 327-(DM)-12-LB-Sgrama-0-Swort-PPclover-Ycone-Pblzstar-Rtlsnkmaster-Shwgrod-Sgrod-SBAster-Pcinque | D142: Yellow Coneflower | E142: Ratibida pinnata | F142: 1 | G142: 0.06 | H142: 0.6 | I142: Forb | J142: N | K142: Y | M142: 12 | N142: DM | O142: LB-Sgrama-0-Swort-PPclover-Ycone-Pblzstar-Rtlsnkmaster-Shwgrod-Sgrod-SBAster-Pcinque | P142: =IF(D142="","",VLOOKUP(D142,species_data!$A$4:$G$148,7)) -> Ycone | Q142: LB-Sgrama-0-Swort-PPclover-Ycone | S142: =IF(D142="","",VLOOKUP(D142,species_data!$A$4:$F$148,4)) -> 9.888
A143: 327 | B143: (DM)-12-LB-Sgrama-0-Swort-PPclover-Ycone-Pblzstar-Rtlsnkmaster-Shwgrod-Sgrod-SBAster-Pcinque | C143: 327-(DM)-12-LB-Sgrama-0-Swort-PPclover-Ycone-Pblzstar-Rtlsnkmaster-Shwgrod-Sgrod-SBAster-Pcinque | D143: Prairie Blazing Star | E143: Liatris pycnostachya | F143: 3 | G143: 0.19 | H143: 0.8 | I143: Forb | J143: N | K143: Y | M143: 12 | N143: DM | O143: LB-Sgrama-0-Swort-PPclover-Ycone-Pblzstar-Rtlsnkmaster-Shwgrod-Sgrod-SBAster-Pcinque | P143: =IF(D143="","",VLOOKUP(D143,species_data!$A$4:$G$148,7)) -> Pblzstar | Q143: LB-Sgrama-0-Swort-PPclover-Ycone-Pblzstar | S143: =IF(D143="","",VLOOKUP(D143,species_data!$A$4:$F$148,4)) -> 4.396694215
A144: 327 | B144: (DM)-12-LB-Sgrama-0-Swort-PPclover-Ycone-Pblzstar-Rtlsnkmaster-Shwgrod-Sgrod-SBAster-Pcinque | C144: 327-(DM)-12-LB-Sgrama-0-Swort-PPclover-Ycone-Pblzstar-Rtlsnkmaster-Shwgrod-Sgrod-SBAster-Pcinque | D144: Rattlesnake Master | E144: Eryngium yuccifolium | F144: 6 | G144: 0.38 | H144: 1.1 | I144: Forb | J144: N | K144: Y | M144: 12 | N144: DM | O144: LB-Sgrama-0-Swort-PPclover-Ycone-Pblzstar-Rtlsnkmaster-Shwgrod-Sgrod-SBAster-Pcinque | P144: =IF(D144="","",VLOOKUP(D144,species_data!$A$4:$G$148,7)) -> Rtlsnkmaster | Q144: LB-Sgrama-0-Swort-PPclover-Ycone-Pblzstar-Rtlsnkmaster | S144: =IF(D144="","",VLOOKUP(D144,species_data!$A$4:$F$148,4)) -> 2.931129477
A145: 327 | B145: (DM)-12-LB-Sgrama-0-Swort-PPclover-Ycone-Pblzstar-Rtlsnkmaster-Shwgrod-Sgrod-SBAster-Pcinque | C145: 327-(DM)-12-LB-Sgrama-0-Swort-PPclover-Ycone-Pblzstar-Rtlsnkmaster-Shwgrod-Sgrod-SBAster-Pcinque | D145: Showy Goldenrod | E145: Solidago speciosa | F145: 4 | G145: 0.25 | H145: 8.7 | I145: Forb | J145: N | K145: Y | M145: 12 | N145: DM | O145: LB-Sgrama-0-Swort-PPclover-Ycone-Pblzstar-Rtlsnkmaster-Shwgrod-Sgrod-SBAster-Pcinque | P145: =IF(D145="","",VLOOKUP(D145,species_data!$A$4:$G$148,7)) -> Shwgrod | Q145: LB-Sgrama-0-Swort-PPclover-Ycone-Pblzstar-Rtlsnkmaster-Shwgrod | S145: =IF(D145="","",VLOOKUP(D145,species_data!$A$4:$F$148,4)) -> 34.896
A146: 327 | B146: (DM)-12-LB-Sgrama-0-Swort-PPclover-Ycone-Pblzstar-Rtlsnkmaster-Shwgrod-Sgrod-SBAster-Pcinque | C146: 327-(DM)-12-LB-Sgrama-0-Swort-PPclover-Ycone-Pblzstar-Rtlsnkmaster-Shwgrod-Sgrod-SBAster-Pcinque | D146: Stiff Goldenrod | E146: Oligoneuron rigidum | F146: 3 | G146: 0.19 | H146: 3.2 | I146: Forb | J146: N | K146: Y | M146: 12 | N146: DM | O146: LB-Sgrama-0-Swort-PPclover-Ycone-Pblzstar-Rtlsnkmaster-Shwgrod-Sgrod-SBAster-Pcinque | P146: =IF(D146="","",VLOOKUP(D146,species_data!$A$4:$G$148,7)) -> Sgrod | Q146: LB-Sgrama-0-Swort-PPclover-Ycone-Pblzstar-Rtlsnkmaster-Shwgrod-Sgrod | S146: =IF(D146="","",VLOOKUP(D146,species_data!$A$4:$F$148,4)) -> 16.84113866
A147: 327 | B147: (DM)-12-LB-Sgrama-0-Swort-PPclover-Ycone-Pblzstar-Rtlsnkmaster-Shwgrod-Sgrod-SBAster-Pcinque | C147: 327-(DM)-12-LB-Sgrama-0-Swort-PPclover-Ycone-Pblzstar-Rtlsnkmaster-Shwgrod-Sgrod-SBAster-Pcinque | D147: Smooth Blue Aster | E147: Symphyotricum laeve | F147: 2 | G147: 0.13 | H147: 2.2 | I147: Forb | J147: N | K147: Y | M147: 12 | N147: DM | O147: LB-Sgrama-0-Swort-PPclover-Ycone-Pblzstar-Rtlsnkmaster-Shwgrod-Sgrod-SBAster-Pcinque | P147: =IF(D147="","",VLOOKUP(D147,species_data!$A$4:$G$148,7)) -> SBAster | Q147: LB-Sgrama-0-Swort-PPclover-Ycone-Pblzstar-Rtlsnkmaster-Shwgrod-Sgrod-SBAster | S147: =IF(D147="","",VLOOKUP(D147,species_data!$A$4:$F$148,4)) -> 17.56841139
A148: 327 | B148: (DM)-12-LB-Sgrama-0-Swort-PPclover-Ycone-Pblzstar-Rtlsnkmaster-Shwgrod-Sgrod-SBAster-Pcinque | C148: 327-(DM)-12-LB-Sgrama-0-Swort-PPclover-Ycone-Pblzstar-Rtlsnkmaster-Shwgrod-Sgrod-SBAster-Pcinque | D148: Prairie Cinquefoil | E148: Potentilla arguta | F148: 2 | G148: 0.13 | H148: 9.2 | I148: Forb | J148: N | K148: Y | M148: 12 | N148: DM | O148: LB-Sgrama-0-Swort-PPclover-Ycone-Pblzstar-Rtlsnkmaster-Shwgrod-Sgrod-SBAster-Pcinque | P148: =IF(D148="","",VLOOKUP(D148,species_data!$A$4:$G$148,7)) -> Pcinque | Q148: LB-Sgrama-0-Swort-PPclover-Ycone-Pblzstar-Rtlsnkmaster-Shwgrod-Sgrod-SBAster-Pcinque | S148: =IF(D148="","",VLOOKUP(D148,species_data!$A$4:$F$148,4)) -> 73.46189164
A149: 327 | B149: (M)-13-LB-Sgrama-Fbtongue-Swort-Galex-Ycone-PPclover-Pblzstar-Rtlsnkmaster-NEaster-Sgrod-SBAster | C149: 327-(M)-13-LB-Sgrama-Fbtongue-Swort-Galex-Ycone-PPclover-Pblzstar-Rtlsnkmaster-NEaster-Sgrod-SBAster | D149: Little Bluestem | E149: Schizachyrium scoparium | F149: 16 | G149: 1 | H149: 5.5 | I149: Grass | J149: N | K149: Y | M149: 13 | N149: M | O149: LB-Sgrama-Fbtongue-Swort-Galex-Ycone-PPclover-Pblzstar-Rtlsnkmaster-NEaster-Sgrod-SBAster | P149: =IF(D149="","",VLOOKUP(D149,species_data!$A$4:$G$148,7)) -> LB | Q149: LB | S149: =IF(D149="","",VLOOKUP(D149,species_data!$A$4:$F$148,4)) -> 5.509641873
A150: 327 | B150: (M)-13-LB-Sgrama-Fbtongue-Swort-Galex-Ycone-PPclover-Pblzstar-Rtlsnkmaster-NEaster-Sgrod-SBAster | C150: 327-(M)-13-LB-Sgrama-Fbtongue-Swort-Galex-Ycone-PPclover-Pblzstar-Rtlsnkmaster-NEaster-Sgrod-SBAster | D150: Sideoats Grama | E150: Bouteloua curtipendula | F150: 16 | G150: 1 | H150: 2.2 | I150: Grass | J150: N | K150: Y | M150: 13 | N150: M | O150: LB-Sgrama-Fbtongue-Swort-Galex-Ycone-PPclover-Pblzstar-Rtlsnkmaster-NEaster-Sgrod-SBAster | P150: =IF(D150="","",VLOOKUP(D150,species_data!$A$4:$G$148,7)) -> Sgrama | Q150: LB-Sgrama | S150: =IF(D150="","",VLOOKUP(D150,species_data!$A$4:$F$148,4)) -> 2.92
A151: 327 | B151: (M)-13-LB-Sgrama-Fbtongue-Swort-Galex-Ycone-PPclover-Pblzstar-Rtlsnkmaster-NEaster-Sgrod-SBAster | C151: 327-(M)-13-LB-Sgrama-Fbtongue-Swort-Galex-Ycone-PPclover-Pblzstar-Rtlsnkmaster-NEaster-Sgrod-SBAster | D151: Foxglove Beardtongue | E151: Penstemon digitalis | F151: 4 | G151: 0.25 | H151: 10.6 | I151: Forb | J151: N | K151: Y | M151: 13 | N151: M | O151: LB-Sgrama-Fbtongue-Swort-Galex-Ycone-PPclover-Pblzstar-Rtlsnkmaster-NEaster-Sgrod-SBAster | P151: =IF(D151="","",VLOOKUP(D151,species_data!$A$4:$G$148,7)) -> Fbtongue | Q151: LB-Sgrama-Fbtongue | S151: =IF(D151="","",VLOOKUP(D151,species_data!$A$4:$F$148,4)) -> 42.24
A152: 327 | B152: (M)-13-LB-Sgrama-Fbtongue-Swort-Galex-Ycone-PPclover-Pblzstar-Rtlsnkmaster-NEaster-Sgrod-SBAster | C152: 327-(M)-13-LB-Sgrama-Fbtongue-Swort-Galex-Ycone-PPclover-Pblzstar-Rtlsnkmaster-NEaster-Sgrod-SBAster | D152: Spiderwort | E152: Tradescantia ohiensis | F152: 6 | G152: 0.38 | H152: 1.1 | I152: Forb | J152: N | K152: Y | M152: 13 | N152: M | O152: LB-Sgrama-Fbtongue-Swort-Galex-Ycone-PPclover-Pblzstar-Rtlsnkmaster-NEaster-Sgrod-SBAster | P152: =IF(D152="","",VLOOKUP(D152,species_data!$A$4:$G$148,7)) -> Swort | Q152: LB-Sgrama-Fbtongue-Swort | S152: =IF(D152="","",VLOOKUP(D152,species_data!$A$4:$F$148,4)) -> 2.931129477
A153: 327 | B153: (M)-13-LB-Sgrama-Fbtongue-Swort-Galex-Ycone-PPclover-Pblzstar-Rtlsnkmaster-NEaster-Sgrod-SBAster | C153: 327-(M)-13-LB-Sgrama-Fbtongue-Swort-Galex-Ycone-PPclover-Pblzstar-Rtlsnkmaster-NEaster-Sgrod-SBAster | D153: Golden Alexanders | E153: Zizia aurea | F153: 6 | G153: 0.38 | H153: 1.5 | I153: Forb | J153: N | K153: Y | M153: 13 | N153: M | O153: LB-Sgrama-Fbtongue-Swort-Galex-Ycone-PPclover-Pblzstar-Rtlsnkmaster-NEaster-Sgrod-SBAster | P153: =IF(D153="","",VLOOKUP(D153,species_data!$A$4:$G$148,7)) -> Galex | Q153: LB-Sgrama-Fbtongue-Swort-Galex | S153: =IF(D153="","",VLOOKUP(D153,species_data!$A$4:$F$148,4)) -> 4.04
A154: 327 | B154: (M)-13-LB-Sgrama-Fbtongue-Swort-Galex-Ycone-PPclover-Pblzstar-Rtlsnkmaster-NEaster-Sgrod-SBAster | C154: 327-(M)-13-LB-Sgrama-Fbtongue-Swort-Galex-Ycone-PPclover-Pblzstar-Rtlsnkmaster-NEaster-Sgrod-SBAster | D154: Yellow Coneflower | E154: Ratibida pinnata | F154: 1 | G154: 0.06 | H154: 0.6 | I154: Forb | J154: N | K154: Y | M154: 13 | N154: M | O154: LB-Sgrama-Fbtongue-Swort-Galex-Ycone-PPclover-Pblzstar-Rtlsnkmaster-NEaster-Sgrod-SBAster | P154: =IF(D154="","",VLOOKUP(D154,species_data!$A$4:$G$148,7)) -> Ycone | Q154: LB-Sgrama-Fbtongue-Swort-Galex-Ycone | S154: =IF(D154="","",VLOOKUP(D154,species_data!$A$4:$F$148,4)) -> 9.888
A155: 327 | B155: (M)-13-LB-Sgrama-Fbtongue-Swort-Galex-Ycone-PPclover-Pblzstar-Rtlsnkmaster-NEaster-Sgrod-SBAster | C155: 327-(M)-13-LB-Sgrama-Fbtongue-Swort-Galex-Ycone-PPclover-Pblzstar-Rtlsnkmaster-NEaster-Sgrod-SBAster | D155: Purple Prairie Clover | E155: Dalea purpurea | F155: 6 | G155: 0.38 | H155: 2.7 | I155: Legume | J155: N | K155: Y | M155: 13 | N155: M | O155: LB-Sgrama-Fbtongue-Swort-Galex-Ycone-PPclover-Pblzstar-Rtlsnkmaster-NEaster-Sgrod-SBAster | P155: =IF(D155="","",VLOOKUP(D155,species_data!$A$4:$G$148,7)) -> PPclover | Q155: LB-Sgrama-Fbtongue-Swort-Galex-Ycone-PPclover | S155: =IF(D155="","",VLOOKUP(D155,species_data!$A$4:$F$148,4)) -> 7.327823691
A156: 327 | B156: (M)-13-LB-Sgrama-Fbtongue-Swort-Galex-Ycone-PPclover-Pblzstar-Rtlsnkmaster-NEaster-Sgrod-SBAster | C156: 327-(M)-13-LB-Sgrama-Fbtongue-Swort-Galex-Ycone-PPclover-Pblzstar-Rtlsnkmaster-NEaster-Sgrod-SBAster | D156: Prairie Blazing Star | E156: Liatris pycnostachya | F156: 4 | G156: 0.25 | H156: 1.1 | I156: Forb | J156: N | K156: Y | M156: 13 | N156: M | O156: LB-Sgrama-Fbtongue-Swort-Galex-Ycone-PPclover-Pblzstar-Rtlsnkmaster-NEaster-Sgrod-SBAster | P156: =IF(D156="","",VLOOKUP(D156,species_data!$A$4:$G$148,7)) -> Pblzstar | Q156: LB-Sgrama-Fbtongue-Swort-Galex-Ycone-PPclover-Pblzstar | S156: =IF(D156="","",VLOOKUP(D156,species_data!$A$4:$F$148,4)) -> 4.396694215
A157: 327 | B157: (M)-13-LB-Sgrama-Fbtongue-Swort-Galex-Ycone-PPclover-Pblzstar-Rtlsnkmaster-NEaster-Sgrod-SBAster | C157: 327-(M)-13-LB-Sgrama-Fbtongue-Swort-Galex-Ycone-PPclover-Pblzstar-Rtlsnkmaster-NEaster-Sgrod-SBAster | D157: Rattlesnake Master | E157: Eryngium yuccifolium | F157: 6 | G157: 0.38 | H157: 1.1 | I157: Forb | J157: N | K157: Y | M157: 13 | N157: M | O157: LB-Sgrama-Fbtongue-Swort-Galex-Ycone-PPclover-Pblzstar-Rtlsnkmaster-NEaster-Sgrod-SBAster | P157: =IF(D157="","",VLOOKUP(D157,species_data!$A$4:$G$148,7)) -> Rtlsnkmaster | Q157: LB-Sgrama-Fbtongue-Swort-Galex-Ycone-PPclover-Pblzstar-Rtlsnkmaster | S157: =IF(D157="","",VLOOKUP(D157,species_data!$A$4:$F$148,4)) -> 2.931129477
A158: 327 | B158: (M)-13-LB-Sgrama-Fbtongue-Swort-Galex-Ycone-PPclover-Pblzstar-Rtlsnkmaster-NEaster-Sgrod-SBAster | C158: 327-(M)-13-LB-Sgrama-Fbtongue-Swort-Galex-Ycone-PPclover-Pblzstar-Rtlsnkmaster-NEaster-Sgrod-SBAster | D158: New England Aster | E158: Symphyotrichum novae-angliae | F158: 3 | G158: 0.19 | H158: 4.8 | I158: Forb | J158: N | K158: Y | M158: 13 | N158: M | O158: LB-Sgrama-Fbtongue-Swort-Galex-Ycone-PPclover-Pblzstar-Rtlsnkmaster-NEaster-Sgrod-SBAster | P158: =IF(D158="","",VLOOKUP(D158,species_data!$A$4:$G$148,7)) -> NEaster | Q158: LB-Sgrama-Fbtongue-Swort-Galex-Ycone-PPclover-Pblzstar-Rtlsnkmaster-NEaster | S158: =IF(D158="","",VLOOKUP(D158,species_data!$A$4:$F$148,4)) -> 25.67493113
A159: 327 | B159: (M)-13-LB-Sgrama-Fbtongue-Swort-Galex-Ycone-PPclover-Pblzstar-Rtlsnkmaster-NEaster-Sgrod-SBAster | C159: 327-(M)-13-LB-Sgrama-Fbtongue-Swort-Galex-Ycone-PPclover-Pblzstar-Rtlsnkmaster-NEaster-Sgrod-SBAster | D159: Stiff Goldenrod | E159: Oligoneuron rigidum | F159: 3 | G159: 0.19 | H159: 3.2 | I159: Forb | J159: N | K159: Y | M159: 13 | N159: M | O159: LB-Sgrama-Fbtongue-Swort-Galex-Ycone-PPclover-Pblzstar-Rtlsnkmaster-NEaster-Sgrod-SBAster | P159: =IF(D159="","",VLOOKUP(D159,species_data!$A$4:$G$148,7)) -> Sgrod | Q159: LB-Sgrama-Fbtongue-Swort-Galex-Ycone-PPclover-Pblzstar-Rtlsnkmaster-NEaster-Sgrod | S159: =IF(D159="","",VLOOKUP(D159,species_data!$A$4:$F$148,4)) -> 16.84113866
A160: 327 | B160: (M)-13-LB-Sgrama-Fbtongue-Swort-Galex-Ycone-PPclover-Pblzstar-Rtlsnkmaster-NEaster-Sgrod-SBAster | C160: 327-(M)-13-LB-Sgrama-Fbtongue-Swort-Galex-Ycone-PPclover-Pblzstar-Rtlsnkmaster-NEaster-Sgrod-SBAster | D160: Smooth Blue Aster | E160: Symphyotrichum laeve | F160: 3 | G160: 0.19 | H160: 3.3 | I160: Forb | J160: N | K160: Y | M160: 13 | N160: M | O160: LB-Sgrama-Fbtongue-Swort-Galex-Ycone-PPclover-Pblzstar-Rtlsnkmaster-NEaster-Sgrod-SBAster | P160: =IF(D160="","",VLOOKUP(D160,species_data!$A$4:$G$148,7)) -> SBAster | Q160: LB-Sgrama-Fbtongue-Swort-Galex-Ycone-PPclover-Pblzstar-Rtlsnkmaster-NEaster-Sgrod-SBAster | S160: =IF(D160="","",VLOOKUP(D160,species_data!$A$4:$F$148,4)) -> 17.56841139
A161: 327 | B161: (WM)-14-BB-Indian-Fbtongue-Swort-Galex-Ycone-Pblzstar-Rtlsnkmaster-NEaster-Bvervain-Ciron-Cup | C161: 327-(WM)-14-BB-Indian-Fbtongue-Swort-Galex-Ycone-Pblzstar-Rtlsnkmaster-NEaster-Bvervain-Ciron-Cup | D161: Big Bluestem | E161: Andropogon gerardii | F161: 16 | G161: 1 | H161: 3.8 | I161: Grass | J161: N | K161: Y | M161: 14 | N161: WM | O161: BB-Indian-Fbtongue-Swort-Galex-Ycone-Pblzstar-Rtlsnkmaster-NEaster-Bvervain-Ciron-Cup | P161: =IF(D161="","",VLOOKUP(D161,species_data!$A$4:$G$148,7)) -> BB | Q161: BB | S161: =IF(D161="","",VLOOKUP(D161,species_data!$A$4:$F$148,4)) -> 3.79
A162: 327 | B162: (WM)-14-BB-Indian-Fbtongue-Swort-Galex-Ycone-Pblzstar-Rtlsnkmaster-NEaster-Bvervain-Ciron-Cup | C162: 327-(WM)-14-BB-Indian-Fbtongue-Swort-Galex-Ycone-Pblzstar-Rtlsnkmaster-NEaster-Bvervain-Ciron-Cup | D162: Indiangrass | E162: Sorghastrum nutans | F162: 16 | G162: 1 | H162: 4.4 | I162: Grass | J162: N | K162: Y | M162: 14 | N162: WM | O162: BB-Indian-Fbtongue-Swort-Galex-Ycone-Pblzstar-Rtlsnkmaster-NEaster-Bvervain-Ciron-Cup | P162: =IF(D162="","",VLOOKUP(D162,species_data!$A$4:$G$148,7)) -> Indian | Q162: BB-Indian | S162: =IF(D162="","",VLOOKUP(D162,species_data!$A$4:$F$148,4)) -> 4.407713499
A163: 327 | B163: (WM)-14-BB-Indian-Fbtongue-Swort-Galex-Ycone-Pblzstar-Rtlsnkmaster-NEaster-Bvervain-Ciron-Cup | C163: 327-(WM)-14-BB-Indian-Fbtongue-Swort-Galex-Ycone-Pblzstar-Rtlsnkmaster-NEaster-Bvervain-Ciron-Cup | D163: Foxglove Beardtongue | E163: Penstemon digitalis | F163: 4 | G163: 0.25 | H163: 10.6 | I163: Forb | J163: N | K163: Y | M163: 14 | N163: WM | O163: BB-Indian-Fbtongue-Swort-Galex-Ycone-Pblzstar-Rtlsnkmaster-NEaster-Bvervain-Ciron-Cup | P163: =IF(D163="","",VLOOKUP(D163,species_data!$A$4:$G$148,7)) -> Fbtongue | Q163: BB-Indian-Fbtongue | S163: =IF(D163="","",VLOOKUP(D163,species_data!$A$4:$F$148,4)) -> 42.24
A164: 327 | B164: (WM)-14-BB-Indian-Fbtongue-Swort-Galex-Ycone-Pblzstar-Rtlsnkmaster-NEaster-Bvervain-Ciron-Cup | C164: 327-(WM)-14-BB-Indian-Fbtongue-Swort-Galex-Ycone-Pblzstar-Rtlsnkmaster-NEaster-Bvervain-Ciron-Cup | D164: Spiderwort | E164: Tradescantia ohiensis | F164: 6 | G164: 0.38 | H164: 1.1 | I164: Forb | J164: N | K164: Y | M164: 14 | N164: WM | O164: BB-Indian-Fbtongue-Swort-Galex-Ycone-Pblzstar-Rtlsnkmaster-NEaster-Bvervain-Ciron-Cup | P164: =IF(D164="","",VLOOKUP(D164,species_data!$A$4:$G$148,7)) -> Swort | Q164: BB-Indian-Fbtongue-Swort | S164: =IF(D164="","",VLOOKUP(D164,species_data!$A$4:$F$148,4)) -> 2.931129477
A165: 327 | B165: (WM)-14-BB-Indian-Fbtongue-Swort-Galex-Ycone-Pblzstar-Rtlsnkmaster-NEaster-Bvervain-Ciron-Cup | C165: 327-(WM)-14-BB-Indian-Fbtongue-Swort-Galex-Ycone-Pblzstar-Rtlsnkmaster-NEaster-Bvervain-Ciron-Cup | D165: Golden Alexanders | E165: Zizia aurea | F165: 5 | G165: 0.31 | H165: 1.3 | I165: Forb | J165: N | K165: Y | M165: 14 | N165: WM | O165: BB-Indian-Fbtongue-Swort-Galex-Ycone-Pblzstar-Rtlsnkmaster-NEaster-Bvervain-Ciron-Cup | P165: =IF(D165="","",VLOOKUP(D165,species_data!$A$4:$G$148,7)) -> Galex | Q165: BB-Indian-Fbtongue-Swort-Galex | S165: =IF(D165="","",VLOOKUP(D165,species_data!$A$4:$F$148,4)) -> 4.04
A166: 327 | B166: (WM)-14-BB-Indian-Fbtongue-Swort-Galex-Ycone-Pblzstar-Rtlsnkmaster-NEaster-Bvervain-Ciron-Cup | C166: 327-(WM)-14-BB-Indian-Fbtongue-Swort-Galex-Ycone-Pblzstar-Rtlsnkmaster-NEaster-Bvervain-Ciron-Cup | D166: Yellow Coneflower | E166: Ratibida pinnata | F166: 1 | G166: 0.06 | H166: 0.6 | I166: Forb | J166: N | K166: Y | M166: 14 | N166: WM | O166: BB-Indian-Fbtongue-Swort-Galex-Ycone-Pblzstar-Rtlsnkmaster-NEaster-Bvervain-Ciron-Cup | P166: =IF(D166="","",VLOOKUP(D166,species_data!$A$4:$G$148,7)) -> Ycone | Q166: BB-Indian-Fbtongue-Swort-Galex-Ycone | S166: =IF(D166="","",VLOOKUP(D166,species_data!$A$4:$F$148,4)) -> 9.888
A167: 327 | B167: (WM)-14-BB-Indian-Fbtongue-Swort-Galex-Ycone-Pblzstar-Rtlsnkmaster-NEaster-Bvervain-Ciron-Cup | C167: 327-(WM)-14-BB-Indian-Fbtongue-Swort-Galex-Ycone-Pblzstar-Rtlsnkmaster-NEaster-Bvervain-Ciron-Cup | D167: Prairie Blazing Star | E167: Liatris pycnostachya | F167: 3 | G167: 0.19 | H167: 0.8 | I167: Forb | J167: N | K167: Y | M167: 14 | N167: WM | O167: BB-Indian-Fbtongue-Swort-Galex-Ycone-Pblzstar-Rtlsnkmaster-NEaster-Bvervain-Ciron-Cup | P167: =IF(D167="","",VLOOKUP(D167,species_data!$A$4:$G$148,7)) -> Pblzstar | Q167: BB-Indian-Fbtongue-Swort-Galex-Ycone-Pblzstar | S167: =IF(D167="","",VLOOKUP(D167,species_data!$A$4:$F$148,4)) -> 4.396694215
A168: 327 | B168: (WM)-14-BB-Indian-Fbtongue-Swort-Galex-Ycone-Pblzstar-Rtlsnkmaster-NEaster-Bvervain-Ciron-Cup | C168: 327-(WM)-14-BB-Indian-Fbtongue-Swort-Galex-Ycone-Pblzstar-Rtlsnkmaster-NEaster-Bvervain-Ciron-Cup | D168: Rattlesnake Master | E168: Eryngium yuccifolium | F168: 6 | G168: 0.38 | H168: 1.1 | I168: Forb | J168: N | K168: Y | M168: 14 | N168: WM | O168: BB-Indian-Fbtongue-Swort-Galex-Ycone-Pblzstar-Rtlsnkmaster-NEaster-Bvervain-Ciron-Cup | P168: =IF(D168="","",VLOOKUP(D168,species_data!$A$4:$G$148,7)) -> Rtlsnkmaster | Q168: BB-Indian-Fbtongue-Swort-Galex-Ycone-Pblzstar-Rtlsnkmaster | S168: =IF(D168="","",VLOOKUP(D168,species_data!$A$4:$F$148,4)) -> 2.931129477
A169: 327 | B169: (WM)-14-BB-Indian-Fbtongue-Swort-Galex-Ycone-Pblzstar-Rtlsnkmaster-NEaster-Bvervain-Ciron-Cup | C169: 327-(WM)-14-BB-Indian-Fbtongue-Swort-Galex-Ycone-Pblzstar-Rtlsnkmaster-NEaster-Bvervain-Ciron-Cup | D169: New England Aster | E169: Symphyotrichum novae-angliae | F169: 3 | G169: 0.19 | H169: 4.8 | I169: Forb | J169: N | K169: Y | M169: 14 | N169: WM | O169: BB-Indian-Fbtongue-Swort-Galex-Ycone-Pblzstar-Rtlsnkmaster-NEaster-Bvervain-Ciron-Cup | P169: =IF(D169="","",VLOOKUP(D169,species_data!$A$4:$G$148,7)) -> NEaster | Q169: BB-Indian-Fbtongue-Swort-Galex-Ycone-Pblzstar-Rtlsnkmaster-NEaster | S169: =IF(D169="","",VLOOKUP(D169,species_data!$A$4:$F$148,4)) -> 25.67493113
A170: 327 | B170: (WM)-14-BB-Indian-Fbtongue-Swort-Galex-Ycone-Pblzstar-Rtlsnkmaster-NEaster-Bvervain-Ciron-Cup | C170: 327-(WM)-14-BB-Indian-Fbtongue-Swort-Galex-Ycone-Pblzstar-Rtlsnkmaster-NEaster-Bvervain-Ciron-Cup | D170: Blue Vervain | E170: Verbena hastata | F170: 4 | G170: 0.25 | H170: 8.5 | I170: Forb | J170: N | K170: Y | M170: 14 | N170: WM | O170: BB-Indian-Fbtongue-Swort-Galex-Ycone-Pblzstar-Rtlsnkmaster-NEaster-Bvervain-Ciron-Cup | P170: =IF(D170="","",VLOOKUP(D170,species_data!$A$4:$G$148,7)) -> Bvervain | Q170: BB-Indian-Fbtongue-Swort-Galex-Ycone-Pblzstar-Rtlsnkmaster-NEaster-Bvervain | S170: =IF(D170="","",VLOOKUP(D170,species_data!$A$4:$F$148,4)) -> 34.15977961
A171: 327 | B171: (WM)-14-BB-Indian-Fbtongue-Swort-Galex-Ycone-Pblzstar-Rtlsnkmaster-NEaster-Bvervain-Ciron-Cup | C171: 327-(WM)-14-BB-Indian-Fbtongue-Swort-Galex-Ycone-Pblzstar-Rtlsnkmaster-NEaster-Bvervain-Ciron-Cup | D171: Common Ironweed | E171: Vernonia fasciculata | F171: 3 | G171: 0.19 | H171: 1.4 | I171: Forb | J171: N | K171: Y | M171: 14 | N171: WM | O171: BB-Indian-Fbtongue-Swort-Galex-Ycone-Pblzstar-Rtlsnkmaster-NEaster-Bvervain-Ciron-Cup | P171: =IF(D171="","",VLOOKUP(D171,species_data!$A$4:$G$148,7)) -> Ciron | Q171: BB-Indian-Fbtongue-Swort-Galex-Ycone-Pblzstar-Rtlsnkmaster-NEaster-Bvervain-Ciron | S171: =IF(D171="","",VLOOKUP(D171,species_data!$A$4:$F$148,4)) -> 7.346189164
A172: 327 | B172: (WM)-14-BB-Indian-Fbtongue-Swort-Galex-Ycone-Pblzstar-Rtlsnkmaster-NEaster-Bvervain-Ciron-Cup | C172: 327-(WM)-14-BB-Indian-Fbtongue-Swort-Galex-Ycone-Pblzstar-Rtlsnkmaster-NEaster-Bvervain-Ciron-Cup | D172: Cupplant | E172: Silphium perfoliatum | F172: 3 | G172: 0.19 | H172: 0.1 | I172: Forb | J172: N | K172: Y | M172: 14 | N172: WM | O172: BB-Indian-Fbtongue-Swort-Galex-Ycone-Pblzstar-Rtlsnkmaster-NEaster-Bvervain-Ciron-Cup | P172: =IF(D172="","",VLOOKUP(D172,species_data!$A$4:$G$148,7)) -> Cup | Q172: BB-Indian-Fbtongue-Swort-Galex-Ycone-Pblzstar-Rtlsnkmaster-NEaster-Bvervain-Ciron-Cup | S172: =IF(D172="","",VLOOKUP(D172,species_data!$A$4:$F$148,4)) -> 0.5142332415
A173: 327 | B173: (D-W)-15A-Switch | C173: 327-(D-W)-15A-Switch | D173: Switchgrass | E173: Panicum virgatum | F173: 112 | G173: 7 | H173: 63 | I173: Grass | J173: N | K173: N | M173: 15A | N173: D-W | O173: Switch | P173: =IF(D173="","",VLOOKUP(D173,species_data!$A$4:$G$148,7)) -> Switch | Q173: Switch | S173: =IF(D173="","",VLOOKUP(D173,species_data!$A$4:$F$148,4)) -> 8.93
A174: 327 | B174: (D-W)-15B-BB | C174: 327-(D-W)-15B-BB | D174: Big Bluestem | E174: Andropogon gerardii | F174: 176 | G174: 11 | H174: 42 | I174: Grass | J174: N | K174: N | M174: 15B | N174: D-W | O174: BB | P174: =IF(D174="","",VLOOKUP(D174,species_data!$A$4:$G$148,7)) -> BB | Q174: BB | S174: =IF(D174="","",VLOOKUP(D174,species_data!$A$4:$F$148,4)) -> 3.79
A175: 327 | B175: (D-W)-15C-Indian | C175: 327-(D-W)-15C-Indian | D175: Indiangrass | E175: Sorghastrum nutans | F175: 160 | G175: 10 | H175: 44 | I175: Grass | J175: N | K175: N | M175: 15C | N175: D-W | O175: Indian | P175: =IF(D175="","",VLOOKUP(D175,species_data!$A$4:$G$148,7)) -> Indian | Q175: Indian | S175: =IF(D175="","",VLOOKUP(D175,species_data!$A$4:$F$148,4)) -> 4.407713499
A176: 327 | B176: (DM-M)-16A-SB-Tim-Alf | C176: 327-(DM-M)-16A-SB-Tim-Alf | D176: Smooth Bromegrass | E176: Bromus inermis | F176: 48 | G176: 3 | H176: 9 | I176: Grass | J176: I | K176: N | M176: 16A | N176: DM-M | O176: SB-Tim-Alf | P176: =IF(D176="","",VLOOKUP(D176,species_data!$A$4:$G$148,7)) -> SB | Q176: SB | S176: =IF(D176="","",VLOOKUP(D176,species_data!$A$4:$F$148,4)) -> 3.122130395
A177: 327 | B177: (DM-M)-16A-SB-Tim-Alf | C177: 327-(DM-M)-16A-SB-Tim-Alf | D177: Timothy | E177: Phleum pratense | F177: 40 | G177: 2.5 | H177: 71 | I177: Grass | J177: I | K177: N | M177: 16A | N177: DM-M | O177: SB-Tim-Alf | P177: =IF(D177="","",VLOOKUP(D177,species_data!$A$4:$G$148,7)) -> Tim | Q177: SB-Tim | S177: =IF(D177="","",VLOOKUP(D177,species_data!$A$4:$F$148,4)) -> 28.24
A178: 327 | B178: (DM-M)-16A-SB-Tim-Alf | C178: 327-(DM-M)-16A-SB-Tim-Alf | D178: Alfalfa | E178: Medicago sativa | F178: 96 | G178: 6 | H178: 30 | I178: Legume | J178: I | K178: N | M178: 16A | N178: DM-M | O178: SB-Tim-Alf | P178: =IF(D178="","",VLOOKUP(D178,species_data!$A$4:$G$148,7)) -> Alf | Q178: SB-Tim-Alf | S178: =IF(D178="","",VLOOKUP(D178,species_data!$A$4:$F$148,4)) -> 5.024
A179: 327 | B179: (M-W)-16B-Orc-Tim-RC | C179: 327-(M-W)-16B-Orc-Tim-RC | D179: Orchardgrass | E179: Dactylis glomerata L. | F179: 32 | G179: 2 | H179: 30 | I179: Grass | J179: I | K179: N | M179: 16B | N179: M-W | O179: Orc-Tim-RC | P179: =IF(D179="","",VLOOKUP(D179,species_data!$A$4:$G$148,7)) -> Orc | Q179: Orc | S179: =IF(D179="","",VLOOKUP(D179,species_data!$A$4:$F$148,4)) -> 14.99081726
A180: 327 | B180: (M-W)-16B-Orc-Tim-RC | C180: 327-(M-W)-16B-Orc-Tim-RC | D180: Timothy | E180: Phleum pratense | F180: 32 | G180: 2 | H180: 57 | I180: Grass | J180: I | K180: N | M180: 16B | N180: M-W | O180: Orc-Tim-RC | P180: =IF(D180="","",VLOOKUP(D180,species_data!$A$4:$G$148,7)) -> Tim | Q180: Orc-Tim | S180: =IF(D180="","",VLOOKUP(D180,species_data!$A$4:$F$148,4)) -> 28.24
A181: 327 | B181: (M-W)-16B-Orc-Tim-RC | C181: 327-(M-W)-16B-Orc-Tim-RC | D181: Red Clover | E181: Trifolium pratense | F181: 80 | G181: 5 | H181: 30 | I181: Legume | J181: I | K181: N | M181: 16B | N181: M-W | O181: Orc-Tim-RC | P181: =IF(D181="","",VLOOKUP(D181,species_data!$A$4:$G$148,7)) -> RC | Q181: Orc-Tim-RC | S181: =IF(D181="","",VLOOKUP(D181,species_data!$A$4:$F$148,4)) -> 6.312
A182: 327 | B182: (DM-M)-16C-Orc-Tim-Alf | C182: 327-(DM-M)-16C-Orc-Tim-Alf | D182: Orchardgrass | E182: Dactylis glomerata L. | F182: 32 | G182: 2 | H182: 30 | I182: Grass | J182: I | K182: N | M182: 16C | N182: DM-M | O182: Orc-Tim-Alf | P182: =IF(D182="","",VLOOKUP(D182,species_data!$A$4:$G$148,7)) -> Orc | Q182: Orc | S182: =IF(D182="","",VLOOKUP(D182,species_data!$A$4:$F$148,4)) -> 14.99081726
A183: 327 | B183: (DM-M)-16C-Orc-Tim-Alf | C183: 327-(DM-M)-16C-Orc-Tim-Alf | D183: Timothy | E183: Phleum pratense | F183: 32 | G183: 2 | H183: 57 | I183: Grass | J183: I | K183: N | M183: 16C | N183: DM-M | O183: Orc-Tim-Alf | P183: =IF(D183="","",VLOOKUP(D183,species_data!$A$4:$G$148,7)) -> Tim | Q183: Orc-Tim | S183: =IF(D183="","",VLOOKUP(D183,species_data!$A$4:$F$148,4)) -> 28.24
A184: 327 | B184: (DM-M)-16C-Orc-Tim-Alf | C184: 327-(DM-M)-16C-Orc-Tim-Alf | D184: Alfalfa | E184: Medicago sativa | F184: 96 | G184: 6 | H184: 30 | I184: Legume | J184: I | K184: N | M184: 16C | N184: DM-M | O184: Orc-Tim-Alf | P184: =IF(D184="","",VLOOKUP(D184,species_data!$A$4:$G$148,7)) -> Alf | Q184: Orc-Tim-Alf | S184: =IF(D184="","",VLOOKUP(D184,species_data!$A$4:$F$148,4)) -> 5.024
A185: 327 | B185: (M-WM)-16D-SB-Tim-RC | C185: 327-(M-WM)-16D-SB-Tim-RC | D185: Smooth Bromegrass | E185: Bromus inermis | F185: 48 | G185: 3 | H185: 9 | I185: Grass | J185: I | K185: N | M185: 16D | N185: M-WM | O185: SB-Tim-RC | P185: =IF(D185="","",VLOOKUP(D185,species_data!$A$4:$G$148,7)) -> SB | Q185: SB | S185: =IF(D185="","",VLOOKUP(D185,species_data!$A$4:$F$148,4)) -> 3.122130395
A186: 327 | B186: (M-WM)-16D-SB-Tim-RC | C186: 327-(M-WM)-16D-SB-Tim-RC | D186: Timothy | E186: Phleum pratense | F186: 40 | G186: 2.5 | H186: 71 | I186: Grass | J186: I | K186: N | M186: 16D | N186: M-WM | O186: SB-Tim-RC | P186: =IF(D186="","",VLOOKUP(D186,species_data!$A$4:$G$148,7)) -> Tim | Q186: SB-Tim | S186: =IF(D186="","",VLOOKUP(D186,species_data!$A$4:$F$148,4)) -> 28.24
A187: 327 | B187: (M-WM)-16D-SB-Tim-RC | C187: 327-(M-WM)-16D-SB-Tim-RC | D187: Red Clover | E187: Trifolium pratense | F187: 80 | G187: 5 | H187: 30 | I187: Legume | J187: I | K187: N | M187: 16D | N187: M-WM | O187: SB-Tim-RC | P187: =IF(D187="","",VLOOKUP(D187,species_data!$A$4:$G$148,7)) -> RC | Q187: SB-Tim-RC | S187: =IF(D187="","",VLOOKUP(D187,species_data!$A$4:$F$148,4)) -> 6.312
A188: 327 | B188: (M-WM)-16E-SB-Tim-Orc-RC-LadC | C188: 327-(M-WM)-16E-SB-Tim-Orc-RC-LadC | D188: Smooth Bromegrass | E188: Bromus inermis | F188: 32 | G188: 2 | H188: 6 | I188: Grass | J188: I | K188: N | M188: 16E | N188: M-WM | O188: SB-Tim-Orc-RC-LadC | P188: =IF(D188="","",VLOOKUP(D188,species_data!$A$4:$G$148,7)) -> SB | Q188: SB | S188: =IF(D188="","",VLOOKUP(D188,species_data!$A$4:$F$148,4)) -> 3.122130395
A189: 327 | B189: (M-WM)-16E-SB-Tim-Orc-RC-LadC | C189: 327-(M-WM)-16E-SB-Tim-Orc-RC-LadC | D189: Timothy | E189: Phleum pratense | F189: 32 | G189: 2 | H189: 57 | I189: Grass | J189: I | K189: N | M189: 16E | N189: M-WM | O189: SB-Tim-Orc-RC-LadC | P189: =IF(D189="","",VLOOKUP(D189,species_data!$A$4:$G$148,7)) -> Tim | Q189: SB-Tim | S189: =IF(D189="","",VLOOKUP(D189,species_data!$A$4:$F$148,4)) -> 28.24
A190: 327 | B190: (M-WM)-16E-SB-Tim-Orc-RC-LadC | C190: 327-(M-WM)-16E-SB-Tim-Orc-RC-LadC | D190: Orchardgrass | E190: Dactylis glomerata L. | F190: 16 | G190: 1 | H190: 15 | I190: Grass | J190: I | K190: N | M190: 16E | N190: M-WM | O190: SB-Tim-Orc-RC-LadC | P190: =IF(D190="","",VLOOKUP(D190,species_data!$A$4:$G$148,7)) -> Orc | Q190: SB-Tim-Orc | S190: =IF(D190="","",VLOOKUP(D190,species_data!$A$4:$F$148,4)) -> 14.99081726
A191: 327 | B191: (M-WM)-16E-SB-Tim-Orc-RC-LadC | C191: 327-(M-WM)-16E-SB-Tim-Orc-RC-LadC | D191: Red Clover | E191: Trifolium pratense | F191: 80 | G191: 5 | H191: 30 | I191: Legume | J191: I | K191: N | M191: 16E | N191: M-WM | O191: SB-Tim-Orc-RC-LadC | P191: =IF(D191="","",VLOOKUP(D191,species_data!$A$4:$G$148,7)) -> RC | Q191: SB-Tim-Orc-RC | S191: =IF(D191="","",VLOOKUP(D191,species_data!$A$4:$F$148,4)) -> 6.312
A192: 327 | B192: (M-WM)-16E-SB-Tim-Orc-RC-LadC | C192: 327-(M-WM)-16E-SB-Tim-Orc-RC-LadC | D192: White Ladino Clover | E192: Trifolium repens | F192: 8 | G192: 0.5 | H192: 10 | I192: Legume | J192: I | K192: N | M192: 16E | N192: M-WM | O192: SB-Tim-Orc-RC-LadC | P192: =IF(D192="","",VLOOKUP(D192,species_data!$A$4:$G$148,7)) -> LadC | Q192: SB-Tim-Orc-RC-LadC | S192: =IF(D192="","",VLOOKUP(D192,species_data!$A$4:$F$148,4)) -> 20.0096
A193: 327 | B193: (M-WM)-16F-Orc-Tim-RC-LadC | C193: 327-(M-WM)-16F-Orc-Tim-RC-LadC | D193: Orchardgrass | E193: Dactylis glomerata L. | F193: 32 | G193: 2 | H193: 30 | I193: Grass | J193: I | K193: N | M193: 16F | N193: M-WM | O193: Orc-Tim-RC-LadC | P193: =IF(D193="","",VLOOKUP(D193,species_data!$A$4:$G$148,7)) -> Orc | Q193: Orc | S193: =IF(D193="","",VLOOKUP(D193,species_data!$A$4:$F$148,4)) -> 14.99081726
A194: 327 | B194: (M-WM)-16F-Orc-Tim-RC-LadC | C194: 327-(M-WM)-16F-Orc-Tim-RC-LadC | D194: Timothy | E194: Phleum pratense | F194: 32 | G194: 2 | H194: 57 | I194: Grass | J194: I | K194: N | M194: 16F | N194: M-WM | O194: Orc-Tim-RC-LadC | P194: =IF(D194="","",VLOOKUP(D194,species_data!$A$4:$G$148,7)) -> Tim | Q194: Orc-Tim | S194: =IF(D194="","",VLOOKUP(D194,species_data!$A$4:$F$148,4)) -> 28.24
A195: 327 | B195: (M-WM)-16F-Orc-Tim-RC-LadC | C195: 327-(M-WM)-16F-Orc-Tim-RC-LadC | D195: Red Clover | E195: Trifolium pratense | F195: 80 | G195: 5 | H195: 30 | I195: Legume | J195: I | K195: N | M195: 16F | N195: M-WM | O195: Orc-Tim-RC-LadC | P195: =IF(D195="","",VLOOKUP(D195,species_data!$A$4:$G$148,7)) -> RC | Q195: Orc-Tim-RC | S195: =IF(D195="","",VLOOKUP(D195,species_data!$A$4:$F$148,4)) -> 6.312
A196: =IF(D196="","",327) -> 327 | B196: =IF(O196="","",CONCATENATE("(",N196,")-",M196,"-",O196)) -> (M-WM)-16F-Orc-Tim-RC-LadC | C196: =IF(D196="","",CONCATENATE(A196,"-",B196)) -> 327-(M-WM)-16F-Orc-Tim-RC-LadC | D196: White Ladino Clover | E196: Trifolium repens | F196: 8 | G196: =IF(F196>0,ROUND(F196/16,2),"") -> 0.5 | H196: 10 | I196: Legume | J196: I | K196: N | M196: 16F | N196: M-WM | O196: Orc-Tim-RC-LadC | P196: =IF(D196="","",VLOOKUP(D196,species_data!$A$4:$G$148,7)) -> LadC | Q196: Orc-Tim-RC-LadC | S196: =IF(D196="","",VLOOKUP(D196,species_data!$A$4:$F$148,4)) -> 20.0096
A197: 327 | B197: (DM-WM)-16G-Orc-Tim-Btrefoil | C197: 327-(DM-WM)-16G-Orc-Tim-Btrefoil | D197: Orchardgrass | E197: Dactylis glomerata L. | F197: 32 | G197: 2 | H197: 30 | I197: Grass | J197: I | K197: N | M197: 16G | N197: DM-WM | O197: =IF(M197=M198,O198,Q197) -> Orc-Tim-Btrefoil | P197: =IF(D197="","",VLOOKUP(D197,species_data!$A$4:$G$148,7)) -> Orc | Q197: =IF(D197="","",IF(M197=M196,CONCATENATE(Q196,"-",P197),P197)) -> Orc | S197: =IF(D197="","",VLOOKUP(D197,species_data!$A$4:$F$148,4)) -> 14.99081726
A198: 327 | B198: (DM-WM)-16G-Orc-Tim-Btrefoil | C198: 327-(DM-WM)-16G-Orc-Tim-Btrefoil | D198: Timothy | E198: Phleum pratense | F198: 32 | G198: 2 | H198: 57 | I198: Grass | J198: I | K198: N | M198: 16G | N198: DM-WM | O198: Orc-Tim-Btrefoil | P198: =IF(D198="","",VLOOKUP(D198,species_data!$A$4:$G$148,7)) -> Tim | Q198: Orc-Tim | S198: =IF(D198="","",VLOOKUP(D198,species_data!$A$4:$F$148,4)) -> 28.24
A199: =IF(D199="","",327) -> 327 | B199: =IF(O199="","",CONCATENATE("(",N199,")-",M199,"-",O199)) -> (DM-WM)-16G-Orc-Tim-Btrefoil | C199: =IF(D199="","",CONCATENATE(A199,"-",B199)) -> 327-(DM-WM)-16G-Orc-Tim-Btrefoil | D199: Birdsfoot Trefoil | E199: Lotus corniculatus | F199: 64 | G199: 4 | H199: 36 | I199: Legume | J199: I | K199: N | M199: 16G | N199: DM-WM | O199: Orc-Tim-Btrefoil | P199: =IF(D199="","",VLOOKUP(D199,species_data!$A$4:$G$148,7)) -> Btrefoil | Q199: Orc-Tim-Btrefoil | S199: =IF(D199="","",VLOOKUP(D199,species_data!$A$4:$F$148,4)) -> 8.608
A200: 327 | B200: (M-WM)-16H-Tfesc-Tim-RC-LadC | C200: 327-(M-WM)-16H-Tfesc-Tim-RC-LadC | D200: Tall Fescue | E200: Schedonorus arundinaceus | F200: 48 | G200: 3 | H200: 15 | I200: Grass | J200: I | K200: N | M200: 16H | N200: M-WM | O200: Tfesc-Tim-RC-LadC | P200: =IF(D200="","",VLOOKUP(D200,species_data!$A$4:$G$148,7)) -> Tfesc | Q200: Tfesc | S200: =IF(D200="","",VLOOKUP(D200,species_data!$A$4:$F$148,4)) -> 5.280073462
... 266 more rows

Sheet 342Mixes
A1: STANDARD 342 MIXES | F1: REVISION DATE: | G1: 2013-01-23
A2: criteria: | B2: =+SeedingPlan_STD!G5 -> 0
A3: STD | B3: Mix # | C3: std-mix | D3: Common Name | E3: Scientific Name | F3: PLS (oz./A) | G3: PLS (lbs./A) | H3: Seeds/Square Foot | I3: Type | J3: Intro / Native | K3: Poll. (Y/N) | M3: Mix No. | N3: MR | O3: Mix Components
B4: No 342 mixes meet this criterion | C4: LEAVE THIS ROW AS IS | J4: N | K4: Y
B5: No 342 mixes meet this criterion | C5: LEAVE THIS ROW AS IS | J5: N | K5: N
C6: LEAVE THIS ROW AS IS | J6: I | K6: Y
A7: =IF(D7="","",342) -> 342 | B7: =IF(O7="","",CONCATENATE("(",N7,")-",M7,"-",O7)) -> (DM-M)-1-SB-Crfesc-KB-Alf-RC | C7: =IF(D7="","",CONCATENATE(A7,"-",B7)) -> 342-(DM-M)-1-SB-Crfesc-KB-Alf-RC | D7: Smooth Bromegrass | E7: Bromus inermis | F7: =IF(D7="","",ROUND(G7*16,1)) -> 160 | G7: 10 | H7: 30 | I7: Grass | J7: I | K7: N | M7: 1 | N7: DM-M | O7: =IF(M7=M8,O8,Q7) -> SB-Crfesc-KB-Alf-RC | P7: =IF(D7="","",VLOOKUP(D7,species_data!$A$4:$G$148,7)) -> SB | Q7: =IF(D7="","",IF(M7=M6,CONCATENATE(Q6,"-",P7),P7)) -> SB | S7: =IF(D7="","",VLOOKUP(D7,species_data!$A$4:$F$148,4)) -> 3.122130395
A8: 342 | B8: (DM-M)-1-SB-Crfesc-KB-Alf-RC | C8: 342-(DM-M)-1-SB-Crfesc-KB-Alf-RC | D8: Creeping Red Fescue | E8: Festuca rubra | F8: 48 | G8: 3 | H8: 24 | I8: Grass | J8: I | K8: N | M8: 1 | N8: DM-M | O8: =IF(M8=M9,O9,Q8) -> SB-Crfesc-KB-Alf-RC | P8: =IF(D8="","",VLOOKUP(D8,species_data!$A$4:$G$148,7)) -> Crfesc | Q8: =IF(D8="","",IF(M8=M7,CONCATENATE(Q7,"-",P8),P8)) -> SB-Crfesc | S8: =IF(D8="","",VLOOKUP(D8,species_data!$A$4:$F$148,4)) -> 8.034894399
A9: 342 | B9: (DM-M)-1-SB-Crfesc-KB-Alf-RC | C9: 342-(DM-M)-1-SB-Crfesc-KB-Alf-RC | D9: Kentucky Bluegrass | E9: Poa pratensis | F9: 24 | G9: 1.5 | H9: 75 | I9: Grass | J9: I | K9: N | M9: 1 | N9: DM-M | O9: SB-Crfesc-KB-Alf-RC | P9: =IF(D9="","",VLOOKUP(D9,species_data!$A$4:$G$148,7)) -> KB | Q9: SB-Crfesc-KB | S9: =IF(D9="","",VLOOKUP(D9,species_data!$A$4:$F$148,4)) -> 50
A10: 342 | B10: (DM-M)-1-SB-Crfesc-KB-Alf-RC | C10: 342-(DM-M)-1-SB-Crfesc-KB-Alf-RC | D10: Alfalfa | E10: Medicago sativa | F10: 48 | G10: 3 | H10: 15 | I10: Legume | J10: I | K10: N | M10: 1 | N10: DM-M | O10: SB-Crfesc-KB-Alf-RC | P10: =IF(D10="","",VLOOKUP(D10,species_data!$A$4:$G$148,7)) -> Alf | Q10: SB-Crfesc-KB-Alf | S10: =IF(D10="","",VLOOKUP(D10,species_data!$A$4:$F$148,4)) -> 5.024
A11: 342 | B11: (DM-M)-1-SB-Crfesc-KB-Alf-RC | C11: 342-(DM-M)-1-SB-Crfesc-KB-Alf-RC | D11: Red Clover | E11: Trifolium pratense | F11: 48 | G11: 3 | H11: 18 | I11: Legume | J11: I | K11: N | M11: 1 | N11: DM-M | O11: SB-Crfesc-KB-Alf-RC | P11: =IF(D11="","",VLOOKUP(D11,species_data!$A$4:$G$148,7)) -> RC | Q11: SB-Crfesc-KB-Alf-RC | S11: =IF(D11="","",VLOOKUP(D11,species_data!$A$4:$F$148,4)) -> 6.312
A12: 342 | B12: (DM-M)-2-SB-Tim-Alf | C12: 342-(DM-M)-2-SB-Tim-Alf | D12: Smooth Bromegrass | E12: Bromus inermis | F12: 240 | G12: 15 | H12: 46 | I12: Grass | J12: I | K12: N | M12: 2 | N12: DM-M | O12: SB-Tim-Alf | P12: =IF(D12="","",VLOOKUP(D12,species_data!$A$4:$G$148,7)) -> SB | Q12: SB | S12: =IF(D12="","",VLOOKUP(D12,species_data!$A$4:$F$148,4)) -> 3.122130395
A13: 342 | B13: (DM-M)-2-SB-Tim-Alf | C13: 342-(DM-M)-2-SB-Tim-Alf | D13: Timothy | E13: Phleum pratense | F13: 48 | G13: 3 | H13: 84 | I13: Grass | J13: I | K13: N | M13: 2 | N13: DM-M | O13: SB-Tim-Alf | P13: =IF(D13="","",VLOOKUP(D13,species_data!$A$4:$G$148,7)) -> Tim | Q13: SB-Tim | S13: =IF(D13="","",VLOOKUP(D13,species_data!$A$4:$F$148,4)) -> 28.24
A14: 342 | B14: (DM-M)-2-SB-Tim-Alf | C14: 342-(DM-M)-2-SB-Tim-Alf | D14: Alfalfa | E14: Medicago sativa | F14: 112 | G14: 7 | H14: 35 | I14: Legume | J14: I | K14: N | M14: 2 | N14: DM-M | O14: SB-Tim-Alf | P14: =IF(D14="","",VLOOKUP(D14,species_data!$A$4:$G$148,7)) -> Alf | Q14: SB-Tim-Alf | S14: =IF(D14="","",VLOOKUP(D14,species_data!$A$4:$F$148,4)) -> 5.024
A15: 342 | B15: (DM-M)-3-SB-Prye-Tfesc-Tim-KB | C15: 342-(DM-M)-3-SB-Prye-Tfesc-Tim-KB | D15: Smooth Bromegrass | E15: Bromus inermis | F15: 160 | G15: 10 | H15: 30 | I15: Grass | J15: I | K15: N | M15: 3 | N15: DM-M | O15: SB-Prye-Tfesc-Tim-KB | P15: =IF(D15="","",VLOOKUP(D15,species_data!$A$4:$G$148,7)) -> SB | Q15: SB | S15: =IF(D15="","",VLOOKUP(D15,species_data!$A$4:$F$148,4)) -> 3.122130395
A16: 342 | B16: (DM-M)-3-SB-Prye-Tfesc-Tim-KB | C16: 342-(DM-M)-3-SB-Prye-Tfesc-Tim-KB | D16: Perennial Ryegrass | E16: Lolium perenne | F16: 80 | G16: 5 | H16: 25 | I16: Grass | J16: I | K16: N | M16: 3 | N16: DM-M | O16: SB-Prye-Tfesc-Tim-KB | P16: =IF(D16="","",VLOOKUP(D16,species_data!$A$4:$G$148,7)) -> Prye | Q16: SB-Prye | S16: =IF(D16="","",VLOOKUP(D16,species_data!$A$4:$F$148,4)) -> 5.211
A17: 342 | B17: (DM-M)-3-SB-Prye-Tfesc-Tim-KB | C17: 342-(DM-M)-3-SB-Prye-Tfesc-Tim-KB | D17: Tall Fescue | E17: Schedonorus arundinaceus | F17: 32 | G17: 2 | H17: 10 | I17: Grass | J17: I | K17: N | M17: 3 | N17: DM-M | O17: SB-Prye-Tfesc-Tim-KB | P17: =IF(D17="","",VLOOKUP(D17,species_data!$A$4:$G$148,7)) -> Tfesc | Q17: SB-Prye-Tfesc | S17: =IF(D17="","",VLOOKUP(D17,species_data!$A$4:$F$148,4)) -> 5.280073462
A18: 342 | B18: (DM-M)-3-SB-Prye-Tfesc-Tim-KB | C18: 342-(DM-M)-3-SB-Prye-Tfesc-Tim-KB | D18: Timothy | E18: Phleum pratense | F18: 32 | G18: 2 | H18: 57 | I18: Grass | J18: I | K18: N | M18: 3 | N18: DM-M | O18: SB-Prye-Tfesc-Tim-KB | P18: =IF(D18="","",VLOOKUP(D18,species_data!$A$4:$G$148,7)) -> Tim | Q18: SB-Prye-Tfesc-Tim | S18: =IF(D18="","",VLOOKUP(D18,species_data!$A$4:$F$148,4)) -> 28.24
A19: 342 | B19: (DM-M)-3-SB-Prye-Tfesc-Tim-KB | C19: 342-(DM-M)-3-SB-Prye-Tfesc-Tim-KB | D19: Kentucky Bluegrass | E19: Poa pratensis | F19: 16 | G19: 1 | H19: 50 | I19: Grass | J19: I | K19: N | M19: 3 | N19: DM-M | O19: SB-Prye-Tfesc-Tim-KB | P19: =IF(D19="","",VLOOKUP(D19,species_data!$A$4:$G$148,7)) -> KB | Q19: SB-Prye-Tfesc-Tim-KB | S19: =IF(D19="","",VLOOKUP(D19,species_data!$A$4:$F$148,4)) -> 50
A20: 342 | B20: (DM-M)-4-SB-Crfesc-Alf-RC | C20: 342-(DM-M)-4-SB-Crfesc-Alf-RC | D20: Smooth Bromegrass | E20: Bromus inermis | F20: 320 | G20: 20 | H20: 62 | I20: Grass | J20: I | K20: N | M20: 4 | N20: DM-M | O20: SB-Crfesc-Alf-RC | P20: =IF(D20="","",VLOOKUP(D20,species_data!$A$4:$G$148,7)) -> SB | Q20: SB | S20: =IF(D20="","",VLOOKUP(D20,species_data!$A$4:$F$148,4)) -> 3.122130395
A21: 342 | B21: (DM-M)-4-SB-Crfesc-Alf-RC | C21: 342-(DM-M)-4-SB-Crfesc-Alf-RC | D21: Creeping Red Fescue | E21: Festuca rubra | F21: 80 | G21: 5 | H21: 40 | I21: Grass | J21: I | K21: N | M21: 4 | N21: DM-M | O21: SB-Crfesc-Alf-RC | P21: =IF(D21="","",VLOOKUP(D21,species_data!$A$4:$G$148,7)) -> Crfesc | Q21: SB-Crfesc | S21: =IF(D21="","",VLOOKUP(D21,species_data!$A$4:$F$148,4)) -> 8.034894399
A22: 342 | B22: (DM-M)-4-SB-Crfesc-Alf-RC | C22: 342-(DM-M)-4-SB-Crfesc-Alf-RC | D22: Alfalfa | E22: Medicago sativa | F22: 128 | G22: 8 | H22: 40 | I22: Legume | J22: I | K22: N | M22: 4 | N22: DM-M | O22: SB-Crfesc-Alf-RC | P22: =IF(D22="","",VLOOKUP(D22,species_data!$A$4:$G$148,7)) -> Alf | Q22: SB-Crfesc-Alf | S22: =IF(D22="","",VLOOKUP(D22,species_data!$A$4:$F$148,4)) -> 5.024
A23: 342 | B23: (DM-M)-4-SB-Crfesc-Alf-RC | C23: 342-(DM-M)-4-SB-Crfesc-Alf-RC | D23: Red Clover | E23: Trifolium pratense | F23: 64 | G23: 4 | H23: 24 | I23: Legume | J23: I | K23: N | M23: 4 | N23: DM-M | O23: SB-Crfesc-Alf-RC | P23: =IF(D23="","",VLOOKUP(D23,species_data!$A$4:$G$148,7)) -> RC | Q23: SB-Crfesc-Alf-RC | S23: =IF(D23="","",VLOOKUP(D23,species_data!$A$4:$F$148,4)) -> 6.312
A24: 342 | B24: (DM-M)-5-SB-Alf | C24: 342-(DM-M)-5-SB-Alf | D24: Smooth Bromegrass | E24: Bromus inermis | F24: 480 | G24: 30 | H24: 93 | I24: Grass | J24: I | K24: N | M24: 5 | N24: DM-M | O24: SB-Alf | P24: =IF(D24="","",VLOOKUP(D24,species_data!$A$4:$G$148,7)) -> SB | Q24: SB | S24: =IF(D24="","",VLOOKUP(D24,species_data!$A$4:$F$148,4)) -> 3.122130395
A25: 342 | B25: (DM-M)-5-SB-Alf | C25: 342-(DM-M)-5-SB-Alf | D25: Alfalfa | E25: Medicago sativa | F25: 224 | G25: 14 | H25: 70 | I25: Legume | J25: I | K25: N | M25: 5 | N25: DM-M | O25: SB-Alf | P25: =IF(D25="","",VLOOKUP(D25,species_data!$A$4:$G$148,7)) -> Alf | Q25: SB-Alf | S25: =IF(D25="","",VLOOKUP(D25,species_data!$A$4:$F$148,4)) -> 5.024
A26: 342 | B26: (DM-WM)-6-SB-Prye-Tim-Crfesc-KB-RC | C26: 342-(DM-WM)-6-SB-Prye-Tim-Crfesc-KB-RC | D26: Smooth Bromegrass | E26: Bromus inermis | F26: 112 | G26: 7 | H26: 21 | I26: Grass | J26: I | K26: N | M26: 6 | N26: DM-WM | O26: SB-Prye-Tim-Crfesc-KB-RC | P26: =IF(D26="","",VLOOKUP(D26,species_data!$A$4:$G$148,7)) -> SB | Q26: SB | S26: =IF(D26="","",VLOOKUP(D26,species_data!$A$4:$F$148,4)) -> 3.122130395
A27: 342 | B27: (DM-WM)-6-SB-Prye-Tim-Crfesc-KB-RC | C27: 342-(DM-WM)-6-SB-Prye-Tim-Crfesc-KB-RC | D27: Perennial Ryegrass | E27: Lolium perenne | F27: 48 | G27: 3 | H27: 15 | I27: Grass | J27: I | K27: N | M27: 6 | N27: DM-WM | O27: SB-Prye-Tim-Crfesc-KB-RC | P27: =IF(D27="","",VLOOKUP(D27,species_data!$A$4:$G$148,7)) -> Prye | Q27: SB-Prye | S27: =IF(D27="","",VLOOKUP(D27,species_data!$A$4:$F$148,4)) -> 5.211
A28: 342 | B28: (DM-WM)-6-SB-Prye-Tim-Crfesc-KB-RC | C28: 342-(DM-WM)-6-SB-Prye-Tim-Crfesc-KB-RC | D28: Timothy | E28: Phleum pratense | F28: 32 | G28: 2 | H28: 57 | I28: Grass | J28: I | K28: N | M28: 6 | N28: DM-WM | O28: SB-Prye-Tim-Crfesc-KB-RC | P28: =IF(D28="","",VLOOKUP(D28,species_data!$A$4:$G$148,7)) -> Tim | Q28: SB-Prye-Tim | S28: =IF(D28="","",VLOOKUP(D28,species_data!$A$4:$F$148,4)) -> 28.24
A29: 342 | B29: (DM-WM)-6-SB-Prye-Tim-Crfesc-KB-RC | C29: 342-(DM-WM)-6-SB-Prye-Tim-Crfesc-KB-RC | D29: Creeping Red Fescue | E29: Festuca rubra | F29: 16 | G29: 1 | H29: 8 | I29: Grass | J29: I | K29: N | M29: 6 | N29: DM-WM | O29: SB-Prye-Tim-Crfesc-KB-RC | P29: =IF(D29="","",VLOOKUP(D29,species_data!$A$4:$G$148,7)) -> Crfesc | Q29: SB-Prye-Tim-Crfesc | S29: =IF(D29="","",VLOOKUP(D29,species_data!$A$4:$F$148,4)) -> 8.034894399
A30: 342 | B30: (DM-WM)-6-SB-Prye-Tim-Crfesc-KB-RC | C30: 342-(DM-WM)-6-SB-Prye-Tim-Crfesc-KB-RC | D30: Kentucky Bluegrass | E30: Poa pratensis | F30: 16 | G30: 1 | H30: 50 | I30: Grass | J30: I | K30: N | M30: 6 | N30: DM-WM | O30: SB-Prye-Tim-Crfesc-KB-RC | P30: =IF(D30="","",VLOOKUP(D30,species_data!$A$4:$G$148,7)) -> KB | Q30: SB-Prye-Tim-Crfesc-KB | S30: =IF(D30="","",VLOOKUP(D30,species_data!$A$4:$F$148,4)) -> 50
A31: 342 | B31: (DM-WM)-6-SB-Prye-Tim-Crfesc-KB-RC | C31: 342-(DM-WM)-6-SB-Prye-Tim-Crfesc-KB-RC | D31: Red Clover | E31: Trifolium pratense | F31: 48 | G31: 3 | H31: 18 | I31: Legume | J31: I | K31: N | M31: 6 | N31: DM-WM | O31: SB-Prye-Tim-Crfesc-KB-RC | P31: =IF(D31="","",VLOOKUP(D31,species_data!$A$4:$G$148,7)) -> RC | Q31: SB-Prye-Tim-Crfesc-KB-RC | S31: =IF(D31="","",VLOOKUP(D31,species_data!$A$4:$F$148,4)) -> 6.312
A32: 342 | B32: (M)-7-SB-KB-Crfesc-Btrefoil | C32: 342-(M)-7-SB-KB-Crfesc-Btrefoil | D32: Smooth Bromegrass | E32: Bromus inermis | F32: 112 | G32: 7 | H32: 21 | I32: Grass | J32: I | K32: N | M32: 7 | N32: M | O32: SB-KB-Crfesc-Btrefoil | P32: =IF(D32="","",VLOOKUP(D32,species_data!$A$4:$G$148,7)) -> SB | Q32: SB | S32: =IF(D32="","",VLOOKUP(D32,species_data!$A$4:$F$148,4)) -> 3.122130395
A33: 342 | B33: (M)-7-SB-KB-Crfesc-Btrefoil | C33: 342-(M)-7-SB-KB-Crfesc-Btrefoil | D33: Kentucky Bluegrass | E33: Poa pratensis | F33: 48 | G33: 3 | H33: 150 | I33: Grass | J33: I | K33: N | M33: 7 | N33: M | O33: SB-KB-Crfesc-Btrefoil | P33: =IF(D33="","",VLOOKUP(D33,species_data!$A$4:$G$148,7)) -> KB | Q33: SB-KB | S33: =IF(D33="","",VLOOKUP(D33,species_data!$A$4:$F$148,4)) -> 50
A34: 342 | B34: (M)-7-SB-KB-Crfesc-Btrefoil | C34: 342-(M)-7-SB-KB-Crfesc-Btrefoil | D34: Creeping Red Fescue | E34: Festuca rubra | F34: 32 | G34: 2 | H34: 16 | I34: Grass | J34: I | K34: N | M34: 7 | N34: M | O34: SB-KB-Crfesc-Btrefoil | P34: =IF(D34="","",VLOOKUP(D34,species_data!$A$4:$G$148,7)) -> Crfesc | Q34: SB-KB-Crfesc | S34: =IF(D34="","",VLOOKUP(D34,species_data!$A$4:$F$148,4)) -> 8.034894399
A35: 342 | B35: (M)-7-SB-KB-Crfesc-Btrefoil | C35: 342-(M)-7-SB-KB-Crfesc-Btrefoil | D35: Birdsfoot Trefoil | E35: Lotus corniculatus | F35: 32 | G35: 2 | H35: 18 | I35: Legume | J35: I | K35: N | M35: 7 | N35: M | O35: SB-KB-Crfesc-Btrefoil | P35: =IF(D35="","",VLOOKUP(D35,species_data!$A$4:$G$148,7)) -> Btrefoil | Q35: SB-KB-Crfesc-Btrefoil | S35: =IF(D35="","",VLOOKUP(D35,species_data!$A$4:$F$148,4)) -> 8.608
A36: 342 | B36: (M)-8-SB-Crfesc-KB | C36: 342-(M)-8-SB-Crfesc-KB | D36: Smooth Bromegrass | E36: Bromus inermis | F36: 240 | G36: 15 | H36: 45 | I36: Grass | J36: I | K36: N | M36: 8 | N36: M | O36: SB-Crfesc-KB | P36: =IF(D36="","",VLOOKUP(D36,species_data!$A$4:$G$148,7)) -> SB | Q36: SB | S36: =IF(D36="","",VLOOKUP(D36,species_data!$A$4:$F$148,4)) -> 3.122130395
A37: 342 | B37: (M)-8-SB-Crfesc-KB | C37: 342-(M)-8-SB-Crfesc-KB | D37: Creeping Red Fescue | E37: Festuca rubra | F37: 32 | G37: 2 | H37: 16 | I37: Grass | J37: I | K37: N | M37: 8 | N37: M | O37: SB-Crfesc-KB | P37: =IF(D37="","",VLOOKUP(D37,species_data!$A$4:$G$148,7)) -> Crfesc | Q37: SB-Crfesc | S37: =IF(D37="","",VLOOKUP(D37,species_data!$A$4:$F$148,4)) -> 8.034894399
A38: 342 | B38: (M)-8-SB-Crfesc-KB | C38: 342-(M)-8-SB-Crfesc-KB | D38: Kentucky Bluegrass | E38: Poa pratensis | F38: 32 | G38: 2 | H38: 100 | I38: Grass | J38: I | K38: N | M38: 8 | N38: M | O38: SB-Crfesc-KB | P38: =IF(D38="","",VLOOKUP(D38,species_data!$A$4:$G$148,7)) -> KB | Q38: SB-Crfesc-KB | S38: =IF(D38="","",VLOOKUP(D38,species_data!$A$4:$F$148,4)) -> 50
A39: 342 | B39: (M)-9-Prye-Crfesc-KB | C39: 342-(M)-9-Prye-Crfesc-KB | D39: Perennial Ryegrass | E39: Lolium perenne | F39: 160 | G39: 10 | H39: 50 | I39: Grass | J39: I | K39: N | M39: 9 | N39: M | O39: Prye-Crfesc-KB | P39: =IF(D39="","",VLOOKUP(D39,species_data!$A$4:$G$148,7)) -> Prye | Q39: Prye | S39: =IF(D39="","",VLOOKUP(D39,species_data!$A$4:$F$148,4)) -> 5.211
A40: 342 | B40: (M)-9-Prye-Crfesc-KB | C40: 342-(M)-9-Prye-Crfesc-KB | D40: Creeping Red Fescue | E40: Festuca rubra | F40: 64 | G40: 4 | H40: 32 | I40: Grass | J40: I | K40: N | M40: 9 | N40: M | O40: Prye-Crfesc-KB | P40: =IF(D40="","",VLOOKUP(D40,species_data!$A$4:$G$148,7)) -> Crfesc | Q40: Prye-Crfesc | S40: =IF(D40="","",VLOOKUP(D40,species_data!$A$4:$F$148,4)) -> 8.034894399
A41: 342 | B41: (M)-9-Prye-Crfesc-KB | C41: 342-(M)-9-Prye-Crfesc-KB | D41: Kentucky Bluegrass | E41: Poa pratensis | F41: 48 | G41: 3 | H41: 150 | I41: Grass | J41: I | K41: N | M41: 9 | N41: M | O41: Prye-Crfesc-KB | P41: =IF(D41="","",VLOOKUP(D41,species_data!$A$4:$G$148,7)) -> KB | Q41: Prye-Crfesc-KB | S41: =IF(D41="","",VLOOKUP(D41,species_data!$A$4:$F$148,4)) -> 50
A42: 342 | B42: (M)-10-SB-Prye-Tim-RC | C42: 342-(M)-10-SB-Prye-Tim-RC | D42: Smooth Bromegrass | E42: Bromus inermis | F42: 224 | G42: 14 | H42: 42 | I42: Grass | J42: I | K42: N | M42: 10 | N42: M | O42: SB-Prye-Tim-RC | P42: =IF(D42="","",VLOOKUP(D42,species_data!$A$4:$G$148,7)) -> SB | Q42: SB | S42: =IF(D42="","",VLOOKUP(D42,species_data!$A$4:$F$148,4)) -> 3.122130395
A43: 342 | B43: (M)-10-SB-Prye-Tim-RC | C43: 342-(M)-10-SB-Prye-Tim-RC | D43: Perennial Ryegrass | E43: Lolium perenne | F43: 64 | G43: 4 | H43: 20 | I43: Grass | J43: I | K43: N | M43: 10 | N43: M | O43: SB-Prye-Tim-RC | P43: =IF(D43="","",VLOOKUP(D43,species_data!$A$4:$G$148,7)) -> Prye | Q43: SB-Prye | S43: =IF(D43="","",VLOOKUP(D43,species_data!$A$4:$F$148,4)) -> 5.211
A44: 342 | B44: (M)-10-SB-Prye-Tim-RC | C44: 342-(M)-10-SB-Prye-Tim-RC | D44: Timothy | E44: Phleum pratense | F44: 48 | G44: 3 | H44: 84 | I44: Grass | J44: I | K44: N | M44: 10 | N44: M | O44: SB-Prye-Tim-RC | P44: =IF(D44="","",VLOOKUP(D44,species_data!$A$4:$G$148,7)) -> Tim | Q44: SB-Prye-Tim | S44: =IF(D44="","",VLOOKUP(D44,species_data!$A$4:$F$148,4)) -> 28.24
A45: 342 | B45: (M)-10-SB-Prye-Tim-RC | C45: 342-(M)-10-SB-Prye-Tim-RC | D45: Red Clover | E45: Trifolium pratense | F45: 48 | G45: 3 | H45: 18 | I45: Legume | J45: I | K45: N | M45: 10 | N45: M | O45: SB-Prye-Tim-RC | P45: =IF(D45="","",VLOOKUP(D45,species_data!$A$4:$G$148,7)) -> RC | Q45: SB-Prye-Tim-RC | S45: =IF(D45="","",VLOOKUP(D45,species_data!$A$4:$F$148,4)) -> 6.312
A46: 342 | B46: (M)-11-SB-Crfesc | C46: 342-(M)-11-SB-Crfesc | D46: Smooth Bromegrass | E46: Bromus inermis | F46: 512 | G46: 32 | H46: 96 | I46: Grass | J46: I | K46: N | M46: 11 | N46: M | O46: SB-Crfesc | P46: =IF(D46="","",VLOOKUP(D46,species_data!$A$4:$G$148,7)) -> SB | Q46: SB | S46: =IF(D46="","",VLOOKUP(D46,species_data!$A$4:$F$148,4)) -> 3.122130395
A47: 342 | B47: (M)-11-SB-Crfesc | C47: 342-(M)-11-SB-Crfesc | D47: Creeping Red Fescue | E47: Festuca rubra | F47: 128 | G47: 8 | H47: 64 | I47: Grass | J47: I | K47: N | M47: 11 | N47: M | O47: SB-Crfesc | P47: =IF(D47="","",VLOOKUP(D47,species_data!$A$4:$G$148,7)) -> Crfesc | Q47: SB-Crfesc | S47: =IF(D47="","",VLOOKUP(D47,species_data!$A$4:$F$148,4)) -> 8.034894399
A48: 342 | B48: (M)-12-KB-Crfesc | C48: 342-(M)-12-KB-Crfesc | D48: Kentucky Bluegrass | E48: Poa pratensis | F48: 64 | G48: 4 | H48: 200 | I48: Grass | J48: I | K48: N | M48: 12 | N48: M | O48: KB-Crfesc | P48: =IF(D48="","",VLOOKUP(D48,species_data!$A$4:$G$148,7)) -> KB | Q48: KB | S48: =IF(D48="","",VLOOKUP(D48,species_data!$A$4:$F$148,4)) -> 50
A49: 342 | B49: (M)-12-KB-Crfesc | C49: 342-(M)-12-KB-Crfesc | D49: Creeping Red Fescue | E49: Festuca rubra | F49: 48 | G49: 3 | H49: 24 | I49: Grass | J49: I | K49: N | M49: 12 | N49: M | O49: KB-Crfesc | P49: =IF(D49="","",VLOOKUP(D49,species_data!$A$4:$G$148,7)) -> Crfesc | Q49: KB-Crfesc | S49: =IF(D49="","",VLOOKUP(D49,species_data!$A$4:$F$148,4)) -> 8.034894399
A50: 342 | B50: (M)-13-SB-Tim-RC | C50: 342-(M)-13-SB-Tim-RC | D50: Smooth Bromegrass | E50: Bromus inermis | F50: 224 | G50: 14 | H50: 43 | I50: Grass | J50: I | K50: N | M50: 13 | N50: M | O50: SB-Tim-RC | P50: =IF(D50="","",VLOOKUP(D50,species_data!$A$4:$G$148,7)) -> SB | Q50: SB | S50: =IF(D50="","",VLOOKUP(D50,species_data!$A$4:$F$148,4)) -> 3.122130395
A51: 342 | B51: (M)-13-SB-Tim-RC | C51: 342-(M)-13-SB-Tim-RC | D51: Timothy | E51: Phleum pratense | F51: 64 | G51: 4 | H51: 112 | I51: Grass | J51: I | K51: N | M51: 13 | N51: M | O51: SB-Tim-RC | P51: =IF(D51="","",VLOOKUP(D51,species_data!$A$4:$G$148,7)) -> Tim | Q51: SB-Tim | S51: =IF(D51="","",VLOOKUP(D51,species_data!$A$4:$F$148,4)) -> 28.24
A52: 342 | B52: (M)-13-SB-Tim-RC | C52: 342-(M)-13-SB-Tim-RC | D52: Red Clover | E52: Trifolium pratense | F52: 48 | G52: 3 | H52: 18 | I52: Legume | J52: I | K52: N | M52: 13 | N52: M | O52: SB-Tim-RC | P52: =IF(D52="","",VLOOKUP(D52,species_data!$A$4:$G$148,7)) -> RC | Q52: SB-Tim-RC | S52: =IF(D52="","",VLOOKUP(D52,species_data!$A$4:$F$148,4)) -> 6.312
A53: 342 | B53: (M)-14-SB-Tim-Aclover | C53: 342-(M)-14-SB-Tim-Aclover | D53: Smooth Bromegrass | E53: Bromus inermis | F53: 240 | G53: 15 | H53: 43 | I53: Grass | J53: I | K53: N | M53: 14 | N53: M | O53: SB-Tim-Aclover | P53: =IF(D53="","",VLOOKUP(D53,species_data!$A$4:$G$148,7)) -> SB | Q53: SB | S53: =IF(D53="","",VLOOKUP(D53,species_data!$A$4:$F$148,4)) -> 3.122130395
A54: 342 | B54: (M)-14-SB-Tim-Aclover | C54: 342-(M)-14-SB-Tim-Aclover | D54: Timothy | E54: Phleum pratense | F54: 56 | G54: 3.5 | H54: 112 | I54: Grass | J54: I | K54: N | M54: 14 | N54: M | O54: SB-Tim-Aclover | P54: =IF(D54="","",VLOOKUP(D54,species_data!$A$4:$G$148,7)) -> Tim | Q54: SB-Tim | S54: =IF(D54="","",VLOOKUP(D54,species_data!$A$4:$F$148,4)) -> 28.24
A55: 342 | B55: (M)-14-SB-Tim-Aclover | C55: 342-(M)-14-SB-Tim-Aclover | D55: Alsike Clover | E55: Trifolium hybridum | F55: 32 | G55: 2 | H55: 32 | I55: Legume | J55: I | K55: N | M55: 14 | N55: M | O55: SB-Tim-Aclover | P55: =IF(D55="","",VLOOKUP(D55,species_data!$A$4:$G$148,7)) -> Aclover | Q55: SB-Tim-Aclover | S55: =IF(D55="","",VLOOKUP(D55,species_data!$A$4:$F$148,4)) -> 15.6
A56: 342 | B56: (M)-15-SB-Tim-Btrefoil | C56: 342-(M)-15-SB-Tim-Btrefoil | D56: Smooth Bromegrass | E56: Bromus inermis | F56: 240 | G56: 15 | H56: 43 | I56: Grass | J56: I | K56: N | M56: 15 | N56: M | O56: SB-Tim-Btrefoil | P56: =IF(D56="","",VLOOKUP(D56,species_data!$A$4:$G$148,7)) -> SB | Q56: SB | S56: =IF(D56="","",VLOOKUP(D56,species_data!$A$4:$F$148,4)) -> 3.122130395
A57: 342 | B57: (M)-15-SB-Tim-Btrefoil | C57: 342-(M)-15-SB-Tim-Btrefoil | D57: Timothy | E57: Phleum pratense | F57: 56 | G57: 3.5 | H57: 112 | I57: Grass | J57: I | K57: N | M57: 15 | N57: M | O57: SB-Tim-Btrefoil | P57: =IF(D57="","",VLOOKUP(D57,species_data!$A$4:$G$148,7)) -> Tim | Q57: SB-Tim | S57: =IF(D57="","",VLOOKUP(D57,species_data!$A$4:$F$148,4)) -> 28.24
A58: 342 | B58: (M)-15-SB-Tim-Btrefoil | C58: 342-(M)-15-SB-Tim-Btrefoil | D58: Birdsfoot Trefoil | E58: Lotus corniculatus | F58: 48 | G58: 3 | H58: 26 | I58: Legume | J58: I | K58: N | M58: 15 | N58: M | O58: SB-Tim-Btrefoil | P58: =IF(D58="","",VLOOKUP(D58,species_data!$A$4:$G$148,7)) -> Btrefoil | Q58: SB-Tim-Btrefoil | S58: =IF(D58="","",VLOOKUP(D58,species_data!$A$4:$F$148,4)) -> 8.608
A59: 342 | B59: (WM)-16-SB-Tfesc-Prye-Tim-KB-RC | C59: 342-(WM)-16-SB-Tfesc-Prye-Tim-KB-RC | D59: Smooth Bromegrass | E59: Bromus inermis | F59: 96 | G59: 6 | H59: 18 | I59: Grass | J59: I | K59: N | M59: 16 | N59: WM | O59: SB-Tfesc-Prye-Tim-KB-RC | P59: =IF(D59="","",VLOOKUP(D59,species_data!$A$4:$G$148,7)) -> SB | Q59: SB | S59: =IF(D59="","",VLOOKUP(D59,species_data!$A$4:$F$148,4)) -> 3.122130395
A60: 342 | B60: (WM)-16-SB-Tfesc-Prye-Tim-KB-RC | C60: 342-(WM)-16-SB-Tfesc-Prye-Tim-KB-RC | D60: Tall Fescue | E60: Schedonorus arundinaceus | F60: 80 | G60: 5 | H60: 25 | I60: Grass | J60: I | K60: N | M60: 16 | N60: WM | O60: SB-Tfesc-Prye-Tim-KB-RC | P60: =IF(D60="","",VLOOKUP(D60,species_data!$A$4:$G$148,7)) -> Tfesc | Q60: SB-Tfesc | S60: =IF(D60="","",VLOOKUP(D60,species_data!$A$4:$F$148,4)) -> 5.280073462
A61: 342 | B61: (WM)-16-SB-Tfesc-Prye-Tim-KB-RC | C61: 342-(WM)-16-SB-Tfesc-Prye-Tim-KB-RC | D61: Perennial Ryegrass | E61: Lolium perenne | F61: 48 | G61: 3 | H61: 15 | I61: Grass | J61: I | K61: N | M61: 16 | N61: WM | O61: SB-Tfesc-Prye-Tim-KB-RC | P61: =IF(D61="","",VLOOKUP(D61,species_data!$A$4:$G$148,7)) -> Prye | Q61: SB-Tfesc-Prye | S61: =IF(D61="","",VLOOKUP(D61,species_data!$A$4:$F$148,4)) -> 5.211
A62: 342 | B62: (WM)-16-SB-Tfesc-Prye-Tim-KB-RC | C62: 342-(WM)-16-SB-Tfesc-Prye-Tim-KB-RC | D62: Timothy | E62: Phleum pratense | F62: 48 | G62: 3 | H62: 84 | I62: Grass | J62: I | K62: N | M62: 16 | N62: WM | O62: SB-Tfesc-Prye-Tim-KB-RC | P62: =IF(D62="","",VLOOKUP(D62,species_data!$A$4:$G$148,7)) -> Tim | Q62: SB-Tfesc-Prye-Tim | S62: =IF(D62="","",VLOOKUP(D62,species_data!$A$4:$F$148,4)) -> 28.24
A63: 342 | B63: (WM)-16-SB-Tfesc-Prye-Tim-KB-RC | C63: 342-(WM)-16-SB-Tfesc-Prye-Tim-KB-RC | D63: Kentucky Bluegrass | E63: Poa pratensis | F63: 32 | G63: 2 | H63: 100 | I63: Grass | J63: I | K63: N | M63: 16 | N63: WM | O63: SB-Tfesc-Prye-Tim-KB-RC | P63: =IF(D63="","",VLOOKUP(D63,species_data!$A$4:$G$148,7)) -> KB | Q63: SB-Tfesc-Prye-Tim-KB | S63: =IF(D63="","",VLOOKUP(D63,species_data!$A$4:$F$148,4)) -> 50
A64: 342 | B64: (WM)-16-SB-Tfesc-Prye-Tim-KB-RC | C64: 342-(WM)-16-SB-Tfesc-Prye-Tim-KB-RC | D64: Red Clover | E64: Trifolium pratense | F64: 48 | G64: 3 | H64: 18 | I64: Legume | J64: I | K64: N | M64: 16 | N64: WM | O64: SB-Tfesc-Prye-Tim-KB-RC | P64: =IF(D64="","",VLOOKUP(D64,species_data!$A$4:$G$148,7)) -> RC | Q64: SB-Tfesc-Prye-Tim-KB-RC | S64: =IF(D64="","",VLOOKUP(D64,species_data!$A$4:$F$148,4)) -> 6.312
A65: 342 | B65: (WM)-17-Rtop-Tim-RC | C65: 342-(WM)-17-Rtop-Tim-RC | D65: Redtop | E65: Agrostis gigantea | F65: 16 | G65: 1 | H65: 114 | I65: Grass | J65: I | K65: N | M65: 17 | N65: WM | O65: Rtop-Tim-RC | P65: =IF(D65="","",VLOOKUP(D65,species_data!$A$4:$G$148,7)) -> Rtop | Q65: Rtop | S65: =IF(D65="","",VLOOKUP(D65,species_data!$A$4:$F$148,4)) -> 114.5546373
A66: 342 | B66: (WM)-17-Rtop-Tim-RC | C66: 342-(WM)-17-Rtop-Tim-RC | D66: Timothy | E66: Phleum pratense | F66: 48 | G66: 3 | H66: 84 | I66: Grass | J66: I | K66: N | M66: 17 | N66: WM | O66: Rtop-Tim-RC | P66: =IF(D66="","",VLOOKUP(D66,species_data!$A$4:$G$148,7)) -> Tim | Q66: Rtop-Tim | S66: =IF(D66="","",VLOOKUP(D66,species_data!$A$4:$F$148,4)) -> 28.24
A67: 342 | B67: (WM)-17-Rtop-Tim-RC | C67: 342-(WM)-17-Rtop-Tim-RC | D67: Red Clover | E67: Trifolium pratense | F67: 80 | G67: 5 | H67: 30 | I67: Legume | J67: I | K67: N | M67: 17 | N67: WM | O67: Rtop-Tim-RC | P67: =IF(D67="","",VLOOKUP(D67,species_data!$A$4:$G$148,7)) -> RC | Q67: Rtop-Tim-RC | S67: =IF(D67="","",VLOOKUP(D67,species_data!$A$4:$F$148,4)) -> 6.312
A68: 342 | B68: (WM)-18-SB-Tim-Prye-KB-RC | C68: 342-(WM)-18-SB-Tim-Prye-KB-RC | D68: Smooth Bromegrass | E68: Bromus inermis | F68: 96 | G68: 6 | H68: 18 | I68: Grass | J68: I | K68: N | M68: 18 | N68: WM | O68: SB-Tim-Prye-KB-RC | P68: =IF(D68="","",VLOOKUP(D68,species_data!$A$4:$G$148,7)) -> SB | Q68: SB | S68: =IF(D68="","",VLOOKUP(D68,species_data!$A$4:$F$148,4)) -> 3.122130395
A69: 342 | B69: (WM)-18-SB-Tim-Prye-KB-RC | C69: 342-(WM)-18-SB-Tim-Prye-KB-RC | D69: Timothy | E69: Phleum pratense | F69: 48 | G69: 3 | H69: 84 | I69: Grass | J69: I | K69: N | M69: 18 | N69: WM | O69: SB-Tim-Prye-KB-RC | P69: =IF(D69="","",VLOOKUP(D69,species_data!$A$4:$G$148,7)) -> Tim | Q69: SB-Tim | S69: =IF(D69="","",VLOOKUP(D69,species_data!$A$4:$F$148,4)) -> 28.24
A70: 342 | B70: (WM)-18-SB-Tim-Prye-KB-RC | C70: 342-(WM)-18-SB-Tim-Prye-KB-RC | D70: Perennial Ryegrass | E70: Lolium perenne | F70: 48 | G70: 3 | H70: 15 | I70: Grass | J70: I | K70: N | M70: 18 | N70: WM | O70: SB-Tim-Prye-KB-RC | P70: =IF(D70="","",VLOOKUP(D70,species_data!$A$4:$G$148,7)) -> Prye | Q70: SB-Tim-Prye | S70: =IF(D70="","",VLOOKUP(D70,species_data!$A$4:$F$148,4)) -> 5.211
A71: =IF(D71="","",342) -> 342 | B71: =IF(O71="","",CONCATENATE("(",N71,")-",M71,"-",O71)) -> (WM)-18-SB-Tim-Prye-KB-RC | C71: =IF(D71="","",CONCATENATE(A71,"-",B71)) -> 342-(WM)-18-SB-Tim-Prye-KB-RC | D71: Kentucky Bluegrass | E71: Poa pratensis | F71: =IF(D71="","",ROUND(G71*16,1)) -> 32 | G71: 2 | H71: 100 | I71: Grass | J71: I | K71: N | M71: 18 | N71: WM | O71: SB-Tim-Prye-KB-RC | P71: =IF(D71="","",VLOOKUP(D71,species_data!$A$4:$G$148,7)) -> KB | Q71: SB-Tim-Prye-KB | S71: =IF(D71="","",VLOOKUP(D71,species_data!$A$4:$F$148,4)) -> 50
A72: 342 | B72: (WM)-18-SB-Tim-Prye-KB-RC | C72: 342-(WM)-18-SB-Tim-Prye-KB-RC | D72: Red Clover | E72: Trifolium pratense | F72: 48 | G72: 3 | H72: 18 | I72: Legume | J72: I | K72: N | M72: 18 | N72: WM | O72: =IF(M72=M73,O73,Q72) -> SB-Tim-Prye-KB-RC | P72: =IF(D72="","",VLOOKUP(D72,species_data!$A$4:$G$148,7)) -> RC | Q72: =IF(D72="","",IF(M72=M71,CONCATENATE(Q71,"-",P72),P72)) -> SB-Tim-Prye-KB-RC | S72: =IF(D72="","",VLOOKUP(D72,species_data!$A$4:$F$148,4)) -> 6.312
A73: 342 | B73: (WM)-19-KB-Rtop-Tim-RC | C73: 342-(WM)-19-KB-Rtop-Tim-RC | D73: Kentucky Bluegrass | E73: Poa pratensis | F73: 32 | G73: 2 | H73: 100 | I73: Grass | J73: I | K73: N | M73: 19 | N73: WM | O73: KB-Rtop-Tim-RC | P73: =IF(D73="","",VLOOKUP(D73,species_data!$A$4:$G$148,7)) -> KB | Q73: KB | S73: =IF(D73="","",VLOOKUP(D73,species_data!$A$4:$F$148,4)) -> 50
A74: 342 | B74: (WM)-19-KB-Rtop-Tim-RC | C74: 342-(WM)-19-KB-Rtop-Tim-RC | D74: Redtop | E74: Agrostis gigantea | F74: 16 | G74: 1 | H74: 114 | I74: Grass | J74: I | K74: N | M74: 19 | N74: WM | O74: KB-Rtop-Tim-RC | P74: =IF(D74="","",VLOOKUP(D74,species_data!$A$4:$G$148,7)) -> Rtop | Q74: KB-Rtop | S74: =IF(D74="","",VLOOKUP(D74,species_data!$A$4:$F$148,4)) -> 114.5546373
A75: 342 | B75: (WM)-19-KB-Rtop-Tim-RC | C75: 342-(WM)-19-KB-Rtop-Tim-RC | D75: Timothy | E75: Phleum pratense | F75: 16 | G75: 1 | H75: 28 | I75: Grass | J75: I | K75: N | M75: 19 | N75: WM | O75: KB-Rtop-Tim-RC | P75: =IF(D75="","",VLOOKUP(D75,species_data!$A$4:$G$148,7)) -> Tim | Q75: KB-Rtop-Tim | S75: =IF(D75="","",VLOOKUP(D75,species_data!$A$4:$F$148,4)) -> 28.24
A76: 342 | B76: (WM)-19-KB-Rtop-Tim-RC | C76: 342-(WM)-19-KB-Rtop-Tim-RC | D76: Red Clover | E76: Trifolium pratense | F76: 64 | G76: 4 | H76: 24 | I76: Legume | J76: I | K76: N | M76: 19 | N76: WM | O76: KB-Rtop-Tim-RC | P76: =IF(D76="","",VLOOKUP(D76,species_data!$A$4:$G$148,7)) -> RC | Q76: KB-Rtop-Tim-RC | S76: =IF(D76="","",VLOOKUP(D76,species_data!$A$4:$F$148,4)) -> 6.312
A77: 342 | B77: (W )-20-KB-Rtop-Aclover | C77: 342-(W )-20-KB-Rtop-Aclover | D77: Kentucky Bluegrass | E77: Poa pratensis | F77: 32 | G77: 2 | H77: 100 | I77: Grass | J77: I | K77: N | M77: 20 | N77: W | O77: KB-Rtop-Aclover | P77: =IF(D77="","",VLOOKUP(D77,species_data!$A$4:$G$148,7)) -> KB | Q77: KB | S77: =IF(D77="","",VLOOKUP(D77,species_data!$A$4:$F$148,4)) -> 50
A78: 342 | B78: (W )-20-KB-Rtop-Aclover | C78: 342-(W )-20-KB-Rtop-Aclover | D78: Redtop | E78: Agrostis gigantea | F78: 32 | G78: 2 | H78: 228 | I78: Grass | J78: I | K78: N | M78: 20 | N78: W | O78: KB-Rtop-Aclover | P78: =IF(D78="","",VLOOKUP(D78,species_data!$A$4:$G$148,7)) -> Rtop | Q78: KB-Rtop | S78: =IF(D78="","",VLOOKUP(D78,species_data!$A$4:$F$148,4)) -> 114.5546373
A79: 342 | B79: (W )-20-KB-Rtop-Aclover | C79: 342-(W )-20-KB-Rtop-Aclover | D79: Alsike Clover | E79: Trifolium hybridum | F79: 32 | G79: 2 | H79: 32 | I79: Legume | J79: I | K79: N | M79: 20 | N79: W | O79: KB-Rtop-Aclover | P79: =IF(D79="","",VLOOKUP(D79,species_data!$A$4:$G$148,7)) -> Aclover | Q79: KB-Rtop-Aclover | S79: =IF(D79="","",VLOOKUP(D79,species_data!$A$4:$F$148,4)) -> 15.6
A80: 342 | B80: (W)-21-Rtop-Aclover | C80: 342-(W)-21-Rtop-Aclover | D80: Redtop | E80: Agrostis gigantea | F80: 48 | G80: 3 | H80: 342 | I80: Grass | J80: I | K80: N | M80: 21 | N80: W | O80: Rtop-Aclover | P80: =IF(D80="","",VLOOKUP(D80,species_data!$A$4:$G$148,7)) -> Rtop | Q80: Rtop | S80: =IF(D80="","",VLOOKUP(D80,species_data!$A$4:$F$148,4)) -> 114.5546373
A81: 342 | B81: (W)-21-Rtop-Aclover | C81: 342-(W)-21-Rtop-Aclover | D81: Alsike Clover | E81: Trifolium hybridum | F81: 48 | G81: 3 | H81: 48 | I81: Legume | J81: I | K81: N | M81: 21 | N81: W | O81: Rtop-Aclover | P81: =IF(D81="","",VLOOKUP(D81,species_data!$A$4:$G$148,7)) -> Aclover | Q81: Rtop-Aclover | S81: =IF(D81="","",VLOOKUP(D81,species_data!$A$4:$F$148,4)) -> 15.6
B82: ()--0 | O82: 0 | P82: =IF(D82="","",VLOOKUP(D82,species_data!$A$4:$G$148,7)) ->  | S82: =IF(D82="","",VLOOKUP(D82,species_data!$A$4:$F$148,4)) -> 
B83: ()--0 | O83: 0 | P83: =IF(D83="","",VLOOKUP(D83,species_data!$A$4:$G$148,7)) ->  | S83: =IF(D83="","",VLOOKUP(D83,species_data!$A$4:$F$148,4)) -> 
B84: ()--0 | O84: 0 | P84: =IF(D84="","",VLOOKUP(D84,species_data!$A$4:$G$148,7)) ->  | S84: =IF(D84="","",VLOOKUP(D84,species_data!$A$4:$F$148,4)) -> 
B85: ()--0 | O85: 0 | P85: =IF(D85="","",VLOOKUP(D85,species_data!$A$4:$G$148,7)) ->  | S85: =IF(D85="","",VLOOKUP(D85,species_data!$A$4:$F$148,4)) -> 
B86: ()--0 | O86: 0 | P86: =IF(D86="","",VLOOKUP(D86,species_data!$A$4:$G$148,7)) ->  | S86: =IF(D86="","",VLOOKUP(D86,species_data!$A$4:$F$148,4)) -> 
B87: ()--0 | O87: 0 | P87: =IF(D87="","",VLOOKUP(D87,species_data!$A$4:$G$148,7)) ->  | S87: =IF(D87="","",VLOOKUP(D87,species_data!$A$4:$F$148,4)) -> 
B88: ()--0 | O88: 0 | P88: =IF(D88="","",VLOOKUP(D88,species_data!$A$4:$G$148,7)) ->  | S88: =IF(D88="","",VLOOKUP(D88,species_data!$A$4:$F$148,4)) -> 
B89: ()--0 | O89: 0 | P89: =IF(D89="","",VLOOKUP(D89,species_data!$A$4:$G$148,7)) ->  | S89: =IF(D89="","",VLOOKUP(D89,species_data!$A$4:$F$148,4)) -> 
B90: ()--0 | O90: 0 | P90: =IF(D90="","",VLOOKUP(D90,species_data!$A$4:$G$148,7)) ->  | S90: =IF(D90="","",VLOOKUP(D90,species_data!$A$4:$F$148,4)) -> 
B91: ()--0 | O91: 0 | P91: =IF(D91="","",VLOOKUP(D91,species_data!$A$4:$G$148,7)) ->  | S91: =IF(D91="","",VLOOKUP(D91,species_data!$A$4:$F$148,4)) -> 
B92: ()--0 | O92: 0 | P92: =IF(D92="","",VLOOKUP(D92,species_data!$A$4:$G$148,7)) ->  | S92: =IF(D92="","",VLOOKUP(D92,species_data!$A$4:$F$148,4)) -> 
B93: ()--0 | O93: 0 | P93: =IF(D93="","",VLOOKUP(D93,species_data!$A$4:$G$148,7)) ->  | S93: =IF(D93="","",VLOOKUP(D93,species_data!$A$4:$F$148,4)) -> 
B94: ()--0 | O94: 0 | P94: =IF(D94="","",VLOOKUP(D94,species_data!$A$4:$G$148,7)) ->  | S94: =IF(D94="","",VLOOKUP(D94,species_data!$A$4:$F$148,4)) -> 
B95: ()--0 | O95: 0 | P95: =IF(D95="","",VLOOKUP(D95,species_data!$A$4:$G$148,7)) ->  | S95: =IF(D95="","",VLOOKUP(D95,species_data!$A$4:$F$148,4)) -> 
B96: ()--0 | O96: 0 | P96: =IF(D96="","",VLOOKUP(D96,species_data!$A$4:$G$148,7)) ->  | S96: =IF(D96="","",VLOOKUP(D96,species_data!$A$4:$F$148,4)) -> 
B97: ()--0 | O97: 0 | P97: =IF(D97="","",VLOOKUP(D97,species_data!$A$4:$G$148,7)) ->  | S97: =IF(D97="","",VLOOKUP(D97,species_data!$A$4:$F$148,4)) -> 
B98: ()--0 | O98: 0 | P98: =IF(D98="","",VLOOKUP(D98,species_data!$A$4:$G$148,7)) ->  | S98: =IF(D98="","",VLOOKUP(D98,species_data!$A$4:$F$148,4)) -> 
B99: ()--0 | O99: 0 | P99: =IF(D99="","",VLOOKUP(D99,species_data!$A$4:$G$148,7)) ->  | S99: =IF(D99="","",VLOOKUP(D99,species_data!$A$4:$F$148,4)) -> 
B100: ()--0 | O100: 0 | P100: =IF(D100="","",VLOOKUP(D100,species_data!$A$4:$G$148,7)) ->  | S100: =IF(D100="","",VLOOKUP(D100,species_data!$A$4:$F$148,4)) -> 
B101: ()--0 | O101: 0 | P101: =IF(D101="","",VLOOKUP(D101,species_data!$A$4:$G$148,7)) ->  | S101: =IF(D101="","",VLOOKUP(D101,species_data!$A$4:$F$148,4)) -> 
B102: ()--0 | O102: 0 | P102: =IF(D102="","",VLOOKUP(D102,species_data!$A$4:$G$148,7)) ->  | S102: =IF(D102="","",VLOOKUP(D102,species_data!$A$4:$F$148,4)) -> 
B103: ()--0 | O103: 0 | P103: =IF(D103="","",VLOOKUP(D103,species_data!$A$4:$G$148,7)) ->  | S103: =IF(D103="","",VLOOKUP(D103,species_data!$A$4:$F$148,4)) -> 
B104: ()--0 | O104: 0 | P104: =IF(D104="","",VLOOKUP(D104,species_data!$A$4:$G$148,7)) ->  | S104: =IF(D104="","",VLOOKUP(D104,species_data!$A$4:$F$148,4)) -> 
B105: ()--0 | O105: 0 | P105: =IF(D105="","",VLOOKUP(D105,species_data!$A$4:$G$148,7)) ->  | S105: =IF(D105="","",VLOOKUP(D105,species_data!$A$4:$F$148,4)) -> 
B106: ()--0 | O106: 0 | P106: =IF(D106="","",VLOOKUP(D106,species_data!$A$4:$G$148,7)) ->  | S106: =IF(D106="","",VLOOKUP(D106,species_data!$A$4:$F$148,4)) -> 
B107: ()--0 | O107: 0 | P107: =IF(D107="","",VLOOKUP(D107,species_data!$A$4:$G$148,7)) ->  | S107: =IF(D107="","",VLOOKUP(D107,species_data!$A$4:$F$148,4)) -> 
B108: ()--0 | O108: 0 | P108: =IF(D108="","",VLOOKUP(D108,species_data!$A$4:$G$148,7)) ->  | S108: =IF(D108="","",VLOOKUP(D108,species_data!$A$4:$F$148,4)) -> 
B109: ()--0 | O109: 0 | P109: =IF(D109="","",VLOOKUP(D109,species_data!$A$4:$G$148,7)) ->  | S109: =IF(D109="","",VLOOKUP(D109,species_data!$A$4:$F$148,4)) -> 
B110: ()--0 | O110: 0 | P110: =IF(D110="","",VLOOKUP(D110,species_data!$A$4:$G$148,7)) ->  | S110: =IF(D110="","",VLOOKUP(D110,species_data!$A$4:$F$148,4)) -> 
B111: ()--0 | O111: 0 | P111: =IF(D111="","",VLOOKUP(D111,species_data!$A$4:$G$148,7)) ->  | S111: =IF(D111="","",VLOOKUP(D111,species_data!$A$4:$F$148,4)) -> 
B112: ()--0 | O112: 0 | P112: =IF(D112="","",VLOOKUP(D112,species_data!$A$4:$G$148,7)) ->  | S112: =IF(D112="","",VLOOKUP(D112,species_data!$A$4:$F$148,4)) -> 
B113: ()--0 | O113: 0 | P113: =IF(D113="","",VLOOKUP(D113,species_data!$A$4:$G$148,7)) ->  | S113: =IF(D113="","",VLOOKUP(D113,species_data!$A$4:$F$148,4)) -> 
B114: ()--0 | O114: 0 | P114: =IF(D114="","",VLOOKUP(D114,species_data!$A$4:$G$148,7)) ->  | S114: =IF(D114="","",VLOOKUP(D114,species_data!$A$4:$F$148,4)) -> 
B115: ()--0 | O115: 0 | P115: =IF(D115="","",VLOOKUP(D115,species_data!$A$4:$G$148,7)) ->  | S115: =IF(D115="","",VLOOKUP(D115,species_data!$A$4:$F$148,4)) -> 
B116: ()--0 | O116: 0 | P116: =IF(D116="","",VLOOKUP(D116,species_data!$A$4:$G$148,7)) ->  | S116: =IF(D116="","",VLOOKUP(D116,species_data!$A$4:$F$148,4)) -> 
B117: ()--0 | O117: 0 | P117: =IF(D117="","",VLOOKUP(D117,species_data!$A$4:$G$148,7)) ->  | S117: =IF(D117="","",VLOOKUP(D117,species_data!$A$4:$F$148,4)) -> 
B118: ()--0 | O118: 0 | P118: =IF(D118="","",VLOOKUP(D118,species_data!$A$4:$G$148,7)) ->  | S118: =IF(D118="","",VLOOKUP(D118,species_data!$A$4:$F$148,4)) -> 
B119: ()--0 | O119: 0 | P119: =IF(D119="","",VLOOKUP(D119,species_data!$A$4:$G$148,7)) ->  | S119: =IF(D119="","",VLOOKUP(D119,species_data!$A$4:$F$148,4)) -> 
B120: ()--0 | O120: 0 | P120: =IF(D120="","",VLOOKUP(D120,species_data!$A$4:$G$148,7)) ->  | S120: =IF(D120="","",VLOOKUP(D120,species_data!$A$4:$F$148,4)) -> 
B121: ()--0 | O121: 0 | P121: =IF(D121="","",VLOOKUP(D121,species_data!$A$4:$G$148,7)) ->  | S121: =IF(D121="","",VLOOKUP(D121,species_data!$A$4:$F$148,4)) -> 
B122: ()--0 | O122: 0 | P122: =IF(D122="","",VLOOKUP(D122,species_data!$A$4:$G$148,7)) ->  | S122: =IF(D122="","",VLOOKUP(D122,species_data!$A$4:$F$148,4)) -> 
B123: ()--0 | O123: 0 | P123: =IF(D123="","",VLOOKUP(D123,species_data!$A$4:$G$148,7)) ->  | S123: =IF(D123="","",VLOOKUP(D123,species_data!$A$4:$F$148,4)) -> 
B124: ()--0 | O124: 0 | P124: =IF(D124="","",VLOOKUP(D124,species_data!$A$4:$G$148,7)) ->  | S124: =IF(D124="","",VLOOKUP(D124,species_data!$A$4:$F$148,4)) -> 
B125: ()--0 | O125: 0 | P125: =IF(D125="","",VLOOKUP(D125,species_data!$A$4:$G$148,7)) ->  | S125: =IF(D125="","",VLOOKUP(D125,species_data!$A$4:$F$148,4)) -> 
B126: ()--0 | O126: 0 | P126: =IF(D126="","",VLOOKUP(D126,species_data!$A$4:$G$148,7)) ->  | S126: =IF(D126="","",VLOOKUP(D126,species_data!$A$4:$F$148,4)) -> 
B127: ()--0 | O127: 0 | P127: =IF(D127="","",VLOOKUP(D127,species_data!$A$4:$G$148,7)) ->  | S127: =IF(D127="","",VLOOKUP(D127,species_data!$A$4:$F$148,4)) -> 
B128: ()--0 | O128: 0 | P128: =IF(D128="","",VLOOKUP(D128,species_data!$A$4:$G$148,7)) ->  | S128: =IF(D128="","",VLOOKUP(D128,species_data!$A$4:$F$148,4)) -> 
B129: ()--0 | O129: 0 | P129: =IF(D129="","",VLOOKUP(D129,species_data!$A$4:$G$148,7)) ->  | S129: =IF(D129="","",VLOOKUP(D129,species_data!$A$4:$F$148,4)) -> 
B130: ()--0 | O130: 0 | P130: =IF(D130="","",VLOOKUP(D130,species_data!$A$4:$G$148,7)) ->  | S130: =IF(D130="","",VLOOKUP(D130,species_data!$A$4:$F$148,4)) -> 
B131: ()--0 | O131: 0 | P131: =IF(D131="","",VLOOKUP(D131,species_data!$A$4:$G$148,7)) ->  | S131: =IF(D131="","",VLOOKUP(D131,species_data!$A$4:$F$148,4)) -> 
B132: ()--0 | O132: 0 | P132: =IF(D132="","",VLOOKUP(D132,species_data!$A$4:$G$148,7)) ->  | S132: =IF(D132="","",VLOOKUP(D132,species_data!$A$4:$F$148,4)) -> 
B133: ()--0 | O133: 0 | P133: =IF(D133="","",VLOOKUP(D133,species_data!$A$4:$G$148,7)) ->  | S133: =IF(D133="","",VLOOKUP(D133,species_data!$A$4:$F$148,4)) -> 
B134: ()--0 | O134: 0 | P134: =IF(D134="","",VLOOKUP(D134,species_data!$A$4:$G$148,7)) ->  | S134: =IF(D134="","",VLOOKUP(D134,species_data!$A$4:$F$148,4)) -> 
A135: =IF(D135="","",342) ->  | B135: =IF(O135="","",CONCATENATE("(",N135,")-",M135,"-",O135)) -> ()--0 | C135: =IF(D135="","",CONCATENATE(A135,"-",B135)) ->  | F135: =IF(D135="","",ROUND(G135*16,1)) ->  | O135: 0 | P135: =IF(D135="","",VLOOKUP(D135,species_data!$A$4:$G$148,7)) ->  | S135: =IF(D135="","",VLOOKUP(D135,species_data!$A$4:$F$148,4)) -> 
B136: ()--0 | O136: =IF(M136=M137,O137,Q136) -> 0 | P136: =IF(D136="","",VLOOKUP(D136,species_data!$A$4:$G$148,7)) ->  | Q136: =IF(D136="","",IF(M136=M135,CONCATENATE(Q135,"-",P136),P136)) ->  | S136: =IF(D136="","",VLOOKUP(D136,species_data!$A$4:$F$148,4)) -> 
B137: ()--0 | O137: 0 | P137: =IF(D137="","",VLOOKUP(D137,species_data!$A$4:$G$148,7)) ->  | S137: =IF(D137="","",VLOOKUP(D137,species_data!$A$4:$F$148,4)) -> 
B138: ()--0 | O138: 0 | P138: =IF(D138="","",VLOOKUP(D138,species_data!$A$4:$G$148,7)) ->  | S138: =IF(D138="","",VLOOKUP(D138,species_data!$A$4:$F$148,4)) -> 
B139: ()--0 | O139: 0 | P139: =IF(D139="","",VLOOKUP(D139,species_data!$A$4:$G$148,7)) ->  | S139: =IF(D139="","",VLOOKUP(D139,species_data!$A$4:$F$148,4)) -> 
B140: ()--0 | O140: 0 | P140: =IF(D140="","",VLOOKUP(D140,species_data!$A$4:$G$148,7)) ->  | S140: =IF(D140="","",VLOOKUP(D140,species_data!$A$4:$F$148,4)) -> 
B141: ()--0 | O141: 0 | P141: =IF(D141="","",VLOOKUP(D141,species_data!$A$4:$G$148,7)) ->  | S141: =IF(D141="","",VLOOKUP(D141,species_data!$A$4:$F$148,4)) -> 
B142: ()--0 | O142: 0 | P142: =IF(D142="","",VLOOKUP(D142,species_data!$A$4:$G$148,7)) ->  | S142: =IF(D142="","",VLOOKUP(D142,species_data!$A$4:$F$148,4)) -> 
B143: ()--0 | O143: 0 | P143: =IF(D143="","",VLOOKUP(D143,species_data!$A$4:$G$148,7)) ->  | S143: =IF(D143="","",VLOOKUP(D143,species_data!$A$4:$F$148,4)) -> 
B144: ()--0 | O144: 0 | P144: =IF(D144="","",VLOOKUP(D144,species_data!$A$4:$G$148,7)) ->  | S144: =IF(D144="","",VLOOKUP(D144,species_data!$A$4:$F$148,4)) -> 
B145: ()--0 | O145: 0 | P145: =IF(D145="","",VLOOKUP(D145,species_data!$A$4:$G$148,7)) ->  | S145: =IF(D145="","",VLOOKUP(D145,species_data!$A$4:$F$148,4)) -> 
B146: ()--0 | O146: 0 | P146: =IF(D146="","",VLOOKUP(D146,species_data!$A$4:$G$148,7)) ->  | S146: =IF(D146="","",VLOOKUP(D146,species_data!$A$4:$F$148,4)) -> 
B147: ()--0 | O147: 0 | P147: =IF(D147="","",VLOOKUP(D147,species_data!$A$4:$G$148,7)) ->  | S147: =IF(D147="","",VLOOKUP(D147,species_data!$A$4:$F$148,4)) -> 
B148: ()--0 | O148: 0 | P148: =IF(D148="","",VLOOKUP(D148,species_data!$A$4:$G$148,7)) ->  | S148: =IF(D148="","",VLOOKUP(D148,species_data!$A$4:$F$148,4)) -> 
B149: ()--0 | O149: 0 | P149: =IF(D149="","",VLOOKUP(D149,species_data!$A$4:$G$148,7)) ->  | S149: =IF(D149="","",VLOOKUP(D149,species_data!$A$4:$F$148,4)) -> 
B150: ()--0 | O150: 0 | P150: =IF(D150="","",VLOOKUP(D150,species_data!$A$4:$G$148,7)) ->  | S150: =IF(D150="","",VLOOKUP(D150,species_data!$A$4:$F$148,4)) -> 
B151: ()--0 | O151: 0 | P151: =IF(D151="","",VLOOKUP(D151,species_data!$A$4:$G$148,7)) ->  | S151: =IF(D151="","",VLOOKUP(D151,species_data!$A$4:$F$148,4)) -> 
B152: ()--0 | O152: 0 | P152: =IF(D152="","",VLOOKUP(D152,species_data!$A$4:$G$148,7)) ->  | S152: =IF(D152="","",VLOOKUP(D152,species_data!$A$4:$F$148,4)) -> 
B153: ()--0 | O153: 0 | P153: =IF(D153="","",VLOOKUP(D153,species_data!$A$4:$G$148,7)) ->  | S153: =IF(D153="","",VLOOKUP(D153,species_data!$A$4:$F$148,4)) -> 
B154: ()--0 | O154: 0 | P154: =IF(D154="","",VLOOKUP(D154,species_data!$A$4:$G$148,7)) ->  | S154: =IF(D154="","",VLOOKUP(D154,species_data!$A$4:$F$148,4)) -> 
B155: ()--0 | O155: 0 | P155: =IF(D155="","",VLOOKUP(D155,species_data!$A$4:$G$148,7)) ->  | S155: =IF(D155="","",VLOOKUP(D155,species_data!$A$4:$F$148,4)) -> 
B156: ()--0 | O156: 0 | P156: =IF(D156="","",VLOOKUP(D156,species_data!$A$4:$G$148,7)) ->  | S156: =IF(D156="","",VLOOKUP(D156,species_data!$A$4:$F$148,4)) -> 
B157: ()--0 | O157: 0 | P157: =IF(D157="","",VLOOKUP(D157,species_data!$A$4:$G$148,7)) ->  | S157: =IF(D157="","",VLOOKUP(D157,species_data!$A$4:$F$148,4)) -> 
B158: ()--0 | O158: 0 | P158: =IF(D158="","",VLOOKUP(D158,species_data!$A$4:$G$148,7)) ->  | S158: =IF(D158="","",VLOOKUP(D158,species_data!$A$4:$F$148,4)) -> 
B159: ()--0 | O159: 0 | P159: =IF(D159="","",VLOOKUP(D159,species_data!$A$4:$G$148,7)) ->  | S159: =IF(D159="","",VLOOKUP(D159,species_data!$A$4:$F$148,4)) -> 
B160: ()--0 | O160: 0 | P160: =IF(D160="","",VLOOKUP(D160,species_data!$A$4:$G$148,7)) ->  | S160: =IF(D160="","",VLOOKUP(D160,species_data!$A$4:$F$148,4)) -> 
B161: ()--0 | O161: 0 | P161: =IF(D161="","",VLOOKUP(D161,species_data!$A$4:$G$148,7)) ->  | S161: =IF(D161="","",VLOOKUP(D161,species_data!$A$4:$F$148,4)) -> 
B162: ()--0 | O162: 0 | P162: =IF(D162="","",VLOOKUP(D162,species_data!$A$4:$G$148,7)) ->  | S162: =IF(D162="","",VLOOKUP(D162,species_data!$A$4:$F$148,4)) -> 
B163: ()--0 | O163: 0 | P163: =IF(D163="","",VLOOKUP(D163,species_data!$A$4:$G$148,7)) ->  | S163: =IF(D163="","",VLOOKUP(D163,species_data!$A$4:$F$148,4)) -> 
B164: ()--0 | O164: 0 | P164: =IF(D164="","",VLOOKUP(D164,species_data!$A$4:$G$148,7)) ->  | S164: =IF(D164="","",VLOOKUP(D164,species_data!$A$4:$F$148,4)) -> 
B165: ()--0 | O165: 0 | P165: =IF(D165="","",VLOOKUP(D165,species_data!$A$4:$G$148,7)) ->  | S165: =IF(D165="","",VLOOKUP(D165,species_data!$A$4:$F$148,4)) -> 
B166: ()--0 | O166: 0 | P166: =IF(D166="","",VLOOKUP(D166,species_data!$A$4:$G$148,7)) ->  | S166: =IF(D166="","",VLOOKUP(D166,species_data!$A$4:$F$148,4)) -> 
B167: ()--0 | O167: 0 | P167: =IF(D167="","",VLOOKUP(D167,species_data!$A$4:$G$148,7)) ->  | S167: =IF(D167="","",VLOOKUP(D167,species_data!$A$4:$F$148,4)) -> 
B168: ()--0 | O168: 0 | P168: =IF(D168="","",VLOOKUP(D168,species_data!$A$4:$G$148,7)) ->  | S168: =IF(D168="","",VLOOKUP(D168,species_data!$A$4:$F$148,4)) -> 
B169: ()--0 | O169: 0 | P169: =IF(D169="","",VLOOKUP(D169,species_data!$A$4:$G$148,7)) ->  | S169: =IF(D169="","",VLOOKUP(D169,species_data!$A$4:$F$148,4)) -> 
B170: ()--0 | O170: 0 | P170: =IF(D170="","",VLOOKUP(D170,species_data!$A$4:$G$148,7)) ->  | S170: =IF(D170="","",VLOOKUP(D170,species_data!$A$4:$F$148,4)) -> 
B171: ()--0 | O171: 0 | P171: =IF(D171="","",VLOOKUP(D171,species_data!$A$4:$G$148,7)) ->  | S171: =IF(D171="","",VLOOKUP(D171,species_data!$A$4:$F$148,4)) -> 
B172: ()--0 | O172: 0 | P172: =IF(D172="","",VLOOKUP(D172,species_data!$A$4:$G$148,7)) ->  | S172: =IF(D172="","",VLOOKUP(D172,species_data!$A$4:$F$148,4)) -> 
B173: ()--0 | O173: 0 | P173: =IF(D173="","",VLOOKUP(D173,species_data!$A$4:$G$148,7)) ->  | S173: =IF(D173="","",VLOOKUP(D173,species_data!$A$4:$F$148,4)) -> 
B174: ()--0 | O174: 0 | P174: =IF(D174="","",VLOOKUP(D174,species_data!$A$4:$G$148,7)) ->  | S174: =IF(D174="","",VLOOKUP(D174,species_data!$A$4:$F$148,4)) -> 
B175: ()--0 | O175: 0 | P175: =IF(D175="","",VLOOKUP(D175,species_data!$A$4:$G$148,7)) ->  | S175: =IF(D175="","",VLOOKUP(D175,species_data!$A$4:$F$148,4)) -> 
B176: ()--0 | O176: 0 | P176: =IF(D176="","",VLOOKUP(D176,species_data!$A$4:$G$148,7)) ->  | S176: =IF(D176="","",VLOOKUP(D176,species_data!$A$4:$F$148,4)) -> 
B177: ()--0 | O177: 0 | P177: =IF(D177="","",VLOOKUP(D177,species_data!$A$4:$G$148,7)) ->  | S177: =IF(D177="","",VLOOKUP(D177,species_data!$A$4:$F$148,4)) -> 
B178: ()--0 | O178: 0 | P178: =IF(D178="","",VLOOKUP(D178,species_data!$A$4:$G$148,7)) ->  | S178: =IF(D178="","",VLOOKUP(D178,species_data!$A$4:$F$148,4)) -> 
B179: ()--0 | O179: 0 | P179: =IF(D179="","",VLOOKUP(D179,species_data!$A$4:$G$148,7)) ->  | S179: =IF(D179="","",VLOOKUP(D179,species_data!$A$4:$F$148,4)) -> 
B180: ()--0 | O180: 0 | P180: =IF(D180="","",VLOOKUP(D180,species_data!$A$4:$G$148,7)) ->  | S180: =IF(D180="","",VLOOKUP(D180,species_data!$A$4:$F$148,4)) -> 
B181: ()--0 | O181: 0 | P181: =IF(D181="","",VLOOKUP(D181,species_data!$A$4:$G$148,7)) ->  | S181: =IF(D181="","",VLOOKUP(D181,species_data!$A$4:$F$148,4)) -> 
B182: ()--0 | O182: 0 | P182: =IF(D182="","",VLOOKUP(D182,species_data!$A$4:$G$148,7)) ->  | S182: =IF(D182="","",VLOOKUP(D182,species_data!$A$4:$F$148,4)) -> 
B183: ()--0 | O183: 0 | P183: =IF(D183="","",VLOOKUP(D183,species_data!$A$4:$G$148,7)) ->  | S183: =IF(D183="","",VLOOKUP(D183,species_data!$A$4:$F$148,4)) -> 
B184: ()--0 | O184: 0 | P184: =IF(D184="","",VLOOKUP(D184,species_data!$A$4:$G$148,7)) ->  | S184: =IF(D184="","",VLOOKUP(D184,species_data!$A$4:$F$148,4)) -> 
B185: ()--0 | O185: 0 | P185: =IF(D185="","",VLOOKUP(D185,species_data!$A$4:$G$148,7)) ->  | S185: =IF(D185="","",VLOOKUP(D185,species_data!$A$4:$F$148,4)) -> 
B186: ()--0 | O186: 0 | P186: =IF(D186="","",VLOOKUP(D186,species_data!$A$4:$G$148,7)) ->  | S186: =IF(D186="","",VLOOKUP(D186,species_data!$A$4:$F$148,4)) -> 
B187: ()--0 | O187: 0 | P187: =IF(D187="","",VLOOKUP(D187,species_data!$A$4:$G$148,7)) ->  | S187: =IF(D187="","",VLOOKUP(D187,species_data!$A$4:$F$148,4)) -> 
B188: ()--0 | O188: 0 | P188: =IF(D188="","",VLOOKUP(D188,species_data!$A$4:$G$148,7)) ->  | S188: =IF(D188="","",VLOOKUP(D188,species_data!$A$4:$F$148,4)) -> 
B189: ()--0 | O189: 0 | P189: =IF(D189="","",VLOOKUP(D189,species_data!$A$4:$G$148,7)) ->  | S189: =IF(D189="","",VLOOKUP(D189,species_data!$A$4:$F$148,4)) -> 
B190: ()--0 | O190: 0 | P190: =IF(D190="","",VLOOKUP(D190,species_data!$A$4:$G$148,7)) ->  | S190: =IF(D190="","",VLOOKUP(D190,species_data!$A$4:$F$148,4)) -> 
B191: ()--0 | O191: 0 | P191: =IF(D191="","",VLOOKUP(D191,species_data!$A$4:$G$148,7)) ->  | S191: =IF(D191="","",VLOOKUP(D191,species_data!$A$4:$F$148,4)) -> 
B192: ()--0 | O192: 0 | P192: =IF(D192="","",VLOOKUP(D192,species_data!$A$4:$G$148,7)) ->  | S192: =IF(D192="","",VLOOKUP(D192,species_data!$A$4:$F$148,4)) -> 
B193: ()--0 | O193: 0 | P193: =IF(D193="","",VLOOKUP(D193,species_data!$A$4:$G$148,7)) ->  | S193: =IF(D193="","",VLOOKUP(D193,species_data!$A$4:$F$148,4)) -> 
B194: ()--0 | O194: 0 | P194: =IF(D194="","",VLOOKUP(D194,species_data!$A$4:$G$148,7)) ->  | S194: =IF(D194="","",VLOOKUP(D194,species_data!$A$4:$F$148,4)) -> 
B195: ()--0 | O195: 0 | P195: =IF(D195="","",VLOOKUP(D195,species_data!$A$4:$G$148,7)) ->  | S195: =IF(D195="","",VLOOKUP(D195,species_data!$A$4:$F$148,4)) -> 
B196: ()--0 | O196: 0 | P196: =IF(D196="","",VLOOKUP(D196,species_data!$A$4:$G$148,7)) ->  | S196: =IF(D196="","",VLOOKUP(D196,species_data!$A$4:$F$148,4)) -> 
B197: ()--0 | O197: 0 | P197: =IF(D197="","",VLOOKUP(D197,species_data!$A$4:$G$148,7)) ->  | S197: =IF(D197="","",VLOOKUP(D197,species_data!$A$4:$F$148,4)) -> 
B198: ()--0 | O198: 0 | P198: =IF(D198="","",VLOOKUP(D198,species_data!$A$4:$G$148,7)) ->  | S198: =IF(D198="","",VLOOKUP(D198,species_data!$A$4:$F$148,4)) -> 
A199: =IF(D199="","",342) ->  | B199: =IF(O199="","",CONCATENATE("(",N199,")-",M199,"-",O199)) -> ()--0 | C199: =IF(D199="","",CONCATENATE(A199,"-",B199)) ->  | F199: =IF(D199="","",ROUND(G199*16,1)) ->  | O199: 0 | P199: =IF(D199="","",VLOOKUP(D199,species_data!$A$4:$G$148,7)) ->  | S199: =IF(D199="","",VLOOKUP(D199,species_data!$A$4:$F$148,4)) -> 
B200: ()--0 | O200: =IF(M200=M201,O201,Q200) -> 0 | P200: =IF(D200="","",VLOOKUP(D200,species_data!$A$4:$G$148,7)) ->  | Q200: =IF(D200="","",IF(M200=M199,CONCATENATE(Q199,"-",P200),P200)) ->  | S200: =IF(D200="","",VLOOKUP(D200,species_data!$A$4:$F$148,4)) -> 
... 267 more rows

Sheet 512Mixes
A1: STANDARD 512 MIXES | G1: REVISION DATE: | H1: 2012-12-14 | AA1: Type | AB1: Intro/Native
A2: criteria: | B2: H-1
A3: STD | B3: Mix # | C3: std-mix | D3: Common Name | E3: Scientific Name | F3: PLS (oz./A) | G3: PLS (lbs./A) | H3: Seeds/Square Foot | I3: Type | J3: Intro / Native | K3: Poll. (Y/N) | M3: Mix No. | N3: FSG-MIX # | O3: Mix Components | P3: FSG | AA3: Forb | AB3: I
C4: LEAVE THIS ROW AS IS | J4: I | K4: Y | N4: =IF(D4="","",CONCATENATE("FSG ",P4)) ->  | AA4: Grass | AB4: N
C5: LEAVE THIS ROW AS IS | J5: N | K5: Y | N5: =IF(D5="","",CONCATENATE("FSG ",P5)) ->  | AA5: Legume
A6: =IF(D6="","",512) -> 512 | B6: =IF(O6="","",CONCATENATE("(",N6,")-",M6,"-",O6)) -> (FSG 1)-H1-RC-Tfesc-Tim | C6: =IF(D6="","",CONCATENATE(A6,"-",B6)) -> 512-(FSG 1)-H1-RC-Tfesc-Tim | D6: Red Clover | E6: Trifolium pratense | F6: =IF(D6="","",ROUND(G6*16,1)) -> 96 | G6: 6 | H6: 36 | I6: Legume | J6: I | K6: N | M6: H1 | N6: FSG 1 | O6: =IF(M6=M7,O7,R6) -> RC-Tfesc-Tim | P6: 1 | Q6: =IF(D6="","",VLOOKUP(D6,species_data!$A$4:$G$148,7)) -> RC | R6: =IF(D6="","",IF(AND(N6=N5,M6=M5),CONCATENATE(R5,"-",Q6),Q6)) -> RC | S6: =IF(D6="","",VLOOKUP(D6,species_data!$A$4:$F$148,4)) -> 6.312 | AA6: Sedge
A7: 512 | B7: (FSG 1)-H1-RC-Tfesc-Tim | C7: 512-(FSG 1)-H1-RC-Tfesc-Tim | D7: Tall Fescue | E7: Schedonorus arundinaceus | F7: 96 | G7: 6 | H7: 32 | I7: Grass | J7: I | K7: N | M7: H1 | N7: FSG 1 | O7: =IF(M7=M8,O8,R7) -> RC-Tfesc-Tim | P7: 1 | Q7: =IF(D7="","",VLOOKUP(D7,species_data!$A$4:$G$148,7)) -> Tfesc | R7: RC-Tfesc | S7: =IF(D7="","",VLOOKUP(D7,species_data!$A$4:$F$148,4)) -> 5.280073462
A8: 512 | B8: (FSG 1)-H1-RC-Tfesc-Tim | C8: 512-(FSG 1)-H1-RC-Tfesc-Tim | D8: Timothy | E8: Phleum pratense | F8: 16 | G8: 1 | H8: 28 | I8: Grass | J8: I | K8: N | M8: H1 | N8: FSG 1 | O8: RC-Tfesc-Tim | P8: 1 | Q8: =IF(D8="","",VLOOKUP(D8,species_data!$A$4:$G$148,7)) -> Tim | R8: RC-Tfesc-Tim | S8: =IF(D8="","",VLOOKUP(D8,species_data!$A$4:$F$148,4)) -> 28.24
A9: 512 | B9: (FSG 2)-H2-Alf | C9: 512-(FSG 2)-H2-Alf | D9: Alfalfa | E9: Medicago sativa | F9: 192 | G9: 12 | H9: 60 | I9: Legume | J9: I | K9: N | M9: H2 | N9: FSG 2 | O9: Alf | P9: 2 | Q9: =IF(D9="","",VLOOKUP(D9,species_data!$A$4:$G$148,7)) -> Alf | R9: Alf | S9: =IF(D9="","",VLOOKUP(D9,species_data!$A$4:$F$148,4)) -> 5.024
A10: 512 | B10: (FSG 2,3,5,6)-H3-Alf-SB | C10: 512-(FSG 2,3,5,6)-H3-Alf-SB | D10: Alfalfa | E10: Medicago sativa | F10: 160 | G10: 10 | H10: 50 | I10: Legume | J10: I | K10: N | M10: H3 | N10: FSG 2,3,5,6 | O10: Alf-SB | P10: 2,3,5,6 | Q10: =IF(D10="","",VLOOKUP(D10,species_data!$A$4:$G$148,7)) -> Alf | R10: Alf | S10: =IF(D10="","",VLOOKUP(D10,species_data!$A$4:$F$148,4)) -> 5.024
A11: 512 | B11: (FSG 2,3,5,6)-H3-Alf-SB | C11: 512-(FSG 2,3,5,6)-H3-Alf-SB | D11: Smooth Bromegrass | E11: Bromus inermis | F11: 64 | G11: 4 | H11: 12 | I11: Grass | J11: I | K11: N | M11: H3 | N11: FSG 2,3,5,6 | O11: Alf-SB | P11: 2,3,5,6 | Q11: =IF(D11="","",VLOOKUP(D11,species_data!$A$4:$G$148,7)) -> SB | R11: Alf-SB | S11: =IF(D11="","",VLOOKUP(D11,species_data!$A$4:$F$148,4)) -> 3.122130395
A12: 512 | B12: (FSG 4,7)-H4-Aclover-Tfesc-Tim | C12: 512-(FSG 4,7)-H4-Aclover-Tfesc-Tim | D12: Alsike Clover | E12: Trifolium hybridum | F12: 48 | G12: 3 | H12: 48 | I12: Legume | J12: I | K12: N | M12: H4 | N12: FSG 4,7 | O12: Aclover-Tfesc-Tim | P12: 4,7 | Q12: =IF(D12="","",VLOOKUP(D12,species_data!$A$4:$G$148,7)) -> Aclover | R12: Aclover | S12: =IF(D12="","",VLOOKUP(D12,species_data!$A$4:$F$148,4)) -> 15.6
A13: 512 | B13: (FSG 4,7)-H4-Aclover-Tfesc-Tim | C13: 512-(FSG 4,7)-H4-Aclover-Tfesc-Tim | D13: Tall Fescue | E13: Schedonorus arundinaceus | F13: 96 | G13: 6 | H13: 32 | I13: Grass | J13: I | K13: N | M13: H4 | N13: FSG 4,7 | O13: Aclover-Tfesc-Tim | P13: 4,7 | Q13: =IF(D13="","",VLOOKUP(D13,species_data!$A$4:$G$148,7)) -> Tfesc | R13: Aclover-Tfesc | S13: =IF(D13="","",VLOOKUP(D13,species_data!$A$4:$F$148,4)) -> 5.280073462
A14: 512 | B14: (FSG 4,7)-H4-Aclover-Tfesc-Tim | C14: 512-(FSG 4,7)-H4-Aclover-Tfesc-Tim | D14: Timothy | E14: Phleum pratense | F14: 16 | G14: 1 | H14: 28 | I14: Grass | J14: I | K14: N | M14: H4 | N14: FSG 4,7 | O14: Aclover-Tfesc-Tim | P14: 4,7 | Q14: =IF(D14="","",VLOOKUP(D14,species_data!$A$4:$G$148,7)) -> Tim | R14: Aclover-Tfesc-Tim | S14: =IF(D14="","",VLOOKUP(D14,species_data!$A$4:$F$148,4)) -> 28.24
A15: 512 | B15: (FSG 8)-H5-Alf-Tim | C15: 512-(FSG 8)-H5-Alf-Tim | D15: Alfalfa | E15: Medicago sativa | F15: 128 | G15: 8 | H15: 40 | I15: Legume | J15: I | K15: N | M15: H5 | N15: FSG 8 | O15: Alf-Tim | P15: 8 | Q15: =IF(D15="","",VLOOKUP(D15,species_data!$A$4:$G$148,7)) -> Alf | R15: Alf | S15: =IF(D15="","",VLOOKUP(D15,species_data!$A$4:$F$148,4)) -> 5.024
A16: 512 | B16: (FSG 8)-H5-Alf-Tim | C16: 512-(FSG 8)-H5-Alf-Tim | D16: Timothy | E16: Phleum pratense | F16: 32 | G16: 2 | H16: 56 | I16: Grass | J16: I | K16: N | M16: H5 | N16: FSG 8 | O16: Alf-Tim | P16: 8 | Q16: =IF(D16="","",VLOOKUP(D16,species_data!$A$4:$G$148,7)) -> Tim | R16: Alf-Tim | S16: =IF(D16="","",VLOOKUP(D16,species_data!$A$4:$F$148,4)) -> 28.24
A17: 512 | B17: (FSG 9)-H6-Alf-SB-Tim | C17: 512-(FSG 9)-H6-Alf-SB-Tim | D17: Alfalfa | E17: Medicago sativa | F17: 128 | G17: 8 | H17: 40 | I17: Legume | J17: I | K17: N | M17: H6 | N17: FSG 9 | O17: Alf-SB-Tim | P17: 9 | Q17: =IF(D17="","",VLOOKUP(D17,species_data!$A$4:$G$148,7)) -> Alf | R17: Alf | S17: =IF(D17="","",VLOOKUP(D17,species_data!$A$4:$F$148,4)) -> 5.024
A18: 512 | B18: (FSG 9)-H6-Alf-SB-Tim | C18: 512-(FSG 9)-H6-Alf-SB-Tim | D18: Smooth Bromegrass | E18: Bromus inermis | F18: 64 | G18: 4 | H18: 12 | I18: Grass | J18: I | K18: N | M18: H6 | N18: FSG 9 | O18: Alf-SB-Tim | P18: 9 | Q18: =IF(D18="","",VLOOKUP(D18,species_data!$A$4:$G$148,7)) -> SB | R18: =IF(D18="","",IF(AND(N18=N17,M18=M17),CONCATENATE(R17,"-",Q18),Q18)) -> Alf-SB | S18: =IF(D18="","",VLOOKUP(D18,species_data!$A$4:$F$148,4)) -> 3.122130395
A19: 512 | B19: (FSG 9)-H6-Alf-SB-Tim | C19: 512-(FSG 9)-H6-Alf-SB-Tim | D19: Timothy | E19: Phleum pratense | F19: 16 | G19: 1 | H19: 28 | I19: Grass | J19: I | K19: N | M19: H6 | N19: FSG 9 | O19: Alf-SB-Tim | P19: 9 | Q19: =IF(D19="","",VLOOKUP(D19,species_data!$A$4:$G$148,7)) -> Tim | R19: Alf-SB-Tim | S19: =IF(D19="","",VLOOKUP(D19,species_data!$A$4:$F$148,4)) -> 28.24
A20: 512 | B20: (FSG 1-9)-H7-Switch | C20: 512-(FSG 1-9)-H7-Switch | D20: Switchgrass | E20: Panicum virgatum | F20: 112 | G20: 7 | H20: 63 | I20: Grass | J20: N | K20: N | M20: H7 | N20: FSG 1-9 | O20: Switch | P20: 1-9 | Q20: =IF(D20="","",VLOOKUP(D20,species_data!$A$4:$G$148,7)) -> Switch | R20: Switch | S20: =IF(D20="","",VLOOKUP(D20,species_data!$A$4:$F$148,4)) -> 8.93
A21: 512 | B21: (FSG 1-9)-H8-BB | C21: 512-(FSG 1-9)-H8-BB | D21: Big Bluestem | E21: Andropogon gerardii | F21: 176 | G21: 11 | H21: 42 | I21: Grass | J21: N | K21: N | M21: H8 | N21: FSG 1-9 | O21: BB | P21: 1-9 | Q21: =IF(D21="","",VLOOKUP(D21,species_data!$A$4:$G$148,7)) -> BB | R21: BB | S21: =IF(D21="","",VLOOKUP(D21,species_data!$A$4:$F$148,4)) -> 3.79
A22: 512 | B22: (FSG 1-9)-H9-Indian | C22: 512-(FSG 1-9)-H9-Indian | D22: Indiangrass | E22: Sorghastrum nutans | F22: 160 | G22: 10 | H22: 44 | I22: Grass | J22: N | K22: N | M22: H9 | N22: FSG 1-9 | O22: Indian | P22: 1-9 | Q22: =IF(D22="","",VLOOKUP(D22,species_data!$A$4:$G$148,7)) -> Indian | R22: Indian | S22: =IF(D22="","",VLOOKUP(D22,species_data!$A$4:$F$148,4)) -> 4.407713499
A23: 512 | B23: (FSG 1)-PP1-Aclover-Mfesc | C23: 512-(FSG 1)-PP1-Aclover-Mfesc | D23: Alsike Clover | E23: Trifolium hybridum | F23: 32 | G23: 2 | H23: 32 | I23: Legume | J23: I | K23: N | M23: PP1 | N23: FSG 1 | O23: Aclover-Mfesc | P23: 1 | Q23: =IF(D23="","",VLOOKUP(D23,species_data!$A$4:$G$148,7)) -> Aclover | R23: Aclover | S23: =IF(D23="","",VLOOKUP(D23,species_data!$A$4:$F$148,4)) -> 15.6
A24: 512 | B24: (FSG 1)-PP1-Aclover-Mfesc | C24: 512-(FSG 1)-PP1-Aclover-Mfesc | D24: Meadow Fescue | E24: Schedonorus pratensis | F24: 96 | G24: 6 | H24: 30 | I24: Grass | J24: I | K24: N | M24: PP1 | N24: FSG 1 | O24: Aclover-Mfesc | P24: 1 | Q24: =IF(D24="","",VLOOKUP(D24,species_data!$A$4:$G$148,7)) -> Mfesc | R24: Aclover-Mfesc | S24: =IF(D24="","",VLOOKUP(D24,species_data!$A$4:$F$148,4)) -> 5.211
A25: 512 | B25: (FSG 1)-PP1A-Aclover-Orc | C25: 512-(FSG 1)-PP1A-Aclover-Orc | D25: Alsike Clover | E25: Trifolium hybridum | F25: 32 | G25: 2 | H25: 32 | I25: Legume | J25: I | K25: N | M25: PP1A | N25: FSG 1 | O25: Aclover-Orc | P25: 1 | Q25: =IF(D25="","",VLOOKUP(D25,species_data!$A$4:$G$148,7)) -> Aclover | R25: Aclover | S25: =IF(D25="","",VLOOKUP(D25,species_data!$A$4:$F$148,4)) -> 15.6
A26: 512 | B26: (FSG 1)-PP1A-Aclover-Orc | C26: 512-(FSG 1)-PP1A-Aclover-Orc | D26: Orchardgrass | E26: Dactylis glomerata L. | F26: 48 | G26: 3 | H26: 48 | I26: Grass | J26: I | K26: N | M26: PP1A | N26: FSG 1 | O26: Aclover-Orc | P26: 1 | Q26: =IF(D26="","",VLOOKUP(D26,species_data!$A$4:$G$148,7)) -> Orc | R26: Aclover-Orc | S26: =IF(D26="","",VLOOKUP(D26,species_data!$A$4:$F$148,4)) -> 14.99081726
A27: 512 | B27: (FSG 1)-PP1B-Aclover-Tim | C27: 512-(FSG 1)-PP1B-Aclover-Tim | D27: Alsike Clover | E27: Trifolium hybridum | F27: 32 | G27: 2 | H27: 32 | I27: Legume | J27: I | K27: N | M27: PP1B | N27: FSG 1 | O27: Aclover-Tim | P27: 1 | Q27: =IF(D27="","",VLOOKUP(D27,species_data!$A$4:$G$148,7)) -> Aclover | R27: Aclover | S27: =IF(D27="","",VLOOKUP(D27,species_data!$A$4:$F$148,4)) -> 15.6
A28: 512 | B28: (FSG 1)-PP1B-Aclover-Tim | C28: 512-(FSG 1)-PP1B-Aclover-Tim | D28: Timothy | E28: Phleum pratense | F28: 24 | G28: 1.5 | H28: 42 | I28: Grass | J28: I | K28: N | M28: PP1B | N28: FSG 1 | O28: Aclover-Tim | P28: 1 | Q28: =IF(D28="","",VLOOKUP(D28,species_data!$A$4:$G$148,7)) -> Tim | R28: Aclover-Tim | S28: =IF(D28="","",VLOOKUP(D28,species_data!$A$4:$F$148,4)) -> 28.24
A29: 512 | B29: (FSG 2-3)-PP2-Alf-SB-Orc | C29: 512-(FSG 2-3)-PP2-Alf-SB-Orc | D29: Alfalfa | E29: Medicago sativa | F29: 96 | G29: 6 | H29: 30 | I29: Legume | J29: I | K29: N | M29: PP2 | N29: FSG 2-3 | O29: Alf-SB-Orc | P29: 2-3 | Q29: =IF(D29="","",VLOOKUP(D29,species_data!$A$4:$G$148,7)) -> Alf | R29: Alf | S29: =IF(D29="","",VLOOKUP(D29,species_data!$A$4:$F$148,4)) -> 5.024
A30: 512 | B30: (FSG 2-3)-PP2-Alf-SB-Orc | C30: 512-(FSG 2-3)-PP2-Alf-SB-Orc | D30: Smooth Bromegrass | E30: Bromus inermis | F30: 64 | G30: 4 | H30: 12 | I30: Grass | J30: I | K30: N | M30: PP2 | N30: FSG 2-3 | O30: Alf-SB-Orc | P30: 2-3 | Q30: =IF(D30="","",VLOOKUP(D30,species_data!$A$4:$G$148,7)) -> SB | R30: Alf-SB | S30: =IF(D30="","",VLOOKUP(D30,species_data!$A$4:$F$148,4)) -> 3.122130395
A31: 512 | B31: (FSG 2-3)-PP2-Alf-SB-Orc | C31: 512-(FSG 2-3)-PP2-Alf-SB-Orc | D31: Orchardgrass | E31: Dactylis glomerata L. | F31: 64 | G31: 4 | H31: 64 | I31: Grass | J31: I | K31: N | M31: PP2 | N31: FSG 2-3 | O31: Alf-SB-Orc | P31: 2-3 | Q31: =IF(D31="","",VLOOKUP(D31,species_data!$A$4:$G$148,7)) -> Orc | R31: Alf-SB-Orc | S31: =IF(D31="","",VLOOKUP(D31,species_data!$A$4:$F$148,4)) -> 14.99081726
A32: 512 | B32: (FSG 4)-PP4-Aclover-Mfesc-Tim | C32: 512-(FSG 4)-PP4-Aclover-Mfesc-Tim | D32: Alsike Clover | E32: Trifolium hybridum | F32: 32 | G32: 2 | H32: 32 | I32: Legume | J32: I | K32: N | M32: PP4 | N32: FSG 4 | O32: Aclover-Mfesc-Tim | P32: 4 | Q32: =IF(D32="","",VLOOKUP(D32,species_data!$A$4:$G$148,7)) -> Aclover | R32: Aclover | S32: =IF(D32="","",VLOOKUP(D32,species_data!$A$4:$F$148,4)) -> 15.6
A33: 512 | B33: (FSG 4)-PP4-Aclover-Mfesc-Tim | C33: 512-(FSG 4)-PP4-Aclover-Mfesc-Tim | D33: Meadow Fescue | E33: Schedonorus pratensis | F33: 96 | G33: 6 | H33: 30 | I33: Grass | J33: I | K33: N | M33: PP4 | N33: FSG 4 | O33: Aclover-Mfesc-Tim | P33: 4 | Q33: =IF(D33="","",VLOOKUP(D33,species_data!$A$4:$G$148,7)) -> Mfesc | R33: Aclover-Mfesc | S33: =IF(D33="","",VLOOKUP(D33,species_data!$A$4:$F$148,4)) -> 5.211
A34: 512 | B34: (FSG 4)-PP4-Aclover-Mfesc-Tim | C34: 512-(FSG 4)-PP4-Aclover-Mfesc-Tim | D34: Timothy | E34: Phleum pratense | F34: 16 | G34: 1 | H34: 28 | I34: Grass | J34: I | K34: N | M34: PP4 | N34: FSG 4 | O34: Aclover-Mfesc-Tim | P34: 4 | Q34: =IF(D34="","",VLOOKUP(D34,species_data!$A$4:$G$148,7)) -> Tim | R34: Aclover-Mfesc-Tim | S34: =IF(D34="","",VLOOKUP(D34,species_data!$A$4:$F$148,4)) -> 28.24
A35: 512 | B35: (FSG 4)-PP4B-Btrefoil-Mfesc-Tim | C35: 512-(FSG 4)-PP4B-Btrefoil-Mfesc-Tim | D35: Birdsfoot Trefoil | E35: Lotus corniculatus | F35: 48 | G35: 3 | H35: 26 | I35: Legume | J35: I | K35: N | M35: PP4B | N35: FSG 4 | O35: Btrefoil-Mfesc-Tim | P35: 4 | Q35: =IF(D35="","",VLOOKUP(D35,species_data!$A$4:$G$148,7)) -> Btrefoil | R35: Btrefoil | S35: =IF(D35="","",VLOOKUP(D35,species_data!$A$4:$F$148,4)) -> 8.608
A36: 512 | B36: (FSG 4)-PP4B-Btrefoil-Mfesc-Tim | C36: 512-(FSG 4)-PP4B-Btrefoil-Mfesc-Tim | D36: Meadow Fescue | E36: Schedonorus pratensis | F36: 96 | G36: 6 | H36: 30 | I36: Grass | J36: I | K36: N | M36: PP4B | N36: FSG 4 | O36: Btrefoil-Mfesc-Tim | P36: 4 | Q36: =IF(D36="","",VLOOKUP(D36,species_data!$A$4:$G$148,7)) -> Mfesc | R36: Btrefoil-Mfesc | S36: =IF(D36="","",VLOOKUP(D36,species_data!$A$4:$F$148,4)) -> 5.211
A37: 512 | B37: (FSG 4)-PP4B-Btrefoil-Mfesc-Tim | C37: 512-(FSG 4)-PP4B-Btrefoil-Mfesc-Tim | D37: Timothy | E37: Phleum pratense | F37: 16 | G37: 1 | H37: 28 | I37: Grass | J37: I | K37: N | M37: PP4B | N37: FSG 4 | O37: Btrefoil-Mfesc-Tim | P37: 4 | Q37: =IF(D37="","",VLOOKUP(D37,species_data!$A$4:$G$148,7)) -> Tim | R37: Btrefoil-Mfesc-Tim | S37: =IF(D37="","",VLOOKUP(D37,species_data!$A$4:$F$148,4)) -> 28.24
A38: 512 | B38: (FSG 5)-PP5-RC-LadC-Orc-Mfesc | C38: 512-(FSG 5)-PP5-RC-LadC-Orc-Mfesc | D38: Red Clover | E38: Trifolium pratense | F38: =IF(D38="","",ROUND(G38*16,1)) -> 80 | G38: 5 | H38: 30 | I38: Legume | J38: I | K38: N | M38: PP5 | N38: FSG 5 | O38: RC-LadC-Orc-Mfesc | P38: 5 | Q38: =IF(D38="","",VLOOKUP(D38,species_data!$A$4:$G$148,7)) -> RC | R38: RC | S38: =IF(D38="","",VLOOKUP(D38,species_data!$A$4:$F$148,4)) -> 6.312
A39: 512 | B39: (FSG 5)-PP5-RC-LadC-Orc-Mfesc | C39: 512-(FSG 5)-PP5-RC-LadC-Orc-Mfesc | D39: White Ladino Clover | E39: Trifolium repens | F39: 16 | G39: 1 | H39: 20 | I39: Legume | J39: I | K39: N | M39: PP5 | N39: FSG 5 | O39: RC-LadC-Orc-Mfesc | P39: 5 | Q39: =IF(D39="","",VLOOKUP(D39,species_data!$A$4:$G$148,7)) -> LadC | R39: RC-LadC | S39: =IF(D39="","",VLOOKUP(D39,species_data!$A$4:$F$148,4)) -> 20.0096
A40: 512 | B40: (FSG 5)-PP5-RC-LadC-Orc-Mfesc | C40: 512-(FSG 5)-PP5-RC-LadC-Orc-Mfesc | D40: Orchardgrass | E40: Dactylis glomerata L. | F40: 48 | G40: 3 | H40: 48 | I40: Grass | J40: I | K40: N | M40: PP5 | N40: FSG 5 | O40: RC-LadC-Orc-Mfesc | P40: 5 | Q40: =IF(D40="","",VLOOKUP(D40,species_data!$A$4:$G$148,7)) -> Orc | R40: RC-LadC-Orc | S40: =IF(D40="","",VLOOKUP(D40,species_data!$A$4:$F$148,4)) -> 14.99081726
A41: 512 | B41: (FSG 5)-PP5-RC-LadC-Orc-Mfesc | C41: 512-(FSG 5)-PP5-RC-LadC-Orc-Mfesc | D41: Meadow Fescue | E41: Schedonorus pratensis | F41: 96 | G41: 6 | H41: 30 | I41: Grass | J41: I | K41: N | M41: PP5 | N41: FSG 5 | O41: RC-LadC-Orc-Mfesc | P41: 5 | Q41: =IF(D41="","",VLOOKUP(D41,species_data!$A$4:$G$148,7)) -> Mfesc | R41: RC-LadC-Orc-Mfesc | S41: =IF(D41="","",VLOOKUP(D41,species_data!$A$4:$F$148,4)) -> 5.211
A42: 512 | B42: (FSG 5)-PP5B-RC-LadC-Festu-Mfesc | C42: 512-(FSG 5)-PP5B-RC-LadC-Festu-Mfesc | D42: Red Clover | E42: Trifolium pratense | F42: 80 | G42: 5 | H42: 30 | I42: Legume | J42: I | K42: N | M42: PP5B | N42: FSG 5 | O42: RC-LadC-Festu-Mfesc | P42: 5 | Q42: =IF(D42="","",VLOOKUP(D42,species_data!$A$4:$G$148,7)) -> RC | R42: RC | S42: =IF(D42="","",VLOOKUP(D42,species_data!$A$4:$F$148,4)) -> 6.312
A43: 512 | B43: (FSG 5)-PP5B-RC-LadC-Festu-Mfesc | C43: 512-(FSG 5)-PP5B-RC-LadC-Festu-Mfesc | D43: White Ladino Clover | E43: Trifolium repens | F43: 16 | G43: 1 | H43: 20 | I43: Legume | J43: I | K43: N | M43: PP5B | N43: FSG 5 | O43: RC-LadC-Festu-Mfesc | P43: 5 | Q43: =IF(D43="","",VLOOKUP(D43,species_data!$A$4:$G$148,7)) -> LadC | R43: RC-LadC | S43: =IF(D43="","",VLOOKUP(D43,species_data!$A$4:$F$148,4)) -> 20.0096
A44: 512 | B44: (FSG 5)-PP5B-RC-LadC-Festu-Mfesc | C44: 512-(FSG 5)-PP5B-RC-LadC-Festu-Mfesc | D44: Festulolium | E44: Festuca x Lolium | F44: 112 | G44: 7 | H44: 36 | I44: Grass | J44: I | K44: N | M44: PP5B | N44: FSG 5 | O44: RC-LadC-Festu-Mfesc | P44: 5 | Q44: =IF(D44="","",VLOOKUP(D44,species_data!$A$4:$G$148,7)) -> Festu | R44: RC-LadC-Festu | S44: =IF(D44="","",VLOOKUP(D44,species_data!$A$4:$F$148,4)) -> 5.211202938
A45: 512 | B45: (FSG 5)-PP5B-RC-LadC-Festu-Mfesc | C45: 512-(FSG 5)-PP5B-RC-LadC-Festu-Mfesc | D45: Meadow Fescue | E45: Schedonorus pratensis | F45: 96 | G45: 6 | H45: 30 | I45: Grass | J45: I | K45: N | M45: PP5B | N45: FSG 5 | O45: RC-LadC-Festu-Mfesc | P45: 5 | Q45: =IF(D45="","",VLOOKUP(D45,species_data!$A$4:$G$148,7)) -> Mfesc | R45: RC-LadC-Festu-Mfesc | S45: =IF(D45="","",VLOOKUP(D45,species_data!$A$4:$F$148,4)) -> 5.211
A46: 512 | B46: (FSG 6)-PP6-RC-Orc-SB | C46: 512-(FSG 6)-PP6-RC-Orc-SB | D46: Red Clover | E46: Trifolium pratense | F46: 80 | G46: 5 | H46: 30 | I46: Legume | J46: I | K46: N | M46: PP6 | N46: FSG 6 | O46: RC-Orc-SB | P46: 6 | Q46: =IF(D46="","",VLOOKUP(D46,species_data!$A$4:$G$148,7)) -> RC | R46: RC | S46: =IF(D46="","",VLOOKUP(D46,species_data!$A$4:$F$148,4)) -> 6.312
A47: 512 | B47: (FSG 6)-PP6-RC-Orc-SB | C47: 512-(FSG 6)-PP6-RC-Orc-SB | D47: Orchardgrass | E47: Dactylis glomerata L. | F47: 64 | G47: 4 | H47: 64 | I47: Grass | J47: I | K47: N | M47: PP6 | N47: FSG 6 | O47: RC-Orc-SB | P47: 6 | Q47: =IF(D47="","",VLOOKUP(D47,species_data!$A$4:$G$148,7)) -> Orc | R47: RC-Orc | S47: =IF(D47="","",VLOOKUP(D47,species_data!$A$4:$F$148,4)) -> 14.99081726
A48: 512 | B48: (FSG 6)-PP6-RC-Orc-SB | C48: 512-(FSG 6)-PP6-RC-Orc-SB | D48: Smooth Bromegrass | E48: Bromus inermis | F48: 64 | G48: 4 | H48: 12 | I48: Grass | J48: I | K48: N | M48: PP6 | N48: FSG 6 | O48: RC-Orc-SB | P48: 6 | Q48: =IF(D48="","",VLOOKUP(D48,species_data!$A$4:$G$148,7)) -> SB | R48: RC-Orc-SB | S48: =IF(D48="","",VLOOKUP(D48,species_data!$A$4:$F$148,4)) -> 3.122130395
A49: 512 | B49: (FSG 7)-PP7-Aclover-Mfesc-Tim-Rtop | C49: 512-(FSG 7)-PP7-Aclover-Mfesc-Tim-Rtop | D49: Alsike Clover | E49: Trifolium hybridum | F49: 32 | G49: 2 | H49: 32 | I49: Legume | J49: I | K49: N | M49: PP7 | N49: FSG 7 | O49: Aclover-Mfesc-Tim-Rtop | P49: 7 | Q49: =IF(D49="","",VLOOKUP(D49,species_data!$A$4:$G$148,7)) -> Aclover | R49: Aclover | S49: =IF(D49="","",VLOOKUP(D49,species_data!$A$4:$F$148,4)) -> 15.6
A50: 512 | B50: (FSG 7)-PP7-Aclover-Mfesc-Tim-Rtop | C50: 512-(FSG 7)-PP7-Aclover-Mfesc-Tim-Rtop | D50: Meadow Fescue | E50: Schedonorus pratensis | F50: 96 | G50: 6 | H50: 30 | I50: Grass | J50: I | K50: N | M50: PP7 | N50: FSG 7 | O50: Aclover-Mfesc-Tim-Rtop | P50: 7 | Q50: =IF(D50="","",VLOOKUP(D50,species_data!$A$4:$G$148,7)) -> Mfesc | R50: Aclover-Mfesc | S50: =IF(D50="","",VLOOKUP(D50,species_data!$A$4:$F$148,4)) -> 5.211
A51: 512 | B51: (FSG 7)-PP7-Aclover-Mfesc-Tim-Rtop | C51: 512-(FSG 7)-PP7-Aclover-Mfesc-Tim-Rtop | D51: Timothy | E51: Phleum pratense | F51: 16 | G51: 1 | H51: 28 | I51: Grass | J51: I | K51: N | M51: PP7 | N51: FSG 7 | O51: Aclover-Mfesc-Tim-Rtop | P51: 7 | Q51: =IF(D51="","",VLOOKUP(D51,species_data!$A$4:$G$148,7)) -> Tim | R51: Aclover-Mfesc-Tim | S51: =IF(D51="","",VLOOKUP(D51,species_data!$A$4:$F$148,4)) -> 28.24
A52: 512 | B52: (FSG 7)-PP7-Aclover-Mfesc-Tim-Rtop | C52: 512-(FSG 7)-PP7-Aclover-Mfesc-Tim-Rtop | D52: Redtop | E52: Agrostis gigantea | F52: 16 | G52: 1 | H52: 114 | I52: Grass | J52: I | K52: N | M52: PP7 | N52: FSG 7 | O52: Aclover-Mfesc-Tim-Rtop | P52: 7 | Q52: =IF(D52="","",VLOOKUP(D52,species_data!$A$4:$G$148,7)) -> Rtop | R52: Aclover-Mfesc-Tim-Rtop | S52: =IF(D52="","",VLOOKUP(D52,species_data!$A$4:$F$148,4)) -> 114.5546373
A53: 512 | B53: (FSG 7)-PP7B-Btrefoil-Mfesc-Tim-Rtop | C53: 512-(FSG 7)-PP7B-Btrefoil-Mfesc-Tim-Rtop | D53: Birdsfoot Trefoil | E53: Lotus corniculatus | F53: 48 | G53: 3 | H53: 26 | I53: Legume | J53: I | K53: N | M53: PP7B | N53: FSG 7 | O53: Btrefoil-Mfesc-Tim-Rtop | P53: 7 | Q53: =IF(D53="","",VLOOKUP(D53,species_data!$A$4:$G$148,7)) -> Btrefoil | R53: Btrefoil | S53: =IF(D53="","",VLOOKUP(D53,species_data!$A$4:$F$148,4)) -> 8.608
A54: 512 | B54: (FSG 7)-PP7B-Btrefoil-Mfesc-Tim-Rtop | C54: 512-(FSG 7)-PP7B-Btrefoil-Mfesc-Tim-Rtop | D54: Meadow Fescue | E54: Schedonorus pratensis | F54: 96 | G54: 6 | H54: 30 | I54: Grass | J54: I | K54: N | M54: PP7B | N54: FSG 7 | O54: Btrefoil-Mfesc-Tim-Rtop | P54: 7 | Q54: =IF(D54="","",VLOOKUP(D54,species_data!$A$4:$G$148,7)) -> Mfesc | R54: Btrefoil-Mfesc | S54: =IF(D54="","",VLOOKUP(D54,species_data!$A$4:$F$148,4)) -> 5.211
A55: 512 | B55: (FSG 7)-PP7B-Btrefoil-Mfesc-Tim-Rtop | C55: 512-(FSG 7)-PP7B-Btrefoil-Mfesc-Tim-Rtop | D55: Timothy | E55: Phleum pratense | F55: 16 | G55: 1 | H55: 28 | I55: Grass | J55: I | K55: N | M55: PP7B | N55: FSG 7 | O55: Btrefoil-Mfesc-Tim-Rtop | P55: 7 | Q55: =IF(D55="","",VLOOKUP(D55,species_data!$A$4:$G$148,7)) -> Tim | R55: Btrefoil-Mfesc-Tim | S55: =IF(D55="","",VLOOKUP(D55,species_data!$A$4:$F$148,4)) -> 28.24
A56: 512 | B56: (FSG 7)-PP7B-Btrefoil-Mfesc-Tim-Rtop | C56: 512-(FSG 7)-PP7B-Btrefoil-Mfesc-Tim-Rtop | D56: Redtop | E56: Agrostis gigantea | F56: 16 | G56: 1 | H56: 114 | I56: Grass | J56: I | K56: N | M56: PP7B | N56: FSG 7 | O56: Btrefoil-Mfesc-Tim-Rtop | P56: 7 | Q56: =IF(D56="","",VLOOKUP(D56,species_data!$A$4:$G$148,7)) -> Rtop | R56: Btrefoil-Mfesc-Tim-Rtop | S56: =IF(D56="","",VLOOKUP(D56,species_data!$A$4:$F$148,4)) -> 114.5546373
A57: 512 | B57: (FSG 8)-PP8-LadC-Orc-Mfesc | C57: 512-(FSG 8)-PP8-LadC-Orc-Mfesc | D57: White Ladino Clover | E57: Trifolium repens | F57: 16 | G57: 1 | H57: 20 | I57: Legume | J57: I | K57: N | M57: PP8 | N57: FSG 8 | O57: LadC-Orc-Mfesc | P57: 8 | Q57: =IF(D57="","",VLOOKUP(D57,species_data!$A$4:$G$148,7)) -> LadC | R57: LadC | S57: =IF(D57="","",VLOOKUP(D57,species_data!$A$4:$F$148,4)) -> 20.0096
A58: 512 | B58: (FSG 8)-PP8-LadC-Orc-Mfesc | C58: 512-(FSG 8)-PP8-LadC-Orc-Mfesc | D58: Orchardgrass | E58: Dactylis glomerata L. | F58: 48 | G58: 3 | H58: 48 | I58: Grass | J58: I | K58: N | M58: PP8 | N58: FSG 8 | O58: LadC-Orc-Mfesc | P58: 8 | Q58: =IF(D58="","",VLOOKUP(D58,species_data!$A$4:$G$148,7)) -> Orc | R58: LadC-Orc | S58: =IF(D58="","",VLOOKUP(D58,species_data!$A$4:$F$148,4)) -> 14.99081726
A59: 512 | B59: (FSG 8)-PP8-LadC-Orc-Mfesc | C59: 512-(FSG 8)-PP8-LadC-Orc-Mfesc | D59: Meadow Fescue | E59: Schedonorus pratensis | F59: 96 | G59: 6 | H59: 30 | I59: Grass | J59: I | K59: N | M59: PP8 | N59: FSG 8 | O59: LadC-Orc-Mfesc | P59: 8 | Q59: =IF(D59="","",VLOOKUP(D59,species_data!$A$4:$G$148,7)) -> Mfesc | R59: LadC-Orc-Mfesc | S59: =IF(D59="","",VLOOKUP(D59,species_data!$A$4:$F$148,4)) -> 5.211
A60: 512 | B60: (FSG 8)-PP8B-LadC-Festu-Mfesc | C60: 512-(FSG 8)-PP8B-LadC-Festu-Mfesc | D60: White Ladino Clover | E60: Trifolium repens | F60: 16 | G60: 1 | H60: 20 | I60: Legume | J60: I | K60: N | M60: PP8B | N60: FSG 8 | O60: LadC-Festu-Mfesc | P60: 8 | Q60: =IF(D60="","",VLOOKUP(D60,species_data!$A$4:$G$148,7)) -> LadC | R60: LadC | S60: =IF(D60="","",VLOOKUP(D60,species_data!$A$4:$F$148,4)) -> 20.0096
A61: 512 | B61: (FSG 8)-PP8B-LadC-Festu-Mfesc | C61: 512-(FSG 8)-PP8B-LadC-Festu-Mfesc | D61: Festulolium | E61: Festuca x Lolium | F61: 112 | G61: 7 | H61: 36 | I61: Grass | J61: I | K61: N | M61: PP8B | N61: FSG 8 | O61: LadC-Festu-Mfesc | P61: 8 | Q61: =IF(D61="","",VLOOKUP(D61,species_data!$A$4:$G$148,7)) -> Festu | R61: LadC-Festu | S61: =IF(D61="","",VLOOKUP(D61,species_data!$A$4:$F$148,4)) -> 5.211202938
A62: 512 | B62: (FSG 8)-PP8B-LadC-Festu-Mfesc | C62: 512-(FSG 8)-PP8B-LadC-Festu-Mfesc | D62: Meadow Fescue | E62: Schedonorus pratensis | F62: 96 | G62: 6 | H62: 30 | I62: Grass | J62: I | K62: N | M62: PP8B | N62: FSG 8 | O62: LadC-Festu-Mfesc | P62: 8 | Q62: =IF(D62="","",VLOOKUP(D62,species_data!$A$4:$G$148,7)) -> Mfesc | R62: LadC-Festu-Mfesc | S62: =IF(D62="","",VLOOKUP(D62,species_data!$A$4:$F$148,4)) -> 5.211
A63: 512 | B63: (FSG 9)-PP9-RC-Orc-Mfesc | C63: 512-(FSG 9)-PP9-RC-Orc-Mfesc | D63: Red Clover | E63: Trifolium pratense | F63: 80 | G63: 5 | H63: 30 | I63: Legume | J63: I | K63: N | M63: PP9 | N63: FSG 9 | O63: RC-Orc-Mfesc | P63: 9 | Q63: =IF(D63="","",VLOOKUP(D63,species_data!$A$4:$G$148,7)) -> RC | R63: RC | S63: =IF(D63="","",VLOOKUP(D63,species_data!$A$4:$F$148,4)) -> 6.312
A64: 512 | B64: (FSG 9)-PP9-RC-Orc-Mfesc | C64: 512-(FSG 9)-PP9-RC-Orc-Mfesc | D64: Orchardgrass | E64: Dactylis glomerata L. | F64: 48 | G64: 3 | H64: 48 | I64: Grass | J64: I | K64: N | M64: PP9 | N64: FSG 9 | O64: RC-Orc-Mfesc | P64: 9 | Q64: =IF(D64="","",VLOOKUP(D64,species_data!$A$4:$G$148,7)) -> Orc | R64: RC-Orc | S64: =IF(D64="","",VLOOKUP(D64,species_data!$A$4:$F$148,4)) -> 14.99081726
A65: 512 | B65: (FSG 9)-PP9-RC-Orc-Mfesc | C65: 512-(FSG 9)-PP9-RC-Orc-Mfesc | D65: Meadow Fescue | E65: Schedonorus pratensis | F65: 96 | G65: 6 | H65: 30 | I65: Grass | J65: I | K65: N | M65: PP9 | N65: FSG 9 | O65: RC-Orc-Mfesc | P65: 9 | Q65: =IF(D65="","",VLOOKUP(D65,species_data!$A$4:$G$148,7)) -> Mfesc | R65: RC-Orc-Mfesc | S65: =IF(D65="","",VLOOKUP(D65,species_data!$A$4:$F$148,4)) -> 5.211
A66: 512 | B66: (FSG 1,4,7)-PHS1-KB-Mfesc-LadC | C66: 512-(FSG 1,4,7)-PHS1-KB-Mfesc-LadC | D66: Kentucky Bluegrass | E66: Poa pratensis | F66: 64 | G66: 4 | H66: 200 | I66: Grass | J66: I | K66: N | M66: PHS1 | N66: FSG 1,4,7 | O66: KB-Mfesc-LadC | P66: 1,4,7 | Q66: =IF(D66="","",VLOOKUP(D66,species_data!$A$4:$G$148,7)) -> KB | R66: KB | S66: =IF(D66="","",VLOOKUP(D66,species_data!$A$4:$F$148,4)) -> 50
A67: 512 | B67: (FSG 1,4,7)-PHS1-KB-Mfesc-LadC | C67: 512-(FSG 1,4,7)-PHS1-KB-Mfesc-LadC | D67: Meadow Fescue | E67: Schedonorus pratensis | F67: 64 | G67: 4 | H67: 20 | I67: Grass | J67: I | K67: N | M67: PHS1 | N67: FSG 1,4,7 | O67: KB-Mfesc-LadC | P67: 1,4,7 | Q67: =IF(D67="","",VLOOKUP(D67,species_data!$A$4:$G$148,7)) -> Mfesc | R67: KB-Mfesc | S67: =IF(D67="","",VLOOKUP(D67,species_data!$A$4:$F$148,4)) -> 5.211
A68: 512 | B68: (FSG 1,4,7)-PHS1-KB-Mfesc-LadC | C68: 512-(FSG 1,4,7)-PHS1-KB-Mfesc-LadC | D68: White Ladino Clover | E68: Trifolium repens | F68: 16 | G68: 1 | H68: 20 | I68: Legume | J68: I | K68: N | M68: PHS1 | N68: FSG 1,4,7 | O68: KB-Mfesc-LadC | P68: 1,4,7 | Q68: =IF(D68="","",VLOOKUP(D68,species_data!$A$4:$G$148,7)) -> LadC | R68: KB-Mfesc-LadC | S68: =IF(D68="","",VLOOKUP(D68,species_data!$A$4:$F$148,4)) -> 20.0096
A69: 512 | B69: (FSG 1,4,7)-PHS1A-KB-Mfesc-Btrefoil | C69: 512-(FSG 1,4,7)-PHS1A-KB-Mfesc-Btrefoil | D69: Kentucky Bluegrass | E69: Poa pratensis | F69: 64 | G69: 4 | H69: 200 | I69: Grass | J69: I | K69: N | M69: PHS1A | N69: FSG 1,4,7 | O69: KB-Mfesc-Btrefoil | P69: 1,4,7 | Q69: =IF(D69="","",VLOOKUP(D69,species_data!$A$4:$G$148,7)) -> KB | R69: KB | S69: =IF(D69="","",VLOOKUP(D69,species_data!$A$4:$F$148,4)) -> 50
A70: =IF(D70="","",512) -> 512 | B70: =IF(O70="","",CONCATENATE("(",N70,")-",M70,"-",O70)) -> (FSG 1,4,7)-PHS1A-KB-Mfesc-Btrefoil | C70: =IF(D70="","",CONCATENATE(A70,"-",B70)) -> 512-(FSG 1,4,7)-PHS1A-KB-Mfesc-Btrefoil | D70: Meadow Fescue | E70: Schedonorus pratensis | F70: =IF(D70="","",ROUND(G70*16,1)) -> 64 | G70: 4 | H70: 20 | I70: Grass | J70: I | K70: N | M70: PHS1A | N70: FSG 1,4,7 | O70: KB-Mfesc-Btrefoil | P70: 1,4,7 | Q70: =IF(D70="","",VLOOKUP(D70,species_data!$A$4:$G$148,7)) -> Mfesc | R70: KB-Mfesc | S70: =IF(D70="","",VLOOKUP(D70,species_data!$A$4:$F$148,4)) -> 5.211
A71: 512 | B71: (FSG 1,4,7)-PHS1A-KB-Mfesc-Btrefoil | C71: 512-(FSG 1,4,7)-PHS1A-KB-Mfesc-Btrefoil | D71: Birdsfoot Trefoil | E71: Lotus corniculatus | F71: 48 | G71: 3 | H71: 26 | I71: Legume | J71: I | K71: N | M71: PHS1A | N71: FSG 1,4,7 | O71: =IF(M71=M72,O72,R71) -> KB-Mfesc-Btrefoil | P71: 1,4,7 | Q71: =IF(D71="","",VLOOKUP(D71,species_data!$A$4:$G$148,7)) -> Btrefoil | R71: KB-Mfesc-Btrefoil | S71: =IF(D71="","",VLOOKUP(D71,species_data!$A$4:$F$148,4)) -> 8.608
A72: 512 | B72: (FSG 5-8)-PHS2-KB-Festu-LadC | C72: 512-(FSG 5-8)-PHS2-KB-Festu-LadC | D72: Kentucky Bluegrass | E72: Poa pratensis | F72: 32 | G72: 2 | H72: 100 | I72: Grass | J72: I | K72: N | M72: PHS2 | N72: FSG 5-8 | O72: KB-Festu-LadC | P72: 5-8 | Q72: =IF(D72="","",VLOOKUP(D72,species_data!$A$4:$G$148,7)) -> KB | R72: KB | S72: =IF(D72="","",VLOOKUP(D72,species_data!$A$4:$F$148,4)) -> 50
A73: 512 | B73: (FSG 5-8)-PHS2-KB-Festu-LadC | C73: 512-(FSG 5-8)-PHS2-KB-Festu-LadC | D73: Festulolium | E73: Festuca x Lolium | F73: 112 | G73: 7 | H73: 35 | I73: Grass | J73: I | K73: N | M73: PHS2 | N73: FSG 5-8 | O73: KB-Festu-LadC | P73: 5-8 | Q73: =IF(D73="","",VLOOKUP(D73,species_data!$A$4:$G$148,7)) -> Festu | R73: KB-Festu | S73: =IF(D73="","",VLOOKUP(D73,species_data!$A$4:$F$148,4)) -> 5.211202938
A74: 512 | B74: (FSG 5-8)-PHS2-KB-Festu-LadC | C74: 512-(FSG 5-8)-PHS2-KB-Festu-LadC | D74: White Ladino Clover | E74: Trifolium repens | F74: 16 | G74: 1 | H74: 20 | I74: Legume | J74: I | K74: N | M74: PHS2 | N74: FSG 5-8 | O74: KB-Festu-LadC | P74: 5-8 | Q74: =IF(D74="","",VLOOKUP(D74,species_data!$A$4:$G$148,7)) -> LadC | R74: KB-Festu-LadC | S74: =IF(D74="","",VLOOKUP(D74,species_data!$A$4:$F$148,4)) -> 20.0096
A75: 512 | B75: (FSG 5-8)-PHS2A-KB-Prye-LadC | C75: 512-(FSG 5-8)-PHS2A-KB-Prye-LadC | D75: Kentucky Bluegrass | E75: Poa pratensis | F75: 32 | G75: 2 | H75: 100 | I75: Grass | J75: I | K75: N | M75: PHS2A | N75: FSG 5-8 | O75: KB-Prye-LadC | P75: 5-8 | Q75: =IF(D75="","",VLOOKUP(D75,species_data!$A$4:$G$148,7)) -> KB | R75: KB | S75: =IF(D75="","",VLOOKUP(D75,species_data!$A$4:$F$148,4)) -> 50
A76: 512 | B76: (FSG 5-8)-PHS2A-KB-Prye-LadC | C76: 512-(FSG 5-8)-PHS2A-KB-Prye-LadC | D76: Perennial Ryegrass | E76: Lolium perenne | F76: 112 | G76: 7 | H76: 35 | I76: Grass | J76: I | K76: N | M76: PHS2A | N76: FSG 5-8 | O76: KB-Prye-LadC | P76: 5-8 | Q76: =IF(D76="","",VLOOKUP(D76,species_data!$A$4:$G$148,7)) -> Prye | R76: KB-Prye | S76: =IF(D76="","",VLOOKUP(D76,species_data!$A$4:$F$148,4)) -> 5.211
A77: 512 | B77: (FSG 5-8)-PHS2A-KB-Prye-LadC | C77: 512-(FSG 5-8)-PHS2A-KB-Prye-LadC | D77: White Ladino Clover | E77: Trifolium repens | F77: 16 | G77: 1 | H77: 20 | I77: Legume | J77: I | K77: N | M77: PHS2A | N77: FSG 5-8 | O77: KB-Prye-LadC | P77: 5-8 | Q77: =IF(D77="","",VLOOKUP(D77,species_data!$A$4:$G$148,7)) -> LadC | R77: KB-Prye-LadC | S77: =IF(D77="","",VLOOKUP(D77,species_data!$A$4:$F$148,4)) -> 20.0096
A78: 512 | B78: (FSG 2-3)-PHS3-Alf-Orc | C78: 512-(FSG 2-3)-PHS3-Alf-Orc | D78: Alfalfa | E78: Medicago sativa | F78: 96 | G78: 6 | H78: 30 | I78: Legume | J78: I | K78: N | M78: PHS3 | N78: FSG 2-3 | O78: Alf-Orc | P78: 2-3 | Q78: =IF(D78="","",VLOOKUP(D78,species_data!$A$4:$G$148,7)) -> Alf | R78: Alf | S78: =IF(D78="","",VLOOKUP(D78,species_data!$A$4:$F$148,4)) -> 5.024
A79: =IF(D79="","",512) -> 512 | B79: (FSG 2-3)-PHS3-Alf-Orc | C79: 512-(FSG 2-3)-PHS3-Alf-Orc | D79: Orchardgrass | E79: Dactylis glomerata L. | F79: 48 | G79: 3 | H79: 48 | I79: Grass | J79: I | K79: N | M79: PHS3 | N79: FSG 2-3 | O79: Alf-Orc | P79: 2-3 | Q79: =IF(D79="","",VLOOKUP(D79,species_data!$A$4:$G$148,7)) -> Orc | R79: Alf-Orc | S79: =IF(D79="","",VLOOKUP(D79,species_data!$A$4:$F$148,4)) -> 14.99081726
B80: =IF(O80="","",CONCATENATE("(",N80,")-",M80,"-",O80)) -> ()--0 | C80: =IF(D80="","",CONCATENATE(A80,"-",B80)) ->  | N80: =IF(D80="","",CONCATENATE("FSG ",P80)) ->  | O80: 0 | Q80: =IF(D80="","",VLOOKUP(D80,species_data!$A$4:$G$148,7)) ->  | S80: =IF(D80="","",VLOOKUP(D80,species_data!$A$4:$F$148,4)) -> 
B81: =IF(D81="","",CONCATENATE(" (",N81,"), ",M81,", ",O81)) ->  | O81: 0 | Q81: =IF(D81="","",VLOOKUP(D81,species_data!$A$4:$G$148,7)) ->  | S81: =IF(D81="","",VLOOKUP(D81,species_data!$A$4:$F$148,4)) -> 
O82: 0 | Q82: =IF(D82="","",VLOOKUP(D82,species_data!$A$4:$G$148,7)) ->  | R82: =IF(D82="","",IF(AND(N82=N81,M82=M81),CONCATENATE(R81,"-",Q82),Q82)) ->  | S82: =IF(D82="","",VLOOKUP(D82,species_data!$A$4:$F$148,4)) -> 
O83: 0 | Q83: =IF(D83="","",VLOOKUP(D83,species_data!$A$4:$G$148,7)) ->  | S83: =IF(D83="","",VLOOKUP(D83,species_data!$A$4:$F$148,4)) -> 
C84: =IF(D84="","",CONCATENATE(A84,"-",B84)) ->  | O84: 0 | Q84: =IF(D84="","",VLOOKUP(D84,species_data!$A$4:$G$148,7)) ->  | S84: =IF(D84="","",VLOOKUP(D84,species_data!$A$4:$F$148,4)) -> 
O85: 0 | Q85: =IF(D85="","",VLOOKUP(D85,species_data!$A$4:$G$148,7)) ->  | S85: =IF(D85="","",VLOOKUP(D85,species_data!$A$4:$F$148,4)) -> 
O86: 0 | Q86: =IF(D86="","",VLOOKUP(D86,species_data!$A$4:$G$148,7)) ->  | S86: =IF(D86="","",VLOOKUP(D86,species_data!$A$4:$F$148,4)) -> 
O87: 0 | Q87: =IF(D87="","",VLOOKUP(D87,species_data!$A$4:$G$148,7)) ->  | S87: =IF(D87="","",VLOOKUP(D87,species_data!$A$4:$F$148,4)) -> 
O88: 0 | Q88: =IF(D88="","",VLOOKUP(D88,species_data!$A$4:$G$148,7)) ->  | S88: =IF(D88="","",VLOOKUP(D88,species_data!$A$4:$F$148,4)) -> 
O89: 0 | Q89: =IF(D89="","",VLOOKUP(D89,species_data!$A$4:$G$148,7)) ->  | S89: =IF(D89="","",VLOOKUP(D89,species_data!$A$4:$F$148,4)) -> 
O90: 0 | Q90: =IF(D90="","",VLOOKUP(D90,species_data!$A$4:$G$148,7)) ->  | S90: =IF(D90="","",VLOOKUP(D90,species_data!$A$4:$F$148,4)) -> 
O91: 0 | Q91: =IF(D91="","",VLOOKUP(D91,species_data!$A$4:$G$148,7)) ->  | S91: =IF(D91="","",VLOOKUP(D91,species_data!$A$4:$F$148,4)) -> 
O92: 0 | Q92: =IF(D92="","",VLOOKUP(D92,species_data!$A$4:$G$148,7)) ->  | S92: =IF(D92="","",VLOOKUP(D92,species_data!$A$4:$F$148,4)) -> 
O93: 0 | Q93: =IF(D93="","",VLOOKUP(D93,species_data!$A$4:$G$148,7)) ->  | S93: =IF(D93="","",VLOOKUP(D93,species_data!$A$4:$F$148,4)) -> 
O94: 0 | Q94: =IF(D94="","",VLOOKUP(D94,species_data!$A$4:$G$148,7)) ->  | S94: =IF(D94="","",VLOOKUP(D94,species_data!$A$4:$F$148,4)) -> 
O95: 0 | Q95: =IF(D95="","",VLOOKUP(D95,species_data!$A$4:$G$148,7)) ->  | S95: =IF(D95="","",VLOOKUP(D95,species_data!$A$4:$F$148,4)) -> 
O96: 0 | Q96: =IF(D96="","",VLOOKUP(D96,species_data!$A$4:$G$148,7)) ->  | S96: =IF(D96="","",VLOOKUP(D96,species_data!$A$4:$F$148,4)) -> 
O97: 0 | Q97: =IF(D97="","",VLOOKUP(D97,species_data!$A$4:$G$148,7)) ->  | S97: =IF(D97="","",VLOOKUP(D97,species_data!$A$4:$F$148,4)) -> 
O98: 0 | Q98: =IF(D98="","",VLOOKUP(D98,species_data!$A$4:$G$148,7)) ->  | S98: =IF(D98="","",VLOOKUP(D98,species_data!$A$4:$F$148,4)) -> 
O99: 0 | Q99: =IF(D99="","",VLOOKUP(D99,species_data!$A$4:$G$148,7)) ->  | S99: =IF(D99="","",VLOOKUP(D99,species_data!$A$4:$F$148,4)) -> 
O100: 0 | Q100: =IF(D100="","",VLOOKUP(D100,species_data!$A$4:$G$148,7)) ->  | S100: =IF(D100="","",VLOOKUP(D100,species_data!$A$4:$F$148,4)) -> 
O101: 0 | Q101: =IF(D101="","",VLOOKUP(D101,species_data!$A$4:$G$148,7)) ->  | S101: =IF(D101="","",VLOOKUP(D101,species_data!$A$4:$F$148,4)) -> 
A800: STD | B800: Mix # | C800: std-mix | D800: Common Name | E800: Scientific Name | F800: PLS (oz./A) | G800: PLS (lbs./A) | H800: Seeds/Square Foot | I800: Type | J800: Intro / Native | K800: Poll. (Y/N) | L800: MIX Descrip | M800: Mix No. | N800: MR
J801: =IF(SeedingPlan_STD!$L$3=1,"I","N") -> N
A804: STD | B804: Mix # | C804: std-mix | D804: Common Name | E804: Scientific Name | F804: PLS (oz./A) | G804: PLS (lbs./A) | H804: Seeds/Square Foot | I804: Type | J804: Intro / Native | K804: Poll. (Y/N) | M804: Mix No. | N804: FSG-MIX # | O804: Mix Components | P804: FSG
C805: LEAVE THIS ROW AS IS | J805: I | K805: Y
C806: LEAVE THIS ROW AS IS | J806: N | K806: Y
A807: 512 | B807: (FSG 1)-H1-RC-Tfesc-Tim | C807: 512-(FSG 1)-H1-RC-Tfesc-Tim | D807: Red Clover | E807: Trifolium pratense | F807: 96 | G807: 6 | H807: 36 | I807: Legume | J807: I | K807: N | M807: H1 | N807: FSG 1 | O807: RC-Tfesc-Tim | P807: 1
A808: 512 | B808: (FSG 1)-H1-RC-Tfesc-Tim | C808: 512-(FSG 1)-H1-RC-Tfesc-Tim | D808: Tall Fescue | E808: Schedonorus arundinaceus | F808: 96 | G808: 6 | H808: 32 | I808: Grass | J808: I | K808: N | M808: H1 | N808: FSG 1 | O808: RC-Tfesc-Tim | P808: 1
A809: 512 | B809: (FSG 1)-H1-RC-Tfesc-Tim | C809: 512-(FSG 1)-H1-RC-Tfesc-Tim | D809: Timothy | E809: Phleum pratense | F809: 16 | G809: 1 | H809: 28 | I809: Grass | J809: I | K809: N | M809: H1 | N809: FSG 1 | O809: RC-Tfesc-Tim | P809: 1
A810: 512 | B810: (FSG 2)-H2-Alf | C810: 512-(FSG 2)-H2-Alf | D810: Alfalfa | E810: Medicago sativa | F810: 192 | G810: 12 | H810: 60 | I810: Legume | J810: I | K810: N | M810: H2 | N810: FSG 2 | O810: Alf | P810: 2
A811: 512 | B811: (FSG 2,3,5,6)-H3-Alf-SB | C811: 512-(FSG 2,3,5,6)-H3-Alf-SB | D811: Alfalfa | E811: Medicago sativa | F811: 160 | G811: 10 | H811: 50 | I811: Legume | J811: I | K811: N | M811: H3 | N811: FSG 2,3,5,6 | O811: Alf-SB | P811: 2,3,5,6
A812: 512 | B812: (FSG 2,3,5,6)-H3-Alf-SB | C812: 512-(FSG 2,3,5,6)-H3-Alf-SB | D812: Smooth Bromegrass | E812: Bromus inermis | F812: 64 | G812: 4 | H812: 12 | I812: Grass | J812: I | K812: N | M812: H3 | N812: FSG 2,3,5,6 | O812: Alf-SB | P812: 2,3,5,6
A813: 512 | B813: (FSG 4,7)-H4-Aclover-Tfesc-Tim | C813: 512-(FSG 4,7)-H4-Aclover-Tfesc-Tim | D813: Alsike Clover | E813: Trifolium hybridum | F813: 48 | G813: 3 | H813: 48 | I813: Legume | J813: I | K813: N | M813: H4 | N813: FSG 4,7 | O813: Aclover-Tfesc-Tim | P813: 4,7
A814: 512 | B814: (FSG 4,7)-H4-Aclover-Tfesc-Tim | C814: 512-(FSG 4,7)-H4-Aclover-Tfesc-Tim | D814: Tall Fescue | E814: Schedonorus arundinaceus | F814: 96 | G814: 6 | H814: 32 | I814: Grass | J814: I | K814: N | M814: H4 | N814: FSG 4,7 | O814: Aclover-Tfesc-Tim | P814: 4,7
A815: 512 | B815: (FSG 4,7)-H4-Aclover-Tfesc-Tim | C815: 512-(FSG 4,7)-H4-Aclover-Tfesc-Tim | D815: Timothy | E815: Phleum pratense | F815: 16 | G815: 1 | H815: 28 | I815: Grass | J815: I | K815: N | M815: H4 | N815: FSG 4,7 | O815: Aclover-Tfesc-Tim | P815: 4,7
A816: 512 | B816: (FSG 8)-H5-Alf-Tim | C816: 512-(FSG 8)-H5-Alf-Tim | D816: Alfalfa | E816: Medicago sativa | F816: 128 | G816: 8 | H816: 40 | I816: Legume | J816: I | K816: N | M816: H5 | N816: FSG 8 | O816: Alf-Tim | P816: 8
A817: 512 | B817: (FSG 8)-H5-Alf-Tim | C817: 512-(FSG 8)-H5-Alf-Tim | D817: Timothy | E817: Phleum pratense | F817: 32 | G817: 2 | H817: 56 | I817: Grass | J817: I | K817: N | M817: H5 | N817: FSG 8 | O817: Alf-Tim | P817: 8
A818: 512 | B818: (FSG 9)-H6-Alf-SB-Tim | C818: 512-(FSG 9)-H6-Alf-SB-Tim | D818: Alfalfa | E818: Medicago sativa | F818: 128 | G818: 8 | H818: 40 | I818: Legume | J818: I | K818: N | M818: H6 | N818: FSG 9 | O818: Alf-SB-Tim | P818: 9
A819: 512 | B819: (FSG 9)-H6-Alf-SB-Tim | C819: 512-(FSG 9)-H6-Alf-SB-Tim | D819: Smooth Bromegrass | E819: Bromus inermis | F819: 64 | G819: 4 | H819: 12 | I819: Grass | J819: I | K819: N | M819: H6 | N819: FSG 9 | O819: Alf-SB-Tim | P819: 9
A820: 512 | B820: (FSG 9)-H6-Alf-SB-Tim | C820: 512-(FSG 9)-H6-Alf-SB-Tim | D820: Timothy | E820: Phleum pratense | F820: 16 | G820: 1 | H820: 28 | I820: Grass | J820: I | K820: N | M820: H6 | N820: FSG 9 | O820: Alf-SB-Tim | P820: 9
A821: 512 | B821: (FSG 1-9)-H7-Switch | C821: 512-(FSG 1-9)-H7-Switch | D821: Switchgrass | E821: Panicum virgatum | F821: 112 | G821: 7 | H821: 63 | I821: Grass | J821: N | K821: N | M821: H7 | N821: FSG 1-9 | O821: Switch | P821: 1-9
A822: 512 | B822: (FSG 1-9)-H8-BB | C822: 512-(FSG 1-9)-H8-BB | D822: Big Bluestem | E822: Andropogon gerardii | F822: 176 | G822: 11 | H822: 42 | I822: Grass | J822: N | K822: N | M822: H8 | N822: FSG 1-9 | O822: BB | P822: 1-9
A823: 512 | B823: (FSG 1-9)-H9-Indian | C823: 512-(FSG 1-9)-H9-Indian | D823: Indiangrass | E823: Sorghastrum nutans | F823: 160 | G823: 10 | H823: 44 | I823: Grass | J823: N | K823: N | M823: H9 | N823: FSG 1-9 | O823: Indian | P823: 1-9
A824: 512 | B824: (FSG 1)-PP1-Aclover-Mfesc | C824: 512-(FSG 1)-PP1-Aclover-Mfesc | D824: Alsike Clover | E824: Trifolium hybridum | F824: 32 | G824: 2 | H824: 32 | I824: Legume | J824: I | K824: N | M824: PP1 | N824: FSG 1 | O824: Aclover-Mfesc | P824: 1
A825: 512 | B825: (FSG 1)-PP1-Aclover-Mfesc | C825: 512-(FSG 1)-PP1-Aclover-Mfesc | D825: Meadow Fescue | E825: Schedonorus pratensis | F825: 96 | G825: 6 | H825: 30 | I825: Grass | J825: I | K825: N | M825: PP1 | N825: FSG 1 | O825: Aclover-Mfesc | P825: 1
A826: 512 | B826: (FSG 1)-PP1A-Aclover-Orc | C826: 512-(FSG 1)-PP1A-Aclover-Orc | D826: Alsike Clover | E826: Trifolium hybridum | F826: 32 | G826: 2 | H826: 32 | I826: Legume | J826: I | K826: N | M826: PP1A | N826: FSG 1 | O826: Aclover-Orc | P826: 1
A827: 512 | B827: (FSG 1)-PP1A-Aclover-Orc | C827: 512-(FSG 1)-PP1A-Aclover-Orc | D827: Orchardgrass | E827: Dactylis glomerata L. | F827: 48 | G827: 3 | H827: 48 | I827: Grass | J827: I | K827: N | M827: PP1A | N827: FSG 1 | O827: Aclover-Orc | P827: 1
A828: 512 | B828: (FSG 1)-PP1B-Aclover-Tim | C828: 512-(FSG 1)-PP1B-Aclover-Tim | D828: Alsike Clover | E828: Trifolium hybridum | F828: 32 | G828: 2 | H828: 32 | I828: Legume | J828: I | K828: N | M828: PP1B | N828: FSG 1 | O828: Aclover-Tim | P828: 1
A829: 512 | B829: (FSG 1)-PP1B-Aclover-Tim | C829: 512-(FSG 1)-PP1B-Aclover-Tim | D829: Timothy | E829: Phleum pratense | F829: 24 | G829: 1.5 | H829: 42 | I829: Grass | J829: I | K829: N | M829: PP1B | N829: FSG 1 | O829: Aclover-Tim | P829: 1
A830: 512 | B830: (FSG 2-3)-PP2-Alf-SB-Orc | C830: 512-(FSG 2-3)-PP2-Alf-SB-Orc | D830: Alfalfa | E830: Medicago sativa | F830: 96 | G830: 6 | H830: 30 | I830: Legume | J830: I | K830: N | M830: PP2 | N830: FSG 2-3 | O830: Alf-SB-Orc | P830: 2-3
A831: 512 | B831: (FSG 2-3)-PP2-Alf-SB-Orc | C831: 512-(FSG 2-3)-PP2-Alf-SB-Orc | D831: Smooth Bromegrass | E831: Bromus inermis | F831: 64 | G831: 4 | H831: 12 | I831: Grass | J831: I | K831: N | M831: PP2 | N831: FSG 2-3 | O831: Alf-SB-Orc | P831: 2-3
A832: 512 | B832: (FSG 2-3)-PP2-Alf-SB-Orc | C832: 512-(FSG 2-3)-PP2-Alf-SB-Orc | D832: Orchardgrass | E832: Dactylis glomerata L. | F832: 64 | G832: 4 | H832: 64 | I832: Grass | J832: I | K832: N | M832: PP2 | N832: FSG 2-3 | O832: Alf-SB-Orc | P832: 2-3
A833: 512 | B833: (FSG 4)-PP4-Aclover-Mfesc-Tim | C833: 512-(FSG 4)-PP4-Aclover-Mfesc-Tim | D833: Alsike Clover | E833: Trifolium hybridum | F833: 32 | G833: 2 | H833: 32 | I833: Legume | J833: I | K833: N | M833: PP4 | N833: FSG 4 | O833: Aclover-Mfesc-Tim | P833: 4
A834: 512 | B834: (FSG 4)-PP4-Aclover-Mfesc-Tim | C834: 512-(FSG 4)-PP4-Aclover-Mfesc-Tim | D834: Meadow Fescue | E834: Schedonorus pratensis | F834: 96 | G834: 6 | H834: 30 | I834: Grass | J834: I | K834: N | M834: PP4 | N834: FSG 4 | O834: Aclover-Mfesc-Tim | P834: 4
A835: 512 | B835: (FSG 4)-PP4-Aclover-Mfesc-Tim | C835: 512-(FSG 4)-PP4-Aclover-Mfesc-Tim | D835: Timothy | E835: Phleum pratense | F835: 16 | G835: 1 | H835: 28 | I835: Grass | J835: I | K835: N | M835: PP4 | N835: FSG 4 | O835: Aclover-Mfesc-Tim | P835: 4
A836: 512 | B836: (FSG 4)-PP4B-Btrefoil-Mfesc-Tim | C836: 512-(FSG 4)-PP4B-Btrefoil-Mfesc-Tim | D836: Birdsfoot Trefoil | E836: Lotus corniculatus | F836: 48 | G836: 3 | H836: 26 | I836: Legume | J836: I | K836: N | M836: PP4B | N836: FSG 4 | O836: Btrefoil-Mfesc-Tim | P836: 4
A837: 512 | B837: (FSG 4)-PP4B-Btrefoil-Mfesc-Tim | C837: 512-(FSG 4)-PP4B-Btrefoil-Mfesc-Tim | D837: Meadow Fescue | E837: Schedonorus pratensis | F837: 96 | G837: 6 | H837: 30 | I837: Grass | J837: I | K837: N | M837: PP4B | N837: FSG 4 | O837: Btrefoil-Mfesc-Tim | P837: 4
A838: 512 | B838: (FSG 4)-PP4B-Btrefoil-Mfesc-Tim | C838: 512-(FSG 4)-PP4B-Btrefoil-Mfesc-Tim | D838: Timothy | E838: Phleum pratense | F838: 16 | G838: 1 | H838: 28 | I838: Grass | J838: I | K838: N | M838: PP4B | N838: FSG 4 | O838: Btrefoil-Mfesc-Tim | P838: 4
A839: 512 | B839: (FSG 5)-PP5-RC-LadC-Orc-Mfesc | C839: 512-(FSG 5)-PP5-RC-LadC-Orc-Mfesc | D839: Red Clover | E839: Trifolium pratense | F839: 80 | G839: 5 | H839: 30 | I839: Legume | J839: I | K839: N | M839: PP5 | N839: FSG 5 | O839: RC-LadC-Orc-Mfesc | P839: 5
A840: 512 | B840: (FSG 5)-PP5-RC-LadC-Orc-Mfesc | C840: 512-(FSG 5)-PP5-RC-LadC-Orc-Mfesc | D840: White Ladino Clover | E840: Trifolium repens | F840: 16 | G840: 1 | H840: 20 | I840: Legume | J840: I | K840: N | M840: PP5 | N840: FSG 5 | O840: RC-LadC-Orc-Mfesc | P840: 5
A841: 512 | B841: (FSG 5)-PP5-RC-LadC-Orc-Mfesc | C841: 512-(FSG 5)-PP5-RC-LadC-Orc-Mfesc | D841: Orchardgrass | E841: Dactylis glomerata L. | F841: 48 | G841: 3 | H841: 48 | I841: Grass | J841: I | K841: N | M841: PP5 | N841: FSG 5 | O841: RC-LadC-Orc-Mfesc | P841: 5
A842: 512 | B842: (FSG 5)-PP5-RC-LadC-Orc-Mfesc | C842: 512-(FSG 5)-PP5-RC-LadC-Orc-Mfesc | D842: Meadow Fescue | E842: Schedonorus pratensis | F842: 96 | G842: 6 | H842: 30 | I842: Grass | J842: I | K842: N | M842: PP5 | N842: FSG 5 | O842: RC-LadC-Orc-Mfesc | P842: 5
A843: 512 | B843: (FSG 5)-PP5B-RC-LadC-Festu-Mfesc | C843: 512-(FSG 5)-PP5B-RC-LadC-Festu-Mfesc | D843: Red Clover | E843: Trifolium pratense | F843: 80 | G843: 5 | H843: 30 | I843: Legume | J843: I | K843: N | M843: PP5B | N843: FSG 5 | O843: RC-LadC-Festu-Mfesc | P843: 5
A844: 512 | B844: (FSG 5)-PP5B-RC-LadC-Festu-Mfesc | C844: 512-(FSG 5)-PP5B-RC-LadC-Festu-Mfesc | D844: White Ladino Clover | E844: Trifolium repens | F844: 16 | G844: 1 | H844: 20 | I844: Legume | J844: I | K844: N | M844: PP5B | N844: FSG 5 | O844: RC-LadC-Festu-Mfesc | P844: 5
A845: 512 | B845: (FSG 5)-PP5B-RC-LadC-Festu-Mfesc | C845: 512-(FSG 5)-PP5B-RC-LadC-Festu-Mfesc | D845: Festulolium | E845: Festuca x Lolium | F845: 112 | G845: 7 | H845: 36 | I845: Grass | J845: I | K845: N | M845: PP5B | N845: FSG 5 | O845: RC-LadC-Festu-Mfesc | P845: 5
A846: 512 | B846: (FSG 5)-PP5B-RC-LadC-Festu-Mfesc | C846: 512-(FSG 5)-PP5B-RC-LadC-Festu-Mfesc | D846: Meadow Fescue | E846: Schedonorus pratensis | F846: 96 | G846: 6 | H846: 30 | I846: Grass | J846: I | K846: N | M846: PP5B | N846: FSG 5 | O846: RC-LadC-Festu-Mfesc | P846: 5
A847: 512 | B847: (FSG 6)-PP6-RC-Orc-SB | C847: 512-(FSG 6)-PP6-RC-Orc-SB | D847: Red Clover | E847: Trifolium pratense | F847: 80 | G847: 5 | H847: 30 | I847: Legume | J847: I | K847: N | M847: PP6 | N847: FSG 6 | O847: RC-Orc-SB | P847: 6
A848: 512 | B848: (FSG 6)-PP6-RC-Orc-SB | C848: 512-(FSG 6)-PP6-RC-Orc-SB | D848: Orchardgrass | E848: Dactylis glomerata L. | F848: 64 | G848: 4 | H848: 64 | I848: Grass | J848: I | K848: N | M848: PP6 | N848: FSG 6 | O848: RC-Orc-SB | P848: 6
A849: 512 | B849: (FSG 6)-PP6-RC-Orc-SB | C849: 512-(FSG 6)-PP6-RC-Orc-SB | D849: Smooth Bromegrass | E849: Bromus inermis | F849: 64 | G849: 4 | H849: 12 | I849: Grass | J849: I | K849: N | M849: PP6 | N849: FSG 6 | O849: RC-Orc-SB | P849: 6
A850: 512 | B850: (FSG 7)-PP7-Aclover-Mfesc-Tim-Rtop | C850: 512-(FSG 7)-PP7-Aclover-Mfesc-Tim-Rtop | D850: Alsike Clover | E850: Trifolium hybridum | F850: 32 | G850: 2 | H850: 32 | I850: Legume | J850: I | K850: N | M850: PP7 | N850: FSG 7 | O850: Aclover-Mfesc-Tim-Rtop | P850: 7
A851: 512 | B851: (FSG 7)-PP7-Aclover-Mfesc-Tim-Rtop | C851: 512-(FSG 7)-PP7-Aclover-Mfesc-Tim-Rtop | D851: Meadow Fescue | E851: Schedonorus pratensis | F851: 96 | G851: 6 | H851: 30 | I851: Grass | J851: I | K851: N | M851: PP7 | N851: FSG 7 | O851: Aclover-Mfesc-Tim-Rtop | P851: 7
A852: 512 | B852: (FSG 7)-PP7-Aclover-Mfesc-Tim-Rtop | C852: 512-(FSG 7)-PP7-Aclover-Mfesc-Tim-Rtop | D852: Timothy | E852: Phleum pratense | F852: 16 | G852: 1 | H852: 28 | I852: Grass | J852: I | K852: N | M852: PP7 | N852: FSG 7 | O852: Aclover-Mfesc-Tim-Rtop | P852: 7
A853: 512 | B853: (FSG 7)-PP7-Aclover-Mfesc-Tim-Rtop | C853: 512-(FSG 7)-PP7-Aclover-Mfesc-Tim-Rtop | D853: Redtop | E853: Agrostis gigantea | F853: 16 | G853: 1 | H853: 114 | I853: Grass | J853: I | K853: N | M853: PP7 | N853: FSG 7 | O853: Aclover-Mfesc-Tim-Rtop | P853: 7
A854: 512 | B854: (FSG 7)-PP7B-Btrefoil-Mfesc-Tim-Rtop | C854: 512-(FSG 7)-PP7B-Btrefoil-Mfesc-Tim-Rtop | D854: Birdsfoot Trefoil | E854: Lotus corniculatus | F854: 48 | G854: 3 | H854: 26 | I854: Legume | J854: I | K854: N | M854: PP7B | N854: FSG 7 | O854: Btrefoil-Mfesc-Tim-Rtop | P854: 7
A855: 512 | B855: (FSG 7)-PP7B-Btrefoil-Mfesc-Tim-Rtop | C855: 512-(FSG 7)-PP7B-Btrefoil-Mfesc-Tim-Rtop | D855: Meadow Fescue | E855: Schedonorus pratensis | F855: 96 | G855: 6 | H855: 30 | I855: Grass | J855: I | K855: N | M855: PP7B | N855: FSG 7 | O855: Btrefoil-Mfesc-Tim-Rtop | P855: 7
A856: 512 | B856: (FSG 7)-PP7B-Btrefoil-Mfesc-Tim-Rtop | C856: 512-(FSG 7)-PP7B-Btrefoil-Mfesc-Tim-Rtop | D856: Timothy | E856: Phleum pratense | F856: 16 | G856: 1 | H856: 28 | I856: Grass | J856: I | K856: N | M856: PP7B | N856: FSG 7 | O856: Btrefoil-Mfesc-Tim-Rtop | P856: 7
A857: 512 | B857: (FSG 7)-PP7B-Btrefoil-Mfesc-Tim-Rtop | C857: 512-(FSG 7)-PP7B-Btrefoil-Mfesc-Tim-Rtop | D857: Redtop | E857: Agrostis gigantea | F857: 16 | G857: 1 | H857: 114 | I857: Grass | J857: I | K857: N | M857: PP7B | N857: FSG 7 | O857: Btrefoil-Mfesc-Tim-Rtop | P857: 7
A858: 512 | B858: (FSG 8)-PP8-LadC-Orc-Mfesc | C858: 512-(FSG 8)-PP8-LadC-Orc-Mfesc | D858: White Ladino Clover | E858: Trifolium repens | F858: 16 | G858: 1 | H858: 20 | I858: Legume | J858: I | K858: N | M858: PP8 | N858: FSG 8 | O858: LadC-Orc-Mfesc | P858: 8
A859: 512 | B859: (FSG 8)-PP8-LadC-Orc-Mfesc | C859: 512-(FSG 8)-PP8-LadC-Orc-Mfesc | D859: Orchardgrass | E859: Dactylis glomerata L. | F859: 48 | G859: 3 | H859: 48 | I859: Grass | J859: I | K859: N | M859: PP8 | N859: FSG 8 | O859: LadC-Orc-Mfesc | P859: 8
A860: 512 | B860: (FSG 8)-PP8-LadC-Orc-Mfesc | C860: 512-(FSG 8)-PP8-LadC-Orc-Mfesc | D860: Meadow Fescue | E860: Schedonorus pratensis | F860: 96 | G860: 6 | H860: 30 | I860: Grass | J860: I | K860: N | M860: PP8 | N860: FSG 8 | O860: LadC-Orc-Mfesc | P860: 8
A861: 512 | B861: (FSG 8)-PP8B-LadC-Festu-Mfesc | C861: 512-(FSG 8)-PP8B-LadC-Festu-Mfesc | D861: White Ladino Clover | E861: Trifolium repens | F861: 16 | G861: 1 | H861: 20 | I861: Legume | J861: I | K861: N | M861: PP8B | N861: FSG 8 | O861: LadC-Festu-Mfesc | P861: 8
A862: 512 | B862: (FSG 8)-PP8B-LadC-Festu-Mfesc | C862: 512-(FSG 8)-PP8B-LadC-Festu-Mfesc | D862: Festulolium | E862: Festuca x Lolium | F862: 112 | G862: 7 | H862: 36 | I862: Grass | J862: I | K862: N | M862: PP8B | N862: FSG 8 | O862: LadC-Festu-Mfesc | P862: 8
A863: 512 | B863: (FSG 8)-PP8B-LadC-Festu-Mfesc | C863: 512-(FSG 8)-PP8B-LadC-Festu-Mfesc | D863: Meadow Fescue | E863: Schedonorus pratensis | F863: 96 | G863: 6 | H863: 30 | I863: Grass | J863: I | K863: N | M863: PP8B | N863: FSG 8 | O863: LadC-Festu-Mfesc | P863: 8
A864: 512 | B864: (FSG 9)-PP9-RC-Orc-Mfesc | C864: 512-(FSG 9)-PP9-RC-Orc-Mfesc | D864: Red Clover | E864: Trifolium pratense | F864: 80 | G864: 5 | H864: 30 | I864: Legume | J864: I | K864: N | M864: PP9 | N864: FSG 9 | O864: RC-Orc-Mfesc | P864: 9
A865: 512 | B865: (FSG 9)-PP9-RC-Orc-Mfesc | C865: 512-(FSG 9)-PP9-RC-Orc-Mfesc | D865: Orchardgrass | E865: Dactylis glomerata L. | F865: 48 | G865: 3 | H865: 48 | I865: Grass | J865: I | K865: N | M865: PP9 | N865: FSG 9 | O865: RC-Orc-Mfesc | P865: 9
A866: 512 | B866: (FSG 9)-PP9-RC-Orc-Mfesc | C866: 512-(FSG 9)-PP9-RC-Orc-Mfesc | D866: Meadow Fescue | E866: Schedonorus pratensis | F866: 96 | G866: 6 | H866: 30 | I866: Grass | J866: I | K866: N | M866: PP9 | N866: FSG 9 | O866: RC-Orc-Mfesc | P866: 9
A867: 512 | B867: (FSG 1,4,7)-PHS1-KB-Mfesc-LadC | C867: 512-(FSG 1,4,7)-PHS1-KB-Mfesc-LadC | D867: Kentucky Bluegrass | E867: Poa pratensis | F867: 64 | G867: 4 | H867: 200 | I867: Grass | J867: I | K867: N | M867: PHS1 | N867: FSG 1,4,7 | O867: KB-Mfesc-LadC | P867: 1,4,7
A868: 512 | B868: (FSG 1,4,7)-PHS1-KB-Mfesc-LadC | C868: 512-(FSG 1,4,7)-PHS1-KB-Mfesc-LadC | D868: Meadow Fescue | E868: Schedonorus pratensis | F868: 64 | G868: 4 | H868: 20 | I868: Grass | J868: I | K868: N | M868: PHS1 | N868: FSG 1,4,7 | O868: KB-Mfesc-LadC | P868: 1,4,7
A869: 512 | B869: (FSG 1,4,7)-PHS1-KB-Mfesc-LadC | C869: 512-(FSG 1,4,7)-PHS1-KB-Mfesc-LadC | D869: White Ladino Clover | E869: Trifolium repens | F869: 16 | G869: 1 | H869: 20 | I869: Legume | J869: I | K869: N | M869: PHS1 | N869: FSG 1,4,7 | O869: KB-Mfesc-LadC | P869: 1,4,7
A870: 512 | B870: (FSG 1,4,7)-PHS1A-KB-Mfesc-Btrefoil | C870: 512-(FSG 1,4,7)-PHS1A-KB-Mfesc-Btrefoil | D870: Kentucky Bluegrass | E870: Poa pratensis | F870: 64 | G870: 4 | H870: 200 | I870: Grass | J870: I | K870: N | M870: PHS1A | N870: FSG 1,4,7 | O870: KB-Mfesc-Btrefoil | P870: 1,4,7
A871: 512 | B871: (FSG 1,4,7)-PHS1A-KB-Mfesc-Btrefoil | C871: 512-(FSG 1,4,7)-PHS1A-KB-Mfesc-Btrefoil | D871: Meadow Fescue | E871: Schedonorus pratensis | F871: 64 | G871: 4 | H871: 20 | I871: Grass | J871: I | K871: N | M871: PHS1A | N871: FSG 1,4,7 | O871: KB-Mfesc-Btrefoil | P871: 1,4,7
A872: 512 | B872: (FSG 1,4,7)-PHS1A-KB-Mfesc-Btrefoil | C872: 512-(FSG 1,4,7)-PHS1A-KB-Mfesc-Btrefoil | D872: Birdsfoot Trefoil | E872: Lotus corniculatus | F872: 48 | G872: 3 | H872: 26 | I872: Legume | J872: I | K872: N | M872: PHS1A | N872: FSG 1,4,7 | O872: KB-Mfesc-Btrefoil | P872: 1,4,7
A873: 512 | B873: (FSG 5-8)-PHS2-KB-Festu-LadC | C873: 512-(FSG 5-8)-PHS2-KB-Festu-LadC | D873: Kentucky Bluegrass | E873: Poa pratensis | F873: 32 | G873: 2 | H873: 100 | I873: Grass | J873: I | K873: N | M873: PHS2 | N873: FSG 5-8 | O873: KB-Festu-LadC | P873: 5-8
A874: 512 | B874: (FSG 5-8)-PHS2-KB-Festu-LadC | C874: 512-(FSG 5-8)-PHS2-KB-Festu-LadC | D874: Festulolium | E874: Festuca x Lolium | F874: 112 | G874: 7 | H874: 35 | I874: Grass | J874: I | K874: N | M874: PHS2 | N874: FSG 5-8 | O874: KB-Festu-LadC | P874: 5-8
A875: 512 | B875: (FSG 5-8)-PHS2-KB-Festu-LadC | C875: 512-(FSG 5-8)-PHS2-KB-Festu-LadC | D875: White Ladino Clover | E875: Trifolium repens | F875: 16 | G875: 1 | H875: 20 | I875: Legume | J875: I | K875: N | M875: PHS2 | N875: FSG 5-8 | O875: KB-Festu-LadC | P875: 5-8
A876: 512 | B876: (FSG 5-8)-PHS2A-KB-Prye-LadC | C876: 512-(FSG 5-8)-PHS2A-KB-Prye-LadC | D876: Kentucky Bluegrass | E876: Poa pratensis | F876: 32 | G876: 2 | H876: 100 | I876: Grass | J876: I | K876: N | M876: PHS2A | N876: FSG 5-8 | O876: KB-Prye-LadC | P876: 5-8
A877: 512 | B877: (FSG 5-8)-PHS2A-KB-Prye-LadC | C877: 512-(FSG 5-8)-PHS2A-KB-Prye-LadC | D877: Perennial Ryegrass | E877: Lolium perenne | F877: 112 | G877: 7 | H877: 35 | I877: Grass | J877: I | K877: N | M877: PHS2A | N877: FSG 5-8 | O877: KB-Prye-LadC | P877: 5-8
A878: 512 | B878: (FSG 5-8)-PHS2A-KB-Prye-LadC | C878: 512-(FSG 5-8)-PHS2A-KB-Prye-LadC | D878: White Ladino Clover | E878: Trifolium repens | F878: 16 | G878: 1 | H878: 20 | I878: Legume | J878: I | K878: N | M878: PHS2A | N878: FSG 5-8 | O878: KB-Prye-LadC | P878: 5-8
A879: 512 | B879: (FSG 2-3)-PHS3-Alf-Orc | C879: 512-(FSG 2-3)-PHS3-Alf-Orc | D879: Alfalfa | E879: Medicago sativa | F879: 96 | G879: 6 | H879: 30 | I879: Legume | J879: I | K879: N | M879: PHS3 | N879: FSG 2-3 | O879: Alf-Orc | P879: 2-3
A880: 512 | B880: (FSG 2-3)-PHS3-Alf-Orc | C880: 512-(FSG 2-3)-PHS3-Alf-Orc | D880: Orchardgrass | E880: Dactylis glomerata L. | F880: 48 | G880: 3 | H880: 48 | I880: Grass | J880: I | K880: N | M880: PHS3 | N880: FSG 2-3 | O880: Alf-Orc | P880: 2-3
B881: ()--0 | O881: 0
O882: 0
O883: 0
O884: 0
O885: 0
O886: 0
O887: 0
O888: 0
O889: 0
O890: 0
O891: 0
O892: 0
O893: 0
O894: 0
O895: 0
O896: 0
O897: 0
O898: 0
O899: 0
O900: 0
... 8 more rows

Sheet CRP Mixes
A1: CRP MIXES | F1: REVISION DATE: | G1: 2020-11-30 | AA1: Type | AB1: Intro/Native
A2: criteria: | B2: =+SeedingPlan_STD!G5 -> 0
A3: STD | B3: Mix # | C3: std-mix | D3: Common Name | E3: Scientific Name | F3: PLS (oz./A) | G3: PLS (lbs./A) | H3: Seeds/Square Foot | I3: Type | J3: Intro / Native | K3: Poll. (Y/N) | M3: Mix No. | N3: MR | O3: Mix Components | AA3: Forb | AB3: I
C4: LEAVE THIS ROW AS IS | J4: I | K4: Y | AA4: Grass | AB4: N
C5: LEAVE THIS ROW AS IS | J5: N | K5: Y | AA5: Legume
A6: 1 | B6: =IF(O6="","",CONCATENATE(M6,"-",O6)) -> CP1-1-Alf-SB-Tim | C6: =IF(D6="","",CONCATENATE(A6,"-",B6)) -> 1-CP1-1-Alf-SB-Tim | D6: Alfalfa | E6: Medicago sativa | F6: =IF(D6="","",ROUND(G6*16,2)) -> 96 | G6: 6 | I6: Legume | J6: I | K6: N | M6: CP1-1 | O6: =IF(M6=M7,O7,Q6) -> Alf-SB-Tim | P6: =IF(D6="","",VLOOKUP(D6,species_data!$A$4:$G$148,7)) -> Alf | Q6: =IF(D6="","",IF(M6=M5,CONCATENATE(Q5,"-",P6),P6)) -> Alf | AA6: Sedge
A7: 1 | B7: CP1-1-Alf-SB-Tim | C7: 1-CP1-1-Alf-SB-Tim | D7: Smooth Bromegrass | E7: Bromus inermis | F7: =IF(D7="","",ROUND(G7*16,2)) -> 48 | G7: 3 | I7: Grass | J7: I | K7: N | M7: CP1-1 | O7: =IF(M7=M8,O8,Q7) -> Alf-SB-Tim | P7: =IF(D7="","",VLOOKUP(D7,species_data!$A$4:$G$148,7)) -> SB | Q7: Alf-SB
A8: 1 | B8: CP1-1-Alf-SB-Tim | C8: 1-CP1-1-Alf-SB-Tim | D8: Timothy | E8: Phleum pratense | F8: 32 | G8: 2 | I8: Grass | J8: I | K8: N | M8: CP1-1 | O8: =IF(M8=M9,O9,Q8) -> Alf-SB-Tim | P8: =IF(D8="","",VLOOKUP(D8,species_data!$A$4:$G$148,7)) -> Tim | Q8: Alf-SB-Tim
A9: 1 | B9: CP1-2-RC-Orc-Tim | C9: 1-CP1-2-RC-Orc-Tim | D9: Red Clover | E9: Trifolium pratense | F9: 80 | G9: 5 | I9: Legume | J9: I | K9: N | M9: CP1-2 | O9: RC-Orc-Tim | P9: =IF(D9="","",VLOOKUP(D9,species_data!$A$4:$G$148,7)) -> RC | Q9: RC
A10: 1 | B10: CP1-2-RC-Orc-Tim | C10: 1-CP1-2-RC-Orc-Tim | D10: Orchardgrass | E10: Dactylis glomerata L. | F10: 48 | G10: 3 | I10: Grass | J10: I | K10: N | M10: CP1-2 | O10: RC-Orc-Tim | P10: =IF(D10="","",VLOOKUP(D10,species_data!$A$4:$G$148,7)) -> Orc | Q10: RC-Orc | S10: =IF(D10="","",VLOOKUP(D10,species_data!$A$4:$F$148,4)) -> 14.99081726
A11: 1 | B11: CP1-2-RC-Orc-Tim | C11: 1-CP1-2-RC-Orc-Tim | D11: Timothy | E11: Phleum pratense | F11: 32 | G11: 2 | I11: Grass | J11: I | K11: N | M11: CP1-2 | O11: RC-Orc-Tim | P11: =IF(D11="","",VLOOKUP(D11,species_data!$A$4:$G$148,7)) -> Tim | Q11: RC-Orc-Tim | S11: =IF(D11="","",VLOOKUP(D11,species_data!$A$4:$F$148,4)) -> 28.24
A12: 1 | B12: CP1-3-Alf-Orc-Tim | C12: 1-CP1-3-Alf-Orc-Tim | D12: Alfalfa | E12: Medicago sativa | F12: 96 | G12: 6 | I12: Legume | J12: I | K12: N | M12: CP1-3 | O12: Alf-Orc-Tim | P12: =IF(D12="","",VLOOKUP(D12,species_data!$A$4:$G$148,7)) -> Alf | Q12: Alf | S12: =IF(D12="","",VLOOKUP(D12,species_data!$A$4:$F$148,4)) -> 5.024
A13: 1 | B13: CP1-3-Alf-Orc-Tim | C13: 1-CP1-3-Alf-Orc-Tim | D13: Orchardgrass | E13: Dactylis glomerata L. | F13: 48 | G13: 3 | I13: Grass | J13: I | K13: N | M13: CP1-3 | O13: Alf-Orc-Tim | P13: =IF(D13="","",VLOOKUP(D13,species_data!$A$4:$G$148,7)) -> Orc | Q13: Alf-Orc | S13: =IF(D13="","",VLOOKUP(D13,species_data!$A$4:$F$148,4)) -> 14.99081726
A14: 1 | B14: CP1-3-Alf-Orc-Tim | C14: 1-CP1-3-Alf-Orc-Tim | D14: Timothy | E14: Phleum pratense | F14: 32 | G14: 2 | I14: Grass | J14: I | K14: N | M14: CP1-3 | O14: Alf-Orc-Tim | P14: =IF(D14="","",VLOOKUP(D14,species_data!$A$4:$G$148,7)) -> Tim | Q14: Alf-Orc-Tim | S14: =IF(D14="","",VLOOKUP(D14,species_data!$A$4:$F$148,4)) -> 28.24
A15: 1 | B15: CP1-4-RC-SB-Tim | C15: 1-CP1-4-RC-SB-Tim | D15: Red Clover | E15: Trifolium pratense | F15: 80 | G15: 5 | I15: Legume | J15: I | K15: N | M15: CP1-4 | O15: RC-SB-Tim | P15: =IF(D15="","",VLOOKUP(D15,species_data!$A$4:$G$148,7)) -> RC | Q15: RC | S15: =IF(D15="","",VLOOKUP(D15,species_data!$A$4:$F$148,4)) -> 6.312
A16: 1 | B16: CP1-4-RC-SB-Tim | C16: 1-CP1-4-RC-SB-Tim | D16: Smooth Bromegrass | E16: Bromus inermis | F16: 48 | G16: 3 | I16: Grass | J16: I | K16: N | M16: CP1-4 | O16: RC-SB-Tim | P16: =IF(D16="","",VLOOKUP(D16,species_data!$A$4:$G$148,7)) -> SB | Q16: RC-SB | S16: =IF(D16="","",VLOOKUP(D16,species_data!$A$4:$F$148,4)) -> 3.122130395
A17: 1 | B17: CP1-4-RC-SB-Tim | C17: 1-CP1-4-RC-SB-Tim | D17: Timothy | E17: Phleum pratense | F17: 32 | G17: 2 | I17: Grass | J17: I | K17: N | M17: CP1-4 | O17: RC-SB-Tim | P17: =IF(D17="","",VLOOKUP(D17,species_data!$A$4:$G$148,7)) -> Tim | Q17: RC-SB-Tim | S17: =IF(D17="","",VLOOKUP(D17,species_data!$A$4:$F$148,4)) -> 28.24
A18: 1 | B18: CP1-5-RC-SB-Tim-Orc | C18: 1-CP1-5-RC-SB-Tim-Orc | D18: Red Clover | E18: Trifolium pratense | F18: 80 | G18: 5 | I18: Legume | J18: I | K18: N | M18: CP1-5 | O18: RC-SB-Tim-Orc | P18: =IF(D18="","",VLOOKUP(D18,species_data!$A$4:$G$148,7)) -> RC | Q18: RC | S18: =IF(D18="","",VLOOKUP(D18,species_data!$A$4:$F$148,4)) -> 6.312
A19: 1 | B19: CP1-5-RC-SB-Tim-Orc | C19: 1-CP1-5-RC-SB-Tim-Orc | D19: Smooth Bromegrass | E19: Bromus inermis | F19: 32 | G19: 2 | I19: Grass | J19: I | K19: N | M19: CP1-5 | O19: RC-SB-Tim-Orc | P19: =IF(D19="","",VLOOKUP(D19,species_data!$A$4:$G$148,7)) -> SB | Q19: RC-SB | S19: =IF(D19="","",VLOOKUP(D19,species_data!$A$4:$F$148,4)) -> 3.122130395
A20: 1 | B20: CP1-5-RC-SB-Tim-Orc | C20: 1-CP1-5-RC-SB-Tim-Orc | D20: Timothy | E20: Phleum pratense | F20: 32 | G20: 2 | I20: Grass | J20: I | K20: N | M20: CP1-5 | O20: RC-SB-Tim-Orc | P20: =IF(D20="","",VLOOKUP(D20,species_data!$A$4:$G$148,7)) -> Tim | Q20: RC-SB-Tim | S20: =IF(D20="","",VLOOKUP(D20,species_data!$A$4:$F$148,4)) -> 28.24
A21: 1 | B21: CP1-5-RC-SB-Tim-Orc | C21: 1-CP1-5-RC-SB-Tim-Orc | D21: Orchardgrass | E21: Dactylis glomerata L. | F21: 16 | G21: 1 | I21: Grass | J21: I | K21: N | M21: CP1-5 | O21: RC-SB-Tim-Orc | P21: =IF(D21="","",VLOOKUP(D21,species_data!$A$4:$G$148,7)) -> Orc | Q21: RC-SB-Tim-Orc | S21: =IF(D21="","",VLOOKUP(D21,species_data!$A$4:$F$148,4)) -> 14.99081726
A22: 1 | B22: CP1-6-RC-Tim-Orc-Rtop-LadC | C22: 1-CP1-6-RC-Tim-Orc-Rtop-LadC | D22: Red Clover | E22: Trifolium pratense | F22: 80 | G22: 5 | I22: Legume | J22: I | K22: N | M22: CP1-6 | O22: RC-Tim-Orc-Rtop-LadC | P22: =IF(D22="","",VLOOKUP(D22,species_data!$A$4:$G$148,7)) -> RC | Q22: RC | S22: =IF(D22="","",VLOOKUP(D22,species_data!$A$4:$F$148,4)) -> 6.312
A23: 1 | B23: CP1-6-RC-Tim-Orc-Rtop-LadC | C23: 1-CP1-6-RC-Tim-Orc-Rtop-LadC | D23: Timothy | E23: Phleum pratense | F23: 32 | G23: 2 | I23: Grass | J23: I | K23: N | M23: CP1-6 | O23: RC-Tim-Orc-Rtop-LadC | P23: =IF(D23="","",VLOOKUP(D23,species_data!$A$4:$G$148,7)) -> Tim | Q23: RC-Tim | S23: =IF(D23="","",VLOOKUP(D23,species_data!$A$4:$F$148,4)) -> 28.24
A24: 1 | B24: CP1-6-RC-Tim-Orc-Rtop-LadC | C24: 1-CP1-6-RC-Tim-Orc-Rtop-LadC | D24: Orchardgrass | E24: Dactylis glomerata L. | F24: 16 | G24: 1 | I24: Grass | J24: I | K24: N | M24: CP1-6 | O24: RC-Tim-Orc-Rtop-LadC | P24: =IF(D24="","",VLOOKUP(D24,species_data!$A$4:$G$148,7)) -> Orc | Q24: RC-Tim-Orc | S24: =IF(D24="","",VLOOKUP(D24,species_data!$A$4:$F$148,4)) -> 14.99081726
A25: 1 | B25: CP1-6-RC-Tim-Orc-Rtop-LadC | C25: 1-CP1-6-RC-Tim-Orc-Rtop-LadC | D25: Redtop | E25: Agrostis gigantea | F25: 16 | G25: 1 | I25: Grass | J25: I | K25: N | M25: CP1-6 | O25: RC-Tim-Orc-Rtop-LadC | P25: =IF(D25="","",VLOOKUP(D25,species_data!$A$4:$G$148,7)) -> Rtop | Q25: RC-Tim-Orc-Rtop | S25: =IF(D25="","",VLOOKUP(D25,species_data!$A$4:$F$148,4)) -> 114.5546373
A26: 1 | B26: CP1-6-RC-Tim-Orc-Rtop-LadC | C26: 1-CP1-6-RC-Tim-Orc-Rtop-LadC | D26: White Ladino Clover | E26: Trifolium repens | F26: 8 | G26: 0.5 | I26: Legume | J26: I | K26: N | M26: CP1-6 | O26: RC-Tim-Orc-Rtop-LadC | P26: =IF(D26="","",VLOOKUP(D26,species_data!$A$4:$G$148,7)) -> LadC | Q26: RC-Tim-Orc-Rtop-LadC | S26: =IF(D26="","",VLOOKUP(D26,species_data!$A$4:$F$148,4)) -> 20.0096
A27: 1 | B27: CP1-7-Alf-Rtop-Tim-Orc | C27: 1-CP1-7-Alf-Rtop-Tim-Orc | D27: Alfalfa | E27: Medicago sativa | F27: 96 | G27: 6 | I27: Legume | J27: I | K27: N | M27: CP1-7 | O27: Alf-Rtop-Tim-Orc | P27: =IF(D27="","",VLOOKUP(D27,species_data!$A$4:$G$148,7)) -> Alf | Q27: Alf | S27: =IF(D27="","",VLOOKUP(D27,species_data!$A$4:$F$148,4)) -> 5.024
A28: 1 | B28: CP1-7-Alf-Rtop-Tim-Orc | C28: 1-CP1-7-Alf-Rtop-Tim-Orc | D28: Redtop | E28: Agrostis gigantea | F28: 32 | G28: 2 | I28: Grass | J28: I | K28: N | M28: CP1-7 | O28: Alf-Rtop-Tim-Orc | P28: =IF(D28="","",VLOOKUP(D28,species_data!$A$4:$G$148,7)) -> Rtop | Q28: Alf-Rtop | S28: =IF(D28="","",VLOOKUP(D28,species_data!$A$4:$F$148,4)) -> 114.5546373
A29: 1 | B29: CP1-7-Alf-Rtop-Tim-Orc | C29: 1-CP1-7-Alf-Rtop-Tim-Orc | D29: Timothy | E29: Phleum pratense | F29: 32 | G29: 2 | I29: Grass | J29: I | K29: N | M29: CP1-7 | O29: Alf-Rtop-Tim-Orc | P29: =IF(D29="","",VLOOKUP(D29,species_data!$A$4:$G$148,7)) -> Tim | Q29: Alf-Rtop-Tim | S29: =IF(D29="","",VLOOKUP(D29,species_data!$A$4:$F$148,4)) -> 28.24
A30: 1 | B30: CP1-7-Alf-Rtop-Tim-Orc | C30: 1-CP1-7-Alf-Rtop-Tim-Orc | D30: Orchardgrass | E30: Dactylis glomerata L. | F30: 16 | G30: 1 | I30: Grass | J30: I | K30: N | M30: CP1-7 | O30: Alf-Rtop-Tim-Orc | P30: =IF(D30="","",VLOOKUP(D30,species_data!$A$4:$G$148,7)) -> Orc | Q30: Alf-Rtop-Tim-Orc | S30: =IF(D30="","",VLOOKUP(D30,species_data!$A$4:$F$148,4)) -> 14.99081726
A31: 1 | B31: CP1-8-RC-KB-Orc-Rtop | C31: 1-CP1-8-RC-KB-Orc-Rtop | D31: Red Clover | E31: Trifolium pratense | F31: 80 | G31: 5 | I31: Legume | J31: I | K31: N | M31: CP1-8 | O31: RC-KB-Orc-Rtop | P31: =IF(D31="","",VLOOKUP(D31,species_data!$A$4:$G$148,7)) -> RC | Q31: RC | S31: =IF(D31="","",VLOOKUP(D31,species_data!$A$4:$F$148,4)) -> 6.312
A32: 1 | B32: CP1-8-RC-KB-Orc-Rtop | C32: 1-CP1-8-RC-KB-Orc-Rtop | D32: Kentucky Bluegrass | E32: Poa pratensis | F32: 32 | G32: 2 | I32: Grass | J32: I | K32: N | M32: CP1-8 | O32: RC-KB-Orc-Rtop | P32: =IF(D32="","",VLOOKUP(D32,species_data!$A$4:$G$148,7)) -> KB | Q32: RC-KB | S32: =IF(D32="","",VLOOKUP(D32,species_data!$A$4:$F$148,4)) -> 50
A33: 1 | B33: CP1-8-RC-KB-Orc-Rtop | C33: 1-CP1-8-RC-KB-Orc-Rtop | D33: Orchardgrass | E33: Dactylis glomerata L. | F33: 16 | G33: 1 | I33: Grass | J33: I | K33: N | M33: CP1-8 | O33: RC-KB-Orc-Rtop | P33: =IF(D33="","",VLOOKUP(D33,species_data!$A$4:$G$148,7)) -> Orc | Q33: RC-KB-Orc | S33: =IF(D33="","",VLOOKUP(D33,species_data!$A$4:$F$148,4)) -> 14.99081726
A34: 1 | B34: CP1-8-RC-KB-Orc-Rtop | C34: 1-CP1-8-RC-KB-Orc-Rtop | D34: Redtop | E34: Agrostis gigantea | F34: 16 | G34: 1 | I34: Grass | J34: I | K34: N | M34: CP1-8 | O34: RC-KB-Orc-Rtop | P34: =IF(D34="","",VLOOKUP(D34,species_data!$A$4:$G$148,7)) -> Rtop | Q34: RC-KB-Orc-Rtop | S34: =IF(D34="","",VLOOKUP(D34,species_data!$A$4:$F$148,4)) -> 114.5546373
A35: 2 | B35: CP2_1-BB-Switch-Cmilkvetch-Besus-Ycone | C35: 2-CP2_1-BB-Switch-Cmilkvetch-Besus-Ycone | D35: Big Bluestem | E35: Andropogon gerardii | F35: 48 | G35: 3 | I35: Grass | J35: N | K35: N | M35: CP2_1 | O35: BB-Switch-Cmilkvetch-Besus-Ycone | P35: =IF(D35="","",VLOOKUP(D35,species_data!$A$4:$G$148,7)) -> BB | Q35: BB | S35: =IF(D35="","",VLOOKUP(D35,species_data!$A$4:$F$148,4)) -> 3.79
A36: 2 | B36: CP2_1-BB-Switch-Cmilkvetch-Besus-Ycone | C36: 2-CP2_1-BB-Switch-Cmilkvetch-Besus-Ycone | D36: Switchgrass | E36: Panicum virgatum | F36: 16 | G36: 1 | I36: Grass | J36: N | K36: N | M36: CP2_1 | O36: BB-Switch-Cmilkvetch-Besus-Ycone | P36: =IF(D36="","",VLOOKUP(D36,species_data!$A$4:$G$148,7)) -> Switch | Q36: BB-Switch | S36: =IF(D36="","",VLOOKUP(D36,species_data!$A$4:$F$148,4)) -> 8.93
A37: 2 | B37: CP2_1-BB-Switch-Cmilkvetch-Besus-Ycone | C37: 2-CP2_1-BB-Switch-Cmilkvetch-Besus-Ycone | D37: Canada Milkvetch | E37: Astragalus canadensis | F37: 2 | G37: 0.125 | I37: Legume | J37: N | K37: N | M37: CP2_1 | O37: BB-Switch-Cmilkvetch-Besus-Ycone | P37: =IF(D37="","",VLOOKUP(D37,species_data!$A$4:$G$148,7)) -> Cmilkvetch | Q37: BB-Switch-Cmilkvetch | S37: =IF(D37="","",VLOOKUP(D37,species_data!$A$4:$F$148,4)) -> 5.862258953
A38: 2 | B38: =IF(O38="","",CONCATENATE(M38,"-",O38)) -> CP2_1-BB-Switch-Cmilkvetch-Besus-Ycone | C38: 2-CP2_1-BB-Switch-Cmilkvetch-Besus-Ycone | D38: Black-eyed Susan | E38: Rudbeckia hirta | F38: 1 | G38: 0.0625 | I38: Forb | J38: N | K38: N | M38: CP2_1 | O38: BB-Switch-Cmilkvetch-Besus-Ycone | P38: =IF(D38="","",VLOOKUP(D38,species_data!$A$4:$G$148,7)) -> Besus | Q38: BB-Switch-Cmilkvetch-Besus | S38: =IF(D38="","",VLOOKUP(D38,species_data!$A$4:$F$148,4)) -> 36.58402204
A39: 2 | B39: CP2_1-BB-Switch-Cmilkvetch-Besus-Ycone | C39: 2-CP2_1-BB-Switch-Cmilkvetch-Besus-Ycone | D39: Yellow Coneflower | E39: Ratibida pinnata | F39: 1 | G39: 0.0625 | I39: Forb | J39: N | K39: N | M39: CP2_1 | O39: BB-Switch-Cmilkvetch-Besus-Ycone | P39: =IF(D39="","",VLOOKUP(D39,species_data!$A$4:$G$148,7)) -> Ycone | Q39: BB-Switch-Cmilkvetch-Besus-Ycone | S39: =IF(D39="","",VLOOKUP(D39,species_data!$A$4:$F$148,4)) -> 9.888
A40: 2 | B40: CP2_2-BB-Switch-Ttrefoil-Besus-Ycone | C40: 2-CP2_2-BB-Switch-Ttrefoil-Besus-Ycone | D40: Big Bluestem | E40: Andropogon gerardii | F40: 48 | G40: 3 | I40: Grass | J40: N | K40: N | M40: CP2_2 | O40: BB-Switch-Ttrefoil-Besus-Ycone | P40: =IF(D40="","",VLOOKUP(D40,species_data!$A$4:$G$148,7)) -> BB | Q40: BB | S40: =IF(D40="","",VLOOKUP(D40,species_data!$A$4:$F$148,4)) -> 3.79
A41: 2 | B41: CP2_2-BB-Switch-Ttrefoil-Besus-Ycone | C41: 2-CP2_2-BB-Switch-Ttrefoil-Besus-Ycone | D41: Switchgrass | E41: Panicum virgatum | F41: 16 | G41: 1 | I41: Grass | J41: N | K41: N | M41: CP2_2 | O41: BB-Switch-Ttrefoil-Besus-Ycone | P41: =IF(D41="","",VLOOKUP(D41,species_data!$A$4:$G$148,7)) -> Switch | Q41: BB-Switch | S41: =IF(D41="","",VLOOKUP(D41,species_data!$A$4:$F$148,4)) -> 8.93
A42: 2 | B42: CP2_2-BB-Switch-Ttrefoil-Besus-Ycone | C42: 2-CP2_2-BB-Switch-Ttrefoil-Besus-Ycone | D42: Showy Tick Trefoil | E42: Desmodium canadense | F42: 6 | G42: 0.375 | I42: Legume | J42: N | K42: N | M42: CP2_2 | O42: BB-Switch-Ttrefoil-Besus-Ycone | P42: =IF(D42="","",VLOOKUP(D42,species_data!$A$4:$G$148,7)) -> Ttrefoil | Q42: BB-Switch-Ttrefoil | S42: =IF(D42="","",VLOOKUP(D42,species_data!$A$4:$F$148,4)) -> 1.652892562
A43: 2 | B43: CP2_2-BB-Switch-Ttrefoil-Besus-Ycone | C43: 2-CP2_2-BB-Switch-Ttrefoil-Besus-Ycone | D43: Black-eyed Susan | E43: Rudbeckia hirta | F43: 1 | G43: 0.0625 | I43: Forb | J43: N | K43: N | M43: CP2_2 | O43: BB-Switch-Ttrefoil-Besus-Ycone | P43: =IF(D43="","",VLOOKUP(D43,species_data!$A$4:$G$148,7)) -> Besus | Q43: BB-Switch-Ttrefoil-Besus | S43: =IF(D43="","",VLOOKUP(D43,species_data!$A$4:$F$148,4)) -> 36.58402204
A44: 2 | B44: CP2_2-BB-Switch-Ttrefoil-Besus-Ycone | C44: 2-CP2_2-BB-Switch-Ttrefoil-Besus-Ycone | D44: Yellow Coneflower | E44: Ratibida pinnata | F44: 1 | G44: 0.0625 | I44: Forb | J44: N | K44: N | M44: CP2_2 | O44: BB-Switch-Ttrefoil-Besus-Ycone | P44: =IF(D44="","",VLOOKUP(D44,species_data!$A$4:$G$148,7)) -> Ycone | Q44: BB-Switch-Ttrefoil-Besus-Ycone | S44: =IF(D44="","",VLOOKUP(D44,species_data!$A$4:$F$148,4)) -> 9.888
A45: 2 | B45: CP2_3-LB-Sgrama-BB-Indian-Switch-PPclover-Berg-Ycone | C45: 2-CP2_3-LB-Sgrama-BB-Indian-Switch-PPclover-Berg-Ycone | D45: Little Bluestem | E45: Schizachyrium scoparium | F45: 24 | G45: 1.5 | I45: Grass | J45: N | K45: N | M45: CP2_3 | O45: LB-Sgrama-BB-Indian-Switch-PPclover-Berg-Ycone | P45: =IF(D45="","",VLOOKUP(D45,species_data!$A$4:$G$148,7)) -> LB | Q45: LB | S45: =IF(D45="","",VLOOKUP(D45,species_data!$A$4:$F$148,4)) -> 5.509641873
A46: 2 | B46: CP2_3-LB-Sgrama-BB-Indian-Switch-PPclover-Berg-Ycone | C46: 2-CP2_3-LB-Sgrama-BB-Indian-Switch-PPclover-Berg-Ycone | D46: Sideoats Grama | E46: Bouteloua curtipendula | F46: 16 | G46: 1 | I46: Grass | J46: N | K46: N | M46: CP2_3 | O46: LB-Sgrama-BB-Indian-Switch-PPclover-Berg-Ycone | P46: =IF(D46="","",VLOOKUP(D46,species_data!$A$4:$G$148,7)) -> Sgrama | Q46: LB-Sgrama | S46: =IF(D46="","",VLOOKUP(D46,species_data!$A$4:$F$148,4)) -> 2.92
A47: 2 | B47: CP2_3-LB-Sgrama-BB-Indian-Switch-PPclover-Berg-Ycone | C47: 2-CP2_3-LB-Sgrama-BB-Indian-Switch-PPclover-Berg-Ycone | D47: Big Bluestem | E47: Andropogon gerardii | F47: 8 | G47: 0.5 | I47: Grass | J47: N | K47: N | M47: CP2_3 | O47: LB-Sgrama-BB-Indian-Switch-PPclover-Berg-Ycone | P47: =IF(D47="","",VLOOKUP(D47,species_data!$A$4:$G$148,7)) -> BB | Q47: LB-Sgrama-BB | S47: =IF(D47="","",VLOOKUP(D47,species_data!$A$4:$F$148,4)) -> 3.79
A48: 2 | B48: CP2_3-LB-Sgrama-BB-Indian-Switch-PPclover-Berg-Ycone | C48: 2-CP2_3-LB-Sgrama-BB-Indian-Switch-PPclover-Berg-Ycone | D48: Indiangrass | E48: Sorghastrum nutans | F48: 8 | G48: 0.5 | I48: Grass | J48: N | K48: N | M48: CP2_3 | O48: LB-Sgrama-BB-Indian-Switch-PPclover-Berg-Ycone | P48: =IF(D48="","",VLOOKUP(D48,species_data!$A$4:$G$148,7)) -> Indian | Q48: LB-Sgrama-BB-Indian | S48: =IF(D48="","",VLOOKUP(D48,species_data!$A$4:$F$148,4)) -> 4.407713499
A49: 2 | B49: CP2_3-LB-Sgrama-BB-Indian-Switch-PPclover-Berg-Ycone | C49: 2-CP2_3-LB-Sgrama-BB-Indian-Switch-PPclover-Berg-Ycone | D49: Switchgrass | E49: Panicum virgatum | F49: 8 | G49: 0.5 | I49: Grass | J49: N | K49: N | M49: CP2_3 | O49: LB-Sgrama-BB-Indian-Switch-PPclover-Berg-Ycone | P49: =IF(D49="","",VLOOKUP(D49,species_data!$A$4:$G$148,7)) -> Switch | Q49: LB-Sgrama-BB-Indian-Switch | S49: =IF(D49="","",VLOOKUP(D49,species_data!$A$4:$F$148,4)) -> 8.93
A50: 2 | B50: CP2_3-LB-Sgrama-BB-Indian-Switch-PPclover-Berg-Ycone | C50: 2-CP2_3-LB-Sgrama-BB-Indian-Switch-PPclover-Berg-Ycone | D50: Purple Prairie Clover | E50: Dalea purpurea | F50: 2 | G50: 0.125 | I50: Legume | J50: N | K50: N | M50: CP2_3 | O50: LB-Sgrama-BB-Indian-Switch-PPclover-Berg-Ycone | P50: =IF(D50="","",VLOOKUP(D50,species_data!$A$4:$G$148,7)) -> PPclover | Q50: LB-Sgrama-BB-Indian-Switch-PPclover | S50: =IF(D50="","",VLOOKUP(D50,species_data!$A$4:$F$148,4)) -> 7.327823691
A51: 2 | B51: CP2_3-LB-Sgrama-BB-Indian-Switch-PPclover-Berg-Ycone | C51: 2-CP2_3-LB-Sgrama-BB-Indian-Switch-PPclover-Berg-Ycone | D51: Bergamot | E51: Monarda fistulosa | F51: 1 | G51: 0.0625 | I51: Forb | J51: N | K51: N | M51: CP2_3 | O51: LB-Sgrama-BB-Indian-Switch-PPclover-Berg-Ycone | P51: =IF(D51="","",VLOOKUP(D51,species_data!$A$4:$G$148,7)) -> Berg | Q51: LB-Sgrama-BB-Indian-Switch-PPclover-Berg | S51: =IF(D51="","",VLOOKUP(D51,species_data!$A$4:$F$148,4)) -> 28.57667585
A52: 2 | B52: CP2_3-LB-Sgrama-BB-Indian-Switch-PPclover-Berg-Ycone | C52: 2-CP2_3-LB-Sgrama-BB-Indian-Switch-PPclover-Berg-Ycone | D52: Yellow Coneflower | E52: Ratibida pinnata | F52: 1 | G52: 0.0625 | I52: Forb | J52: N | K52: N | M52: CP2_3 | O52: LB-Sgrama-BB-Indian-Switch-PPclover-Berg-Ycone | P52: =IF(D52="","",VLOOKUP(D52,species_data!$A$4:$G$148,7)) -> Ycone | Q52: LB-Sgrama-BB-Indian-Switch-PPclover-Berg-Ycone | S52: =IF(D52="","",VLOOKUP(D52,species_data!$A$4:$F$148,4)) -> 9.888
A53: 2 | B53: CP2_4-LB-Cwrye-Indian-BB-Switch-Berg-Besus-Ycone | C53: 2-CP2_4-LB-Cwrye-Indian-BB-Switch-Berg-Besus-Ycone | D53: Little Bluestem | E53: Schizachyrium scoparium | F53: 20 | G53: 1.25 | I53: Grass | J53: N | K53: N | M53: CP2_4 | O53: LB-Cwrye-Indian-BB-Switch-Berg-Besus-Ycone | P53: =IF(D53="","",VLOOKUP(D53,species_data!$A$4:$G$148,7)) -> LB | Q53: LB | S53: =IF(D53="","",VLOOKUP(D53,species_data!$A$4:$F$148,4)) -> 5.509641873
A54: 2 | B54: CP2_4-LB-Cwrye-Indian-BB-Switch-Berg-Besus-Ycone | C54: 2-CP2_4-LB-Cwrye-Indian-BB-Switch-Berg-Besus-Ycone | D54: Canada Wildrye | E54: Elymus canadensis | F54: 16 | G54: 1 | I54: Grass | J54: N | K54: N | M54: CP2_4 | O54: LB-Cwrye-Indian-BB-Switch-Berg-Besus-Ycone | P54: =IF(D54="","",VLOOKUP(D54,species_data!$A$4:$G$148,7)) -> Cwrye | Q54: LB-Cwrye | S54: =IF(D54="","",VLOOKUP(D54,species_data!$A$4:$F$148,4)) -> 1.910009183
A55: 2 | B55: CP2_4-LB-Cwrye-Indian-BB-Switch-Berg-Besus-Ycone | C55: 2-CP2_4-LB-Cwrye-Indian-BB-Switch-Berg-Besus-Ycone | D55: Indiangrass | E55: Sorghastrum nutans | F55: 16 | G55: 1 | I55: Grass | J55: N | K55: N | M55: CP2_4 | O55: LB-Cwrye-Indian-BB-Switch-Berg-Besus-Ycone | P55: =IF(D55="","",VLOOKUP(D55,species_data!$A$4:$G$148,7)) -> Indian | Q55: LB-Cwrye-Indian | S55: =IF(D55="","",VLOOKUP(D55,species_data!$A$4:$F$148,4)) -> 4.407713499
A56: 2 | B56: CP2_4-LB-Cwrye-Indian-BB-Switch-Berg-Besus-Ycone | C56: 2-CP2_4-LB-Cwrye-Indian-BB-Switch-Berg-Besus-Ycone | D56: Big Bluestem | E56: Andropogon gerardii | F56: 8 | G56: 0.5 | I56: Grass | J56: N | K56: N | M56: CP2_4 | O56: LB-Cwrye-Indian-BB-Switch-Berg-Besus-Ycone | P56: =IF(D56="","",VLOOKUP(D56,species_data!$A$4:$G$148,7)) -> BB | Q56: LB-Cwrye-Indian-BB | S56: =IF(D56="","",VLOOKUP(D56,species_data!$A$4:$F$148,4)) -> 3.79
A57: 2 | B57: CP2_4-LB-Cwrye-Indian-BB-Switch-Berg-Besus-Ycone | C57: 2-CP2_4-LB-Cwrye-Indian-BB-Switch-Berg-Besus-Ycone | D57: Switchgrass | E57: Panicum virgatum | F57: 8 | G57: 0.5 | I57: Grass | J57: N | K57: N | M57: CP2_4 | O57: LB-Cwrye-Indian-BB-Switch-Berg-Besus-Ycone | P57: =IF(D57="","",VLOOKUP(D57,species_data!$A$4:$G$148,7)) -> Switch | Q57: LB-Cwrye-Indian-BB-Switch | S57: =IF(D57="","",VLOOKUP(D57,species_data!$A$4:$F$148,4)) -> 8.93
A58: 2 | B58: CP2_4-LB-Cwrye-Indian-BB-Switch-Berg-Besus-Ycone | C58: 2-CP2_4-LB-Cwrye-Indian-BB-Switch-Berg-Besus-Ycone | D58: Bergamot | E58: Monarda fistulosa | F58: 1 | G58: 0.0625 | I58: Forb | J58: N | K58: N | M58: CP2_4 | O58: LB-Cwrye-Indian-BB-Switch-Berg-Besus-Ycone | P58: =IF(D58="","",VLOOKUP(D58,species_data!$A$4:$G$148,7)) -> Berg | Q58: LB-Cwrye-Indian-BB-Switch-Berg | S58: =IF(D58="","",VLOOKUP(D58,species_data!$A$4:$F$148,4)) -> 28.57667585
A59: 2 | B59: CP2_4-LB-Cwrye-Indian-BB-Switch-Berg-Besus-Ycone | C59: 2-CP2_4-LB-Cwrye-Indian-BB-Switch-Berg-Besus-Ycone | D59: Black-eyed Susan | E59: Rudbeckia hirta | F59: 1 | G59: 0.0625 | I59: Forb | J59: N | K59: N | M59: CP2_4 | O59: LB-Cwrye-Indian-BB-Switch-Berg-Besus-Ycone | P59: =IF(D59="","",VLOOKUP(D59,species_data!$A$4:$G$148,7)) -> Besus | Q59: LB-Cwrye-Indian-BB-Switch-Berg-Besus | S59: =IF(D59="","",VLOOKUP(D59,species_data!$A$4:$F$148,4)) -> 36.58402204
A60: 2 | B60: CP2_4-LB-Cwrye-Indian-BB-Switch-Berg-Besus-Ycone | C60: 2-CP2_4-LB-Cwrye-Indian-BB-Switch-Berg-Besus-Ycone | D60: Yellow Coneflower | E60: Ratibida pinnata | F60: 1 | G60: 0.0625 | I60: Forb | J60: N | K60: N | M60: CP2_4 | O60: LB-Cwrye-Indian-BB-Switch-Berg-Besus-Ycone | P60: =IF(D60="","",VLOOKUP(D60,species_data!$A$4:$G$148,7)) -> Ycone | Q60: LB-Cwrye-Indian-BB-Switch-Berg-Besus-Ycone | S60: =IF(D60="","",VLOOKUP(D60,species_data!$A$4:$F$148,4)) -> 9.888
A61: 2 | B61: CP2_5-BB-Sgrama-Indian-PPclover-Sgrod-Ycone | C61: 2-CP2_5-BB-Sgrama-Indian-PPclover-Sgrod-Ycone | D61: Big Bluestem | E61: Andropogon gerardii | F61: 24 | G61: 1.5 | I61: Grass | J61: N | K61: N | M61: CP2_5 | O61: BB-Sgrama-Indian-PPclover-Sgrod-Ycone | P61: =IF(D61="","",VLOOKUP(D61,species_data!$A$4:$G$148,7)) -> BB | Q61: BB | S61: =IF(D61="","",VLOOKUP(D61,species_data!$A$4:$F$148,4)) -> 3.79
A62: 2 | B62: CP2_5-BB-Sgrama-Indian-PPclover-Sgrod-Ycone | C62: 2-CP2_5-BB-Sgrama-Indian-PPclover-Sgrod-Ycone | D62: Sideoats Grama | E62: Bouteloua curtipendula | F62: 24 | G62: 1.5 | I62: Grass | J62: N | K62: N | M62: CP2_5 | O62: BB-Sgrama-Indian-PPclover-Sgrod-Ycone | P62: =IF(D62="","",VLOOKUP(D62,species_data!$A$4:$G$148,7)) -> Sgrama | Q62: BB-Sgrama | S62: =IF(D62="","",VLOOKUP(D62,species_data!$A$4:$F$148,4)) -> 2.92
A63: 2 | B63: CP2_5-BB-Sgrama-Indian-PPclover-Sgrod-Ycone | C63: 2-CP2_5-BB-Sgrama-Indian-PPclover-Sgrod-Ycone | D63: Indiangrass | E63: Sorghastrum nutans | F63: 8 | G63: 0.5 | I63: Grass | J63: N | K63: N | M63: CP2_5 | O63: BB-Sgrama-Indian-PPclover-Sgrod-Ycone | P63: =IF(D63="","",VLOOKUP(D63,species_data!$A$4:$G$148,7)) -> Indian | Q63: BB-Sgrama-Indian | S63: =IF(D63="","",VLOOKUP(D63,species_data!$A$4:$F$148,4)) -> 4.407713499
A64: 2 | B64: CP2_5-BB-Sgrama-Indian-PPclover-Sgrod-Ycone | C64: 2-CP2_5-BB-Sgrama-Indian-PPclover-Sgrod-Ycone | D64: Purple Prairie Clover | E64: Dalea purpurea | F64: 2 | G64: 0.125 | I64: Legume | J64: N | K64: N | M64: CP2_5 | O64: BB-Sgrama-Indian-PPclover-Sgrod-Ycone | P64: =IF(D64="","",VLOOKUP(D64,species_data!$A$4:$G$148,7)) -> PPclover | Q64: BB-Sgrama-Indian-PPclover | S64: =IF(D64="","",VLOOKUP(D64,species_data!$A$4:$F$148,4)) -> 7.327823691
A65: 2 | B65: CP2_5-BB-Sgrama-Indian-PPclover-Sgrod-Ycone | C65: 2-CP2_5-BB-Sgrama-Indian-PPclover-Sgrod-Ycone | D65: Stiff Goldenrod | E65: Oligoneuron rigidum | F65: 1 | G65: 0.0625 | I65: Forb | J65: N | K65: N | M65: CP2_5 | O65: BB-Sgrama-Indian-PPclover-Sgrod-Ycone | P65: =IF(D65="","",VLOOKUP(D65,species_data!$A$4:$G$148,7)) -> Sgrod | Q65: BB-Sgrama-Indian-PPclover-Sgrod | S65: =IF(D65="","",VLOOKUP(D65,species_data!$A$4:$F$148,4)) -> 16.84113866
A66: 2 | B66: CP2_5-BB-Sgrama-Indian-PPclover-Sgrod-Ycone | C66: 2-CP2_5-BB-Sgrama-Indian-PPclover-Sgrod-Ycone | D66: Yellow Coneflower | E66: Ratibida pinnata | F66: 1 | G66: 0.0625 | I66: Forb | J66: N | K66: N | M66: CP2_5 | O66: BB-Sgrama-Indian-PPclover-Sgrod-Ycone | P66: =IF(D66="","",VLOOKUP(D66,species_data!$A$4:$G$148,7)) -> Ycone | Q66: BB-Sgrama-Indian-PPclover-Sgrod-Ycone | S66: =IF(D66="","",VLOOKUP(D66,species_data!$A$4:$F$148,4)) -> 9.888
A67: 2 | B67: CP2_6-BB-Cwrye-Indian-Switch-Pcord-Cup-Bvervain-Ciron | C67: 2-CP2_6-BB-Cwrye-Indian-Switch-Pcord-Cup-Bvervain-Ciron | D67: Big Bluestem | E67: Andropogon gerardii | F67: 16 | G67: 1 | I67: Grass | J67: N | K67: N | M67: CP2_6 | O67: BB-Cwrye-Indian-Switch-Pcord-Cup-Bvervain-Ciron | P67: =IF(D67="","",VLOOKUP(D67,species_data!$A$4:$G$148,7)) -> BB | Q67: BB | S67: =IF(D67="","",VLOOKUP(D67,species_data!$A$4:$F$148,4)) -> 3.79
A68: 2 | B68: CP2_6-BB-Cwrye-Indian-Switch-Pcord-Cup-Bvervain-Ciron | C68: 2-CP2_6-BB-Cwrye-Indian-Switch-Pcord-Cup-Bvervain-Ciron | D68: Canada Wildrye | E68: Elymus canadensis | F68: 16 | G68: 1 | I68: Grass | J68: N | K68: N | M68: CP2_6 | O68: BB-Cwrye-Indian-Switch-Pcord-Cup-Bvervain-Ciron | P68: =IF(D68="","",VLOOKUP(D68,species_data!$A$4:$G$148,7)) -> Cwrye | Q68: BB-Cwrye | S68: =IF(D68="","",VLOOKUP(D68,species_data!$A$4:$F$148,4)) -> 1.910009183
A69: 2 | B69: CP2_6-BB-Cwrye-Indian-Switch-Pcord-Cup-Bvervain-Ciron | C69: 2-CP2_6-BB-Cwrye-Indian-Switch-Pcord-Cup-Bvervain-Ciron | D69: Indiangrass | E69: Sorghastrum nutans | F69: 16 | G69: 1 | I69: Grass | J69: N | K69: N | M69: CP2_6 | O69: BB-Cwrye-Indian-Switch-Pcord-Cup-Bvervain-Ciron | P69: =IF(D69="","",VLOOKUP(D69,species_data!$A$4:$G$148,7)) -> Indian | Q69: BB-Cwrye-Indian | S69: =IF(D69="","",VLOOKUP(D69,species_data!$A$4:$F$148,4)) -> 4.407713499
A70: 2 | B70: =IF(O70="","",CONCATENATE(M70,"-",O70)) -> CP2_6-BB-Cwrye-Indian-Switch-Pcord-Cup-Bvervain-Ciron | C70: =IF(D70="","",CONCATENATE(A70,"-",B70)) -> 2-CP2_6-BB-Cwrye-Indian-Switch-Pcord-Cup-Bvervain-Ciron | D70: Switchgrass | E70: Panicum virgatum | F70: 16 | G70: 1 | I70: Grass | J70: N | K70: N | M70: CP2_6 | O70: BB-Cwrye-Indian-Switch-Pcord-Cup-Bvervain-Ciron | P70: =IF(D70="","",VLOOKUP(D70,species_data!$A$4:$G$148,7)) -> Switch | Q70: =IF(D70="","",IF(M70=M69,CONCATENATE(Q69,"-",P70),P70)) -> BB-Cwrye-Indian-Switch | S70: =IF(D70="","",VLOOKUP(D70,species_data!$A$4:$F$148,4)) -> 8.93
A71: 2 | B71: CP2_6-BB-Cwrye-Indian-Switch-Pcord-Cup-Bvervain-Ciron | C71: 2-CP2_6-BB-Cwrye-Indian-Switch-Pcord-Cup-Bvervain-Ciron | D71: Prairie Cordgrass | E71: Spartina pectinata | F71: =IF(D71="","",ROUND(G71*16,2)) -> 8 | G71: 0.5 | I71: Grass | J71: N | K71: N | M71: CP2_6 | O71: BB-Cwrye-Indian-Switch-Pcord-Cup-Bvervain-Ciron | P71: =IF(D71="","",VLOOKUP(D71,species_data!$A$4:$G$148,7)) -> Pcord | Q71: BB-Cwrye-Indian-Switch-Pcord | S71: =IF(D71="","",VLOOKUP(D71,species_data!$A$4:$F$148,4)) -> 2.424242424
A72: 2 | B72: CP2_6-BB-Cwrye-Indian-Switch-Pcord-Cup-Bvervain-Ciron | C72: 2-CP2_6-BB-Cwrye-Indian-Switch-Pcord-Cup-Bvervain-Ciron | D72: Cupplant | E72: Silphium perfoliatum | F72: 2 | G72: 0.125 | I72: Forb | J72: N | K72: N | M72: CP2_6 | O72: =IF(M72=M73,O73,Q72) -> BB-Cwrye-Indian-Switch-Pcord-Cup-Bvervain-Ciron | P72: =IF(D72="","",VLOOKUP(D72,species_data!$A$4:$G$148,7)) -> Cup | Q72: BB-Cwrye-Indian-Switch-Pcord-Cup | S72: =IF(D72="","",VLOOKUP(D72,species_data!$A$4:$F$148,4)) -> 0.5142332415
A73: 2 | B73: CP2_6-BB-Cwrye-Indian-Switch-Pcord-Cup-Bvervain-Ciron | C73: 2-CP2_6-BB-Cwrye-Indian-Switch-Pcord-Cup-Bvervain-Ciron | D73: Blue Vervain | E73: Verbena hastata | F73: 1 | G73: 0.0625 | I73: Forb | J73: N | K73: N | M73: CP2_6 | O73: BB-Cwrye-Indian-Switch-Pcord-Cup-Bvervain-Ciron | P73: =IF(D73="","",VLOOKUP(D73,species_data!$A$4:$G$148,7)) -> Bvervain | Q73: BB-Cwrye-Indian-Switch-Pcord-Cup-Bvervain | S73: =IF(D73="","",VLOOKUP(D73,species_data!$A$4:$F$148,4)) -> 34.15977961
A74: 2 | B74: CP2_6-BB-Cwrye-Indian-Switch-Pcord-Cup-Bvervain-Ciron | C74: 2-CP2_6-BB-Cwrye-Indian-Switch-Pcord-Cup-Bvervain-Ciron | D74: Common Ironweed | E74: Vernonia fasciculata | F74: 1 | G74: 0.0625 | I74: Forb | J74: N | K74: N | M74: CP2_6 | O74: BB-Cwrye-Indian-Switch-Pcord-Cup-Bvervain-Ciron | P74: =IF(D74="","",VLOOKUP(D74,species_data!$A$4:$G$148,7)) -> Ciron | Q74: BB-Cwrye-Indian-Switch-Pcord-Cup-Bvervain-Ciron | S74: =IF(D74="","",VLOOKUP(D74,species_data!$A$4:$F$148,4)) -> 7.346189164
A75: 2 | B75: CP2_7-Switch-BB-Cwrye-Pcord-Berg-NEaster-Ycone | C75: 2-CP2_7-Switch-BB-Cwrye-Pcord-Berg-NEaster-Ycone | D75: Switchgrass | E75: Panicum virgatum | F75: 32 | G75: 2 | I75: Grass | J75: N | K75: N | M75: CP2_7 | O75: Switch-BB-Cwrye-Pcord-Berg-NEaster-Ycone | P75: =IF(D75="","",VLOOKUP(D75,species_data!$A$4:$G$148,7)) -> Switch | Q75: Switch | S75: =IF(D75="","",VLOOKUP(D75,species_data!$A$4:$F$148,4)) -> 8.93
A76: 2 | B76: CP2_7-Switch-BB-Cwrye-Pcord-Berg-NEaster-Ycone | C76: 2-CP2_7-Switch-BB-Cwrye-Pcord-Berg-NEaster-Ycone | D76: Big Bluestem | E76: Andropogon gerardii | F76: 16 | G76: 1 | I76: Grass | J76: N | K76: N | M76: CP2_7 | O76: Switch-BB-Cwrye-Pcord-Berg-NEaster-Ycone | P76: =IF(D76="","",VLOOKUP(D76,species_data!$A$4:$G$148,7)) -> BB | Q76: Switch-BB | S76: =IF(D76="","",VLOOKUP(D76,species_data!$A$4:$F$148,4)) -> 3.79
A77: 2 | B77: CP2_7-Switch-BB-Cwrye-Pcord-Berg-NEaster-Ycone | C77: 2-CP2_7-Switch-BB-Cwrye-Pcord-Berg-NEaster-Ycone | D77: Canada Wildrye | E77: Elymus canadensis | F77: 16 | G77: 1 | I77: Grass | J77: N | K77: N | M77: CP2_7 | O77: Switch-BB-Cwrye-Pcord-Berg-NEaster-Ycone | P77: =IF(D77="","",VLOOKUP(D77,species_data!$A$4:$G$148,7)) -> Cwrye | Q77: Switch-BB-Cwrye | S77: =IF(D77="","",VLOOKUP(D77,species_data!$A$4:$F$148,4)) -> 1.910009183
A78: 2 | B78: CP2_7-Switch-BB-Cwrye-Pcord-Berg-NEaster-Ycone | C78: 2-CP2_7-Switch-BB-Cwrye-Pcord-Berg-NEaster-Ycone | D78: Prairie Cordgrass | E78: Spartina pectinata | F78: 4 | G78: 0.25 | I78: Grass | J78: N | K78: N | M78: CP2_7 | O78: Switch-BB-Cwrye-Pcord-Berg-NEaster-Ycone | P78: =IF(D78="","",VLOOKUP(D78,species_data!$A$4:$G$148,7)) -> Pcord | Q78: Switch-BB-Cwrye-Pcord | S78: =IF(D78="","",VLOOKUP(D78,species_data!$A$4:$F$148,4)) -> 2.424242424
A79: 2 | B79: CP2_7-Switch-BB-Cwrye-Pcord-Berg-NEaster-Ycone | C79: 2-CP2_7-Switch-BB-Cwrye-Pcord-Berg-NEaster-Ycone | D79: Bergamot | E79: Monarda fistulosa | F79: 1 | G79: 0.0625 | I79: Forb | J79: N | K79: N | M79: CP2_7 | O79: Switch-BB-Cwrye-Pcord-Berg-NEaster-Ycone | P79: =IF(D79="","",VLOOKUP(D79,species_data!$A$4:$G$148,7)) -> Berg | Q79: Switch-BB-Cwrye-Pcord-Berg | S79: =IF(D79="","",VLOOKUP(D79,species_data!$A$4:$F$148,4)) -> 28.57667585
A80: 2 | B80: CP2_7-Switch-BB-Cwrye-Pcord-Berg-NEaster-Ycone | C80: 2-CP2_7-Switch-BB-Cwrye-Pcord-Berg-NEaster-Ycone | D80: New England Aster | E80: Symphyotrichum novae-angliae | F80: 1 | G80: 0.0625 | I80: Forb | J80: N | K80: N | M80: CP2_7 | O80: Switch-BB-Cwrye-Pcord-Berg-NEaster-Ycone | P80: =IF(D80="","",VLOOKUP(D80,species_data!$A$4:$G$148,7)) -> NEaster | Q80: Switch-BB-Cwrye-Pcord-Berg-NEaster | S80: =IF(D80="","",VLOOKUP(D80,species_data!$A$4:$F$148,4)) -> 25.67493113
A81: 2 | B81: CP2_7-Switch-BB-Cwrye-Pcord-Berg-NEaster-Ycone | C81: 2-CP2_7-Switch-BB-Cwrye-Pcord-Berg-NEaster-Ycone | D81: Yellow Coneflower | E81: Ratibida pinnata | F81: 1 | G81: 0.0625 | I81: Forb | J81: N | K81: N | M81: CP2_7 | O81: Switch-BB-Cwrye-Pcord-Berg-NEaster-Ycone | P81: =IF(D81="","",VLOOKUP(D81,species_data!$A$4:$G$148,7)) -> Ycone | Q81: Switch-BB-Cwrye-Pcord-Berg-NEaster-Ycone | S81: =IF(D81="","",VLOOKUP(D81,species_data!$A$4:$F$148,4)) -> 9.888
A82: 4 | B82: CP4D-1-RC-SB-Tim-Orc-RC | C82: 4-CP4D-1-RC-SB-Tim-Orc-RC | D82: Red Clover | E82: Trifolium pratense | F82: 96 | G82: 6 | I82: Legume | J82: I | K82: N | M82: CP4D-1 | O82: RC-SB-Tim-Orc-RC | P82: =IF(D82="","",VLOOKUP(D82,species_data!$A$4:$G$148,7)) -> RC | Q82: RC | S82: =IF(D82="","",VLOOKUP(D82,species_data!$A$4:$F$148,4)) -> 6.312
A83: 4 | B83: CP4D-1-RC-SB-Tim-Orc-RC | C83: 4-CP4D-1-RC-SB-Tim-Orc-RC | D83: Smooth Bromegrass | E83: Bromus inermis | F83: 32 | G83: 2 | I83: Grass | J83: I | K83: N | M83: CP4D-1 | O83: RC-SB-Tim-Orc-RC | P83: =IF(D83="","",VLOOKUP(D83,species_data!$A$4:$G$148,7)) -> SB | Q83: RC-SB | S83: =IF(D83="","",VLOOKUP(D83,species_data!$A$4:$F$148,4)) -> 3.122130395
A84: 4 | B84: CP4D-1-RC-SB-Tim-Orc-RC | C84: 4-CP4D-1-RC-SB-Tim-Orc-RC | D84: Timothy | E84: Phleum pratense | F84: 32 | G84: 2 | I84: Grass | J84: I | K84: N | M84: CP4D-1 | O84: RC-SB-Tim-Orc-RC | P84: =IF(D84="","",VLOOKUP(D84,species_data!$A$4:$G$148,7)) -> Tim | Q84: RC-SB-Tim | S84: =IF(D84="","",VLOOKUP(D84,species_data!$A$4:$F$148,4)) -> 28.24
A85: 4 | B85: CP4D-1-RC-SB-Tim-Orc-RC | C85: 4-CP4D-1-RC-SB-Tim-Orc-RC | D85: Orchardgrass | E85: Dactylis glomerata L. | F85: 8 | G85: 0.5 | I85: Grass | J85: I | K85: N | M85: CP4D-1 | O85: RC-SB-Tim-Orc-RC | P85: =IF(D85="","",VLOOKUP(D85,species_data!$A$4:$G$148,7)) -> Orc | Q85: RC-SB-Tim-Orc | S85: =IF(D85="","",VLOOKUP(D85,species_data!$A$4:$F$148,4)) -> 14.99081726
A86: 4 | B86: CP4D-1-RC-SB-Tim-Orc-RC | C86: 4-CP4D-1-RC-SB-Tim-Orc-RC | D86: Red Clover | E86: Trifolium pratense | F86: 8 | G86: 0.5 | I86: Legume | J86: I | K86: N | M86: CP4D-1 | O86: RC-SB-Tim-Orc-RC | P86: =IF(D86="","",VLOOKUP(D86,species_data!$A$4:$G$148,7)) -> RC | Q86: RC-SB-Tim-Orc-RC | S86: =IF(D86="","",VLOOKUP(D86,species_data!$A$4:$F$148,4)) -> 6.312
A87: 4 | B87: CP4D-2-Alf-SB-Tim-Orc | C87: 4-CP4D-2-Alf-SB-Tim-Orc | D87: Alfalfa | E87: Medicago sativa | F87: 112 | G87: 7 | I87: Legume | J87: I | K87: N | M87: CP4D-2 | O87: Alf-SB-Tim-Orc | P87: =IF(D87="","",VLOOKUP(D87,species_data!$A$4:$G$148,7)) -> Alf | Q87: Alf | S87: =IF(D87="","",VLOOKUP(D87,species_data!$A$4:$F$148,4)) -> 5.024
A88: 4 | B88: CP4D-2-Alf-SB-Tim-Orc | C88: 4-CP4D-2-Alf-SB-Tim-Orc | D88: Smooth Bromegrass | E88: Bromus inermis | F88: 32 | G88: 2 | I88: Grass | J88: I | K88: N | M88: CP4D-2 | O88: Alf-SB-Tim-Orc | P88: =IF(D88="","",VLOOKUP(D88,species_data!$A$4:$G$148,7)) -> SB | Q88: Alf-SB | S88: =IF(D88="","",VLOOKUP(D88,species_data!$A$4:$F$148,4)) -> 3.122130395
A89: 4 | B89: CP4D-2-Alf-SB-Tim-Orc | C89: 4-CP4D-2-Alf-SB-Tim-Orc | D89: Timothy | E89: Phleum pratense | F89: 16 | G89: 1 | I89: Grass | J89: I | K89: N | M89: CP4D-2 | O89: Alf-SB-Tim-Orc | P89: =IF(D89="","",VLOOKUP(D89,species_data!$A$4:$G$148,7)) -> Tim | Q89: Alf-SB-Tim | S89: =IF(D89="","",VLOOKUP(D89,species_data!$A$4:$F$148,4)) -> 28.24
A90: 4 | B90: CP4D-2-Alf-SB-Tim-Orc | C90: 4-CP4D-2-Alf-SB-Tim-Orc | D90: Orchardgrass | E90: Dactylis glomerata L. | F90: 8 | G90: 0.5 | I90: Grass | J90: I | K90: N | M90: CP4D-2 | O90: Alf-SB-Tim-Orc | P90: =IF(D90="","",VLOOKUP(D90,species_data!$A$4:$G$148,7)) -> Orc | Q90: Alf-SB-Tim-Orc | S90: =IF(D90="","",VLOOKUP(D90,species_data!$A$4:$F$148,4)) -> 14.99081726
A91: 4 | B91: CP4D-3-RC-Tim-SB-Orc | C91: 4-CP4D-3-RC-Tim-SB-Orc | D91: Red Clover | E91: Trifolium pratense | F91: 96 | G91: 6 | I91: Legume | J91: I | K91: N | M91: CP4D-3 | O91: RC-Tim-SB-Orc | P91: =IF(D91="","",VLOOKUP(D91,species_data!$A$4:$G$148,7)) -> RC | Q91: RC | S91: =IF(D91="","",VLOOKUP(D91,species_data!$A$4:$F$148,4)) -> 6.312
A92: 4 | B92: CP4D-3-RC-Tim-SB-Orc | C92: 4-CP4D-3-RC-Tim-SB-Orc | D92: Timothy | E92: Phleum pratense | F92: 32 | G92: 2 | I92: Grass | J92: I | K92: N | M92: CP4D-3 | O92: RC-Tim-SB-Orc | P92: =IF(D92="","",VLOOKUP(D92,species_data!$A$4:$G$148,7)) -> Tim | Q92: RC-Tim | S92: =IF(D92="","",VLOOKUP(D92,species_data!$A$4:$F$148,4)) -> 28.24
A93: 4 | B93: CP4D-3-RC-Tim-SB-Orc | C93: 4-CP4D-3-RC-Tim-SB-Orc | D93: Smooth Bromegrass | E93: Bromus inermis | F93: 32 | G93: 2 | I93: Grass | J93: I | K93: N | M93: CP4D-3 | O93: RC-Tim-SB-Orc | P93: =IF(D93="","",VLOOKUP(D93,species_data!$A$4:$G$148,7)) -> SB | Q93: RC-Tim-SB | S93: =IF(D93="","",VLOOKUP(D93,species_data!$A$4:$F$148,4)) -> 3.122130395
A94: 4 | B94: CP4D-3-RC-Tim-SB-Orc | C94: 4-CP4D-3-RC-Tim-SB-Orc | D94: Orchardgrass | E94: Dactylis glomerata L. | F94: 8 | G94: 0.5 | I94: Grass | J94: I | K94: N | M94: CP4D-3 | O94: RC-Tim-SB-Orc | P94: =IF(D94="","",VLOOKUP(D94,species_data!$A$4:$G$148,7)) -> Orc | Q94: RC-Tim-SB-Orc | S94: =IF(D94="","",VLOOKUP(D94,species_data!$A$4:$F$148,4)) -> 14.99081726
A95: 4 | B95: CP4D-4-RC-Tim-Orc-LadC | C95: 4-CP4D-4-RC-Tim-Orc-LadC | D95: Red Clover | E95: Trifolium pratense | F95: 96 | G95: 6 | I95: Legume | J95: I | K95: N | M95: CP4D-4 | O95: RC-Tim-Orc-LadC | P95: =IF(D95="","",VLOOKUP(D95,species_data!$A$4:$G$148,7)) -> RC | Q95: RC | S95: =IF(D95="","",VLOOKUP(D95,species_data!$A$4:$F$148,4)) -> 6.312
A96: 4 | B96: CP4D-4-RC-Tim-Orc-LadC | C96: 4-CP4D-4-RC-Tim-Orc-LadC | D96: Timothy | E96: Phleum pratense | F96: 32 | G96: 2 | I96: Grass | J96: I | K96: N | M96: CP4D-4 | O96: RC-Tim-Orc-LadC | P96: =IF(D96="","",VLOOKUP(D96,species_data!$A$4:$G$148,7)) -> Tim | Q96: RC-Tim | S96: =IF(D96="","",VLOOKUP(D96,species_data!$A$4:$F$148,4)) -> 28.24
A97: 4 | B97: CP4D-4-RC-Tim-Orc-LadC | C97: 4-CP4D-4-RC-Tim-Orc-LadC | D97: Orchardgrass | E97: Dactylis glomerata L. | F97: 16 | G97: 1 | I97: Grass | J97: I | K97: N | M97: CP4D-4 | O97: RC-Tim-Orc-LadC | P97: =IF(D97="","",VLOOKUP(D97,species_data!$A$4:$G$148,7)) -> Orc | Q97: RC-Tim-Orc | S97: =IF(D97="","",VLOOKUP(D97,species_data!$A$4:$F$148,4)) -> 14.99081726
A98: 4 | B98: CP4D-4-RC-Tim-Orc-LadC | C98: 4-CP4D-4-RC-Tim-Orc-LadC | D98: White Ladino Clover | E98: Trifolium repens | F98: 8 | G98: 0.5 | I98: Legume | J98: I | K98: N | M98: CP4D-4 | O98: RC-Tim-Orc-LadC | P98: =IF(D98="","",VLOOKUP(D98,species_data!$A$4:$G$148,7)) -> LadC | Q98: RC-Tim-Orc-LadC | S98: =IF(D98="","",VLOOKUP(D98,species_data!$A$4:$F$148,4)) -> 20.0096
A99: 4 | B99: CP4D-5-Indian-BB-Switch-Cmilkvetch-Besus-Ycone | C99: 4-CP4D-5-Indian-BB-Switch-Cmilkvetch-Besus-Ycone | D99: Indiangrass | E99: Sorghastrum nutans | F99: 48 | G99: 3 | I99: Grass | J99: N | K99: N | M99: CP4D-5 | O99: Indian-BB-Switch-Cmilkvetch-Besus-Ycone | P99: =IF(D99="","",VLOOKUP(D99,species_data!$A$4:$G$148,7)) -> Indian | Q99: Indian | S99: =IF(D99="","",VLOOKUP(D99,species_data!$A$4:$F$148,4)) -> 4.407713499
A100: 4 | B100: CP4D-5-Indian-BB-Switch-Cmilkvetch-Besus-Ycone | C100: 4-CP4D-5-Indian-BB-Switch-Cmilkvetch-Besus-Ycone | D100: Big Bluestem | E100: Andropogon gerardii | F100: 16 | G100: 1 | I100: Grass | J100: N | K100: N | M100: CP4D-5 | O100: Indian-BB-Switch-Cmilkvetch-Besus-Ycone | P100: =IF(D100="","",VLOOKUP(D100,species_data!$A$4:$G$148,7)) -> BB | Q100: Indian-BB | S100: =IF(D100="","",VLOOKUP(D100,species_data!$A$4:$F$148,4)) -> 3.79
A101: 4 | B101: CP4D-5-Indian-BB-Switch-Cmilkvetch-Besus-Ycone | C101: 4-CP4D-5-Indian-BB-Switch-Cmilkvetch-Besus-Ycone | D101: Switchgrass | E101: Panicum virgatum | F101: 16 | G101: 1 | I101: Grass | J101: N | K101: N | M101: CP4D-5 | O101: Indian-BB-Switch-Cmilkvetch-Besus-Ycone | P101: =IF(D101="","",VLOOKUP(D101,species_data!$A$4:$G$148,7)) -> Switch | Q101: Indian-BB-Switch | S101: =IF(D101="","",VLOOKUP(D101,species_data!$A$4:$F$148,4)) -> 8.93
A102: 4 | B102: =IF(O102="","",CONCATENATE(M102,"-",O102)) -> CP4D-5-Indian-BB-Switch-Cmilkvetch-Besus-Ycone | C102: 4-CP4D-5-Indian-BB-Switch-Cmilkvetch-Besus-Ycone | D102: Canada Milkvetch | E102: Astragalus canadensis | F102: 2 | G102: 0.125 | I102: Legume | J102: N | K102: N | M102: CP4D-5 | O102: Indian-BB-Switch-Cmilkvetch-Besus-Ycone | P102: =IF(D102="","",VLOOKUP(D102,species_data!$A$4:$G$148,7)) -> Cmilkvetch | Q102: Indian-BB-Switch-Cmilkvetch | S102: =IF(D102="","",VLOOKUP(D102,species_data!$A$4:$F$148,4)) -> 5.862258953
A103: 4 | B103: CP4D-5-Indian-BB-Switch-Cmilkvetch-Besus-Ycone | C103: 4-CP4D-5-Indian-BB-Switch-Cmilkvetch-Besus-Ycone | D103: Black-eyed Susan | E103: Rudbeckia hirta | F103: 1 | G103: 0.0625 | I103: Forb | J103: N | K103: N | M103: CP4D-5 | O103: Indian-BB-Switch-Cmilkvetch-Besus-Ycone | P103: =IF(D103="","",VLOOKUP(D103,species_data!$A$4:$G$148,7)) -> Besus | Q103: Indian-BB-Switch-Cmilkvetch-Besus | S103: =IF(D103="","",VLOOKUP(D103,species_data!$A$4:$F$148,4)) -> 36.58402204
A104: 4 | B104: CP4D-5-Indian-BB-Switch-Cmilkvetch-Besus-Ycone | C104: 4-CP4D-5-Indian-BB-Switch-Cmilkvetch-Besus-Ycone | D104: Yellow Coneflower | E104: Ratibida pinnata | F104: 1 | G104: 0.0625 | I104: Forb | J104: N | K104: N | M104: CP4D-5 | O104: Indian-BB-Switch-Cmilkvetch-Besus-Ycone | P104: =IF(D104="","",VLOOKUP(D104,species_data!$A$4:$G$148,7)) -> Ycone | Q104: Indian-BB-Switch-Cmilkvetch-Besus-Ycone | S104: =IF(D104="","",VLOOKUP(D104,species_data!$A$4:$F$148,4)) -> 9.888
A105: 4 | B105: CP4D-6-Indian-BB-Switch-LB-Cmilkvetch-Besus-Ycone | C105: 4-CP4D-6-Indian-BB-Switch-LB-Cmilkvetch-Besus-Ycone | D105: Indiangrass | E105: Sorghastrum nutans | F105: 48 | G105: 3 | I105: Grass | J105: N | K105: N | M105: CP4D-6 | O105: Indian-BB-Switch-LB-Cmilkvetch-Besus-Ycone | P105: =IF(D105="","",VLOOKUP(D105,species_data!$A$4:$G$148,7)) -> Indian | Q105: Indian | S105: =IF(D105="","",VLOOKUP(D105,species_data!$A$4:$F$148,4)) -> 4.407713499
A106: 4 | B106: CP4D-6-Indian-BB-Switch-LB-Cmilkvetch-Besus-Ycone | C106: 4-CP4D-6-Indian-BB-Switch-LB-Cmilkvetch-Besus-Ycone | D106: Big Bluestem | E106: Andropogon gerardii | F106: 16 | G106: 1 | I106: Grass | J106: N | K106: N | M106: CP4D-6 | O106: Indian-BB-Switch-LB-Cmilkvetch-Besus-Ycone | P106: =IF(D106="","",VLOOKUP(D106,species_data!$A$4:$G$148,7)) -> BB | Q106: Indian-BB | S106: =IF(D106="","",VLOOKUP(D106,species_data!$A$4:$F$148,4)) -> 3.79
A107: 4 | B107: CP4D-6-Indian-BB-Switch-LB-Cmilkvetch-Besus-Ycone | C107: 4-CP4D-6-Indian-BB-Switch-LB-Cmilkvetch-Besus-Ycone | D107: Switchgrass | E107: Panicum virgatum | F107: 16 | G107: 1 | I107: Grass | J107: N | K107: N | M107: CP4D-6 | O107: Indian-BB-Switch-LB-Cmilkvetch-Besus-Ycone | P107: =IF(D107="","",VLOOKUP(D107,species_data!$A$4:$G$148,7)) -> Switch | Q107: Indian-BB-Switch | S107: =IF(D107="","",VLOOKUP(D107,species_data!$A$4:$F$148,4)) -> 8.93
A108: 4 | B108: CP4D-6-Indian-BB-Switch-LB-Cmilkvetch-Besus-Ycone | C108: 4-CP4D-6-Indian-BB-Switch-LB-Cmilkvetch-Besus-Ycone | D108: Little Bluestem | E108: Schizachyrium scoparium | F108: 16 | G108: 1 | I108: Grass | J108: N | K108: N | M108: CP4D-6 | O108: Indian-BB-Switch-LB-Cmilkvetch-Besus-Ycone | P108: =IF(D108="","",VLOOKUP(D108,species_data!$A$4:$G$148,7)) -> LB | Q108: Indian-BB-Switch-LB | S108: =IF(D108="","",VLOOKUP(D108,species_data!$A$4:$F$148,4)) -> 5.509641873
A109: 4 | B109: CP4D-6-Indian-BB-Switch-LB-Cmilkvetch-Besus-Ycone | C109: 4-CP4D-6-Indian-BB-Switch-LB-Cmilkvetch-Besus-Ycone | D109: Canada Milkvetch | E109: Astragalus canadensis | F109: 2 | G109: 0.125 | I109: Legume | J109: N | K109: N | M109: CP4D-6 | O109: Indian-BB-Switch-LB-Cmilkvetch-Besus-Ycone | P109: =IF(D109="","",VLOOKUP(D109,species_data!$A$4:$G$148,7)) -> Cmilkvetch | Q109: Indian-BB-Switch-LB-Cmilkvetch | S109: =IF(D109="","",VLOOKUP(D109,species_data!$A$4:$F$148,4)) -> 5.862258953
A110: 4 | B110: CP4D-6-Indian-BB-Switch-LB-Cmilkvetch-Besus-Ycone | C110: 4-CP4D-6-Indian-BB-Switch-LB-Cmilkvetch-Besus-Ycone | D110: Black-eyed Susan | E110: Rudbeckia hirta | F110: 1 | G110: 0.0625 | I110: Forb | J110: N | K110: N | M110: CP4D-6 | O110: Indian-BB-Switch-LB-Cmilkvetch-Besus-Ycone | P110: =IF(D110="","",VLOOKUP(D110,species_data!$A$4:$G$148,7)) -> Besus | Q110: Indian-BB-Switch-LB-Cmilkvetch-Besus | S110: =IF(D110="","",VLOOKUP(D110,species_data!$A$4:$F$148,4)) -> 36.58402204
A111: 4 | B111: CP4D-6-Indian-BB-Switch-LB-Cmilkvetch-Besus-Ycone | C111: 4-CP4D-6-Indian-BB-Switch-LB-Cmilkvetch-Besus-Ycone | D111: Yellow Coneflower | E111: Ratibida pinnata | F111: 1 | G111: 0.0625 | I111: Forb | J111: N | K111: N | M111: CP4D-6 | O111: Indian-BB-Switch-LB-Cmilkvetch-Besus-Ycone | P111: =IF(D111="","",VLOOKUP(D111,species_data!$A$4:$G$148,7)) -> Ycone | Q111: Indian-BB-Switch-LB-Cmilkvetch-Besus-Ycone | S111: =IF(D111="","",VLOOKUP(D111,species_data!$A$4:$F$148,4)) -> 9.888
A112: 4 | B112: CP4D-7-Indian-BB-Switch-PPclover-Besus-Ycone | C112: 4-CP4D-7-Indian-BB-Switch-PPclover-Besus-Ycone | D112: Indiangrass | E112: Sorghastrum nutans | F112: 48 | G112: 3 | I112: Grass | J112: N | K112: N | M112: CP4D-7 | O112: Indian-BB-Switch-PPclover-Besus-Ycone | P112: =IF(D112="","",VLOOKUP(D112,species_data!$A$4:$G$148,7)) -> Indian | Q112: Indian | S112: =IF(D112="","",VLOOKUP(D112,species_data!$A$4:$F$148,4)) -> 4.407713499
A113: 4 | B113: CP4D-7-Indian-BB-Switch-PPclover-Besus-Ycone | C113: 4-CP4D-7-Indian-BB-Switch-PPclover-Besus-Ycone | D113: Big Bluestem | E113: Andropogon gerardii | F113: 16 | G113: 1 | I113: Grass | J113: N | K113: N | M113: CP4D-7 | O113: Indian-BB-Switch-PPclover-Besus-Ycone | P113: =IF(D113="","",VLOOKUP(D113,species_data!$A$4:$G$148,7)) -> BB | Q113: Indian-BB | S113: =IF(D113="","",VLOOKUP(D113,species_data!$A$4:$F$148,4)) -> 3.79
A114: 4 | B114: CP4D-7-Indian-BB-Switch-PPclover-Besus-Ycone | C114: 4-CP4D-7-Indian-BB-Switch-PPclover-Besus-Ycone | D114: Switchgrass | E114: Panicum virgatum | F114: 16 | G114: 1 | I114: Grass | J114: N | K114: N | M114: CP4D-7 | O114: Indian-BB-Switch-PPclover-Besus-Ycone | P114: =IF(D114="","",VLOOKUP(D114,species_data!$A$4:$G$148,7)) -> Switch | Q114: Indian-BB-Switch | S114: =IF(D114="","",VLOOKUP(D114,species_data!$A$4:$F$148,4)) -> 8.93
A115: 4 | B115: CP4D-7-Indian-BB-Switch-PPclover-Besus-Ycone | C115: 4-CP4D-7-Indian-BB-Switch-PPclover-Besus-Ycone | D115: Purple Prairie Clover | E115: Dalea purpurea | F115: 2 | G115: 0.125 | I115: Legume | J115: N | K115: N | M115: CP4D-7 | O115: Indian-BB-Switch-PPclover-Besus-Ycone | P115: =IF(D115="","",VLOOKUP(D115,species_data!$A$4:$G$148,7)) -> PPclover | Q115: Indian-BB-Switch-PPclover | S115: =IF(D115="","",VLOOKUP(D115,species_data!$A$4:$F$148,4)) -> 7.327823691
A116: 4 | B116: CP4D-7-Indian-BB-Switch-PPclover-Besus-Ycone | C116: 4-CP4D-7-Indian-BB-Switch-PPclover-Besus-Ycone | D116: Black-eyed Susan | E116: Rudbeckia hirta | F116: 1 | G116: 0.0625 | I116: Forb | J116: N | K116: N | M116: CP4D-7 | O116: Indian-BB-Switch-PPclover-Besus-Ycone | P116: =IF(D116="","",VLOOKUP(D116,species_data!$A$4:$G$148,7)) -> Besus | Q116: Indian-BB-Switch-PPclover-Besus | S116: =IF(D116="","",VLOOKUP(D116,species_data!$A$4:$F$148,4)) -> 36.58402204
A117: 4 | B117: CP4D-7-Indian-BB-Switch-PPclover-Besus-Ycone | C117: 4-CP4D-7-Indian-BB-Switch-PPclover-Besus-Ycone | D117: Yellow Coneflower | E117: Ratibida pinnata | F117: 1 | G117: 0.0625 | I117: Forb | J117: N | K117: N | M117: CP4D-7 | O117: Indian-BB-Switch-PPclover-Besus-Ycone | P117: =IF(D117="","",VLOOKUP(D117,species_data!$A$4:$G$148,7)) -> Ycone | Q117: Indian-BB-Switch-PPclover-Besus-Ycone | S117: =IF(D117="","",VLOOKUP(D117,species_data!$A$4:$F$148,4)) -> 9.888
A118: 4 | B118: CP4D-8-Indian-BB-LB-Switch-PPclover-Besus-Ycone | C118: 4-CP4D-8-Indian-BB-LB-Switch-PPclover-Besus-Ycone | D118: Indiangrass | E118: Sorghastrum nutans | F118: 48 | G118: 3 | I118: Grass | J118: N | K118: N | M118: CP4D-8 | O118: Indian-BB-LB-Switch-PPclover-Besus-Ycone | P118: =IF(D118="","",VLOOKUP(D118,species_data!$A$4:$G$148,7)) -> Indian | Q118: Indian | S118: =IF(D118="","",VLOOKUP(D118,species_data!$A$4:$F$148,4)) -> 4.407713499
A119: 4 | B119: CP4D-8-Indian-BB-LB-Switch-PPclover-Besus-Ycone | C119: 4-CP4D-8-Indian-BB-LB-Switch-PPclover-Besus-Ycone | D119: Big Bluestem | E119: Andropogon gerardii | F119: 16 | G119: 1 | I119: Grass | J119: N | K119: N | M119: CP4D-8 | O119: Indian-BB-LB-Switch-PPclover-Besus-Ycone | P119: =IF(D119="","",VLOOKUP(D119,species_data!$A$4:$G$148,7)) -> BB | Q119: Indian-BB | S119: =IF(D119="","",VLOOKUP(D119,species_data!$A$4:$F$148,4)) -> 3.79
A120: 4 | B120: CP4D-8-Indian-BB-LB-Switch-PPclover-Besus-Ycone | C120: 4-CP4D-8-Indian-BB-LB-Switch-PPclover-Besus-Ycone | D120: Little Bluestem | E120: Schizachyrium scoparium | F120: 16 | G120: 1 | I120: Grass | J120: N | K120: N | M120: CP4D-8 | O120: Indian-BB-LB-Switch-PPclover-Besus-Ycone | P120: =IF(D120="","",VLOOKUP(D120,species_data!$A$4:$G$148,7)) -> LB | Q120: Indian-BB-LB | S120: =IF(D120="","",VLOOKUP(D120,species_data!$A$4:$F$148,4)) -> 5.509641873
A121: 4 | B121: CP4D-8-Indian-BB-LB-Switch-PPclover-Besus-Ycone | C121: 4-CP4D-8-Indian-BB-LB-Switch-PPclover-Besus-Ycone | D121: Switchgrass | E121: Panicum virgatum | F121: 16 | G121: 1 | I121: Grass | J121: N | K121: N | M121: CP4D-8 | O121: Indian-BB-LB-Switch-PPclover-Besus-Ycone | P121: =IF(D121="","",VLOOKUP(D121,species_data!$A$4:$G$148,7)) -> Switch | Q121: Indian-BB-LB-Switch | S121: =IF(D121="","",VLOOKUP(D121,species_data!$A$4:$F$148,4)) -> 8.93
A122: 4 | B122: CP4D-8-Indian-BB-LB-Switch-PPclover-Besus-Ycone | C122: 4-CP4D-8-Indian-BB-LB-Switch-PPclover-Besus-Ycone | D122: Purple Prairie Clover | E122: Dalea purpurea | F122: 2 | G122: 0.125 | I122: Legume | J122: N | K122: N | M122: CP4D-8 | O122: Indian-BB-LB-Switch-PPclover-Besus-Ycone | P122: =IF(D122="","",VLOOKUP(D122,species_data!$A$4:$G$148,7)) -> PPclover | Q122: Indian-BB-LB-Switch-PPclover | S122: =IF(D122="","",VLOOKUP(D122,species_data!$A$4:$F$148,4)) -> 7.327823691
